Workbook

Sheet Contents
A1: 80 | M1: ESC USE ONLY
D2: ESSENTIAL SERVICES COMMISSION
D3: Water Price Review
D4: Financial Model Template
B7: Table of Contents | F7: Water Business: | H7: =+N24 -> Western Water | I7: =+O24 -> WW
B8: Section & Sheet Titles | F8: Regulatory Period: | H8: 2018-19 to 2019-20 (Fourth) | N8: [Decision] | O8: [Month] | P8: [Year] | Q8: [Version]
F9: Model Name: | H9: =I7&"_Price Review Template_"&O9&P9&Q9 -> WW_Price Review Template_Jan2018 - v1 | N9: Draft | O9: Jan | P9: 2018 | Q9: - v1 | R9: << Select
B10: a. | C10: =+KeyAssumptionsPriceControl_FO!B1 -> Key Assumptions Price Control | F10: Decision type: | H10: =+N9&" Decision" -> Draft Decision | N10: Draft | O10: Jan | P10: 2016 | Q10: - v1
B11: b. | C11: =+Expenditure_Detail!B1 -> Expenditure - Detail | N11: Final | O11: Feb | P11: 2017 | Q11: - v1.2
B12: c. | C12: =Opex_FO!B1 -> Operating Expenditure - Forecast | F12: Model Key: | O12: Mar | P12: 2018 | Q12: - v3
B13: d. | C13: =Opex_Breakdown!B1 -> Operating Expenditure - Breakdown | O13: Apr | P13: 2019 | Q13: - v3.1
B14: e. | C14: =+'Capex_FO input'!B1 -> Capital Expenditure - Forecast Input | G14: BLUE | H14: =+I7&" - DATA INPUT CELL" -> WW - DATA INPUT CELL | O14: May | P14: 2020 | Q14: - v4
B15: f. | C15: =Capex_FO_AC!B1 -> Capital Expenditure - Asset Category Breakdown | O15: Jun | P15: 2021 | Q15: - v4.1
B16: g. | C16: =ExpSummary_FO!B1 -> Expenditure Summary | G16: YELLOW | H16: NOTES / INSTRUCTIONS | O16: Jul | Q16: - v5
B17: h. | C17: =RollForward_FO!B1 -> Rolled forward regulatory asset base (RAB) | O17: Aug | Q17: - v5.1
B18: i. | C18: =PrevPerAdj_FO!B1 -> Previous period adjustments | G18: GREY | H18: MODEL PARAMETERS / ASSUMPTIONS | O18: Sep | Q18: - v6
B19: j. | C19: =RevenuePriceCap_FO!C1 -> Revenue forecast (price caps) | O19: Oct | Q19: - v6.1
B20: k. | C20: Revenue forecast (tariff basket) | G20: WHITE | H20: FORMULA / HARDCODED VALUES | O20: Nov | Q20: - v7
B21: l. | C21: =NotPres_FO!B1 -> Non Prescribed Services | O21: Dec | Q21: - v7.1
B22: m. | C22: ='Finance&Tax_FO'!B1 -> Cash, debt and tax assumptions | G22: ORANGE | H22: FORMULA DIFFERENT TO ADJACENT CELL
B23: n. | C23: ='Rev&RAV_FO'!B1 -> Revenue requirement detail | N23: [Business]
B24: o. | C24: =Indicators_FO!B1 -> Financial indicators | G24: GREEN | H24: DATA FROM 2013 DECISION OR PERFORMANCE REPORT | N24: Western Water | O24: =+VLOOKUP(N24,N25:O42,2,FALSE) -> WW
B25: p. | C25: =Outcomes!B1 -> Outcomes | N25: Barwon Water | O25: BW
B26: q. | C26: =GSL!B1 -> Guaranteed Service Levels (GSL) | G26: RED | H26: ERROR CHECK | N26: Central Highlands Water | O26: CHW
N27: City West Water | O27: CWW
N28: Coliban Water | O28: CW
N29: East Gippsland Water | O29: EGW
N30: Gippsland Water | O30: CGW
N31: Goulburn Valley Water | O31: GVW
N32: GWM Water | O32: GWMW | P32: diff model
N33: Lower Murray Water - Urban | O33: LMW-U | P33: diff model
N34: Lower Murray Water - Rural | O34: LMW-R
N35: North East Water | O35: NEW
N36: South East Water | O36: SEW
N37: South Gippsland Water | O37: SGW
N38: Southern Rural Water | O38: SRW | P38: diff model
N39: Wannon Water | O39: WNW
N40: Western Water | O40: WW
N41: Westernport Water | O41: WPW
N42: Yarra Valley Water | O42: YVW

Sheet KeyAssumptionsPriceControl_FO
A1: 80 | B1: Key Assumptions Price Control
B2: =+Contents!H7 -> Western Water
B3: Go to Table of Contents
L4: FIRST REG PERIOD | P4: SECOND REG PERIOD | U4: THIRD REG PERIOD | X4: FOURTH REG PERIOD | Z4: FIFTH REG PERIOD | AC4: FIFTH REG PERIOD
F6: Straight Line | K6: 2006 | L6: 2007 | M6: 2008 | N6: 2009 | O6: 2010 | P6: 2011 | Q6: 2012 | R6: 2013 | S6: 2014 | T6: 2015 | U6: 2016 | V6: 2017 | W6: 2018 | X6: 2019 | Y6: 2020 | Z6: 2021 | AA6: 2022 | AB6: 2023 | AC6: 2024 | AD6: 2025 | AE6: 2026 | AF6: 2027 | AG6: 2028
F7: Declining Balance | I7: 2003-04 | J7: 2004-05 | K7: =+CONCATENATE(K6-1,"-",RIGHT(K6,2)) -> 2005-06 | L7: =+CONCATENATE(L6-1,"-",RIGHT(L6,2)) -> 2006-07 | M7: 2007-08 | N7: 2008-09 | O7: 2009-10 | P7: 2010-11 | Q7: 2011-12 | R7: 2012-13 | S7: 2013-14 | T7: 2014-15 | U7: 2015-16 | V7: 2016-17 | W7: 2017-18 | X7: 2018-19 | Y7: 2019-20 | Z7: 2020-21 | AA7: 2021-22 | AB7: 2022-23 | AC7: 2023-24 | AD7: 2024-25 | AE7: 2025-26 | AF7: 2026-27 | AG7: 2027-28
E11: Inflation assumptions
F13: March quarter annual CPI | I13: 141.3 | J13: 144.1 | K13: 147.5 | L13: 151.9 | M13: 155.6 | N13: 162.2 | O13: 166.2 | P13: 171 | Q13: 176.7 | R13: 99.9 | S13: 102.4 | T13: 105.4 | U13: 106.8 | V13: 108.2 | W13: 110.5 | X13: 113.0415 | Y13: 115.6414545 | Z13: 118.301208 | AA13: 121.0221357 | AB13: 123.8056449
F14: Inflation | J14: =+J13/I13-1 -> 0.01981599434 | K14: 0.02359472588 | L14: 0.02983050847 | M14: 0.02435813035 | N14: 0.04241645244 | O14: 0.02466091245 | P14: 0.02888086643 | Q14: 0.03333333333 | R14: 0.01584606678 | S14: =+IF(S13=0,$X$44,S13/R13-1) -> 0.02502502503 | T14: 0.029296875 | U14: 0.01328273245 | V14: 0.01310861423 | W14: 0.02125693161 | X14: 0.023 | Y14: 0.023 | Z14: 0.023 | AA14: 0.023 | AB14: 0.023 | AC14: 0.023 | AD14: 0.023 | AE14: 0.023 | AF14: 0.023 | AG14: 0.023
F15: Inflation factor | I15: 0.7871866295 | J15: 0.8027855153 | K15: 0.8217270195 | L15: 0.8462395543 | M15: 0.8668523677 | N15: 0.9036211699 | O15: 0.9259052925 | P15: 0.9526462396 | Q15: 0.9844011142 | R15: =+R13/$W$13 -> 0.9040723982 | S15: 0.9266968326 | T15: 0.9538461538 | U15: 0.9665158371 | V15: =+V13/$W$13 -> 0.9791855204 | W15: =+W13/$W$13 -> 1 | X15: =+W15*(1+X14) -> 1.023 | Y15: =+X15*(1+Y14) -> 1.046529 | Z15: 1.070599167 | AA15: 1.095222948 | AB15: 1.120413076 | AC15: 1.146182576 | AD15: 1.172544776 | AE15: 1.199513305 | AF15: 1.227102112 | AG15: 1.25532546
I16: CPI index re-referenced in 2012-13, shaded values have been hardcoded to lock in RAB value.
E21: Cost of debt - 10 year trailing average (Nominal)
W22: Estimate
E23: Cost of debt | L23: 0.06981666667 | M23: 0.07414 | N23: 0.0691525788 | O23: 0.07361870984 | P23: 0.07046784142 | Q23: 0.06308887941 | R23: 0.0526945046 | S23: 0.070525 | T23: 0.05360833333 | U23: 0.05270138413 | V23: 0.04908333333 | W23: 0.04908333333
E24: Re-financing weightings - average 10 yrs | L24: =1/10 -> 0.1 | M24: =1/10 -> 0.1 | N24: =1/10 -> 0.1 | O24: =1/10 -> 0.1 | P24: =1/10 -> 0.1 | Q24: 0.1 | R24: 0.1 | S24: 0.1 | T24: 0.1 | U24: 0.1 | V24: 0.1 | W24: 0.1 | X24: 0.1 | Y24: 0.1 | Z24: 0.1 | AA24: 0.1 | AB24: 0.1 | AC24: 0.1 | AD24: 0.1 | AE24: 0.1 | AF24: 0.1 | AG24: 0.1
E26: Cost of debt - 10 year trailing average | V26: =IF(U23<>"",SUMPRODUCT(L23:U23,L24:U24),"") -> 0.06498138982 | W26: =IF(V23<>"",SUMPRODUCT(M23:V23,M24:V24),"") -> 0.06290805649 | X26: =IF(W23<>"",SUMPRODUCT(N23:W23,N24:W24),"") -> 0.06040238982 | Y26: =IF(X23<>"",SUMPRODUCT(O23:X23,O24:X24),"") ->  | Z26: =IF(Y23<>"",SUMPRODUCT(P23:Y23,P24:Y24),"") -> 
E30: WACC assumptions (retained for historical purposes only) | U30: Regulatory Rate of Return (RRR) - Nominal
K32: 1st period | M32: 2nd period | O32: 3rd period | U32: Cost of Debt | X32: =+X26 -> 0.06040238982 | Y32: =+$X$32 -> 0.06040238982 | Z32: 0.06040238982 | AA32: 0.06040238982 | AB32: 0.06040238982 | AC32: 0.06040238982 | AD32: 0.06040238982 | AE32: 0.06040238982 | AF32: 0.06040238982 | AG32: 0.06040238982 | AI32: << Linked to Benchmark tax liability calculation (Rev&RAV_FO)
E33: Parameters
F34: Risk Free Rate (Real) | K34: =+HLOOKUP(Contents!$I$7&1,Determination_Lookup!$C$54:$BD$61,2,FALSE) -> 0.0267 | M34: =+HLOOKUP(Contents!$I$7&2,Determination_Lookup!$C$54:$BD$61,2,FALSE) -> 0.0323 | O34: =+HLOOKUP(Contents!$I$7&3,Determination_Lookup!$C$54:$BD$61,2,FALSE) -> 0.005959
F35: Debt Premium | K35: =+HLOOKUP(Contents!$I$7&1,Determination_Lookup!$C$54:$BD$61,3,FALSE) -> 0.0116 | M35: =+HLOOKUP(Contents!$I$7&2,Determination_Lookup!$C$54:$BD$61,3,FALSE) -> 0.0175 | O35: =+HLOOKUP(Contents!$I$7&3,Determination_Lookup!$C$54:$BD$61,3,FALSE) -> 0.0399
F36: Equity Premium | K36: =+HLOOKUP(Contents!$I$7&1,Determination_Lookup!$C$54:$BD$61,4,FALSE) -> 0.06 | M36: =+HLOOKUP(Contents!$I$7&2,Determination_Lookup!$C$54:$BD$61,4,FALSE) -> 0.06 | O36: =+HLOOKUP(Contents!$I$7&3,Determination_Lookup!$C$54:$BD$61,4,FALSE) -> 0.06 | U36: Regulatory Rate of Return (RRR) - Real
F37: Equity Beta | K37: =+HLOOKUP(Contents!$I$7&1,Determination_Lookup!$C$54:$BD$61,5,FALSE) -> 0.75 | M37: =+HLOOKUP(Contents!$I$7&2,Determination_Lookup!$C$54:$BD$61,5,FALSE) -> 0.65 | O37: =+HLOOKUP(Contents!$I$7&3,Determination_Lookup!$C$54:$BD$61,5,FALSE) -> 0.65
F38: Gearing (Debt/Assets) | K38: =+HLOOKUP(Contents!$I$7&1,Determination_Lookup!$C$54:$BD$61,6,FALSE) -> 0.6 | M38: =+HLOOKUP(Contents!$I$7&2,Determination_Lookup!$C$54:$BD$61,6,FALSE) -> 0.6 | O38: =+HLOOKUP(Contents!$I$7&3,Determination_Lookup!$C$54:$BD$61,6,FALSE) -> 0.6 | U38: Cost of Debt | X38: =(1+X32)/(1+X44)-1 -> 0.03656147587 | Y38: =+$X$38 -> 0.03656147587 | Z38: =+$X$38 -> 0.03656147587 | AA38: 0.03656147587 | AB38: 0.03656147587 | AC38: 0.03656147587 | AD38: 0.03656147587 | AE38: 0.03656147587 | AF38: 0.03656147587 | AG38: 0.03656147587
F39: Forecast Inflation | K39: =+HLOOKUP(Contents!$I$7&1,Determination_Lookup!$C$54:$BD$61,7,FALSE) -> 0.0255 | M39: =+HLOOKUP(Contents!$I$7&2,Determination_Lookup!$C$54:$BD$61,7,FALSE) -> 0.025 | O39: =+HLOOKUP(Contents!$I$7&3,Determination_Lookup!$C$54:$BD$61,7,FALSE) -> 0.0275
F40: Franking credit value | K40: =+HLOOKUP(Contents!$I$7&1,Determination_Lookup!$C$54:$BD$61,8,FALSE) -> 0.5 | M40: =+HLOOKUP(Contents!$I$7&2,Determination_Lookup!$C$54:$BD$61,8,FALSE) -> 0.5 | O40: =+HLOOKUP(Contents!$I$7&3,Determination_Lookup!$C$54:$BD$61,8,FALSE) -> 0.5 | U40: Return on Equity | X40: =IF(AG65<>0,(AG65/100),IF(AG63<>0,(AG63/100),(AG61/100))) -> 0.045 | Y40: =+$X$40 -> 0.045 | Z40: 0.045 | AA40: 0.045 | AB40: 0.045 | AC40: 0.045 | AD40: 0.045 | AE40: 0.045 | AF40: 0.045 | AG40: 0.045 | AI40: << Source: PREMO Assessment Matrix
E42: 'Vanilla' After Tax WACC (Real) | K42: =ROUND(((K34+K36*K37)*(1-K38))+((K34+K35)*K38),3) -> 0.052 | M42: =ROUND(((M34+M36*M37)*(1-M38))+((M34+M35)*M38),3) -> 0.058 | O42: =ROUND(((O34+O36*O37)*(1-O38))+((O34+O35)*O38),3) -> 0.045 | U42: RRR (real) | X42: =ROUND((X40*(1-X43)+X38*X43),3) -> 0.04 | Y42: 0.04 | Z42: 0.04 | AA42: 0.04 | AB42: 0.04 | AC42: 0.04 | AD42: 0.04 | AE42: 0.04 | AF42: 0.04 | AG42: 0.04
U43: Gearing | X43: 0.6 | Y43: =+X43 -> 0.6 | Z43: =+Y43 -> 0.6 | AA43: 0.6 | AB43: 0.6 | AC43: 0.6 | AD43: 0.6 | AE43: 0.6 | AF43: 0.6 | AG43: 0.6
U44: Forecast Inflation | X44: 0.023 | Y44: =+X44 -> 0.023 | Z44: 0.023 | AA44: 0.023 | AB44: 0.023 | AC44: 0.023 | AD44: 0.023 | AE44: 0.023 | AF44: 0.023 | AG44: 0.023
E46: Form of price control selected
E48: Price caps | I48: 1
U49: PREMO Graded Scoring System (for reference only) | AB49: PREMO Assessment Matrix (linked to Regulatory Rate of Return calculation above)
E50: Revenue cap / Hybrid Tariff Basket
V52: Water business | X52: ESC assessment | Z52: Difference | AD52: Water business self-assessment
V53: self-assessment | X53: of submission
AD54: Leading | AE54: Advanced | AF54: Standard | AG54: Basic
U55: Risk | V55: [Select] | Z55: =IFERROR(IF(X55=0,"",X55-V55),"") ->  | AB55: ESC assessment of submission | AC55: Leading | AD55: 5.3
U56: Engagement | V56: [Select] | Z56: =IFERROR(IF(X56=0,"",X56-V56),"") ->  | AC56: Advanced | AD56: 4.7 | AE56: 4.9
U57: Management | V57: [Select] | Z57: =IFERROR(IF(X57=0,"",X57-V57),"") ->  | AC57: Standard | AD57: 4.1 | AE57: 4.3 | AF57: 4.5
U58: Outcomes | V58: [Select] | Z58: =IFERROR(IF(X58=0,"",X58-V58),"") ->  | AC58: Basic | AF58: 3.9 | AG58: 4.1
U60: Total Score | V60: =SUM(V55:V58) -> 0 | X60: =SUM(X55:X58) -> 0 | Z60: =IFERROR(IF(X60=0,"",X60-V60),"") -> 
AB61: Water business self-assessment (Maximum allowable ROE) | AF61: Standard | AG61: =+VLOOKUP(AF61,$AF$72:$AG$76,2,FALSE) -> 4.5
AB63: ROE Override (Must be less than Maximum allowable ROE) | AG63: =+IF(AF63<=AG61,AF63,"CHECK") -> 0
U64: Rating | V64: =IF(V60<4,"",IF(AND(V60>=4,V60<=7.25),"Basic",IF(AND(V60>=7.5,V60<=11.25),"Standard",IF(AND(V60>=11.5,V60<=15.25),"Advanced",IF(AND(V60>=15.5,V60<=16),"Leading"))))) ->  | X64: =IF(X60<4,"",IF(AND(X60>=4,X60<=7.25),"Basic",IF(AND(X60>=7.5,X60<=11.25),"Standard",IF(AND(X60>=11.5,X60<=15.25),"Advanced",IF(AND(X60>=15.5,X60<=16),"Leading"))))) -> 
AB65: ESC assessment of submission | AF65: Standard | AG65: =IFERROR(IF(AF65=AF61,AG61,VLOOKUP(AF61&AF65,AF79:AG83,2,FALSE)),0) -> 4.5
AF67: Difference | AG67: =IFERROR(IF(AG65=0,"",AG65-AG61),"") -> 0
U70: ESC USE ONLY
W71: [Select] | Y71: Rating | Z71: Aggregate score for overall PREMO rating | AF71: Business self assessment
W72: 1 | Y72: Leading | Z72: 15.5 to 16.0 | AF72: [Select]
W73: 1.25 | Y73: Advanced | Z73: 11.5 to 15.25 | AF73: Leading | AG73: =+AD55 -> 5.3
W74: 1.5 | Y74: Standard | Z74: 7.5 to 11.25 | AF74: Advanced | AG74: =+AE56 -> 4.9
W75: 1.75 | Y75: Basic | Z75: 4.0 to 7.25 | AF75: Standard | AG75: =+AF57 -> 4.5
W76: 2 | AF76: Basic | AG76: =+AG58 -> 4.1
W77: 2.25
W78: 2.5 | AF78: downgrading
W79: 2.75 | AF79: =AF54&AC58 -> StandardBasic | AG79: =+AF58 -> 3.9
W80: 3 | AF80: =+AE54&AC57 -> AdvancedStandard | AG80: =+AE57 -> 4.3
W81: 3.25 | AF81: =+AD54&AC56 -> LeadingAdvanced | AG81: =+AD56 -> 4.7
W82: 3.5 | AF82: =+AD54&AC57 -> LeadingStandard | AG82: =+AD57 -> 4.1
W83: 3.75 | AF83: =+AF61&"Basic" -> StandardBasic | AG83: CHECK
W84: 4

Sheet Expenditure_Detail
B1: Expenditure - Detail
B2: =+Model_Name -> Western Water
B3: Go to Table of Contents
L4: FIRST REG PERIOD | P4: SECOND REG PERIOD | S4: THIRD REG PERIOD | X4: FOURTH REG PERIOD | Z4: FIFTH REG PERIOD | AC4: FIFTH REG PERIOD
K5: 2006 | L5: 2007 | M5: 2008 | N5: 2009 | O5: 2010 | P5: 2011 | Q5: 2012 | R5: 2013 | S5: 2014 | T5: 2015 | U5: 2016 | V5: 2017 | W5: 2018 | X5: 2019 | Y5: 2020 | Z5: 2021 | AA5: 2022 | AB5: 2023 | AC5: 2024 | AD5: 2025 | AE5: 2026 | AF5: 2027 | AG5: 2028
B6: $m, 01/01/18 | K6: =+CONCATENATE(K5-1,"-",RIGHT(K5,2)) -> 2005-06 | L6: =+CONCATENATE(L5-1,"-",RIGHT(L5,2)) -> 2006-07 | M6: 2007-08 | N6: 2008-09 | O6: 2009-10 | P6: 2010-11 | Q6: 2011-12 | R6: 2012-13 | S6: 2013-14 | T6: 2014-15 | U6: 2015-16 | V6: 2016-17 | W6: 2017-18 | X6: 2018-19 | Y6: 2019-20 | Z6: 2020-21 | AA6: 2021-22 | AB6: 2022-23 | AC6: 2023-24 | AD6: 2024-25 | AE6: 2025-26 | AF6: 2026-27 | AG6: 2027-28
C10: Labour assumptions
D12: Current FTEs (at 30 June) | S12: 148 | T12: 152 | U12: 151 | V12: 161.38
D13: Actual and forecast labour costs for current FTEs ($m) | S13: 14.72153516 | T13: 14.92064516 | U13: 15.11484898 | V13: 16.12055205 | W13: 16.06018335 | X13: 16.20323149 | Y13: 16.31616771 | Z13: 16.43000806 | AA13: 16.54459904 | AB13: 16.66095189
D14: Cost per FTE ($000) | R14: =+R13/R12*10^3 ->  | S14: 99.46983214 | T14: 98.16213922 | U14: 100.0983376 | V14: =+V13/V12*10^3 -> 99.89188284 | W14: =+W13/$V$12*10^3 -> 99.51780487 | X14: 100.4042105 | Y14: 101.1040259 | Z14: 101.8094439 | AA14: 102.5195132 | AB14: 103.2405 | AC14: 0 | AD14: 0 | AE14: 0 | AF14: 0 | AG14: =+AG13/$V$12*10^3 -> 0
D15: Annual growth in labour costs for current FTEs | S15: =+S14/R14-1 ->  | T15: -0.01314662838 | U15: 0.01972449236 | V15: -0.002062519228 | W15: -0.003744828449 | X15: 0.008907005527 | Y15: 0.00696998088 | Z15: 0.006977149973 | AA15: 0.006974493684 | AB15: 0.007032678881 | AC15: =+AC14/AB14-1 -> -1 | AD15: =+AD14/AC14-1 ->  | AE15: =+AE14/AD14-1 ->  | AF15: =+AF14/AE14-1 ->  | AG15: =+AG14/AF14-1 -> 
D17: Change in FTEs in future periods (net no. annual change) | W17: 6.22 | X17: 0 | Y17: 0 | Z17: 0 | AA17: 0 | AB17: 0
D18: Increase or decrease in labour costs ($m) | W18: 0.6266467495 | X18: 0.6001066792 | Y18: 0.6054518327 | Z18: 0.6096718204 | AA18: 0.6139255921 | AB18: 0.6182074123
D22: Total FTEs | R22: =+R12 -> 0 | S22: 148 | T22: 152 | U22: 151 | V22: 161.38 | W22: =+$V$12+SUM($W17:W17) -> 167.6 | X22: =+$V$12+SUM($W17:X17) -> 167.6 | Y22: =+$V$12+SUM($W17:Y17) -> 167.6 | Z22: =+$V$12+SUM($W17:Z17) -> 167.6 | AA22: =+$V$12+SUM($W17:AA17) -> 167.6 | AB22: =+$V$12+SUM($W17:AB17) -> 167.6 | AC22: =+$V$12+SUM($W17:AC17) -> 167.6 | AD22: =+$V$12+SUM($W17:AD17) -> 167.6 | AE22: =+$V$12+SUM($W17:AE17) -> 167.6 | AF22: =+$V$12+SUM($W17:AF17) -> 167.6 | AG22: =+$V$12+SUM($W17:AG17) -> 167.6
D23: Total labour costs ($m) | R23: 0 | S23: 14.72153516 | T23: 14.92064516 | U23: 15.11484898 | V23: =+V13 -> 16.12055205 | W23: =+W18+W13 -> 16.6868301 | X23: =+X18+X13 -> 16.80333817 | Y23: 16.92161954 | Z23: 17.03967988 | AA23: 17.15852463 | AB23: 17.27915931 | AC23: 0 | AD23: 0 | AE23: 0 | AF23: 0 | AG23: 0
D24: Cost per FTE | R24: =+R23/R22 ->  | S24: 0.09946983214 | T24: 0.09816213922 | U24: 0.1000983376 | V24: 0.09989188284 | W24: 0.09956342542 | X24: 0.100258581 | Y24: 0.1009643171 | Z24: 0.1016687343 | AA24: 0.1023778319 | AB24: 0.1030976092 | AC24: 0 | AD24: 0 | AE24: 0 | AF24: 0 | AG24: 0
D25: Annual growth in total labour costs | S25: =+S23/R23-1 ->  | T25: 0.01352508437 | U25: 0.0130157786 | V25: 0.0665374215 | W25: =+W23/V23-1 -> 0.03512770814 | X25: =+X23/W23-1 -> 0.006982037381 | Y25: =+Y23/X23-1 -> 0.007039158886 | Z25: =+Z23/Y23-1 -> 0.006976893465 | AA25: =+AA23/Z23-1 -> 0.006974588724 | AB25: =+AB23/AA23-1 -> 0.007030597036 | AC25: =+AC23/AB23-1 -> -1 | AD25: =+AD23/AC23-1 ->  | AE25: =+AE23/AD23-1 ->  | AF25: =+AF23/AE23-1 ->  | AG25: =+AG23/AF23-1 -> 
D26: Annual growth in total labour costs per FTE | T26: -0.01314662838 | U26: 0.01972449236 | V26: -0.002062519228 | W26: -0.003288129239 | X26: 0.006982037381 | Y26: 0.007039158886 | Z26: 0.006976893465 | AA26: 0.006974588724 | AB26: 0.007030597036 | AC26: =+AC24/AB24-1 -> -1
C32: Energy assumptions
D34: Electricity - traditional sources
D36: BASE LOAD
D38: Large sites
D39: Total kWh | R39: 14851107 | S39: 15123228 | T39: 16815444 | U39: 17561784 | V39: 16656984 | W39: 16622697.31 | X39: 16690759.94 | Y39: 16849054.44 | Z39: 16956249.57 | AA39: 17118206.85 | AB39: 17750357.91
D40: Total electricity costs ($m) | R40: 2.749463511 | S40: 2.622572749 | T40: 2.805726971 | U40: 2.943556454 | V40: 2.687855575 | W40: 3.060661016 | X40: 3.230988536 | Y40: 3.256394802 | Z40: 3.273599621 | AA40: 3.299593764 | AB40: 3.40105401
D41: Average c/kWh | R41: =+R40/R39*100*10^6 -> 18.5135257 | S41: 17.34135562 | T41: 16.68541711 | U41: 16.76114712 | V41: 16.13650812 | W41: 18.41254135 | X41: 19.35794743 | Y41: 19.32686973 | Z41: 19.3061538 | AA41: 19.27534696 | AB41: 19.16048131 | AC41: =+AC40/AC39*100*10^6 -> 
D42: % increase p.a. | S42: =+S41/R41-1 -> -0.06331425429 | T42: -0.03782509997 | U42: 0.004538694432 | V42: -0.03726707978 | W42: 0.1410486839 | X42: 0.05134576839 | Y42: -0.00160542334 | Z42: -0.001071872031 | AA42: -0.001595700357 | AB42: -0.005959200446 | AC42: =+AC41/AB41-1 ->  | AD42: =+AD41/AC41-1 ->  | AE42: =+AE41/AD41-1 ->  | AF42: =+AF41/AE41-1 ->  | AG42: =+AG41/AF41-1 -> 
D44: Medium sites
D45: Total kWh | R45: 1820093 | S45: 1444016 | T45: 1329970 | U45: 1246507 | V45: 1957719 | W45: 1949637.189 | X45: 1955187.055 | Y45: 1972344.201 | Z45: 1983041.517 | AA45: 2001546.881 | AB45: 2082647.767
D46: Total electricity costs ($m) | R46: 0.3907344265 | S46: 0.3435124399 | T46: 0.299221 | U46: 0.2876130419 | V46: 0.3756403382 | W46: 0.4123662153 | X46: 0.4480714533 | Y46: 0.4512729249 | Z46: 0.4532690116 | AA46: 0.4567220566 | AB46: 0.4718552364
D47: Average c/kWh | R47: =+R46/R45*100*10^6 -> 21.46782755 | S47: 23.78868654 | T47: 22.49832703 | U47: 23.07352 | V47: 19.1876535 | W47: 21.15092068 | X47: 22.91706321 | Y47: 22.88002898 | Z47: 22.85726283 | AA47: 22.81845411 | AB47: 22.65650697 | AC47: =+AC46/AC45*100*10^6 -> 
D48: % increase p.a. | S48: =+S47/R47-1 -> 0.1081087031 | T48: -0.05424257082 | U48: 0.02556603295 | V48: -0.1684123837 | W48: 0.102319295 | X48: 0.08350192232 | Y48: -0.001616011151 | Z48: -0.0009950227099 | AA48: -0.001697872728 | AB48: -0.007097200395 | AC48: =+AC47/AB47-1 ->  | AD48: =+AD47/AC47-1 ->  | AE48: =+AE47/AD47-1 ->  | AF48: =+AF47/AE47-1 ->  | AG48: =+AG47/AF47-1 -> 
D50: Small sites
D51: Total kWh | R51: 1105471 | S51: 949334 | T51: 765885 | U51: 614146 | V51: 679054 | W51: 678224.5153 | X51: 682033.8302 | Y51: 689210.537 | Z51: 694006.0644 | AA51: 701714.7909 | AB51: 730310.3276
D52: Total electricity costs ($m) | R52: 0.239641715 | S52: 0.1910148214 | T52: 0.1080448556 | U52: 0.1249070272 | V52: 0.1229699863 | W52: 0.1475981162 | X52: 0.1616104088 | Y52: 0.1629495606 | Z52: 0.1638443915 | AA52: 0.1652828165 | AB52: 0.1706186571
D53: Average c/kWh | R53: =+R52/R51*100*10^6 -> 21.677793 | S53: 20.12092914 | T53: 14.10719046 | U53: 20.3383279 | V53: 18.10901435 | W53: 21.76242717 | X53: 23.69536549 | Y53: 23.64292938 | Z53: 23.60849564 | AA53: 23.55413035 | AB53: 23.36248724 | AC53: =+AC52/AC51*100*10^6 -> 
D54: % increase p.a. | S54: =+S53/R53-1 -> -0.07181837456 | T54: -0.2988797704 | U54: 0.4416993913 | V54: -0.1096114471 | W54: 0.2017455369 | X54: 0.08881997872 | Y54: -0.002212926445 | Z54: -0.001456407603 | AA54: -0.002302785268 | AB54: -0.008136284368 | AC54: =+AC53/AB53-1 ->  | AD54: =+AD53/AC53-1 ->  | AE54: =+AE53/AD53-1 ->  | AF54: =+AF53/AE53-1 ->  | AG54: =+AG53/AF53-1 -> 
D57: NEW PROJECTS
D59: Large sites
D60: Total kWh | R60: 0 | S60: 0 | T60: 0 | U60: 0 | V60: 0 | W60: 0 | X60: 0 | Y60: 0 | Z60: 0 | AA60: 436146.4881 | AB60: 452786.9637
D61: Total electricity costs ($m) | R61: 0 | S61: 0 | T61: 0 | U61: 0 | V61: 0 | W61: 0.0007862557641 | X61: 0.0010215 | Y61: 0.0010215 | Z61: 0.0010215 | AA61: 0.07102301134 | AB61: 0.07369380767
D62: Average c/kWh | R62: =+R61/R60*100*10^6 ->  | AA62: 16.2842103 | AB62: 16.27560278 | AC62: =+AC61/AC60*100*10^6 -> 
D63: % increase p.a. | S63: =+S62/R62-1 ->  | AB63: -0.000528580466 | AC63: =+AC62/AB62-1 ->  | AD63: =+AD62/AC62-1 ->  | AE63: =+AE62/AD62-1 ->  | AF63: =+AF62/AE62-1 ->  | AG63: =+AG62/AF62-1 -> 
D65: Medium sites
D66: Total kWh | R66: 0 | S66: 0 | T66: 0 | U66: 0 | V66: 0 | W66: 0 | X66: 0 | Y66: 0 | Z66: 57107.70594 | AA66: 57701.4815 | AB66: 59902.98976
D67: Total electricity costs ($m) | R67: 0 | S67: 0 | T67: 0 | U67: 0 | V67: 0 | W67: 0.0001628980037 | X67: 0.0002116363636 | Y67: 0.0002116363636 | Z67: 0.01086776148 | AA67: 0.0109785582 | AB67: 0.01138935298
D68: Average c/kWh | R68: =+R67/R66*100*10^6 ->  | Z68: 19.03028899 | AA68: 19.02647543 | AB68: 19.01299589 | AC68: =+AC67/AC66*100*10^6 -> 
D69: % increase p.a. | S69: =+S68/R68-1 ->  | AA69: -0.0002003943843 | AB69: -0.0007084623951 | AC69: =+AC68/AB68-1 ->  | AD69: =+AD68/AC68-1 ->  | AE69: =+AE68/AD68-1 ->  | AF69: =+AF68/AE68-1 ->  | AG69: =+AG68/AF68-1 -> 
D71: Small sites
D72: Total kWh | R72: 0 | S72: 0 | T72: 0 | U72: 0 | V72: 0 | W72: 0 | X72: 12218.64279 | Y72: 12333.29478 | Z72: 24817.44908 | AA72: 25075.48771 | AB72: 26032.20307
D73: Total electricity costs ($m) | R73: 0 | S73: 0 | T73: 0 | U73: 0 | V73: 0 | W73: 0.001525128362 | X73: 0.00426140177 | Y73: 0.004282795484 | Z73: 0.006612300897 | AA73: 0.006660450126 | AB73: 0.006838970316
D74: Average c/kWh | R74: =+R73/R72*100*10^6 ->  | X74: 34.87622842 | Y74: 34.72547734 | Z74: 26.64375729 | AA74: 26.56159753 | AB74: 26.27119302
D75: % increase p.a. | S75: =+S74/R74-1 ->  | Y75: -0.004322459412 | Z75: -0.2327317194 | AA75: -0.003083640011 | AB75: -0.01093324716 | AC75: =+AC74/AB74-1 ->  | AD75: =+AD74/AC74-1 ->  | AE75: =+AE74/AD74-1 ->  | AF75: =+AF74/AE74-1 ->  | AG75: =+AG74/AF74-1 -> 
D78: Greenhouse Gas Offsets | R78: 0 | S78: 0 | T78: 0 | U78: 0 | V78: 0 | W78: 0 | X78: 0 | Y78: -0.1352798919 | Z78: -0.1692027896 | AA78: -0.4353299086 | AB78: -0.4580219055
D79: % increase p.a. | S79: =S78/R78-1 ->  | T79: =T78/S78-1 ->  | Z79: 0.2507608285 | AA79: 1.572829382 | AB79: 0.05212597709 | AC79: -1
D82: TOTAL ENERGY COSTS | N82: =+SUM(N40,N46,N52,N61,N67,N73,N78) -> 0 | O82: =+SUM(O40,O46,O52,O61,O67,O73,O78) -> 0 | P82: 0 | Q82: 0 | R82: 3.379839652 | S82: 3.157100011 | T82: 3.212992827 | U82: 3.356076523 | V82: 3.1864659 | W82: 3.62309963 | X82: 3.846164936 | Y82: 3.740853328 | Z82: 3.740011797 | AA82: 3.574930748 | AB82: 3.677428129 | AC82: 0 | AD82: 0 | AE82: 0 | AF82: 0 | AG82: 0
D83: % increase p.a. | S83: =S82/R82-1 -> -0.0659024287 | T83: =T82/S82-1 -> 0.01770384713 | U83: 0.04453284028 | V83: -0.05053836593 | W83: 0.1370275861 | X83: 0.06156753294 | Y83: -0.02738093921 | Z83: -0.0002249567635 | AA83: -0.04413917865 | AB83: 0.0286711513 | AC83: -1
C88: IT cost assumptions
D90: Water related IT costs | R90: 1.356581144 | S90: 1.540651826 | T90: 1.43643631 | U90: 1.539861295 | V90: 1.438600132 | W90: 1.400216679 | X90: 1.71277487 | Y90: 1.721625255 | Z90: 1.693112942 | AA90: 1.678764412 | AB90: 1.652976721
D91: Sewerage and trade waste related IT costs | R91: 1.23126221 | S91: 1.398328718 | T91: 1.303740475 | U91: 1.397611215 | V91: 1.305704406 | W91: 1.270866759 | X91: 1.560420557 | Y91: 1.574469291 | Z91: 1.554336653 | AA91: 1.547087196 | AB91: 1.529007862
D92: Other IT costs | R92: 0.06843031901 | S92: 0.07771543662 | T92: 0.07245847055 | U92: 0.07767555967 | V92: 0.0725676207 | W92: 0.07063143579 | X92: 0.1022516685 | Y92: 0.1174368302 | Z92: 0.1261790171 | AA92: 0.1383096536 | AB92: 0.1424486207
D93: Total IT costs | R93: =SUM(R90:R92) -> 2.656273673 | S93: 3.016695981 | T93: 2.812635255 | U93: 3.015148069 | V93: 2.816872158 | W93: 2.741714873 | X93: 3.375447095 | Y93: 3.413531376 | Z93: 3.373628612 | AA93: 3.364161261 | AB93: 3.324433204 | AC93: =SUM(AC90:AC92) -> 0 | AD93: 0 | AE93: 0 | AF93: 0 | AG93: 0
D94: % increase p.a. | S94: =S93/R93-1 -> 0.1356871888 | T94: =T93/S93-1 -> -0.06764378214 | U94: 0.07200109361 | V94: -0.06575992501 | W94: -0.02668111322 | X94: 0.2311444667 | Y94: 0.01128273671 | Z94: -0.01168958472 | AA94: -0.002806281253 | AB94: -0.01180920134 | AC94: -1
C99: Chemical cost assumptions
D101: Water related chemical costs | R101: 0.3026158531 | S101: 0.9111638352 | T101: 0.8524668855 | U101: 0.7242241184 | V101: 0.6089673076 | W101: 0.3751927518 | X101: 0.5602212832 | Y101: 0.5403204466 | Z101: 0.526006351 | AA101: 0.5163897935 | AB101: 0.5131667951
D102: Sewerage and trade waste related chemical costs | R102: 0.5211514708 | S102: 0.4913946546 | T102: 0.3181786274 | U102: 0.3297961169 | V102: 0.09550540531 | W102: 0.3828507694 | X102: 0.556809411 | Y102: 0.5538865968 | Z102: 0.5478777037 | AA102: 0.5425480993 | AB102: 0.5507231874
D103: Other chemical costs | R103: 0.00682588033 | S103: 0.1754099661 | T103: 0.07529249839 | U103: 0.1128367129 | V103: 0.1618617787 | W103: 0.0253483788 | X103: 0.03784670206 | Y103: 0.04021028926 | Z103: 0.04334992058 | AA103: 0.04667147196 | AB103: 0.05057577391
D104: Total chemical costs | R104: =SUM(R101:R103) -> 0.8305932042 | S104: 1.577968456 | T104: 1.245938011 | U104: 1.166856948 | V104: 0.8663344916 | W104: 0.7833919 | X104: 1.154877396 | Y104: 1.134417333 | Z104: 1.117233975 | AA104: 1.105609365 | AB104: 1.114465756 | AC104: =SUM(AC101:AC103) -> 0 | AD104: 0 | AE104: 0 | AF104: 0 | AG104: 0
D105: % increase p.a. | S105: =S104/R104-1 -> 0.8998090136 | T105: =T104/S104-1 -> -0.2104164018 | U105: -0.06347110566 | V105: -0.2575486712 | W105: -0.09573968535 | X105: 0.4742013496 | Y105: -0.01771622136 | Z105: -0.01514729799 | AA105: -0.0104048129 | AB105: 0.008010416653 | AC105: -1

Sheet Opex_FO
B1: Operating Expenditure - Forecast
B2: =+Model_Name -> Western Water
B3: Go to Table of Contents
L4: FIRST REG PERIOD | P4: SECOND REG PERIOD | S4: THIRD REG PERIOD | X4: FOURTH REG PERIOD | Z4: FIFTH REG PERIOD | AC4: FIFTH REG PERIOD
K5: 2006 | L5: 2007 | M5: 2008 | N5: 2009 | O5: 2010 | P5: 2011 | Q5: 2012 | R5: 2013 | S5: 2014 | T5: 2015 | U5: 2016 | V5: 2017 | W5: 2018 | X5: 2019 | Y5: 2020 | Z5: 2021 | AA5: 2022 | AB5: 2023 | AC5: 2024 | AD5: 2025 | AE5: 2026 | AF5: 2027 | AG5: 2028
B6: $m, 01/01/18 | K6: =+CONCATENATE(K5-1,"-",RIGHT(K5,2)) -> 2005-06 | L6: =+CONCATENATE(L5-1,"-",RIGHT(L5,2)) -> 2006-07 | M6: 2007-08 | N6: 2008-09 | O6: 2009-10 | P6: 2010-11 | Q6: 2011-12 | R6: 2012-13 | S6: 2013-14 | T6: 2014-15 | U6: 2015-16 | V6: 2016-17 | W6: 2017-18 | X6: 2018-19 | Y6: 2019-20 | Z6: 2020-21 | AA6: 2021-22 | AB6: 2022-23 | AC6: 2023-24 | AD6: 2024-25 | AE6: 2025-26 | AF6: 2026-27 | AG6: 2027-28
C9: Parameters | F9: 3rd period | H9: 4th period
D11: Cost efficiency improvement rate (% per annum) | F11: 0.01 | H11: =+SUM(X11:AB11)/5 -> 0.033956 | X11: 0.03989 | Y11: 0.03989 | Z11: 0.03 | AA11: 0.03 | AB11: 0.03
D13: Customer growth forecast (% per annum) | F13: =AVERAGE(T13:W13) -> 0.03182251818 | H13: =+SUM(X13:AB13)/5 -> 0.04476800095 | T13: =IF(T15="","",T15/S15-1) -> 0.02717372211 | U13: =IF(U15="","",U15/T15-1) -> 0.02874634472 | V13: 0.03450912597 | W13: 0.0368608799 | X13: 0.04068125098 | Y13: 0.04285423893 | Z13: 0.04501945861 | AA13: 0.04719585575 | AB13: 0.04808920048
D15: Water customers (No.) - Residential & Non-Residential - [BED 1] | S15: =+Determination_Lookup!BF3 -> 56930 | T15: =+Determination_Lookup!BG3 -> 58477 | U15: =+Determination_Lookup!BH3 -> 60158 | V15: 62234 | W15: =+V$15*(1+W$13) -> 64528 | X15: =+W$15*(1+X$13) -> 67153.07976 | Y15: =+X$15*(1+Y$13) -> 70030.87389 | Z15: 73183.62592 | AA15: 76637.58977 | AB15: 80323.03019 | AC15: 80323.03019 | AD15: 80323.03019 | AE15: 80323.03019 | AF15: 80323.03019 | AG15: 80323.03019 | AI15: << Used as normalising metric for dashboard graphs
D17: Sewer customers (No.) - Residential & Non-Residential - [BED 2] | S17: =+Determination_Lookup!BJ3 -> 51004 | T17: =+Determination_Lookup!BK3 -> 52564 | U17: =+Determination_Lookup!BL3 -> 54197 | V17: 56067.2911 | W17: =+V$17*(1+W$13) -> 58133.98078 | X17: =+W$17*(1+X$13) -> 60498.94385 | Y17: =+X$17*(1+Y$13) -> 63091.58004 | Z17: 65931.92882 | AA17: 69043.64262 | AB17: 72363.89619 | AC17: 72363.89619 | AD17: 72363.89619 | AE17: 72363.89619 | AF17: 72363.89619 | AG17: 72363.89619 | AI17: << Used as normalising metric for dashboard graphs
D19: Total metered volume of water delivered to customers (ML) - [BED 10] | S19: =+Determination_Lookup!BB3 -> 11710.68 | T19: =+Determination_Lookup!BC3 -> 11810 | U19: =+Determination_Lookup!BD3 -> 13236 | V19: 12839.71846 | W19: 12738.33206 | X19: 12722.32622 | Y19: 12764.4913 | Z19: 12761.37665 | AA19: 12816.48061 | AB19: 13289.68015 | AI19: << Used as normalising metric for dashboard graphs
D20: Residential, Non-Residential & Recycled (Residential & Non-Residential)
C24: Baseline Forecast
D26: Baseline year - total prescribed operating expenditure in 2016-17: | V26: =+Opex_Breakdown!V37 -> 52.79471484
D28: Less non-controllable expenditure items incurred in 2016-17:
E29: External bulk water charges (excl. temporary purchases) | V29: =+Opex_Breakdown!V29 -> 9.884516477
E30: External temporary water purchases | V30: =+Opex_Breakdown!V30 -> 0 | X30: Comparison with approved 2016-17 total controllable opex
E31: Licence fees | V31: =+Opex_Breakdown!V31 -> 0 | X31: per 2013 determination model
E32: Environment Contribution | V32: =+Opex_Breakdown!V32 -> 2.461229205
E33: Other non-controllable | V33: =+Opex_Breakdown!V33 -> 0
V34: =SUM(V29:V33) -> 12.34574568 | Y34: 2016-17 | Z34: Difference | AA34: %
D36: Baseline year - total controllable operating expenditure in 2016-17: | V36: =+V26-V34 -> 40.44896915 | Y36: =+Determination_Lookup!AX3 -> 40.78966006 | Z36: =+V52-Y36 -> -1.963978795 | AA36: =+Z36/Y36 -> -0.04814893755
D38: Adjustments for non-recurring expenditure items incurred in 2016-17 and any efficiency savings to be realised from 2016-17: | X38: ($, 2017-18)
D40: 1 | E40: Consulting Expense | V40: 0.5616913124
D41: 2 | E41: Contractors | V41: 0.17974122
D42: 3 | E42: IT Projects | V42: 0
D43: 4 | E43: IWN | V43: 0.1654436229
D44: 5 | E44: Legals | V44: 0.06025415896
D45: 6 | E45: Other | V45: 0.05208410351
D46: 7 | E46: Price Submission | V46: 0.4590549908
D47: 8 | E47: Urban Water Strategy | V47: 0.1450184843
D48: 9 | E48: 0 | V48: 0
D49: 10 | E49: 0 | V49: 0
V50: =SUM(V40:V49) -> 1.623287893
D52: Baseline controllable operating expenditure (2016-17) | V52: =+V36-V50 -> 38.82568126
D54: Adjusted Baseline controllable operating expenditure (Forecast) | W54: =+V52*(1+$W$13-$F$11) -> 39.86857322 | X54: =+$W$54*(1+X$13-X$11) -> 39.90011927 | Y54: =+X$54*(1+Y$13-Y$11) -> 40.01839276 | Z54: 40.61944735 | AA54: 41.31793351 | AB54: 42.06534189 | AC54: 42.06534189 | AD54: 42.06534189 | AE54: 42.06534189 | AF54: 42.06534189 | AG54: 42.06534189
C58: Operating expenditure - reconciliation
D61: Adjusted Baseline controllable operating expenditure (Forecast) | X61: =+X54 -> 39.90011927 | Y61: 40.01839276 | Z61: 40.61944735 | AA61: 41.31793351 | AB61: 42.06534189 | AC61: 42.06534189 | AD61: 42.06534189 | AE61: 42.06534189 | AF61: 42.06534189 | AG61: 42.06534189
H62: Controllable
D63: Forecast variations to baseline operating expenditure (above or below baseline) | H63: only
D65: 1 | E65: IT software license fee increases | H65: Water | X65: 0.591 | Y65: 0.698 | Z65: 0.727 | AA65: 0.756 | AB65: 0.781
D66: 2 | E66: SRW price adjustment | H66: Water | X66: 0.253 | Y66: 0.286 | Z66: 0.24 | AA66: 0.209 | AB66: 0.211
D67: 3 | E67: Price Submission | H67: Water | X67: 0.15 | Y67: 0.15 | Z67: 0 | AA67: 0 | AB67: 0
D68: 4 | E68: Urban Water Strategy | H68: Water | X68: 0 | Y68: 0 | Z68: 0.15 | AA68: 0 | AB68: 0
D69: 5 | E69: 0 | H69: 0 | X69: 0 | Y69: 0 | Z69: 0 | AA69: 0 | AB69: 0
D70: 6 | E70: 0 | H70: 0 | X70: 0 | Y70: 0 | Z70: 0 | AA70: 0 | AB70: 0
D71: 7 | E71: 0 | H71: 0 | X71: 0 | Y71: 0 | Z71: 0 | AA71: 0 | AB71: 0
D72: 8 | E72: 0 | H72: 0 | X72: 0 | Y72: 0 | Z72: 0 | AA72: 0 | AB72: 0
D73: 9 | E73: 0 | H73: 0 | X73: 0 | Y73: 0 | Z73: 0 | AA73: 0 | AB73: 0
D74: 10 | E74: 0 | H74: 0 | X74: 0 | Y74: 0 | Z74: 0 | AA74: 0 | AB74: 0
D75: 11 | E75: 0 | H75: 0 | X75: 0 | Y75: 0 | Z75: 0 | AA75: 0 | AB75: 0
D76: 12 | E76: 0 | H76: 0 | X76: 0 | Y76: 0 | Z76: 0 | AA76: 0 | AB76: 0
D77: 13 | E77: 0 | H77: 0 | X77: 0 | Y77: 0 | Z77: 0 | AA77: 0 | AB77: 0
D78: 14 | E78: 0 | H78: 0 | X78: 0 | Y78: 0 | Z78: 0 | AA78: 0 | AB78: 0
D79: 15 | E79: 0 | H79: 0 | X79: 0 | Y79: 0 | Z79: 0 | AA79: 0 | AB79: 0
D81: Total changes required to baseline operating expenditure | X81: =SUM(X65:X80) -> 0.994 | Y81: 1.134 | Z81: 1.117 | AA81: 0.965 | AB81: 0.992 | AC81: 0 | AD81: 0 | AE81: 0 | AF81: 0 | AG81: 0
D84: Total controllable operating expenditure | X84: =+X81+X61 -> 40.89411927 | Y84: 41.15239276 | Z84: 41.73644735 | AA84: 42.28293351 | AB84: 43.05734189 | AC84: 42.06534189 | AD84: 42.06534189 | AE84: 42.06534189 | AF84: 42.06534189 | AG84: 42.06534189
D86: Non-controllable operating expenditure
D87: External bulk water charges (excl. temporary purchases) | X87: =+Opex_Breakdown!X29 -> 11.24936223 | Y87: =+Opex_Breakdown!Y29 -> 11.37982749 | Z87: =+Opex_Breakdown!Z29 -> 11.3723272 | AA87: =+Opex_Breakdown!AA29 -> 11.33512974 | AB87: =+Opex_Breakdown!AB29 -> 11.37833349 | AC87: =+Opex_Breakdown!AC29 -> 0 | AD87: =+Opex_Breakdown!AD29 -> 0 | AE87: =+Opex_Breakdown!AE29 -> 0 | AF87: =+Opex_Breakdown!AF29 -> 0 | AG87: =+Opex_Breakdown!AG29 -> 0
D88: External temporary water purchases | X88: =+Opex_Breakdown!X30 -> 0 | Y88: =+Opex_Breakdown!Y30 -> 0 | Z88: =+Opex_Breakdown!Z30 -> 0 | AA88: =+Opex_Breakdown!AA30 -> 0 | AB88: =+Opex_Breakdown!AB30 -> 0 | AC88: =+Opex_Breakdown!AC30 -> 0 | AD88: =+Opex_Breakdown!AD30 -> 0 | AE88: =+Opex_Breakdown!AE30 -> 0 | AF88: =+Opex_Breakdown!AF30 -> 0 | AG88: =+Opex_Breakdown!AG30 -> 0
D89: Licence fees | X89: =+Opex_Breakdown!X31 -> 0.15994278 | Y89: =+Opex_Breakdown!Y31 -> 0.12588609 | Z89: =+Opex_Breakdown!Z31 -> 0.12588857 | AA89: =+Opex_Breakdown!AA31 -> 0.12588449 | AB89: =+Opex_Breakdown!AB31 -> 0.15993935 | AC89: =+Opex_Breakdown!AC31 -> 0 | AD89: =+Opex_Breakdown!AD31 -> 0 | AE89: =+Opex_Breakdown!AE31 -> 0 | AF89: =+Opex_Breakdown!AF31 -> 0 | AG89: =+Opex_Breakdown!AG31 -> 0
D90: Environment Contribution | X90: =+Opex_Breakdown!X32 -> 3.013685239 | Y90: =+Opex_Breakdown!Y32 -> 2.945928875 | Z90: =+Opex_Breakdown!Z32 -> 2.87969587 | AA90: =+Opex_Breakdown!AA32 -> 2.814951975 | AB90: =+Opex_Breakdown!AB32 -> 2.75166371 | AC90: =+Opex_Breakdown!AC32 -> 0 | AD90: =+Opex_Breakdown!AD32 -> 0 | AE90: =+Opex_Breakdown!AE32 -> 0 | AF90: =+Opex_Breakdown!AF32 -> 0 | AG90: =+Opex_Breakdown!AG32 -> 0
D91: Other non-controllable | X91: =+Opex_Breakdown!X33 -> 0 | Y91: =+Opex_Breakdown!Y33 -> 0 | Z91: =+Opex_Breakdown!Z33 -> 0 | AA91: =+Opex_Breakdown!AA33 -> 0 | AB91: =+Opex_Breakdown!AB33 -> 0 | AC91: =+Opex_Breakdown!AC33 -> 0 | AD91: =+Opex_Breakdown!AD33 -> 0 | AE91: =+Opex_Breakdown!AE33 -> 0 | AF91: =+Opex_Breakdown!AF33 -> 0 | AG91: =+Opex_Breakdown!AG33 -> 0
D92: Total non-controllable operating expenditure | X92: =SUM(X87:X91) -> 14.42299025 | Y92: 14.45164245 | Z92: 14.37791164 | AA92: 14.2759662 | AB92: 14.28993655 | AC92: 0 | AD92: 0 | AE92: 0 | AF92: 0 | AG92: 0
D95: Total prescribed operating expenditure | X95: =+X92+X84 -> 55.31710952 | Y95: 55.60403521 | Z95: 56.11435899 | AA95: 56.55889971 | AB95: 57.34727844 | AC95: 42.06534189 | AD95: 42.06534189 | AE95: 42.06534189 | AF95: 42.06534189 | AG95: =+AG92+AG84 -> 42.06534189
W98: To reconcile to 'Opex_Breakdown' tab row 37 >> | X98: =+Opex_Breakdown!X37 -> 55.31710952 | Y98: =+Opex_Breakdown!Y37 -> 55.60403521 | Z98: =+Opex_Breakdown!Z37 -> 56.11435899 | AA98: =+Opex_Breakdown!AA37 -> 56.55889971 | AB98: =+Opex_Breakdown!AB37 -> 57.34727844 | AC98: =+Opex_Breakdown!AC37 -> 0 | AD98: =+Opex_Breakdown!AD37 -> 0 | AE98: =+Opex_Breakdown!AE37 -> 0 | AF98: =+Opex_Breakdown!AF37 -> 0 | AG98: =+Opex_Breakdown!AG37 -> 0
W99: Difference | X99: =+X98-X95 -> 0 | Y99: 0 | Z99: 0 | AA99: 0 | AB99: 0 | AC99: -42.06534189 | AD99: -42.06534189 | AE99: -42.06534189 | AF99: -42.06534189 | AG99: -42.06534189
W100: Test | X100: =+X98=X95 -> TRUE | Y100: TRUE | Z100: TRUE | AA100: TRUE | AB100: TRUE | AC100: FALSE | AD100: FALSE | AE100: FALSE | AF100: FALSE | AG100: FALSE
X139: =+X$160 -> 2018-19 | Y139: 2019-20 | Z139: 2020-21 | AA139: 2021-22 | AB139: 2022-23 | AC139: 2023-24 | AD139: 2024-25 | AE139: 2025-26 | AF139: 2026-27 | AG139: 2027-28
W140: Total controllable opex | X140: =+X84 -> 40.89411927 | Y140: 41.15239276 | Z140: 41.73644735 | AA140: 42.28293351 | AB140: 43.05734189 | AC140: 42.06534189 | AD140: 42.06534189 | AE140: 42.06534189 | AF140: 42.06534189 | AG140: 42.06534189
W141: Change - $ | Y141: =+Y140-X140 -> 0.258273487 | Z141: 0.5840545937 | AA141: 0.5464861574 | AB141: 0.7744083825 | AC141: -0.992 | AD141: 0 | AE141: 0 | AF141: 0 | AG141: 0
W142: Change - % | Y142: =IFERROR(Y141/X140,"") -> 0.00631566327 | Z142: 0.01419248201 | AA142: 0.01309373922 | AB142: 0.01831491617 | AC142: -0.02303904413 | AD142: 0 | AE142: 0 | AF142: 0 | AG142: 0
X144: =+X$160 -> 2018-19 | Y144: 2019-20 | Z144: 2020-21 | AA144: 2021-22 | AB144: 2022-23 | AC144: 2023-24 | AD144: 2024-25 | AE144: 2025-26 | AF144: 2026-27 | AG144: 2027-28
W145: Total non-controllable opex | X145: =+X92 -> 14.42299025 | Y145: 14.45164245 | Z145: 14.37791164 | AA145: 14.2759662 | AB145: 14.28993655 | AC145: 0 | AD145: 0 | AE145: 0 | AF145: 0 | AG145: 0
W146: Change - $ | Y146: =+Y145-X145 -> 0.02865220806 | Z146: -0.07373081756 | AA146: -0.1019454333 | AB146: 0.01397034365 | AC146: -14.28993655 | AD146: 0 | AE146: 0 | AF146: 0 | AG146: 0
W147: Change - % | Y147: =IFERROR(Y146/X145,"") -> 0.001986565031 | Z147: -0.005101898818 | AA147: -0.007090420076 | AB147: 0.0009785918135 | AC147: -1
X149: =+X$160 -> 2018-19 | Y149: 2019-20 | Z149: 2020-21 | AA149: 2021-22 | AB149: 2022-23 | AC149: 2023-24 | AD149: 2024-25 | AE149: 2025-26 | AF149: 2026-27 | AG149: 2027-28
W150: Total prescribed opex | X150: =+X140+X145 -> 55.31710952 | Y150: 55.60403521 | Z150: 56.11435899 | AA150: 56.55889971 | AB150: 57.34727844 | AC150: 42.06534189 | AD150: 42.06534189 | AE150: 42.06534189 | AF150: 42.06534189 | AG150: 42.06534189
W151: Change - $ | Y151: =+Y150-X150 -> 0.2869256951 | Z151: 0.5103237761 | AA151: 0.4445407241 | AB151: 0.7883787262 | AC151: -15.28193655 | AD151: 0 | AE151: 0 | AF151: 0 | AG151: 0
W152: Change - % | Y152: =IFERROR(Y151/X150,"") -> 0.005186924942 | Z152: 0.009177819095 | AA152: 0.007922049403 | AB152: 0.01393907467 | AC152: -0.2664805892 | AD152: 0 | AE152: 0 | AF152: 0 | AG152: 0
W155: Controllable vs. Non-controllable opex - % | X155: =+X$160 -> 2018-19 | Y155: 2019-20 | Z155: 2020-21 | AA155: 2021-22 | AB155: 2022-23 | AC155: 2023-24 | AD155: 2024-25 | AE155: 2025-26 | AF155: 2026-27 | AG155: 2027-28
W156: Controllable opex - % | X156: =+X84/X95 -> 0.7392671025 | Y156: 0.7400972358 | Z156: 0.7437748217 | AA156: 0.7475911612 | AB156: 0.750817529 | AC156: 1 | AD156: 1 | AE156: 1 | AF156: 1 | AG156: 1
W157: Non-controllable opex - % | X157: =+X92/X95 -> 0.2607328975 | Y157: 0.2599027642 | Z157: 0.2562251783 | AA157: 0.2524088388 | AB157: 0.249182471 | AC157: 0 | AD157: 0 | AE157: 0 | AF157: 0 | AG157: 0
X158: =SUM(X156:X157) -> 1 | Y158: 1 | Z158: 1 | AA158: 1 | AB158: 1 | AC158: 1 | AD158: 1 | AE158: 1 | AF158: 1 | AG158: 1
V160: =+V6 -> 2016-17 | W160: 2017-18 | X160: 2018-19 | Y160: 2019-20 | Z160: 2020-21 | AA160: 2021-22 | AB160: 2022-23 | AC160: 2023-24 | AD160: 2024-25 | AE160: 2025-26 | AF160: 2026-27 | AG160: 2027-28
U161: Third Reg period Opex | V161: =+V169-SUM(V162:V168) -> 40.44896915 | W161: =+W169-SUM(W162:W168) -> 39.69074322
U162: Adjusted baseline opex | X162: =+X61 -> 39.90011927 | Y162: 40.01839276 | Z162: 40.61944735 | AA162: 41.31793351 | AB162: 42.06534189 | AC162: 42.06534189 | AD162: 42.06534189 | AE162: 42.06534189 | AF162: 42.06534189 | AG162: 42.06534189
U163: Forecast variations to baseline operating expenditure | X163: =+X81 -> 0.994 | Y163: 1.134 | Z163: 1.117 | AA163: 0.965 | AB163: 0.992 | AC163: 0 | AD163: 0 | AE163: 0 | AF163: 0 | AG163: 0
U164: Licence fees | V164: =+V193 -> 0 | W164: =+W193 -> 0.13447692 | X164: =+X89 -> 0.15994278 | Y164: 0.12588609 | Z164: 0.12588857 | AA164: 0.12588449 | AB164: 0.15993935 | AC164: 0 | AD164: 0 | AE164: 0 | AF164: 0 | AG164: 0
U165: Environment Contribution | V165: =+V194 -> 2.461229205 | W165: =+W194 -> 2.41 | X165: =+X90 -> 3.013685239 | Y165: 2.945928875 | Z165: 2.87969587 | AA165: 2.814951975 | AB165: 2.75166371 | AC165: 0 | AD165: 0 | AE165: 0 | AF165: 0 | AG165: 0
U166: External bulk water charges | V166: =+V191 -> 9.884516477 | W166: =+W191 -> 10.52201806 | X166: =+X87 -> 11.24936223 | Y166: 11.37982749 | Z166: 11.3723272 | AA166: 11.33512974 | AB166: 11.37833349 | AC166: 0 | AD166: 0 | AE166: 0 | AF166: 0 | AG166: 0
U167: External temporary water purchases | V167: =+V192 -> 0 | W167: =+W192 -> 0 | X167: =+X88 -> 0 | Y167: 0 | Z167: 0 | AA167: 0 | AB167: 0 | AC167: 0 | AD167: 0 | AE167: 0 | AF167: 0 | AG167: 0
U168: Other non-controllable | V168: =+V195 -> 0 | W168: =+W195 -> 0 | X168: =+X91 -> 0 | Y168: 0 | Z168: 0 | AA168: 0 | AB168: 0 | AC168: 0 | AD168: 0 | AE168: 0 | AF168: 0 | AG168: 0
U169: Total prescribed opex | V169: =+Opex_Breakdown!V37 -> 52.79471484 | W169: =+Opex_Breakdown!W37 -> 52.7572382 | X169: =SUM(X162:X168) -> 55.31710952 | Y169: 55.60403521 | Z169: 56.11435899 | AA169: 56.55889971 | AB169: 57.34727844 | AC169: 42.06534189 | AD169: 42.06534189 | AE169: 42.06534189 | AF169: 42.06534189 | AG169: 42.06534189
X171: =+X$160 -> 2018-19 | Y171: 2019-20 | Z171: 2020-21 | AA171: 2021-22 | AB171: 2022-23 | AC171: 2023-24 | AD171: 2024-25 | AE171: 2025-26 | AF171: 2026-27 | AG171: 2027-28
W172: Adjusted baseline opex | X172: =+X162/X$169 -> 0.7212979785 | Y172: 0.7197030325 | Z172: 0.7238690432 | AA172: 0.7305293017 | AB172: 0.7335194108 | AC172: 1 | AD172: 1 | AE172: 1 | AF172: 1 | AG172: 1
W173: Forecast variations to baseline operating expenditure | X173: =+X163/X$169 -> 0.017969124 | Y173: 0.02039420333 | Z173: 0.01990577849 | AA173: 0.01706185949 | AB173: 0.01729811818 | AC173: 0 | AD173: 0 | AE173: 0 | AF173: 0 | AG173: 0
W174: Licence fees | X174: =+X164/X$169 -> 0.002891379926 | Y174: 0.002263974 | Z174: 0.002243428817 | AA174: 0.002225723814 | AB174: 0.00278896147 | AC174: 0 | AD174: 0 | AE174: 0 | AF174: 0 | AG174: 0
W175: Environment Contribution | X175: =+X165/X$169 -> 0.05448016474 | Y175: 0.05298048719 | Z175: 0.05131834208 | AA175: 0.04977027469 | AB175: 0.04798246376 | AC175: 0 | AD175: 0 | AE175: 0 | AF175: 0 | AG175: 0
W176: External bulk water charges (excl. temporary purchases) | X176: =+X166/X$169 -> 0.2033613528 | Y176: 0.204658303 | Z176: 0.2026634074 | AA176: 0.2004128403 | AB176: 0.1984110458 | AC176: 0 | AD176: 0 | AE176: 0 | AF176: 0 | AG176: 0
W177: External temporary water purchases | X177: =+X167/X$169 -> 0 | Y177: 0 | Z177: 0 | AA177: 0 | AB177: 0 | AC177: 0 | AD177: 0 | AE177: 0 | AF177: 0 | AG177: 0
W178: Other non-controllable | X178: =+X168/X$169 -> 0 | Y178: 0 | Z178: 0 | AA178: 0 | AB178: 0 | AC178: 0 | AD178: 0 | AE178: 0 | AF178: 0 | AG178: 0
W179: Total prescribed opex | X179: =+X169/X$169 -> 1 | Y179: 1 | Z179: 1 | AA179: 1 | AB179: 1 | AC179: 1 | AD179: 1 | AE179: 1 | AF179: 1 | AG179: 1
X181: =+X$160 -> 2018-19 | Y181: 2019-20 | Z181: 2020-21 | AA181: 2021-22 | AB181: 2022-23 | AC181: 2023-24 | AD181: 2024-25 | AE181: 2025-26 | AF181: 2026-27 | AG181: 2027-28
W182: Water | X182: =+SUMIF($H$65:$H$80,$W182,X$65:X$80) -> 0.994 | Y182: 1.134 | Z182: 1.117 | AA182: 0.965 | AB182: 0.992 | AC182: 0 | AD182: 0 | AE182: 0 | AF182: 0 | AG182: 0
W183: Sewerage | X183: 0 | Y183: 0 | Z183: 0 | AA183: 0 | AB183: 0 | AC183: 0 | AD183: 0 | AE183: 0 | AF183: 0 | AG183: 0
W184: Recycled Water | X184: 0 | Y184: 0 | Z184: 0 | AA184: 0 | AB184: 0 | AC184: 0 | AD184: 0 | AE184: 0 | AF184: 0 | AG184: 0
W185: Rural water | X185: 0 | Y185: 0 | Z185: 0 | AA185: 0 | AB185: 0 | AC185: 0 | AD185: 0 | AE185: 0 | AF185: 0 | AG185: 0
W186: Bulk Water | X186: 0 | Y186: 0 | Z186: 0 | AA186: 0 | AB186: 0 | AC186: 0 | AD186: 0 | AE186: 0 | AF186: 0 | AG186: 0
W187: Forecast variations to baseline operating expenditure | X187: =SUM(X182:X186) -> 0.994 | Y187: 1.134 | Z187: 1.117 | AA187: 0.965 | AB187: 0.992 | AC187: 0 | AD187: 0 | AE187: 0 | AF187: 0 | AG187: 0
V190: =+V6 -> 2016-17 | W190: 2017-18 | X190: 2018-19 | Y190: 2019-20 | Z190: 2020-21 | AA190: 2021-22 | AB190: 2022-23 | AC190: 2023-24 | AD190: 2024-25 | AE190: 2025-26 | AF190: 2026-27 | AG190: 2027-28
U191: External bulk water charges (excl. temporary purchases) | V191: =+Opex_Breakdown!V29 -> 9.884516477 | W191: =+Opex_Breakdown!W29 -> 10.52201806 | X191: =+X87 -> 11.24936223 | Y191: 11.37982749 | Z191: 11.3723272 | AA191: 11.33512974 | AB191: 11.37833349 | AC191: 0 | AD191: 0 | AE191: 0 | AF191: 0 | AG191: 0
U192: External temporary water purchases | V192: =+Opex_Breakdown!V30 -> 0 | W192: =+Opex_Breakdown!W30 -> 0 | X192: =+X88 -> 0 | Y192: 0 | Z192: 0 | AA192: 0 | AB192: 0 | AC192: 0 | AD192: 0 | AE192: 0 | AF192: 0 | AG192: 0
U193: Licence fees | V193: =+Opex_Breakdown!V31 -> 0 | W193: =+Opex_Breakdown!W31 -> 0.13447692 | X193: =+X89 -> 0.15994278 | Y193: 0.12588609 | Z193: 0.12588857 | AA193: 0.12588449 | AB193: 0.15993935 | AC193: 0 | AD193: 0 | AE193: 0 | AF193: 0 | AG193: 0
U194: Environment Contribution | V194: =+Opex_Breakdown!V32 -> 2.461229205 | W194: =+Opex_Breakdown!W32 -> 2.41 | X194: =+X90 -> 3.013685239 | Y194: 2.945928875 | Z194: 2.87969587 | AA194: 2.814951975 | AB194: 2.75166371 | AC194: 0 | AD194: 0 | AE194: 0 | AF194: 0 | AG194: 0
U195: Other non-controllable | V195: =+Opex_Breakdown!V33 -> 0 | W195: =+Opex_Breakdown!W33 -> 0 | X195: =+X91 -> 0 | Y195: 0 | Z195: 0 | AA195: 0 | AB195: 0 | AC195: 0 | AD195: 0 | AE195: 0 | AF195: 0 | AG195: 0
U196: Total Non-controllable operating expenditure | V196: =+Opex_Breakdown!V34 -> 12.34574568 | W196: =+Opex_Breakdown!W34 -> 13.06649498 | X196: =SUM(X191:X195) -> 14.42299025 | Y196: 14.45164245 | Z196: 14.37791164 | AA196: 14.2759662 | AB196: 14.28993655 | AC196: 0 | AD196: 0 | AE196: 0 | AF196: 0 | AG196: 0
V198: ERROR CHECK | X198: =+X169=X95 -> TRUE | Y198: TRUE | Z198: TRUE | AA198: TRUE | AB198: TRUE | AC198: TRUE | AD198: TRUE | AE198: TRUE | AF198: TRUE | AG198: TRUE
X199: =+X187=X163 -> TRUE | Y199: TRUE | Z199: TRUE | AA199: TRUE | AB199: TRUE | AC199: TRUE | AD199: TRUE | AE199: TRUE | AF199: TRUE | AG199: TRUE
X200: =+X150=X169 -> TRUE | Y200: TRUE | Z200: TRUE | AA200: TRUE | AB200: TRUE | AC200: TRUE | AD200: TRUE | AE200: TRUE | AF200: TRUE | AG200: TRUE
X201: =+X196=X145 -> TRUE | Y201: TRUE | Z201: TRUE | AA201: TRUE | AB201: TRUE | AC201: TRUE | AD201: TRUE | AE201: TRUE | AF201: TRUE | AG201: TRUE

Sheet Opex_Breakdown
A1: 80 | B1: Operating Expenditure - Breakdown
B2: =+Contents!H7 -> Western Water
B3: Go to Table of Contents
L4: FIRST REG PERIOD | P4: SECOND REG PERIOD | U4: THIRD REG PERIOD | X4: FOURTH REG PERIOD | Z4: FIFTH REG PERIOD | AC4: FIFTH REG PERIOD
K6: 2006 | L6: 2007 | M6: 2008 | N6: 2009 | O6: 2010 | P6: 2011 | Q6: 2012 | R6: 2013 | S6: 2014 | T6: 2015 | U6: 2016 | V6: 2017 | W6: 2018 | X6: 2019 | Y6: 2020 | Z6: 2021 | AA6: 2022 | AB6: 2023 | AC6: 2024 | AD6: 2025 | AE6: 2026 | AF6: 2027 | AG6: 2028
B7: $m, 01/01/18 | K7: =+CONCATENATE(K6-1,"-",RIGHT(K6,2)) -> 2005-06 | L7: =+CONCATENATE(L6-1,"-",RIGHT(L6,2)) -> 2006-07 | M7: 2007-08 | N7: 2008-09 | O7: 2009-10 | P7: 2010-11 | Q7: 2011-12 | R7: 2012-13 | S7: 2013-14 | T7: 2014-15 | U7: 2015-16 | V7: 2016-17 | W7: 2017-18 | X7: =+CONCATENATE(X6-1,"-",RIGHT(X6,2)) -> 2018-19 | Y7: =+CONCATENATE(Y6-1,"-",RIGHT(Y6,2)) -> 2019-20 | Z7: =+CONCATENATE(Z6-1,"-",RIGHT(Z6,2)) -> 2020-21 | AA7: =+CONCATENATE(AA6-1,"-",RIGHT(AA6,2)) -> 2021-22 | AB7: =+CONCATENATE(AB6-1,"-",RIGHT(AB6,2)) -> 2022-23 | AC7: =+CONCATENATE(AC6-1,"-",RIGHT(AC6,2)) -> 2023-24 | AD7: 2024-25 | AE7: 2025-26 | AF7: 2026-27 | AG7: 2027-28
D10: Operating Expenditure Summary
E12: =C48 -> Water | K12: =+K57-K50-K54 -> 0 | L12: =+L57-L50-L54 -> 0 | M12: 0 | N12: 0 | O12: 0 | P12: 0 | Q12: =+Q57-Q50-Q54 -> 0 | R12: 17.98533453 | S12: 18.94146973 | T12: 17.29314516 | U12: 18.36079588 | V12: 19.87825996 | W12: 22.74743166 | X12: 22.44502689 | Y12: 22.37774153 | Z12: 20.18979925 | AA12: 22.74704022 | AB12: 23.15587681 | AC12: =+AC57-AC50-AC54 -> 0 | AD12: 0 | AE12: 0 | AF12: 0 | AG12: 0
E13: =C59 -> Sewerage | K13: =K68-K61-K65 -> 0 | L13: =L68-L61-L65 -> 0 | M13: 0 | N13: 0 | O13: 0 | P13: 0 | Q13: 0 | R13: 14.76751352 | S13: 15.4030957 | T13: 14.1616129 | U13: 15.05614232 | V13: 18.90096086 | W13: 15.32317933 | X13: 16.53392243 | Y13: 16.78990643 | Z13: 19.4905955 | AA13: 17.37001083 | AB13: 17.67910329 | AC13: =AC68-AC61-AC65 -> 0 | AD13: 0 | AE13: 0 | AF13: 0 | AG13: 0
E14: =C70 -> Recycled Water | K14: =K79-K72-K76 -> 0 | L14: =L79-L72-L76 -> 0 | M14: 0 | N14: 0 | O14: 0 | P14: 0 | Q14: 0 | R14: 3.382729089 | S14: 3.767143555 | T14: 3.513145161 | U14: 3.457780899 | V14: 1.669748332 | W14: 1.620132228 | X14: 1.915169949 | Y14: 1.984744804 | Z14: 2.056052609 | AA14: 2.165882462 | AB14: 2.222361796 | AC14: =AC79-AC72-AC76 -> 0 | AD14: 0 | AE14: 0 | AF14: 0 | AG14: 0
E15: =C81 -> Rural Water | K15: =K90-K83-K87 -> 0 | L15: =L90-L83-L87 -> 0 | M15: 0 | N15: 0 | O15: 0 | P15: 0 | Q15: 0 | R15: 0 | S15: 0 | T15: 0 | U15: 0 | V15: 0 | W15: 0 | X15: 0 | Y15: 0 | Z15: 0 | AA15: 0 | AB15: 0 | AC15: =AC90-AC83-AC87 -> 0 | AD15: 0 | AE15: 0 | AF15: 0 | AG15: 0
E16: Bulk Water | K16: =K100-K97 -> 0 | L16: =L100-L97 -> 0 | M16: 0 | N16: 0 | O16: 0 | P16: 0 | Q16: 0 | R16: 0 | S16: 0 | T16: 0 | U16: 0 | V16: 0 | W16: 0 | X16: 0 | Y16: 0 | Z16: 0 | AA16: 0 | AB16: 0 | AC16: =AC100-AC97 -> 0 | AD16: 0 | AE16: 0 | AF16: 0 | AG16: 0
E17: Total controllable operating expenditure | K17: =SUM(K12:K16) -> 0 | L17: 0 | M17: 0 | N17: 0 | O17: 0 | P17: 0 | Q17: 0 | R17: 36.13557713 | S17: 38.11170898 | T17: 34.96790323 | U17: 36.8747191 | V17: 40.44896915 | W17: 39.69074322 | X17: 40.89411927 | Y17: 41.15239276 | Z17: 41.73644735 | AA17: 42.28293351 | AB17: 43.05734189 | AC17: 0 | AD17: 0 | AE17: 0 | AF17: 0 | AG17: 0
E20: Operations & Maintenance | K20: =K49+K60+K71+K82+K93 -> 0 | L20: 0 | M20: 0 | N20: 0 | O20: 0 | P20: 0 | Q20: 0 | R20: 13.76449486 | S20: 6.94078125 | T20: 7.841935484 | U20: 7.174222846 | V20: 11.36254598 | W20: 13.39887492 | X20: 13.86390761 | Y20: 13.6028819 | Z20: 14.0528204 | AA20: 13.7824478 | AB20: 14.08957928 | AC20: 0 | AD20: 0 | AE20: 0 | AF20: 0 | AG20: 0
E21: Treatment | K21: =K51+K62+K73+K84+K94 -> 0 | L21: 0 | M21: 0 | N21: 0 | O21: 0 | P21: 0 | Q21: 0 | R21: 9.665581006 | S21: 14.02400391 | T21: 11.38233871 | U21: 12.31950843 | V21: 11.60175792 | W21: 10.01546207 | X21: 11.58322624 | Y21: 11.85878691 | Z21: 14.63850098 | AA21: 12.86685066 | AB21: 13.25007779 | AC21: 0 | AD21: 0 | AE21: 0 | AF21: 0 | AG21: 0
E22: Customer Service and billing | K22: =K52+K63+K74+K85+K95 -> 0 | L22: 0 | M22: 0 | N22: 0 | O22: 0 | P22: 0 | Q22: 0 | R22: 2.610493368 | S22: 3.771459961 | T22: 3.649435484 | U22: 3.788867041 | V22: 5.921774576 | W22: 5.150193981 | X22: 6.133099238 | Y22: 6.369115686 | Z22: 6.366129095 | AA22: 6.5997271 | AB22: 6.699637625 | AC22: 0 | AD22: 0 | AE22: 0 | AF22: 0 | AG22: 0
E23: GSL Payments | K23: =K53+K64+K75+K86+K96 -> 0 | L23: 0 | M23: 0 | N23: 0 | O23: 0 | P23: 0 | Q23: 0 | R23: 0 | S23: 0 | T23: 0 | U23: 0 | V23: 0 | W23: 0 | X23: 0 | Y23: 0 | Z23: 0 | AA23: 0 | AB23: 0 | AC23: 0 | AD23: 0 | AE23: 0 | AF23: 0 | AG23: 0
E24: Corporate | K24: =K55+K66+K77+K88+K98 -> 0 | L24: 0 | M24: 0 | N24: 0 | O24: 0 | P24: 0 | Q24: 0 | R24: 9.823412392 | S24: 12.88339355 | T24: 12.09419355 | U24: 13.59212079 | V24: 11.39246379 | W24: 10.98842914 | X24: 9.113372697 | Y24: 9.122563979 | Z24: 6.481379845 | AA24: 8.837662123 | AB24: 8.823140674 | AC24: 0 | AD24: 0 | AE24: 0 | AF24: 0 | AG24: 0
E25: Other operating expenditure | K25: =K56+K67+K78+K89+K99 -> 0 | L25: 0 | M25: 0 | N25: 0 | O25: 0 | P25: 0 | Q25: 0 | R25: 0.2715955055 | S25: 0.4920703125 | T25: 0 | U25: 0 | V25: 0.170426887 | W25: 0.1377831108 | X25: 0.2005134869 | Y25: 0.1990442799 | Z25: 0.1976170354 | AA25: 0.1962458283 | AB25: 0.1949065263 | AC25: 0 | AD25: 0 | AE25: 0 | AF25: 0 | AG25: 0
E26: Total controllable operating expenditure | K26: =SUM(K20:K25) -> 0 | L26: =SUM(L20:L25) -> 0 | M26: 0 | N26: 0 | O26: 0 | P26: 0 | Q26: 0 | R26: 36.13557713 | S26: 38.11170898 | T26: 34.96790323 | U26: 36.8747191 | V26: 40.44896915 | W26: 39.69074322 | X26: 40.89411927 | Y26: 41.15239276 | Z26: 41.73644735 | AA26: 42.28293351 | AB26: 43.05734189 | AC26: 0 | AD26: 0 | AE26: 0 | AF26: 0 | AG26: 0
E29: External bulk water charges (excl. temporary purchases) | K29: =K50+K61+K72+K83 -> 0 | L29: 0 | M29: 0 | N29: 0 | O29: 0 | P29: 0 | Q29: 0 | R29: 17.26963463 | S29: 9.872592285 | T29: 5.155967742 | U29: 15.45135748 | V29: 9.884516477 | W29: 10.52201806 | X29: =X50+X61+X72+X83 -> 11.24936223 | Y29: =Y50+Y61+Y72+Y83 -> 11.37982749 | Z29: 11.3723272 | AA29: 11.33512974 | AB29: 11.37833349 | AC29: 0 | AD29: 0 | AE29: 0 | AF29: 0 | AG29: 0
E30: External temporary water purchases | K30: =+K102 -> 0 | L30: 0 | M30: 0 | N30: 0 | O30: 0 | P30: 0 | Q30: 0 | R30: 0 | S30: 0 | T30: 0 | U30: 0 | V30: 0 | W30: 0 | X30: 0 | Y30: 0 | Z30: 0 | AA30: 0 | AB30: 0 | AC30: 0 | AD30: 0 | AE30: 0 | AF30: 0 | AG30: 0
E31: Licence fees | K31: =+K109 -> 0 | L31: 0 | M31: 0 | N31: 0 | O31: 0 | P31: 0 | Q31: 0 | R31: 0.1605435586 | S31: 0.1974755859 | T31: 0.1090322581 | U31: 0.07449438202 | V31: 0 | W31: 0.13447692 | X31: 0.15994278 | Y31: 0.12588609 | Z31: 0.12588857 | AA31: 0.12588449 | AB31: 0.15993935 | AC31: 0 | AD31: 0 | AE31: 0 | AF31: 0 | AG31: 0
E32: Environment Contribution | K32: =K111 -> 0 | L32: 0 | M32: 0 | N32: 0 | O32: 0 | P32: 0 | Q32: 0 | R32: 1.786361361 | S32: 2.600634766 | T32: 2.526612903 | U32: 2.493491485 | V32: 2.461229205 | W32: 2.41 | X32: 3.013685239 | Y32: 2.945928875 | Z32: 2.87969587 | AA32: 2.814951975 | AB32: 2.75166371 | AC32: 0 | AD32: 0 | AE32: 0 | AF32: 0 | AG32: 0
E33: Other non-controllable | K33: =+K124 -> 0 | L33: 0 | M33: 0 | N33: 0 | O33: 0 | P33: 0 | Q33: 0 | R33: 0 | S33: 0 | T33: 0 | U33: 0 | V33: 0 | W33: 0 | X33: 0 | Y33: 0 | Z33: 0 | AA33: 0 | AB33: 0 | AC33: 0 | AD33: 0 | AE33: 0 | AF33: 0 | AG33: =+AG124 -> 0
E34: Total non-controllable operating expenditure | K34: =SUM(K29:K33) -> 0 | L34: =SUM(L29:L33) -> 0 | M34: 0 | N34: 0 | O34: 0 | P34: 0 | Q34: 0 | R34: 19.21653955 | S34: 12.67070264 | T34: 7.791612903 | U34: 18.01934335 | V34: 12.34574568 | W34: 13.06649498 | X34: 14.42299025 | Y34: 14.45164245 | Z34: 14.37791164 | AA34: 14.2759662 | AB34: 14.28993655 | AC34: 0 | AD34: 0 | AE34: 0 | AF34: 0 | AG34: 0
E37: Total prescribed operating expenditure | K37: =+K34+K17 -> 0 | L37: 0 | M37: 0 | N37: 0 | O37: 0 | P37: 0 | Q37: 0 | R37: 55.35211669 | S37: 50.78241162 | T37: 42.75951613 | U37: 54.89406245 | V37: 52.79471484 | W37: 52.7572382 | X37: 55.31710952 | Y37: 55.60403521 | Z37: 56.11435899 | AA37: 56.55889971 | AB37: 57.34727844 | AC37: 0 | AD37: 0 | AE37: 0 | AF37: 0 | AG37: 0
W40: To reconcile to 'Opex_FO' tab row 123>> | X40: =+Opex_FO!X95 -> 55.31710952 | Y40: =+Opex_FO!Y95 -> 55.60403521 | Z40: =+Opex_FO!Z95 -> 56.11435899 | AA40: =+Opex_FO!AA95 -> 56.55889971 | AB40: =+Opex_FO!AB95 -> 57.34727844 | AC40: =+Opex_FO!AC95 -> 42.06534189 | AD40: =+Opex_FO!AD95 -> 42.06534189 | AE40: =+Opex_FO!AE95 -> 42.06534189 | AF40: =+Opex_FO!AF95 -> 42.06534189 | AG40: =+Opex_FO!AG95 -> 42.06534189
W41: Difference | X41: =+X40-X37 -> 0 | Y41: 0 | Z41: 0 | AA41: 0 | AB41: 0 | AC41: 42.06534189 | AD41: 42.06534189 | AE41: 42.06534189 | AF41: 42.06534189 | AG41: 42.06534189
W42: Test | X42: =+X40=X37 -> TRUE | Y42: TRUE | Z42: TRUE | AA42: TRUE | AB42: TRUE | AC42: FALSE | AD42: FALSE | AE42: FALSE | AF42: FALSE | AG42: FALSE
B46: Total operating expenditure
C48: Water
D49: Operations & Maintenance | R49: 5.959986978 | S49: 4.564599609 | T49: 4.959919355 | U49: 4.468628277 | V49: 6.688614096 | W49: 7.329082106 | X49: 7.94182368 | Y49: 7.786868841 | Z49: 8.079737619 | AA49: 7.96940237 | AB49: 8.202272705
D50: External bulk charges (excl. temporary purchases) | R50: =+R131 -> 17.26963463 | S50: =+S131 -> 9.872592285 | T50: =+T131 -> 5.155967742 | U50: 15.45135748 | V50: 9.884516477 | W50: 10.52201806 | X50: 10.63836223 | Y50: 10.74582749 | Z50: 10.7073272 | AA50: 10.64112974 | AB50: 10.65433349 | AC50: 0 | AD50: 0 | AE50: 0 | AF50: 0 | AG50: 0 | AH50: see reconciliation below
D51: Treatment | R51: 3.874001692 | S51: 5.444067383 | T51: 4.609758065 | U51: 5.104934457 | V51: 4.093758125 | W51: 3.678263285 | X51: 4.179135381 | Y51: 4.236319467 | Z51: 4.305101955 | AA51: 4.649301084 | AB51: 4.759431268
D52: Customer Service and billing | R52: 2.610493368 | S52: 1.953173828 | T52: 1.851451613 | U52: 1.990655431 | V52: 2.990727045 | W52: 2.53737534 | X52: 3.065071625 | Y52: 3.154670355 | Z52: 3.181823765 | AA52: 3.279661139 | AB52: 3.359703749
D53: GSL Payments | R53: 0 | S53: 0 | T53: 0 | U53: 0 | V53: 0 | W53: 0 | X53: 0 | Y53: 0 | Z53: 0 | AA53: 0 | AB53: 0
D54: Licence Fees | R54: 0.0612608018 | S54: 0.09280273437 | T54: 0.05451612903 | U54: 0.0206928839 | V54: 0 | W54: 0.1392718339 | X54: 0.1543155954 | Y54: 0.1214385073 | Z54: 0.1210384277 | AA54: 0.1210907394 | AB54: 0.153972197
D55: Corporate | R55: 5.391528167 | S55: 6.718486328 | T55: 5.872016129 | U55: 6.796577715 | V55: 6.006972366 | W55: 9.122935255 | X55: 7.143363325 | Y55: 7.08600667 | Z55: 4.510794963 | AA55: 6.73771913 | AB55: 6.724152011
D56: Other operating expenditure | R56: 0.1493243243 | S56: 0.2611425781 | T56: 0 | U56: 0 | V56: 0.09818832994 | W56: 0.0797756765 | X56: 0.1156328796 | Y56: 0.1138761956 | Z56: 0.112340943 | AA56: 0.1109564963 | AB56: 0.1103170777
C57: =+CONCATENATE("Total ",C48) -> Total Water | K57: =+SUM(K49:K56) -> 0 | L57: =+SUM(L49:L56) -> 0 | M57: 0 | N57: 0 | O57: 0 | P57: 0 | Q57: 0 | R57: 35.31622997 | S57: 28.90686475 | T57: 22.50362903 | U57: 33.83284624 | V57: 29.76277644 | W57: 33.40872156 | X57: 33.23770471 | Y57: 33.24500752 | Z57: 31.01816487 | AA57: 33.5092607 | AB57: 33.96418249 | AC57: =+SUM(AC49:AC56) -> 0 | AD57: 0 | AE57: 0 | AF57: 0 | AG57: 0
C59: Sewerage
D60: =+D49 -> Operations & Maintenance | R60: 4.421778796 | S60: 2.369707031 | T60: 2.874677419 | U60: 2.561779026 | V60: 3.78054413 | W60: 5.509685421 | X60: 5.160450607 | Y60: 5.107191446 | Z60: 5.163883875 | AA60: 5.00234079 | AB60: 5.067681998
D61: =+D50 -> External bulk charges (excl. temporary purchases) | R61: =+R132 -> 0 | S61: =+S132 -> 0 | T61: =+T132 -> 0 | U61: 0 | V61: 0 | W61: 0 | X61: 0.611 | Y61: 0.634 | Z61: 0.665 | AA61: 0.694 | AB61: 0.724 | AC61: 0 | AD61: 0 | AE61: 0 | AF61: 0 | AG61: 0 | AH61: see reconciliation below
D62: Treatment | R62: 5.791579314 | S62: 5.659887695 | T62: 4.748145161 | U62: 5.205294944 | V62: 7.191589851 | W62: 5.802895253 | X62: 6.747692832 | Y62: 6.93813467 | Z62: 9.607434886 | AA62: 7.457052943 | AB62: 7.69030399
D63: Customer Service and billing | R63: 0 | S63: 1.594912109 | T63: 1.533790323 | U63: 1.628529963 | V63: 2.72877903 | W63: 2.406596559 | X63: 2.809732011 | Y63: 2.888104937 | Z63: 2.892916571 | AA63: 3.005552603 | AB63: 3.016811066
D64: GSL Payments | R64: 0 | S64: 0 | T64: 0 | U64: 0 | V64: 0 | W64: 0 | X64: 0 | Y64: 0 | Z64: 0 | AA64: 0 | AB64: 0
D65: Licence Fees | R65: 0.09928275676 | S65: 0.09819824219 | T65: 0.05032258065 | U65: 0.05173220974 | V65: 0 | W65: 0.002630318061 | X65: 0.002882021276 | Y65: 0.002291651995 | Z65: 0.002305677673 | AA65: 0.002325329051 | AB65: 0.002976301437
D66: Corporate | R66: 4.431884225 | S66: 5.58003418 | T66: 5.005 | U66: 5.66053839 | V66: 5.137077069 | W66: 1.555888504 | X66: 1.747091194 | Y66: 1.788219774 | Z66: 1.758528044 | AA66: 1.837907556 | AB66: 1.83794923
D67: Other operating expenditure | R67: 0.1222711812 | S67: 0.1985546875 | T67: 0 | U67: 0 | V67: 0.06297078099 | W67: 0.04811359435 | X67: 0.06895578702 | Y67: 0.06825559865 | Z67: 0.06783212319 | AA67: 0.06715693588 | AB67: 0.06635700028
C68: =+CONCATENATE("Total ",C59) -> Total Sewerage | K68: =+SUM(K60:K67) -> 0 | L68: 0 | M68: 0 | N68: 0 | O68: 0 | P68: 0 | Q68: 0 | R68: 14.86679627 | S68: 15.50129395 | T68: 14.21193548 | U68: 15.10787453 | V68: 18.90096086 | W68: 15.32580965 | X68: 17.14780445 | Y68: 17.42619808 | Z68: 20.15790118 | AA68: 18.06633616 | AB68: 18.40607959 | AC68: =+SUM(AC60:AC67) -> 0 | AD68: 0 | AE68: 0 | AF68: 0 | AG68: 0
C70: Recycled Water
D71: =+D60 -> Operations & Maintenance | R71: 3.382729089 | S71: 0.006474609375 | T71: 0.007338709677 | U71: 0.1438155431 | V71: 0.8933877559 | W71: 0.560107395 | X71: 0.7616333193 | Y71: 0.7088216167 | Z71: 0.8091989077 | AA71: 0.8107046369 | AB71: 0.819624573
D72: =+D61 -> External bulk charges (excl. temporary purchases) | R72: =+R133 -> 0 | S72: =+S133 -> 0 | T72: =+T133 -> 0 | U72: 0 | V72: 0 | W72: 0 | X72: 0 | Y72: 0 | Z72: 0 | AA72: 0 | AB72: 0 | AC72: 0 | AD72: 0 | AE72: 0 | AF72: 0 | AG72: 0 | AH72: see reconciliation below
D73: Treatment | R73: 0 | S73: 2.920048828 | T73: 2.024435484 | U73: 2.009279026 | V73: 0.3164099484 | W73: 0.5343035342 | X73: 0.6563980301 | Y73: 0.684332771 | Z73: 0.725964135 | AA73: 0.7604966343 | AB73: 0.8003425329
D74: Customer Service and billing | R74: 0 | S74: 0.2233740234 | T74: 0.2641935484 | U74: 0.1696816479 | V74: 0.2022685013 | W74: 0.2062220822 | X74: 0.2582956019 | Y74: 0.3263403941 | Z74: 0.2913887587 | AA74: 0.314513357 | AB74: 0.3231228099
D75: GSL Payments | R75: 0 | S75: 0 | T75: 0 | U75: 0 | V75: 0 | W75: 0 | X75: 0 | Y75: 0 | Z75: 0 | AA75: 0 | AB75: 0
D76: Licence Fees | R76: 0 | S76: 0.006474609375 | T76: 0.004193548387 | U76: 0.00206928839 | V76: 0 | W76: 0.002575954542 | X76: 0.002745163323 | Y76: 0.002155930668 | Z76: 0.002544464614 | AA76: 0.002468421568 | AB76: 0.002990851587
D77: Corporate | R77: 0 | S77: 0.5848730469 | T77: 1.217177419 | U77: 1.135004682 | V77: 0.2484143507 | W77: 0.309605377 | X77: 0.2229181778 | Y77: 0.2483375361 | Z77: 0.212056838 | AA77: 0.2620354373 | AB77: 0.2610394323
D78: Other operating expenditure | R78: 0 | S78: 0.03237304687 | T78: 0 | U78: 0 | V78: 0.00926777604 | W78: 0.009893839919 | X78: 0.01592482028 | Y78: 0.01691248566 | Z78: 0.01744396924 | AA78: 0.01813239619 | AB78: 0.01823244836
C79: =+CONCATENATE("Total ",C70) -> Total Recycled Water | K79: =+SUM(K71:K78) -> 0 | L79: =+SUM(L71:L78) -> 0 | M79: =+SUM(M71:M78) -> 0 | N79: =+SUM(N71:N78) -> 0 | O79: 0 | P79: 0 | Q79: 0 | R79: 3.382729089 | S79: 3.773618164 | T79: 3.51733871 | U79: 3.459850187 | V79: 1.669748332 | W79: 1.622708183 | X79: =+SUM(X71:X78) -> 1.917915113 | Y79: =+SUM(Y71:Y78) -> 1.986900734 | Z79: =+SUM(Z71:Z78) -> 2.058597073 | AA79: =+SUM(AA71:AA78) -> 2.168350883 | AB79: =+SUM(AB71:AB78) -> 2.225352648 | AC79: =+SUM(AC71:AC78) -> 0 | AD79: 0 | AE79: 0 | AF79: 0 | AG79: 0
C81: Rural Water
D82: =+D60 -> Operations & Maintenance | R82: 0 | S82: 0 | T82: 0 | U82: 0 | V82: 0 | W82: 0 | X82: 0 | Y82: 0 | Z82: 0 | AA82: 0 | AB82: 0
D83: =+D61 -> External bulk charges (excl. temporary purchases) | R83: =+R134 -> 0 | S83: =+S134 -> 0 | T83: =+T134 -> 0 | U83: 0 | V83: 0 | W83: 0 | X83: 0 | Y83: 0 | Z83: 0 | AA83: 0 | AB83: 0 | AC83: 0 | AD83: 0 | AE83: 0 | AF83: 0 | AG83: 0 | AH83: see reconciliation below
D84: Treatment | R84: 0 | S84: 0 | T84: 0 | U84: 0 | V84: 0 | W84: 0 | X84: 0 | Y84: 0 | Z84: 0 | AA84: 0 | AB84: 0
D85: Customer Service and billing | R85: 0 | S85: 0 | T85: 0 | U85: 0 | V85: 0 | W85: 0 | X85: 0 | Y85: 0 | Z85: 0 | AA85: 0 | AB85: 0
D86: GSL Payments | R86: 0 | S86: 0 | T86: 0 | U86: 0 | V86: 0 | W86: 0 | X86: 0 | Y86: 0 | Z86: 0 | AA86: 0 | AB86: 0
D87: Licence Fees | R87: 0 | S87: 0 | T87: 0 | U87: 0 | V87: 0 | W87: 0 | X87: 0 | Y87: 0 | Z87: 0 | AA87: 0 | AB87: 0
D88: Corporate | R88: 0 | S88: 0 | T88: 0 | U88: 0 | V88: 0 | W88: 0 | X88: 0 | Y88: 0 | Z88: 0 | AA88: 0 | AB88: 0
D89: Other operating expenditure | R89: 0 | S89: 0 | T89: 0 | U89: 0 | V89: 0 | W89: 0 | X89: 0 | Y89: 0 | Z89: 0 | AA89: 0 | AB89: 0
C90: =+CONCATENATE("Total ",C81) -> Total Rural Water | K90: =+SUM(K82:K89) -> 0 | L90: 0 | M90: 0 | N90: 0 | O90: 0 | P90: 0 | Q90: 0 | R90: 0 | S90: 0 | T90: 0 | U90: 0 | V90: 0 | W90: 0 | X90: =+SUM(X82:X89) -> 0 | Y90: =+SUM(Y82:Y89) -> 0 | Z90: =+SUM(Z82:Z89) -> 0 | AA90: =+SUM(AA82:AA89) -> 0 | AB90: =+SUM(AB82:AB89) -> 0 | AC90: =+SUM(AC82:AC89) -> 0 | AD90: 0 | AE90: 0 | AF90: 0 | AG90: 0
C92: Bulk Water
D93: Operations & Maintenance | R93: 0 | S93: 0 | T93: 0 | U93: 0 | V93: 0 | W93: 0 | X93: 0 | Y93: 0 | Z93: 0 | AA93: 0 | AB93: 0
D94: Treatment | R94: 0 | S94: 0 | T94: 0 | U94: 0 | V94: 0 | W94: 0 | X94: 0 | Y94: 0 | Z94: 0 | AA94: 0 | AB94: 0
D95: Customer Service and billing | R95: 0 | S95: 0 | T95: 0 | U95: 0 | V95: 0 | W95: 0 | X95: 0 | Y95: 0 | Z95: 0 | AA95: 0 | AB95: 0
D96: GSL Payments | R96: 0 | S96: 0 | T96: 0 | U96: 0 | V96: 0 | W96: 0 | X96: 0 | Y96: 0 | Z96: 0 | AA96: 0 | AB96: 0
D97: Licence Fees | R97: 0 | S97: 0 | T97: 0 | U97: 0 | V97: 0 | W97: 0 | X97: 0 | Y97: 0 | Z97: 0 | AA97: 0 | AB97: 0
D98: Corporate | R98: 0 | S98: 0 | T98: 0 | U98: 0 | V98: 0 | W98: 0 | X98: 0 | Y98: 0 | Z98: 0 | AA98: 0 | AB98: 0
D99: Other operating expenditure | R99: 0 | S99: 0 | T99: 0 | U99: 0 | V99: 0 | W99: 0 | X99: 0 | Y99: 0 | Z99: 0 | AA99: 0 | AB99: 0
C100: Total Bulk water | K100: =+SUM(K93:K99) -> 0 | L100: 0 | M100: 0 | N100: 0 | O100: 0 | P100: 0 | Q100: 0 | R100: 0 | S100: 0 | T100: 0 | U100: 0 | V100: 0 | W100: 0 | X100: 0 | Y100: 0 | Z100: 0 | AA100: 0 | AB100: 0 | AC100: =+SUM(AC93:AC99) -> 0 | AD100: 0 | AE100: 0 | AF100: 0 | AG100: 0
C102: External temporary water purchases | R102: 0 | S102: 0 | T102: 0 | U102: 0 | V102: 0 | W102: 0 | X102: 0 | Y102: 0 | Z102: 0 | AA102: 0 | AB102: 0
C105: Licence fees
D106: Essential Services Commission | R106: 0.06553015015 | S106: 0.1305712891 | T106: 0.04508064516 | U106: 0.009311797753 | V106: 0 | W106: 0.06726253158 | X106: 0.08 | Y106: 0.04594474 | Z106: 0.04594577 | AA106: 0.04594407 | AB106: 0.08
D107: Department of Human Services | R107: 0.02521921922 | S107: 0.0258984375 | T107: 0.02620967742 | U107: 0.02586610487 | V107: 0 | W107: 0.02213310596 | X107: 0.02632385 | Y107: 0.02632327 | Z107: 0.02632386 | AA107: 0.02632289 | AB107: 0.02632246
D108: Environment Protection Authority | R108: 0.06979418919 | S108: 0.04100585938 | T108: 0.03774193548 | U108: 0.0393164794 | V108: 0 | W108: 0.04508128246 | X108: 0.05361893 | Y108: 0.05361808 | Z108: 0.05361894 | AA108: 0.05361753 | AB108: 0.05361689
C109: =+CONCATENATE("Total ",C105) -> Total Licence fees | K109: =+SUM(K106:K108) -> 0 | L109: =+SUM(L106:L108) -> 0 | M109: 0 | N109: 0 | O109: 0 | P109: 0 | Q109: 0 | R109: 0.1605435586 | S109: 0.1974755859 | T109: 0.1090322581 | U109: 0.07449438202 | V109: 0 | W109: 0.13447692 | X109: =+SUM(X106:X108) -> 0.15994278 | Y109: =+SUM(Y106:Y108) -> 0.12588609 | Z109: =+SUM(Z106:Z108) -> 0.12588857 | AA109: =+SUM(AA106:AA108) -> 0.12588449 | AB109: =+SUM(AB106:AB108) -> 0.15993935 | AC109: =+SUM(AC106:AC108) -> 0 | AD109: 0 | AE109: 0 | AF109: 0 | AG109: 0
C111: Environment Contribution | R111: 1.786361361 | S111: 2.600634766 | T111: 2.526612903 | U111: 2.493491485 | V111: 2.461229205 | W111: 2.41 | X111: 3.013685239 | Y111: 2.945928875 | Z111: 2.87969587 | AA111: 2.814951975 | AB111: 2.75166371
C113: Other non-controllable
D114: 0 | E114: 0 | F114: 0 | G114: 0 | H114: 0 | I114: 0 | J114: 0 | R114: 0 | S114: 0 | T114: 0 | U114: 0 | V114: 0 | W114: 0 | X114: 0 | Y114: 0 | Z114: 0 | AA114: 0 | AB114: 0
D115: 0 | E115: 0 | F115: 0 | G115: 0 | H115: 0 | I115: 0 | J115: 0 | R115: 0 | S115: 0 | T115: 0 | U115: 0 | V115: 0 | W115: 0 | X115: 0 | Y115: 0 | Z115: 0 | AA115: 0 | AB115: 0
D116: 0 | E116: 0 | F116: 0 | G116: 0 | H116: 0 | I116: 0 | J116: 0 | R116: 0 | S116: 0 | T116: 0 | U116: 0 | V116: 0 | W116: 0 | X116: 0 | Y116: 0 | Z116: 0 | AA116: 0 | AB116: 0
D117: 0 | E117: 0 | F117: 0 | G117: 0 | H117: 0 | I117: 0 | J117: 0 | R117: 0 | S117: 0 | T117: 0 | U117: 0 | V117: 0 | W117: 0 | X117: 0 | Y117: 0 | Z117: 0 | AA117: 0 | AB117: 0
D118: 0 | E118: 0 | F118: 0 | G118: 0 | H118: 0 | I118: 0 | J118: 0 | R118: 0 | S118: 0 | T118: 0 | U118: 0 | V118: 0 | W118: 0 | X118: 0 | Y118: 0 | Z118: 0 | AA118: 0 | AB118: 0
D119: 0 | E119: 0 | F119: 0 | G119: 0 | H119: 0 | I119: 0 | J119: 0 | R119: 0 | S119: 0 | T119: 0 | U119: 0 | V119: 0 | W119: 0 | X119: 0 | Y119: 0 | Z119: 0 | AA119: 0 | AB119: 0
D120: 0 | E120: 0 | F120: 0 | G120: 0 | H120: 0 | I120: 0 | J120: 0 | R120: 0 | S120: 0 | T120: 0 | U120: 0 | V120: 0 | W120: 0 | X120: 0 | Y120: 0 | Z120: 0 | AA120: 0 | AB120: 0
D121: 0 | E121: 0 | F121: 0 | G121: 0 | H121: 0 | I121: 0 | J121: 0 | R121: 0 | S121: 0 | T121: 0 | U121: 0 | V121: 0 | W121: 0 | X121: 0 | Y121: 0 | Z121: 0 | AA121: 0 | AB121: 0
D122: 0 | E122: 0 | F122: 0 | G122: 0 | H122: 0 | I122: 0 | J122: 0 | R122: 0 | S122: 0 | T122: 0 | U122: 0 | V122: 0 | W122: 0 | X122: 0 | Y122: 0 | Z122: 0 | AA122: 0 | AB122: 0
D123: 0 | E123: 0 | F123: 0 | G123: 0 | H123: 0 | I123: 0 | J123: 0 | R123: 0 | S123: 0 | T123: 0 | U123: 0 | V123: 0 | W123: 0 | X123: 0 | Y123: 0 | Z123: 0 | AA123: 0 | AB123: 0
K124: =SUM(K114:K123) -> 0 | L124: 0 | M124: 0 | N124: 0 | O124: 0 | P124: 0 | Q124: 0 | R124: 0 | S124: 0 | T124: 0 | U124: 0 | V124: 0 | W124: 0 | X124: 0 | Y124: 0 | Z124: 0 | AA124: 0 | AB124: 0 | AC124: 0 | AD124: 0 | AE124: 0 | AF124: 0 | AG124: 0
C127: External bulk charges (excl. temporary purchases)
C128: Reconciliation
C130: Service | R130: =+R7 -> 2012-13 | S130: 2013-14 | T130: 2014-15 | U130: 2015-16 | V130: 2016-17 | W130: 2017-18 | X130: 2018-19 | Y130: 2019-20 | Z130: 2020-21 | AA130: 2021-22 | AB130: 2022-23 | AC130: 2023-24 | AD130: 2024-25 | AE130: 2025-26 | AF130: 2026-27 | AG130: 2027-28
D131: Water | R131: =+SUMIF($I$138:$I$179,$D$131,R$138:R$179) -> 17.26963463 | S131: 9.872592285 | T131: 5.155967742 | U131: 15.45135748 | V131: 9.884516477 | W131: 10.52201806 | X131: 10.63836223 | Y131: 10.74582749 | Z131: 10.7073272 | AA131: 10.64112974 | AB131: 10.65433349 | AC131: 0 | AD131: 0 | AE131: 0 | AF131: 0 | AG131: 0
D132: Sewerage | R132: =+SUMIF($I$138:$I$179,$D$132,R$138:R$179) -> 0 | S132: 0 | T132: 0 | U132: 0 | V132: 0 | W132: 0 | X132: 0.611 | Y132: 0.634 | Z132: 0.665 | AA132: 0.694 | AB132: 0.724 | AC132: 0 | AD132: 0 | AE132: 0 | AF132: 0 | AG132: 0
D133: Recycled Water | R133: =+SUMIF($I$138:$I$179,$D$133,R$138:R$179) -> 0 | S133: 0 | T133: 0 | U133: 0 | V133: 0 | W133: 0 | X133: 0 | Y133: 0 | Z133: 0 | AA133: 0 | AB133: 0 | AC133: 0 | AD133: 0 | AE133: 0 | AF133: 0 | AG133: 0
D134: Rural Water | R134: =+SUMIF($I$138:$I$179,$D$134,R$138:R$179) -> 0 | S134: 0 | T134: 0 | U134: 0 | V134: 0 | W134: 0 | X134: 0 | Y134: 0 | Z134: 0 | AA134: 0 | AB134: 0 | AC134: 0 | AD134: 0 | AE134: 0 | AF134: 0 | AG134: 0
C135: Total External Bulk Charges | R135: =SUM(R131:R134) -> 17.26963463 | S135: =SUM(S131:S134) -> 9.872592285 | T135: =SUM(T131:T134) -> 5.155967742 | U135: 15.45135748 | V135: 9.884516477 | W135: 10.52201806 | X135: 11.24936223 | Y135: 11.37982749 | Z135: 11.3723272 | AA135: 11.33512974 | AB135: 11.37833349 | AC135: 0 | AD135: 0 | AE135: 0 | AF135: 0 | AG135: 0
C137: Description | H137: Source | I137: Service | J137: Price
B138: 1 | C138: Bulk water - Transfer | D138: 0 | E138: 0 | F138: 0 | G138: 0 | H138: Melbourne Water | I138: Water | J138: Fixed | K138: 0 | L138: 0 | M138: 0 | N138: 0 | O138: 0 | P138: 0 | Q138: 0 | R138: 4.985494531 | S138: 3.618332749 | T138: 3.600241086 | U138: 3.58223988 | V138: 6.192694268 | W138: 6.2489825 | X138: 6.34849111 | Y138: 6.380233565 | Z138: 6.412134733 | AA138: 6.412134733 | AB138: 6.412134733 | AJ138: ESC USE ONLY
B139: 2 | C139: Bulk water - Transfer | D139: 0 | E139: 0 | F139: 0 | G139: 0 | H139: Melbourne Water | I139: Water | J139: Fixed | K139: 0 | L139: 0 | M139: 0 | N139: 0 | O139: 0 | P139: 0 | Q139: 0 | R139: 12.2841401 | S139: 6.254259536 | T139: -0.265083747 | U139: 10.0483866 | V139: 2.085487181 | W139: 2.62935506 | X139: 2.504798745 | Y139: 2.589246246 | Z139: 2.602192477 | AA139: 2.602192477 | AB139: 2.650381226
B140: 3 | C140: Bulk water - Entitlement | D140: 0 | E140: 0 | F140: 0 | G140: 0 | H140: Other Sources | I140: Water | J140: Fixed | K140: 0 | L140: 0 | M140: 0 | N140: 0 | O140: 0 | P140: 0 | Q140: 0 | R140: 0 | S140: 0 | T140: 1.814752823 | U140: 1.814752823 | V140: 1.606335028 | W140: 1.6436805 | X140: 1.785072371 | Y140: 1.776347677 | Z140: 1.692999985 | AA140: 1.626802528 | AB140: 1.591817527 | AJ140: [Service]
B141: 4 | C141: North-South pipeline contribution | D141: 0 | E141: 0 | F141: 0 | G141: 0 | H141: Melbourne Water | I141: Water | J141: Variable | K141: 0 | L141: 0 | M141: 0 | N141: 0 | O141: 0 | P141: 0 | Q141: 0 | R141: 0 | S141: 0 | T141: 0.006057580645 | U141: 0.005978174157 | V141: 0 | W141: 0 | X141: 0 | Y141: 0 | Z141: 0 | AA141: 0 | AB141: 0 | AJ141: Water
B142: 5 | C142: CWW sewer transfer | D142: 0 | E142: 0 | F142: 0 | G142: 0 | H142: Melbourne Water | I142: Sewerage | J142: Fixed | K142: 0 | L142: 0 | M142: 0 | N142: 0 | O142: 0 | P142: 0 | Q142: 0 | R142: 0 | S142: 0 | T142: 0 | U142: 0 | V142: 0 | W142: 0 | X142: 0.611 | Y142: 0.634 | Z142: 0.665 | AA142: 0.694 | AB142: 0.724 | AJ142: Sewerage
B143: 6 | C143: 0 | D143: 0 | E143: 0 | F143: 0 | G143: 0 | H143: [Source] | I143: [Service] | J143: [Price] | K143: 0 | L143: 0 | M143: 0 | N143: 0 | O143: 0 | P143: 0 | Q143: 0 | R143: 0 | S143: 0 | T143: 0 | U143: 0 | V143: 0 | W143: 0 | X143: 0 | Y143: 0 | Z143: 0 | AA143: 0 | AB143: 0 | AJ143: Recycled Water
B144: 7 | H144: [Source] | I144: [Service] | J144: [Price] | AJ144: Rural Water
B145: 8 | H145: [Source] | I145: [Service] | J145: [Price]
B146: 9 | H146: [Source] | I146: [Service] | J146: [Price] | AJ146: [Source]
B147: 10 | H147: [Source] | I147: [Service] | J147: [Price] | AJ147: Melbourne Water
B148: 11 | H148: [Source] | I148: [Service] | J148: [Price] | AJ148: Goulburn-Murray Water
B149: 12 | H149: [Source] | I149: [Service] | J149: [Price] | AJ149: Other Sources
B150: 13 | H150: [Source] | I150: [Service] | J150: [Price]
B151: 14 | H151: [Source] | I151: [Service] | J151: [Price]
B152: 15 | H152: [Source] | I152: [Service] | J152: [Price]
B153: 16 | H153: [Source] | I153: [Service] | J153: [Price]
B154: 17 | H154: [Source] | I154: [Service] | J154: [Price]
B155: 18 | H155: [Source] | I155: [Service] | J155: [Price]
B156: 19 | H156: [Source] | I156: [Service] | J156: [Price]
B157: 20 | H157: [Source] | I157: [Service] | J157: [Price]
B158: 21 | H158: [Source] | I158: [Service] | J158: [Price]
B159: 22 | H159: [Source] | I159: [Service] | J159: [Price]
B160: 23 | H160: [Source] | I160: [Service] | J160: [Price]
B161: 24 | H161: [Source] | I161: [Service] | J161: [Price]
B162: 25 | H162: [Source] | I162: [Service] | J162: [Price]
B163: 26 | H163: [Source] | I163: [Service] | J163: [Price]
B164: 27 | H164: [Source] | I164: [Service] | J164: [Price]
B165: 28 | H165: [Source] | I165: [Service] | J165: [Price]
B166: 29 | H166: [Source] | I166: [Service] | J166: [Price]
B167: 30 | H167: [Source] | I167: [Service] | J167: [Price]
B168: 31 | H168: [Source] | I168: [Service] | J168: [Price]
B169: 32 | H169: [Source] | I169: [Service] | J169: [Price]
B170: 33 | H170: [Source] | I170: [Service] | J170: [Price]
B171: 34 | H171: [Source] | I171: [Service] | J171: [Price]
B172: 35 | H172: [Source] | I172: [Service] | J172: [Price]
B173: 36 | H173: [Source] | I173: [Service] | J173: [Price]
B174: 37 | H174: [Source] | I174: [Service] | J174: [Price]
B175: 38 | H175: [Source] | I175: [Service] | J175: [Price]
B176: 39 | H176: [Source] | I176: [Service] | J176: [Price]
B177: 40 | H177: [Source] | I177: [Service] | J177: [Price]

Sheet Capex_FO input
B1: Capital Expenditure - Forecast Input
B2: =+Contents!H7 -> Western Water
B3: Go to Table of Contents | DC3: Tax Depreciation - Declining Balance Method
C7: Input Summary | D7: FOURTH REG PERIOD | F7: FIFTH REG PERIOD | K7: FIFTH REG PERIOD | DC7: Instructions
DC8: For each item of CAPEX
D9: =+Q39 -> 2018-19 | E9: 2019-20 | F9: 2020-21 | G9: 2021-22 | H9: 2022-23 | I9: 2023-24 | J9: 2024-25 | K9: 2025-26 | L9: 2026-27 | M9: 2027-28
C10: By Cost Driver | DC10: 1. Change tax depreciation method in column M to 'Declining Balance'
C11: Net capital expenditure - Renewals | D11: =+SUMIF($F$42:$F$1016,"Renewals",AX$42:AX$1016) -> 10.32414655 | E11: =+SUMIF($F$42:$F$1016,"Renewals",AY$42:AY$1016) -> 9.112834383 | F11: 9.072900538 | G11: 9.716521325 | H11: 8.507066239 | I11: 0 | J11: 0 | K11: 0 | L11: 0 | M11: 0 | DC11: 2. Populate declining balance multiple, (>0)
C12: Net capital expenditure - Growth | D12: =+SUMIF($F$42:$F$1016,"Growth",AX$42:AX$1016) -> 33.46109295 | E12: =+SUMIF($F$42:$F$1016,"Growth",AY$42:AY$1016) -> 43.8034647 | F12: 43.51741758 | G12: 35.75117976 | H12: 41.99752794 | I12: 0 | J12: 0 | K12: 0 | L12: 0 | M12: 0
C13: Net capital expenditure - Improvements / Compliance | D13: =+SUMIF($F$42:$F$1016,"Improvements / Compliance",AX$42:AX$1016) -> 6.85180465 | E13: =+SUMIF($F$42:$F$1016,"Improvements / Compliance",AY$42:AY$1016) -> 8.243929045 | F13: 14.28653338 | G13: 16.08541294 | H13: 8.720349609 | I13: 0 | J13: 0 | K13: 0 | L13: 0 | M13: 0
C14: Government Contributions | D14: =+AB41 -> 0 | E14: 0 | F14: 0 | G14: 0 | H14: 0 | I14: 0 | J14: 0 | K14: 0 | L14: 0 | M14: 0
C15: Customer Contributions | D15: =+AM41 -> 8.154169976 | E15: 11.18301816 | F15: 13.39432301 | G15: 15.17436781 | H15: 16.27090577 | I15: 0 | J15: 0 | K15: 0 | L15: 0 | M15: 0
C16: Total prescribed capex | D16: =SUM(D11:D15) -> 58.79121412 | E16: 72.34324629 | F16: 80.27117451 | G16: 76.72748183 | H16: 75.49584955 | I16: 0 | J16: 0 | K16: 0 | L16: 0 | M16: 0
C18: By Capital Type
C19: Top 10 Major Projects | D19: =+SUMIF($H$42:$H$1016,$C$19,Q$42:Q$1016) -> 12.60420001 | E19: =+SUMIF($H$42:$H$1016,$C$19,R$42:R$1016) -> 19.53819111 | F19: 18.1872316 | G19: 0.21285 | H19: 0.21285 | I19: 0 | J19: 0 | K19: 0 | L19: 0 | M19: 0
C20: Significant projects | D20: =+SUMIF($H$42:$H$1016,$C$20,Q$42:Q$1016) -> 6.104479998 | E20: =+SUMIF($H$42:$H$1016,$C$20,R$42:R$1016) -> 4.439161991 | F20: 8.60261166 | G20: 15.58214303 | H20: 4.305489522 | I20: 0 | J20: 0 | K20: 0 | L20: 0 | M20: 0
C21: Capital Programs / Allocation | D21: =+SUMIF($H$42:$H$1016,$C$21,Q$42:Q$1016) -> 40.08253411 | E21: =+SUMIF($H$42:$H$1016,$C$21,R$42:R$1016) -> 48.36589318 | F21: 53.48133125 | G21: 60.9324888 | H21: 70.97751003 | I21: 0 | J21: 0 | K21: 0 | L21: 0 | M21: 0
C22: Other Capital expenditure | D22: =+SUMIF($H$42:$H$1016,$C$22,Q$42:Q$1016) -> 0 | E22: =+SUMIF($H$42:$H$1016,$C$22,R$42:R$1016) -> 0 | F22: 0 | G22: 0 | H22: 0 | I22: 0 | J22: 0 | K22: 0 | L22: 0 | M22: 0
C23: Total prescribed capex | D23: =SUM(D19:D22) -> 58.79121412 | E23: 72.34324629 | F23: 80.27117451 | G23: 76.72748183 | H23: 75.49584955 | I23: 0 | J23: 0 | K23: 0 | L23: 0 | M23: 0
C25: Difference | D25: =+D23-D16 -> 0 | E25: 0 | F25: 0 | G25: 0 | H25: 0 | I25: 0 | J25: 0 | K25: 0 | L25: 0 | M25: 0
C26: Test | D26: =+D23=D16 -> TRUE | E26: TRUE | F26: TRUE | G26: TRUE | H26: TRUE | I26: TRUE | J26: TRUE | K26: TRUE | L26: TRUE | M26: TRUE
C29: Total prescribed capex | D29: =+D23 -> 58.79121412 | E29: 72.34324629 | F29: 80.27117451 | G29: 76.72748183 | H29: 75.49584955 | I29: 0 | J29: 0 | K29: 0 | L29: 0 | M29: 0
C32: Regulatory Depreciation | D32: =+BI41 -> 0.7313121974 | E32: 2.197301351 | F32: 3.837873229 | G32: 5.978899176 | H32: 8.195116684 | I32: 8.851828168 | J32: 8.091403168 | K32: 7.250353168 | L32: 6.355353168 | M32: 5.780353168
B35: $m, 01/01/18
Q36: Gross capital expenditure | AB36: Government contributions | AM36: Customer contributions | AX36: Net capital expenditure | BI36: Regulatory Depreciation | BT36: Accumulated capex | CE36: Gross capital expenditure | CP36: Tax Depreciation | DE36: Gross CAPEX to depreciate | DP36: Declining balance cumulative depreciation term - first period capex | EA36: Declining balance cumulative depreciation term - period 2+ capex | EL36: Periodic depreciation % - first period capex | EW36: Periodic depreciation % - period 2+ capex | FH36: Reversed depreciation - first period capex | FS36: Tax Depreciation - declining balance
Q37: $m, 01/01/18 | AB37: $m, 01/01/18 | AM37: $m, 01/01/18 | AX37: $m, 01/01/18 | BI37: $m, 01/01/18 | BT37: $m, 01/01/18 | CE37: Nominal,$ | CP37: Nominal,$ | DE37: Nominal,$ | FS37: Nominal,$
Q39: 2018-19 | R39: 2019-20 | S39: 2020-21 | T39: 2021-22 | U39: 2022-23 | V39: 2023-24 | W39: 2024-25 | X39: 2025-26 | Y39: 2026-27 | Z39: 2027-28 | AB39: 2018-19 | AC39: 2019-20 | AD39: 2020-21 | AE39: 2021-22 | AF39: 2022-23 | AG39: 2023-24 | AH39: 2024-25 | AI39: 2025-26 | AJ39: 2026-27 | AK39: 2027-28 | AM39: 2018-19 | AN39: 2019-20 | AO39: 2020-21 | AP39: 2021-22 | AQ39: 2022-23 | AR39: 2023-24 | AS39: 2024-25 | AT39: 2025-26 | AU39: 2026-27 | AV39: 2027-28 | AX39: 2018-19 | AY39: 2019-20 | AZ39: 2020-21 | BA39: 2021-22 | BB39: 2022-23 | BC39: 2023-24 | BD39: 2024-25 | BE39: 2025-26 | BF39: 2026-27 | BG39: 2027-28 | BI39: 2018-19 | BJ39: 2019-20 | BK39: 2020-21 | BL39: 2021-22 | BM39: 2022-23 | BN39: 2023-24 | BO39: 2024-25 | BP39: 2025-26 | BQ39: 2026-27 | BR39: 2027-28 | BT39: 2018-19 | BU39: 2019-20 | BV39: 2020-21 | BW39: 2021-22 | BX39: 2022-23 | BY39: 2023-24 | BZ39: 2024-25 | CA39: 2025-26 | CB39: 2026-27 | CC39: 2027-28 | CE39: 2018-19 | CF39: 2019-20 | CG39: 2020-21 | CH39: 2021-22 | CI39: 2022-23 | CJ39: 2023-24 | CK39: 2024-25 | CL39: 2025-26 | CM39: 2026-27 | CN39: 2027-28 | CP39: 2018-19 | CQ39: 2019-20 | CR39: 2020-21 | CS39: 2021-22 | CT39: 2022-23 | CU39: 2023-24 | CV39: 2024-25 | CW39: 2025-26 | CX39: 2026-27 | CY39: 2027-28 | DE39: 2018-19 | DF39: 2019-20 | DG39: 2020-21 | DH39: 2021-22 | DI39: 2022-23 | DJ39: 2023-24 | DK39: 2024-25 | DL39: 2025-26 | DM39: 2026-27 | DN39: 2027-28 | DP39: 2018-19 | DQ39: 2019-20 | DR39: 2020-21 | DS39: 2021-22 | DT39: 2022-23 | DU39: 2023-24 | DV39: 2024-25 | DW39: 2025-26 | DX39: 2026-27 | DY39: 2027-28 | EA39: 2018-19 | EB39: 2019-20 | EC39: 2020-21 | ED39: 2021-22 | EE39: 2022-23 | EF39: 2023-24 | EG39: 2024-25 | EH39: 2025-26 | EI39: 2026-27 | EJ39: 2027-28 | EL39: 2018-19 | EM39: 2019-20 | EN39: 2020-21 | EO39: 2021-22 | EP39: 2022-23 | EQ39: 2023-24 | ER39: 2024-25 | ES39: 2025-26 | ET39: 2026-27 | EU39: 2027-28 | EW39: 2018-19 | EX39: 2019-20 | EY39: 2020-21 | EZ39: 2021-22 | FA39: 2022-23 | FB39: 2023-24 | FC39: 2024-25 | FD39: 2025-26 | FE39: 2026-27 | FF39: 2027-28 | FH39: 2018-19 | FI39: 2019-20 | FJ39: 2020-21 | FK39: 2021-22 | FL39: 2022-23 | FM39: 2023-24 | FN39: 2024-25 | FO39: 2025-26 | FP39: 2026-27 | FQ39: 2027-28 | FS39: 2018-19 | FT39: 2019-20 | FU39: 2020-21 | FV39: 2021-22 | FW39: 2022-23 | FX39: 2023-24 | FY39: 2024-25 | FZ39: 2025-26 | GA39: 2026-27 | GB39: 2027-28
BI40: 1 | BJ40: 2 | BK40: 3 | BL40: 4 | BM40: 5 | BN40: 6 | BO40: 7 | BP40: 8 | BQ40: 9 | BR40: 10 | CP40: 1 | CQ40: 2 | CR40: 3 | CS40: 4 | CT40: 5 | CU40: 6 | CV40: 7 | CW40: 8 | CX40: 9 | CY40: 10 | DE40: 1 | DF40: 2 | DG40: 3 | DH40: 4 | DI40: 5 | DJ40: 6 | DK40: 7 | DL40: 8 | DM40: 9 | DN40: 10 | DP40: 1 | DQ40: 2 | DR40: 3 | DS40: 4 | DT40: 5 | DU40: 6 | DV40: 7 | DW40: 8 | DX40: 9 | DY40: 10 | EA40: 1 | EB40: 2 | EC40: 3 | ED40: 4 | EE40: 5 | EF40: 6 | EG40: 7 | EH40: 8 | EI40: 9 | EJ40: 10 | EL40: 1 | EM40: 2 | EN40: 3 | EO40: 4 | EP40: 5 | EQ40: 6 | ER40: 7 | ES40: 8 | ET40: 9 | EU40: 10 | EW40: 1 | EX40: 2 | EY40: 3 | EZ40: 4 | FA40: 5 | FB40: 6 | FC40: 7 | FD40: 8 | FE40: 9 | FF40: 10 | FH40: 1 | FI40: 2 | FJ40: 3 | FK40: 4 | FL40: 5 | FM40: 6 | FN40: 7 | FO40: 8 | FP40: 9 | FQ40: 10 | FS40: 1 | FT40: 2 | FU40: 3 | FV40: 4 | FW40: 5 | FX40: 6 | FY40: 7 | FZ40: 8 | GA40: 9 | GB40: 10
C41: Project/program Name | E41: Service | F41: Major cost driver | G41: Asset category | H41: Capital type | J41: Reg Depreciation Method | K41: Year asset operational | L41: Asset life (Regulatory) | M41: Tax Depreciation Method | N41: Asset life (Tax) | Q41: =SUM(Q42:Q1016) -> 58.79121412 | R41: =SUM(R42:R1016) -> 72.34324629 | S41: 80.27117451 | T41: 76.72748183 | U41: 75.49584955 | V41: =SUM(V42:V1016) -> 0 | W41: =SUM(W42:W1016) -> 0 | X41: =SUM(X42:X1016) -> 0 | Y41: =SUM(Y42:Y1016) -> 0 | Z41: =SUM(Z42:Z1016) -> 0 | AB41: =SUM(AB42:AB1016) -> 0 | AC41: =SUM(AC42:AC1016) -> 0 | AD41: 0 | AE41: 0 | AF41: 0 | AG41: =SUM(AG42:AG1016) -> 0 | AH41: =SUM(AH42:AH1016) -> 0 | AI41: =SUM(AI42:AI1016) -> 0 | AJ41: =SUM(AJ42:AJ1016) -> 0 | AK41: =SUM(AK42:AK1016) -> 0 | AM41: =SUM(AM42:AM1016) -> 8.154169976 | AN41: =SUM(AN42:AN1016) -> 11.18301816 | AO41: =SUM(AO42:AO1016) -> 13.39432301 | AP41: =SUM(AP42:AP1016) -> 15.17436781 | AQ41: =SUM(AQ42:AQ1016) -> 16.27090577 | AR41: =SUM(AR42:AR1016) -> 0 | AS41: =SUM(AS42:AS1016) -> 0 | AT41: =SUM(AT42:AT1016) -> 0 | AU41: =SUM(AU42:AU1016) -> 0 | AV41: =SUM(AV42:AV1016) -> 0 | AX41: =SUM(AX42:AX1016) -> 50.63704414 | AY41: =SUM(AY42:AY1016) -> 61.16022812 | AZ41: =SUM(AZ42:AZ1016) -> 66.8768515 | BA41: =SUM(BA42:BA1016) -> 61.55311403 | BB41: =SUM(BB42:BB1016) -> 59.22494378 | BC41: =SUM(BC42:BC1016) -> 0 | BD41: =SUM(BD42:BD1016) -> 0 | BE41: =SUM(BE42:BE1016) -> 0 | BF41: =SUM(BF42:BF1016) -> 0 | BG41: =SUM(BG42:BG1016) -> 0 | BI41: =SUM(BI42:BI1016) -> 0.7313121974 | BJ41: =SUM(BJ42:BJ1016) -> 2.197301351 | BK41: =SUM(BK42:BK1016) -> 3.837873229 | BL41: =SUM(BL42:BL1016) -> 5.978899176 | BM41: =SUM(BM42:BM1016) -> 8.195116684 | BN41: =SUM(BN42:BN1016) -> 8.851828168 | BO41: =SUM(BO42:BO1016) -> 8.091403168 | BP41: =SUM(BP42:BP1016) -> 7.250353168 | BQ41: =SUM(BQ42:BQ1016) -> 6.355353168 | BR41: =SUM(BR42:BR1016) -> 5.780353168 | BT41: =SUM(BT42:BT1016) -> 33.84084413 | BU41: =SUM(BU42:BU1016) -> 41.59353932 | BV41: =SUM(BV42:BV1016) -> 54.76111225 | BW41: =SUM(BW42:BW1016) -> 86.5128645 | BX41: =SUM(BX42:BX1016) -> 82.74382137 | BY41: =SUM(BY42:BY1016) -> 0 | BZ41: =SUM(BZ42:BZ1016) -> 0 | CA41: =SUM(CA42:CA1016) -> 0 | CB41: =SUM(CB42:CB1016) -> 0 | CC41: =SUM(CC42:CC1016) -> 0 | CE41: =SUM(CE42:CE1016) -> 60.14341204 | CF41: =SUM(CF42:CF1016) -> 75.70930519 | CG41: =SUM(CG42:CG1016) -> 85.93825257 | CH41: =SUM(CH42:CH1016) -> 84.03369883 | CI41: =SUM(CI42:CI1016) -> 84.586537 | CJ41: =SUM(CJ42:CJ1016) -> 0 | CK41: =SUM(CK42:CK1016) -> 0 | CL41: =SUM(CL42:CL1016) -> 0 | CM41: =SUM(CM42:CM1016) -> 0 | CN41: =SUM(CN42:CN1016) -> 0 | CP41: =SUM(CP42:CP1016) -> 1.244870859 | CQ41: =SUM(CQ42:CQ1016) -> 3.565150071 | CR41: =SUM(CR42:CR1016) -> 5.937258664 | CS41: =SUM(CS42:CS1016) -> 8.977566767 | CT41: =SUM(CT42:CT1016) -> 12.7754237 | CU41: =SUM(CU42:CU1016) -> 13.71499333 | CV41: =SUM(CV42:CV1016) -> 12.39082564 | CW41: =SUM(CW42:CW1016) -> 11.26337988 | CX41: =SUM(CX42:CX1016) -> 10.57951816 | CY41: =SUM(CY42:CY1016) -> 9.490994533 | DC41: Declining balance multiple | DE41: =SUM(DE42:DE1016) -> 42.96089943 | DF41: 55.18043413 | DG41: 72.82836398 | DH41: 109.87407 | DI41: 109.5674381 | DJ41: 0 | DK41: 0 | DL41: 0 | DM41: 0 | DN41: 0 | FS41: =SUM(FS42:FS1016) -> 1.244870859 | FT41: 3.565150071 | FU41: 5.937258664 | FV41: 8.977566767 | FW41: 12.7754237 | FX41: 13.71499333 | FY41: 12.39082564 | FZ41: 11.26337988 | GA41: 10.57951816 | GB41: 9.490994533
C42: Melton RWP - Additional on Site Storage | E42: Sewerage | F42: Growth | G42: Treatment | H42: Top 10 Major Projects | J42: Straight line | K42: 2022 | L42: 51 | M42: Declining Balance | N42: 51 | Q42: 6.32 | R42: 6.26252 | S42: 4.42728 | T42: 0 | U42: 0 | AB42: 0 | AC42: 0 | AD42: 0 | AE42: 0 | AF42: 0 | AM42: 0 | AN42: 0 | AO42: 0 | AP42: 0 | AQ42: 0 | AX42: =+Q42-AB42-AM42 -> 6.32 | AY42: =+R42-AC42-AN42 -> 6.26252 | AZ42: =+S42-AD42-AO42 -> 4.42728 | BA42: =+T42-AE42-AP42 -> 0 | BB42: =+U42-AF42-AQ42 -> 0 | BC42: =+V42-AG42-AR42 -> 0 | BD42: =+W42-AH42-AS42 -> 0 | BE42: =+X42-AI42-AT42 -> 0 | BF42: =+Y42-AJ42-AU42 -> 0 | BG42: =+Z42-AK42-AV42 -> 0 | BI42: =IF($L42=0,0, IF($L42<=0.5,BT42, IF($J42="straight line", IF((LEFT(BI$39,4)*1)-INT($L42)<LEFT($BI$39,4)*1,0,((OFFSET(BT42,0,-INT($L42+0.5),1,1))/$L42)*(IF($L42-INT($L42)>0.5,$L42-0.5-INT($L42),IF($L42-INT($L42)<=0.5,$L42-0.5-INT($L42)+1,0)))) +BT42/$L42*0.5, IF($J42="Declining Balance",-$BI$38,0)))) -> 0 | BJ42: =IF($L42=0,0, IF($L42<=0.5,BU42, IF(AND($J42="straight line",$L42<1.51),(BT42-((BT42/$L42)*0.5))+BU42/$L42*0.5, IF($J42="straight line", IF((LEFT(BJ$39,4)*1)-INT($L42)<LEFT($BI$39,4)*1,0,((OFFSET(BU42,0,-INT($L42+0.5),1,1))/$L42)*(IF($L42-INT($L42)>0.5,$L42-0.5-INT($L42),IF($L42-INT($L42)<=0.5,$L42-0.5-INT($L42)+1,0)))) +BU42/$L42*0.5 +SUM(OFFSET(BU42,0,MAX(-INT($L42+(0.5-(10^-12))),-BJ$40)+1,1,MIN(INT($L42+(0.5-(10^-12))),BJ$40)-1))*1/$L42, IF($J42="Declining Balance",-$BI$38,0))))) -> 0 | BK42: =IF($L42=0,0, IF($L42<=0.5,BV42, IF(AND($J42="straight line",$L42<1.51),(BU42-((BU42/$L42)*0.5))+BV42/$L42*0.5, IF($J42="straight line", IF((LEFT(BK$39,4)*1)-INT($L42)<LEFT($BI$39,4)*1,0,((OFFSET(BV42,0,-INT($L42+0.5),1,1))/$L42)*(IF($L42-INT($L42)>0.5,$L42-0.5-INT($L42),IF($L42-INT($L42)<=0.5,$L42-0.5-INT($L42)+1,0)))) +BV42/$L42*0.5 +SUM(OFFSET(BV42,0,MAX(-INT($L42+(0.5-(10^-12))),-BK$40)+1,1,MIN(INT($L42+(0.5-(10^-12))),BK$40)-1))*1/$L42, IF($J42="Declining Balance",-$BI$38,0))))) -> 0 | BL42: =IF($L42=0,0, IF($L42<=0.5,BW42, IF(AND($J42="straight line",$L42<1.51),(BV42-((BV42/$L42)*0.5))+BW42/$L42*0.5, IF($J42="straight line", IF((LEFT(BL$39,4)*1)-INT($L42)<LEFT($BI$39,4)*1,0,((OFFSET(BW42,0,-INT($L42+0.5),1,1))/$L42)*(IF($L42-INT($L42)>0.5,$L42-0.5-INT($L42),IF($L42-INT($L42)<=0.5,$L42-0.5-INT($L42)+1,0)))) +BW42/$L42*0.5 +SUM(OFFSET(BW42,0,MAX(-INT($L42+(0.5-(10^-12))),-BL$40)+1,1,MIN(INT($L42+(0.5-(10^-12))),BL$40)-1))*1/$L42, IF($J42="Declining Balance",-$BI$38,0))))) -> 0.1667627451 | BM42: =IF($L42=0,0, IF($L42<=0.5,BX42, IF(AND($J42="straight line",$L42<1.51),(BW42-((BW42/$L42)*0.5))+BX42/$L42*0.5, IF($J42="straight line", IF((LEFT(BM$39,4)*1)-INT($L42)<LEFT($BI$39,4)*1,0,((OFFSET(BX42,0,-INT($L42+0.5),1,1))/$L42)*(IF($L42-INT($L42)>0.5,$L42-0.5-INT($L42),IF($L42-INT($L42)<=0.5,$L42-0.5-INT($L42)+1,0)))) +BX42/$L42*0.5 +SUM(OFFSET(BX42,0,MAX(-INT($L42+(0.5-(10^-12))),-BM$40)+1,1,MIN(INT($L42+(0.5-(10^-12))),BM$40)-1))*1/$L42, IF($J42="Declining Balance",-$BI$38,0))))) -> 0.3335254902 | BN42: =IF($L42=0,0, IF($L42<=0.5,BY42, IF(AND($J42="straight line",$L42<1.51),(BX42-((BX42/$L42)*0.5))+BY42/$L42*0.5, IF($J42="straight line", IF((LEFT(BN$39,4)*1)-INT($L42)<LEFT($BI$39,4)*1,0,((OFFSET(BY42,0,-INT($L42+0.5),1,1))/$L42)*(IF($L42-INT($L42)>0.5,$L42-0.5-INT($L42),IF($L42-INT($L42)<=0.5,$L42-0.5-INT($L42)+1,0)))) +BY42/$L42*0.5 +SUM(OFFSET(BY42,0,MAX(-INT($L42+(0.5-(10^-12))),-BN$40)+1,1,MIN(INT($L42+(0.5-(10^-12))),BN$40)-1))*1/$L42, IF($J42="Declining Balance",-$BI$38,0))))) -> 0.3335254902 | BO42: =IF($L42=0,0, IF($L42<=0.5,BZ42, IF(AND($J42="straight line",$L42<1.51),(BY42-((BY42/$L42)*0.5))+BZ42/$L42*0.5, IF($J42="straight line", IF((LEFT(BO$39,4)*1)-INT($L42)<LEFT($BI$39,4)*1,0,((OFFSET(BZ42,0,-INT($L42+0.5),1,1))/$L42)*(IF($L42-INT($L42)>0.5,$L42-0.5-INT($L42),IF($L42-INT($L42)<=0.5,$L42-0.5-INT($L42)+1,0)))) +BZ42/$L42*0.5 +SUM(OFFSET(BZ42,0,MAX(-INT($L42+(0.5-(10^-12))),-BO$40)+1,1,MIN(INT($L42+(0.5-(10^-12))),BO$40)-1))*1/$L42, IF($J42="Declining Balance",-$BI$38,0))))) -> 0.3335254902 | BP42: =IF($L42=0,0, IF($L42<=0.5,CA42, IF(AND($J42="straight line",$L42<1.51),(BZ42-((BZ42/$L42)*0.5))+CA42/$L42*0.5, IF($J42="straight line", IF((LEFT(BP$39,4)*1)-INT($L42)<LEFT($BI$39,4)*1,0,((OFFSET(CA42,0,-INT($L42+0.5),1,1))/$L42)*(IF($L42-INT($L42)>0.5,$L42-0.5-INT($L42),IF($L42-INT($L42)<=0.5,$L42-0.5-INT($L42)+1,0)))) +CA42/$L42*0.5 +SUM(OFFSET(CA42,0,MAX(-INT($L42+(0.5-(10^-12))),-BP$40)+1,1,MIN(INT($L42+(0.5-(10^-12))),BP$40)-1))*1/$L42, IF($J42="Declining Balance",-$BI$38,0))))) -> 0.3335254902 | BQ42: =IF($L42=0,0, IF($L42<=0.5,CB42, IF(AND($J42="straight line",$L42<1.51),(CA42-((CA42/$L42)*0.5))+CB42/$L42*0.5, IF($J42="straight line", IF((LEFT(BQ$39,4)*1)-INT($L42)<LEFT($BI$39,4)*1,0,((OFFSET(CB42,0,-INT($L42+0.5),1,1))/$L42)*(IF($L42-INT($L42)>0.5,$L42-0.5-INT($L42),IF($L42-INT($L42)<=0.5,$L42-0.5-INT($L42)+1,0)))) +CB42/$L42*0.5 +SUM(OFFSET(CB42,0,MAX(-INT($L42+(0.5-(10^-12))),-BQ$40)+1,1,MIN(INT($L42+(0.5-(10^-12))),BQ$40)-1))*1/$L42, IF($J42="Declining Balance",-$BI$38,0))))) -> 0.3335254902 | BR42: =IF($L42=0,0, IF($L42<=0.5,CC42, IF(AND($J42="straight line",$L42<1.51),(CB42-((CB42/$L42)*0.5))+CC42/$L42*0.5, IF($J42="straight line", IF((LEFT(BR$39,4)*1)-INT($L42)<LEFT($BI$39,4)*1,0,((OFFSET(CC42,0,-INT($L42+0.5),1,1))/$L42)*(IF($L42-INT($L42)>0.5,$L42-0.5-INT($L42),IF($L42-INT($L42)<=0.5,$L42-0.5-INT($L42)+1,0)))) +CC42/$L42*0.5 +SUM(OFFSET(CC42,0,MAX(-INT($L42+(0.5-(10^-12))),-BR$40)+1,1,MIN(INT($L42+(0.5-(10^-12))),BR$40)-1))*1/$L42, IF($J42="Declining Balance",-$BI$38,0))))) -> 0.3335254902 | BT42: =+IF($K42="Ongoing",AX42,IF(RIGHT($K42,2)=RIGHT(BT$39,2),SUM($AX42:AX42),0)+IF(RIGHT(BT$39,2)>RIGHT($K42,2),AX42,0)) -> 0 | BU42: =+IF($K42="Ongoing",AY42,IF(RIGHT($K42,2)=RIGHT(BU$39,2),SUM($AX42:AY42),0)+IF(RIGHT(BU$39,2)>RIGHT($K42,2),AY42,0)) -> 0 | BV42: =+IF($K42="Ongoing",AZ42,IF(RIGHT($K42,2)=RIGHT(BV$39,2),SUM($AX42:AZ42),0)+IF(RIGHT(BV$39,2)>RIGHT($K42,2),AZ42,0)) -> 0 | BW42: =+IF($K42="Ongoing",BA42,IF(RIGHT($K42,2)=RIGHT(BW$39,2),SUM($AX42:BA42),0)+IF(RIGHT(BW$39,2)>RIGHT($K42,2),BA42,0)) -> 17.0098 | BX42: =+IF($K42="Ongoing",BB42,IF(RIGHT($K42,2)=RIGHT(BX$39,2),SUM($AX42:BB42),0)+IF(RIGHT(BX$39,2)>RIGHT($K42,2),BB42,0)) -> 0 | BY42: =+IF($K42="Ongoing",BC42,IF(RIGHT($K42,2)=RIGHT(BY$39,2),SUM($AX42:BC42),0)+IF(RIGHT(BY$39,2)>RIGHT($K42,2),BC42,0)) -> 0 | BZ42: =+IF($K42="Ongoing",BD42,IF(RIGHT($K42,2)=RIGHT(BZ$39,2),SUM($AX42:BD42),0)+IF(RIGHT(BZ$39,2)>RIGHT($K42,2),BD42,0)) -> 0 | CA42: =+IF($K42="Ongoing",BE42,IF(RIGHT($K42,2)=RIGHT(CA$39,2),SUM($AX42:BE42),0)+IF(RIGHT(CA$39,2)>RIGHT($K42,2),BE42,0)) -> 0 | CB42: =+IF($K42="Ongoing",BF42,IF(RIGHT($K42,2)=RIGHT(CB$39,2),SUM($AX42:BF42),0)+IF(RIGHT(CB$39,2)>RIGHT($K42,2),BF42,0)) -> 0 | CC42: =+IF($K42="Ongoing",BG42,IF(RIGHT($K42,2)=RIGHT(CC$39,2),SUM($AX42:BG42),0)+IF(RIGHT(CC$39,2)>RIGHT($K42,2),BG42,0)) -> 0 | CE42: =+Q42*KeyAssumptionsPriceControl_FO!X$15 -> 6.46536 | CF42: =+R42*KeyAssumptionsPriceControl_FO!Y$15 -> 6.553908793 | CG42: =+S42*KeyAssumptionsPriceControl_FO!Z$15 -> 4.73984228 | CH42: =+T42*KeyAssumptionsPriceControl_FO!AA$15 -> 0 | CI42: =+U42*KeyAssumptionsPriceControl_FO!AB$15 -> 0 | CJ42: =+V42*KeyAssumptionsPriceControl_FO!AC$15 -> 0 | CK42: =+W42*KeyAssumptionsPriceControl_FO!AD$15 -> 0 | CL42: =+X42*KeyAssumptionsPriceControl_FO!AE$15 -> 0 | CM42: =+Y42*KeyAssumptionsPriceControl_FO!AF$15 -> 0 | CN42: =+Z42*KeyAssumptionsPriceControl_FO!AG$15 -> 0 | CP42: =IF($M42="straight line",IF($N42=0,0, IF($N42<=0.5,CE42, IF($J42="straight line", IF((LEFT(CP$39,4)*1)-INT($N42)<LEFT($CP$39,4)*1,0,((OFFSET(CE42,0,-INT($N42+0.5),1,1))/$N42)*(IF($N42-INT($N42)>0.5,$N42-0.5-INT($N42),IF($N42-INT($N42)<=0.5,$N42-0.5-INT($N42)+1,0)))) +CE42/$N42*0.5, IF($J42="Declining Balance",-$CP$38,0)))),IFERROR(FS42,0)) -> 0 | CQ42: =IF($M42="straight line",IF($N42=0,0, IF($N42<=0.5,CF42, IF($J42="straight line", IF((LEFT(CQ$39,4)*1)-INT($N42)<LEFT($CP$39,4)*1,0,((OFFSET(CF42,0,-INT($N42+0.5),1,1))/$N42)*(IF($N42-INT($N42)>0.5,$N42-0.5-INT($N42),IF($N42-INT($N42)<=0.5,$N42-0.5-INT($N42)+1,0)))) +CF42/$N42*0.5, IF($J42="Declining Balance",-$CP$38,0)))),IFERROR(FT42,0)) -> 0 | CR42: =IF($M42="straight line",IF($N42=0,0, IF($N42<=0.5,CG42, IF($J42="straight line", IF((LEFT(CR$39,4)*1)-INT($N42)<LEFT($CP$39,4)*1,0,((OFFSET(CG42,0,-INT($N42+0.5),1,1))/$N42)*(IF($N42-INT($N42)>0.5,$N42-0.5-INT($N42),IF($N42-INT($N42)<=0.5,$N42-0.5-INT($N42)+1,0)))) +CG42/$N42*0.5, IF($J42="Declining Balance",-$CP$38,0)))),IFERROR(FU42,0)) -> 0 | CS42: =IF($M42="straight line",IF($N42=0,0, IF($N42<=0.5,CH42, IF($J42="straight line", IF((LEFT(CS$39,4)*1)-INT($N42)<LEFT($CP$39,4)*1,0,((OFFSET(CH42,0,-INT($N42+0.5),1,1))/$N42)*(IF($N42-INT($N42)>0.5,$N42-0.5-INT($N42),IF($N42-INT($N42)<=0.5,$N42-0.5-INT($N42)+1,0)))) +CH42/$N42*0.5, IF($J42="Declining Balance",-$CP$38,0)))),IFERROR(FV42,0)) -> 0.2611633981 | CT42: =IF($M42="straight line",IF($N42=0,0, IF($N42<=0.5,CI42, IF($J42="straight line", IF((LEFT(CT$39,4)*1)-INT($N42)<LEFT($CP$39,4)*1,0,((OFFSET(CI42,0,-INT($N42+0.5),1,1))/$N42)*(IF($N42-INT($N42)>0.5,$N42-0.5-INT($N42),IF($N42-INT($N42)<=0.5,$N42-0.5-INT($N42)+1,0)))) +CI42/$N42*0.5, IF($J42="Declining Balance",-$CP$38,0)))),IFERROR(FW42,0)) -> 0.5146455199 | CU42: =IF($M42="straight line",IF($N42=0,0, IF($N42<=0.5,CJ42, IF($J42="straight line", IF((LEFT(CU$39,4)*1)-INT($N42)<LEFT($CP$39,4)*1,0,((OFFSET(CJ42,0,-INT($N42+0.5),1,1))/$N42)*(IF($N42-INT($N42)>0.5,$N42-0.5-INT($N42),IF($N42-INT($N42)<=0.5,$N42-0.5-INT($N42)+1,0)))) +CJ42/$N42*0.5, IF($J42="Declining Balance",-$CP$38,0)))),IFERROR(FX42,0)) -> 0.4995088869 | CV42: =IF($M42="straight line",IF($N42=0,0, IF($N42<=0.5,CK42, IF($J42="straight line", IF((LEFT(CV$39,4)*1)-INT($N42)<LEFT($CP$39,4)*1,0,((OFFSET(CK42,0,-INT($N42+0.5),1,1))/$N42)*(IF($N42-INT($N42)>0.5,$N42-0.5-INT($N42),IF($N42-INT($N42)<=0.5,$N42-0.5-INT($N42)+1,0)))) +CK42/$N42*0.5, IF($J42="Declining Balance",-$CP$38,0)))),IFERROR(FY42,0)) -> 0.4848174491 | CW42: =IF($M42="straight line",IF($N42=0,0, IF($N42<=0.5,CL42, IF($J42="straight line", IF((LEFT(CW$39,4)*1)-INT($N42)<LEFT($CP$39,4)*1,0,((OFFSET(CL42,0,-INT($N42+0.5),1,1))/$N42)*(IF($N42-INT($N42)>0.5,$N42-0.5-INT($N42),IF($N42-INT($N42)<=0.5,$N42-0.5-INT($N42)+1,0)))) +CL42/$N42*0.5, IF($J42="Declining Balance",-$CP$38,0)))),IFERROR(FZ42,0)) -> 0.4705581123 | CX42: =IF($M42="straight line",IF($N42=0,0, IF($N42<=0.5,CM42, IF($J42="straight line", IF((LEFT(CX$39,4)*1)-INT($N42)<LEFT($CP$39,4)*1,0,((OFFSET(CM42,0,-INT($N42+0.5),1,1))/$N42)*(IF($N42-INT($N42)>0.5,$N42-0.5-INT($N42),IF($N42-INT($N42)<=0.5,$N42-0.5-INT($N42)+1,0)))) +CM42/$N42*0.5, IF($J42="Declining Balance",-$CP$38,0)))),IFERROR(GA42,0)) -> 0.4567181678 | CY42: =IF($M42="straight line",IF($N42=0,0, IF($N42<=0.5,CN42, IF($J42="straight line", IF((LEFT(CY$39,4)*1)-INT($N42)<LEFT($CP$39,4)*1,0,((OFFSET(CN42,0,-INT($N42+0.5),1,1))/$N42)*(IF($N42-INT($N42)>0.5,$N42-0.5-INT($N42),IF($N42-INT($N42)<=0.5,$N42-0.5-INT($N42)+1,0)))) +CN42/$N42*0.5, IF($J42="Declining Balance",-$CP$38,0)))),IFERROR(GB42,0)) -> 0.4432852806 | DC42: 1.5 | DD42: No | DE42: =+IF($K42="ongoing",CE42,IF(RIGHT($K42,2)=RIGHT(DE$39,2),SUM($CD42:CE42),0)+IF(RIGHT(DE$39,2)>RIGHT($K42,2),CE42,0)) -> 0 | DF42: =+IF($K42="ongoing",CF42,IF(RIGHT($K42,2)=RIGHT(DF$39,2),SUM($CD42:CF42),0)+IF(RIGHT(DF$39,2)>RIGHT($K42,2),CF42,0)) -> 0 | DG42: =+IF($K42="ongoing",CG42,IF(RIGHT($K42,2)=RIGHT(DG$39,2),SUM($CD42:CG42),0)+IF(RIGHT(DG$39,2)>RIGHT($K42,2),CG42,0)) -> 0 | DH42: =+IF($K42="ongoing",CH42,IF(RIGHT($K42,2)=RIGHT(DH$39,2),SUM($CD42:CH42),0)+IF(RIGHT(DH$39,2)>RIGHT($K42,2),CH42,0)) -> 17.75911107 | DI42: =+IF($K42="ongoing",CI42,IF(RIGHT($K42,2)=RIGHT(DI$39,2),SUM($CD42:CI42),0)+IF(RIGHT(DI$39,2)>RIGHT($K42,2),CI42,0)) -> 0 | DJ42: =+IF($K42="ongoing",CJ42,IF(RIGHT($K42,2)=RIGHT(DJ$39,2),SUM($CD42:CJ42),0)+IF(RIGHT(DJ$39,2)>RIGHT($K42,2),CJ42,0)) -> 0 | DK42: =+IF($K42="ongoing",CK42,IF(RIGHT($K42,2)=RIGHT(DK$39,2),SUM($CD42:CK42),0)+IF(RIGHT(DK$39,2)>RIGHT($K42,2),CK42,0)) -> 0 | DL42: =+IF($K42="ongoing",CL42,IF(RIGHT($K42,2)=RIGHT(DL$39,2),SUM($CD42:CL42),0)+IF(RIGHT(DL$39,2)>RIGHT($K42,2),CL42,0)) -> 0 | DM42: =+IF($K42="ongoing",CM42,IF(RIGHT($K42,2)=RIGHT(DM$39,2),SUM($CD42:CM42),0)+IF(RIGHT(DM$39,2)>RIGHT($K42,2),CM42,0)) -> 0 | DN42: =+IF($K42="ongoing",CN42,IF(RIGHT($K42,2)=RIGHT(DN$39,2),SUM($CD42:CN42),0)+IF(RIGHT(DN$39,2)>RIGHT($K42,2),CN42,0)) -> 0 | DP42: =+MIN(IF($N42<=$DC42,MIN($N42,1),$N42),IF(DP$40=1,0.5,DO42+1)) -> 0.5 | DQ42: =+MIN(IF($N42<=$DC42,MIN($N42,1),$N42),IF(DQ$40=1,0.5,DP42+1)) -> 1.5 | DR42: 2.5 | DS42: 3.5 | DT42: 4.5 | DU42: 5.5 | DV42: 6.5 | DW42: 7.5 | DX42: 8.5 | DY42: 9.5 | EA42: =+IF(EA$40=1,0,MIN(IF($N42<=$DC42,MIN($N42,1),$N42),IF(EA$40=2,0.5,DZ42+1))) -> 0 | EB42: =+IF(EB$40=1,0,MIN(IF($N42<=$DC42,MIN($N42,1),$N42),IF(EB$40=2,0.5,EA42+1))) -> 0.5 | EC42: 1.5 | ED42: 2.5 | EE42: 3.5 | EF42: 4.5 | EG42: 5.5 | EH42: 6.5 | EI42: 7.5 | EJ42: 8.5 | EL42: =+IF(DP42=DO42,0, IF(AND(EL$40>1,DP42=$N42),1-SUM($EK42:EK42), IF($N42<=1, IF($N42>0,1/$N42,0), IF(EL$40=1,0,VDB(1,0,$N42,INT(EL$40-1-1),MIN($N42,INT(EL$40-1-1)+1),$DC42,IF($DD42="No",1,0))/ IF(DO42>=INT($N42),$N42-INT($N42),1)))* IF(EL$40=1,0, IF(INT(DP42)=INT(DO42),DP42-DO42,INT(DP42)-DO42))+ IF($N42<=1, IF($N42>0,1/$N42,0),VDB(1,0,$N42,INT(EL$40-1),MIN($N42,INT(EL$40-1)+1),$DC42,IF($DD42="No",1,0))/ IF(DP42>INT($N42),$N42-INT($N42),1))* IF(EL$40=1,DP42, IF(INT(DP42)=INT(DO42),0,DP42-INT(DP42))))) -> 0.01470588235 | EM42: =+IF(DQ42=DP42,0, IF(AND(EM$40>1,DQ42=$N42),1-SUM($EK42:EL42), IF($N42<=1, IF($N42>0,1/$N42,0), IF(EM$40=1,0,VDB(1,0,$N42,INT(EM$40-1-1),MIN($N42,INT(EM$40-1-1)+1),$DC42,IF($DD42="No",1,0))/ IF(DP42>=INT($N42),$N42-INT($N42),1)))* IF(EM$40=1,0, IF(INT(DQ42)=INT(DP42),DQ42-DP42,INT(DQ42)-DP42))+ IF($N42<=1, IF($N42>0,1/$N42,0),VDB(1,0,$N42,INT(EM$40-1),MIN($N42,INT(EM$40-1)+1),$DC42,IF($DD42="No",1,0))/ IF(DQ42>INT($N42),$N42-INT($N42),1))* IF(EM$40=1,DQ42, IF(INT(DQ42)=INT(DP42),0,DQ42-INT(DQ42))))) -> 0.02897923875 | EN42: =+IF(DR42=DQ42,0, IF(AND(EN$40>1,DR42=$N42),1-SUM($EK42:EM42), IF($N42<=1, IF($N42>0,1/$N42,0), IF(EN$40=1,0,VDB(1,0,$N42,INT(EN$40-1-1),MIN($N42,INT(EN$40-1-1)+1),$DC42,IF($DD42="No",1,0))/ IF(DQ42>=INT($N42),$N42-INT($N42),1)))* IF(EN$40=1,0, IF(INT(DR42)=INT(DQ42),DR42-DQ42,INT(DR42)-DQ42))+ IF($N42<=1, IF($N42>0,1/$N42,0),VDB(1,0,$N42,INT(EN$40-1),MIN($N42,INT(EN$40-1)+1),$DC42,IF($DD42="No",1,0))/ IF(DR42>INT($N42),$N42-INT($N42),1))* IF(EN$40=1,DR42, IF(INT(DR42)=INT(DQ42),0,DR42-INT(DR42))))) -> 0.0281269082 | EO42: =+IF(DS42=DR42,0, IF(AND(EO$40>1,DS42=$N42),1-SUM($EK42:EN42), IF($N42<=1, IF($N42>0,1/$N42,0), IF(EO$40=1,0,VDB(1,0,$N42,INT(EO$40-1-1),MIN($N42,INT(EO$40-1-1)+1),$DC42,IF($DD42="No",1,0))/ IF(DR42>=INT($N42),$N42-INT($N42),1)))* IF(EO$40=1,0, IF(INT(DS42)=INT(DR42),DS42-DR42,INT(DS42)-DR42))+ IF($N42<=1, IF($N42>0,1/$N42,0),VDB(1,0,$N42,INT(EO$40-1),MIN($N42,INT(EO$40-1)+1),$DC42,IF($DD42="No",1,0))/ IF(DS42>INT($N42),$N42-INT($N42),1))* IF(EO$40=1,DS42, IF(INT(DS42)=INT(DR42),0,DS42-INT(DS42))))) -> 0.0272996462 | EP42: =+IF(DT42=DS42,0, IF(AND(EP$40>1,DT42=$N42),1-SUM($EK42:EO42), IF($N42<=1, IF($N42>0,1/$N42,0), IF(EP$40=1,0,VDB(1,0,$N42,INT(EP$40-1-1),MIN($N42,INT(EP$40-1-1)+1),$DC42,IF($DD42="No",1,0))/ IF(DS42>=INT($N42),$N42-INT($N42),1)))* IF(EP$40=1,0, IF(INT(DT42)=INT(DS42),DT42-DS42,INT(DT42)-DS42))+ IF($N42<=1, IF($N42>0,1/$N42,0),VDB(1,0,$N42,INT(EP$40-1),MIN($N42,INT(EP$40-1)+1),$DC42,IF($DD42="No",1,0))/ IF(DT42>INT($N42),$N42-INT($N42),1))* IF(EP$40=1,DT42, IF(INT(DT42)=INT(DS42),0,DT42-INT(DT42))))) -> 0.02649671543 | EQ42: =+IF(DU42=DT42,0, IF(AND(EQ$40>1,DU42=$N42),1-SUM($EK42:EP42), IF($N42<=1, IF($N42>0,1/$N42,0), IF(EQ$40=1,0,VDB(1,0,$N42,INT(EQ$40-1-1),MIN($N42,INT(EQ$40-1-1)+1),$DC42,IF($DD42="No",1,0))/ IF(DT42>=INT($N42),$N42-INT($N42),1)))* IF(EQ$40=1,0, IF(INT(DU42)=INT(DT42),DU42-DT42,INT(DU42)-DT42))+ IF($N42<=1, IF($N42>0,1/$N42,0),VDB(1,0,$N42,INT(EQ$40-1),MIN($N42,INT(EQ$40-1)+1),$DC42,IF($DD42="No",1,0))/ IF(DU42>INT($N42),$N42-INT($N42),1))* IF(EQ$40=1,DU42, IF(INT(DU42)=INT(DT42),0,DU42-INT(DU42))))) -> 0.02571740027 | ER42: =+IF(DV42=DU42,0, IF(AND(ER$40>1,DV42=$N42),1-SUM($EK42:EQ42), IF($N42<=1, IF($N42>0,1/$N42,0), IF(ER$40=1,0,VDB(1,0,$N42,INT(ER$40-1-1),MIN($N42,INT(ER$40-1-1)+1),$DC42,IF($DD42="No",1,0))/ IF(DU42>=INT($N42),$N42-INT($N42),1)))* IF(ER$40=1,0, IF(INT(DV42)=INT(DU42),DV42-DU42,INT(DV42)-DU42))+ IF($N42<=1, IF($N42>0,1/$N42,0),VDB(1,0,$N42,INT(ER$40-1),MIN($N42,INT(ER$40-1)+1),$DC42,IF($DD42="No",1,0))/ IF(DV42>INT($N42),$N42-INT($N42),1))* IF(ER$40=1,DV42, IF(INT(DV42)=INT(DU42),0,DV42-INT(DV42))))) -> 0.02496100614 | ES42: =+IF(DW42=DV42,0, IF(AND(ES$40>1,DW42=$N42),1-SUM($EK42:ER42), IF($N42<=1, IF($N42>0,1/$N42,0), IF(ES$40=1,0,VDB(1,0,$N42,INT(ES$40-1-1),MIN($N42,INT(ES$40-1-1)+1),$DC42,IF($DD42="No",1,0))/ IF(DV42>=INT($N42),$N42-INT($N42),1)))* IF(ES$40=1,0, IF(INT(DW42)=INT(DV42),DW42-DV42,INT(DW42)-DV42))+ IF($N42<=1, IF($N42>0,1/$N42,0),VDB(1,0,$N42,INT(ES$40-1),MIN($N42,INT(ES$40-1)+1),$DC42,IF($DD42="No",1,0))/ IF(DW42>INT($N42),$N42-INT($N42),1))* IF(ES$40=1,DW42, IF(INT(DW42)=INT(DV42),0,DW42-INT(DW42))))) -> 0.0242268589 | ET42: =+IF(DX42=DW42,0, IF(AND(ET$40>1,DX42=$N42),1-SUM($EK42:ES42), IF($N42<=1, IF($N42>0,1/$N42,0), IF(ET$40=1,0,VDB(1,0,$N42,INT(ET$40-1-1),MIN($N42,INT(ET$40-1-1)+1),$DC42,IF($DD42="No",1,0))/ IF(DW42>=INT($N42),$N42-INT($N42),1)))* IF(ET$40=1,0, IF(INT(DX42)=INT(DW42),DX42-DW42,INT(DX42)-DW42))+ IF($N42<=1, IF($N42>0,1/$N42,0),VDB(1,0,$N42,INT(ET$40-1),MIN($N42,INT(ET$40-1)+1),$DC42,IF($DD42="No",1,0))/ IF(DX42>INT($N42),$N42-INT($N42),1))* IF(ET$40=1,DX42, IF(INT(DX42)=INT(DW42),0,DX42-INT(DX42))))) -> 0.02351430423 | EU42: =+IF(DY42=DX42,0, IF(AND(EU$40>1,DY42=$N42),1-SUM($EK42:ET42), IF($N42<=1, IF($N42>0,1/$N42,0), IF(EU$40=1,0,VDB(1,0,$N42,INT(EU$40-1-1),MIN($N42,INT(EU$40-1-1)+1),$DC42,IF($DD42="No",1,0))/ IF(DX42>=INT($N42),$N42-INT($N42),1)))* IF(EU$40=1,0, IF(INT(DY42)=INT(DX42),DY42-DX42,INT(DY42)-DX42))+ IF($N42<=1, IF($N42>0,1/$N42,0),VDB(1,0,$N42,INT(EU$40-1),MIN($N42,INT(EU$40-1)+1),$DC42,IF($DD42="No",1,0))/ IF(DY42>INT($N42),$N42-INT($N42),1))* IF(EU$40=1,DY42, IF(INT(DY42)=INT(DX42),0,DY42-INT(DY42))))) -> 0.02282270704 | EW42: =+IF(OR(EA42=DZ42,EW$40=1),0, IF(AND(EW$40>1,EA42=$N42),1-SUM($EV42:EV42), IF($N42<=1, IF($N42>0,1/$N42,0), IF(EW$40=2,0,VDB(1,0,$N42,INT(EW$40-2-1),MIN($N42,INT(EW$40-2-1)+1),$DC42,IF($DD42="No",1,0))/ IF(DZ42>=INT($N42),$N42-INT($N42),1)))* IF(EW$40=2,0, IF(INT(EA42)=INT(DZ42),EA42-DZ42,INT(EA42)-DZ42))+ IF($N42<=1, IF($N42>0,1/$N42,0),VDB(1,0,$N42,INT(EW$40-2),MIN($N42,INT(EW$40-2)+1),$DC42,IF($DD42="No",1,0))/ IF(EA42>INT($N42),$N42-INT($N42),1))* IF(EW$40=2,EA42, IF(INT(EA42)=INT(DZ42),0,EA42-INT(EA42))))) -> 0 | EX42: =+IF(OR(EB42=EA42,EX$40=1),0, IF(AND(EX$40>1,EB42=$N42),1-SUM($EV42:EW42), IF($N42<=1, IF($N42>0,1/$N42,0), IF(EX$40=2,0,VDB(1,0,$N42,INT(EX$40-2-1),MIN($N42,INT(EX$40-2-1)+1),$DC42,IF($DD42="No",1,0))/ IF(EA42>=INT($N42),$N42-INT($N42),1)))* IF(EX$40=2,0, IF(INT(EB42)=INT(EA42),EB42-EA42,INT(EB42)-EA42))+ IF($N42<=1, IF($N42>0,1/$N42,0),VDB(1,0,$N42,INT(EX$40-2),MIN($N42,INT(EX$40-2)+1),$DC42,IF($DD42="No",1,0))/ IF(EB42>INT($N42),$N42-INT($N42),1))* IF(EX$40=2,EB42, IF(INT(EB42)=INT(EA42),0,EB42-INT(EB42))))) -> 0.01470588235 | EY42: =+IF(OR(EC42=EB42,EY$40=1),0, IF(AND(EY$40>1,EC42=$N42),1-SUM($EV42:EX42), IF($N42<=1, IF($N42>0,1/$N42,0), IF(EY$40=2,0,VDB(1,0,$N42,INT(EY$40-2-1),MIN($N42,INT(EY$40-2-1)+1),$DC42,IF($DD42="No",1,0))/ IF(EB42>=INT($N42),$N42-INT($N42),1)))* IF(EY$40=2,0, IF(INT(EC42)=INT(EB42),EC42-EB42,INT(EC42)-EB42))+ IF($N42<=1, IF($N42>0,1/$N42,0),VDB(1,0,$N42,INT(EY$40-2),MIN($N42,INT(EY$40-2)+1),$DC42,IF($DD42="No",1,0))/ IF(EC42>INT($N42),$N42-INT($N42),1))* IF(EY$40=2,EC42, IF(INT(EC42)=INT(EB42),0,EC42-INT(EC42))))) -> 0.02897923875 | EZ42: =+IF(OR(ED42=EC42,EZ$40=1),0, IF(AND(EZ$40>1,ED42=$N42),1-SUM($EV42:EY42), IF($N42<=1, IF($N42>0,1/$N42,0), IF(EZ$40=2,0,VDB(1,0,$N42,INT(EZ$40-2-1),MIN($N42,INT(EZ$40-2-1)+1),$DC42,IF($DD42="No",1,0))/ IF(EC42>=INT($N42),$N42-INT($N42),1)))* IF(EZ$40=2,0, IF(INT(ED42)=INT(EC42),ED42-EC42,INT(ED42)-EC42))+ IF($N42<=1, IF($N42>0,1/$N42,0),VDB(1,0,$N42,INT(EZ$40-2),MIN($N42,INT(EZ$40-2)+1),$DC42,IF($DD42="No",1,0))/ IF(ED42>INT($N42),$N42-INT($N42),1))* IF(EZ$40=2,ED42, IF(INT(ED42)=INT(EC42),0,ED42-INT(ED42))))) -> 0.0281269082 | FA42: =+IF(OR(EE42=ED42,FA$40=1),0, IF(AND(FA$40>1,EE42=$N42),1-SUM($EV42:EZ42), IF($N42<=1, IF($N42>0,1/$N42,0), IF(FA$40=2,0,VDB(1,0,$N42,INT(FA$40-2-1),MIN($N42,INT(FA$40-2-1)+1),$DC42,IF($DD42="No",1,0))/ IF(ED42>=INT($N42),$N42-INT($N42),1)))* IF(FA$40=2,0, IF(INT(EE42)=INT(ED42),EE42-ED42,INT(EE42)-ED42))+ IF($N42<=1, IF($N42>0,1/$N42,0),VDB(1,0,$N42,INT(FA$40-2),MIN($N42,INT(FA$40-2)+1),$DC42,IF($DD42="No",1,0))/ IF(EE42>INT($N42),$N42-INT($N42),1))* IF(FA$40=2,EE42, IF(INT(EE42)=INT(ED42),0,EE42-INT(EE42))))) -> 0.0272996462 | FB42: =+IF(OR(EF42=EE42,FB$40=1),0, IF(AND(FB$40>1,EF42=$N42),1-SUM($EV42:FA42), IF($N42<=1, IF($N42>0,1/$N42,0), IF(FB$40=2,0,VDB(1,0,$N42,INT(FB$40-2-1),MIN($N42,INT(FB$40-2-1)+1),$DC42,IF($DD42="No",1,0))/ IF(EE42>=INT($N42),$N42-INT($N42),1)))* IF(FB$40=2,0, IF(INT(EF42)=INT(EE42),EF42-EE42,INT(EF42)-EE42))+ IF($N42<=1, IF($N42>0,1/$N42,0),VDB(1,0,$N42,INT(FB$40-2),MIN($N42,INT(FB$40-2)+1),$DC42,IF($DD42="No",1,0))/ IF(EF42>INT($N42),$N42-INT($N42),1))* IF(FB$40=2,EF42, IF(INT(EF42)=INT(EE42),0,EF42-INT(EF42))))) -> 0.02649671543 | FC42: =+IF(OR(EG42=EF42,FC$40=1),0, IF(AND(FC$40>1,EG42=$N42),1-SUM($EV42:FB42), IF($N42<=1, IF($N42>0,1/$N42,0), IF(FC$40=2,0,VDB(1,0,$N42,INT(FC$40-2-1),MIN($N42,INT(FC$40-2-1)+1),$DC42,IF($DD42="No",1,0))/ IF(EF42>=INT($N42),$N42-INT($N42),1)))* IF(FC$40=2,0, IF(INT(EG42)=INT(EF42),EG42-EF42,INT(EG42)-EF42))+ IF($N42<=1, IF($N42>0,1/$N42,0),VDB(1,0,$N42,INT(FC$40-2),MIN($N42,INT(FC$40-2)+1),$DC42,IF($DD42="No",1,0))/ IF(EG42>INT($N42),$N42-INT($N42),1))* IF(FC$40=2,EG42, IF(INT(EG42)=INT(EF42),0,EG42-INT(EG42))))) -> 0.02571740027 | FD42: =+IF(OR(EH42=EG42,FD$40=1),0, IF(AND(FD$40>1,EH42=$N42),1-SUM($EV42:FC42), IF($N42<=1, IF($N42>0,1/$N42,0), IF(FD$40=2,0,VDB(1,0,$N42,INT(FD$40-2-1),MIN($N42,INT(FD$40-2-1)+1),$DC42,IF($DD42="No",1,0))/ IF(EG42>=INT($N42),$N42-INT($N42),1)))* IF(FD$40=2,0, IF(INT(EH42)=INT(EG42),EH42-EG42,INT(EH42)-EG42))+ IF($N42<=1, IF($N42>0,1/$N42,0),VDB(1,0,$N42,INT(FD$40-2),MIN($N42,INT(FD$40-2)+1),$DC42,IF($DD42="No",1,0))/ IF(EH42>INT($N42),$N42-INT($N42),1))* IF(FD$40=2,EH42, IF(INT(EH42)=INT(EG42),0,EH42-INT(EH42))))) -> 0.02496100614 | FE42: =+IF(OR(EI42=EH42,FE$40=1),0, IF(AND(FE$40>1,EI42=$N42),1-SUM($EV42:FD42), IF($N42<=1, IF($N42>0,1/$N42,0), IF(FE$40=2,0,VDB(1,0,$N42,INT(FE$40-2-1),MIN($N42,INT(FE$40-2-1)+1),$DC42,IF($DD42="No",1,0))/ IF(EH42>=INT($N42),$N42-INT($N42),1)))* IF(FE$40=2,0, IF(INT(EI42)=INT(EH42),EI42-EH42,INT(EI42)-EH42))+ IF($N42<=1, IF($N42>0,1/$N42,0),VDB(1,0,$N42,INT(FE$40-2),MIN($N42,INT(FE$40-2)+1),$DC42,IF($DD42="No",1,0))/ IF(EI42>INT($N42),$N42-INT($N42),1))* IF(FE$40=2,EI42, IF(INT(EI42)=INT(EH42),0,EI42-INT(EI42))))) -> 0.0242268589 | FF42: =+IF(OR(EJ42=EI42,FF$40=1),0, IF(AND(FF$40>1,EJ42=$N42),1-SUM($EV42:FE42), IF($N42<=1, IF($N42>0,1/$N42,0), IF(FF$40=2,0,VDB(1,0,$N42,INT(FF$40-2-1),MIN($N42,INT(FF$40-2-1)+1),$DC42,IF($DD42="No",1,0))/ IF(EI42>=INT($N42),$N42-INT($N42),1)))* IF(FF$40=2,0, IF(INT(EJ42)=INT(EI42),EJ42-EI42,INT(EJ42)-EI42))+ IF($N42<=1, IF($N42>0,1/$N42,0),VDB(1,0,$N42,INT(FF$40-2),MIN($N42,INT(FF$40-2)+1),$DC42,IF($DD42="No",1,0))/ IF(EJ42>INT($N42),$N42-INT($N42),1))* IF(FF$40=2,EJ42, IF(INT(EJ42)=INT(EI42),0,EJ42-INT(EJ42))))) -> 0.02351430423 | FH42: =+OFFSET($EW42,0,MAX($FH$40:$IM$40)-FH$40) -> 0.02351430423 | FI42: =+OFFSET($EW42,0,MAX($FH$40:$IM$40)-FI$40) -> 0.0242268589 | FJ42: 0.02496100614 | FK42: 0.02571740027 | FL42: 0.02649671543 | FM42: 0.0272996462 | FN42: 0.0281269082 | FO42: 0.02897923875 | FP42: 0.01470588235 | FQ42: 0 | FS42: =-(-$DE42*(-ISBLANK($DE42)+1)*EL42- IF(FS$40>1,SUMPRODUCT(OFFSET($DF42,0,0,1,FS$40-1)*(-ISBLANK(OFFSET($DF42,0,0,1,FS$40-1))+1),OFFSET($FH42,0,MAX($FS$40:$IM$40)-FS$40,1,FS$40-1)),0)) -> 0 | FT42: =-(-$DE42*(-ISBLANK($DE42)+1)*EM42- IF(FT$40>1,SUMPRODUCT(OFFSET($DF42,0,0,1,FT$40-1)*(-ISBLANK(OFFSET($DF42,0,0,1,FT$40-1))+1),OFFSET($FH42,0,MAX($FS$40:$IM$40)-FT$40,1,FT$40-1)),0)) -> 0 | FU42: =-(-$DE42*(-ISBLANK($DE42)+1)*EN42- IF(FU$40>1,SUMPRODUCT(OFFSET($DF42,0,0,1,FU$40-1)*(-ISBLANK(OFFSET($DF42,0,0,1,FU$40-1))+1),OFFSET($FH42,0,MAX($FS$40:$IM$40)-FU$40,1,FU$40-1)),0)) -> 0 | FV42: =-(-$DE42*(-ISBLANK($DE42)+1)*EO42- IF(FV$40>1,SUMPRODUCT(OFFSET($DF42,0,0,1,FV$40-1)*(-ISBLANK(OFFSET($DF42,0,0,1,FV$40-1))+1),OFFSET($FH42,0,MAX($FS$40:$IM$40)-FV$40,1,FV$40-1)),0)) -> 0.2611633981 | FW42: =-(-$DE42*(-ISBLANK($DE42)+1)*EP42- IF(FW$40>1,SUMPRODUCT(OFFSET($DF42,0,0,1,FW$40-1)*(-ISBLANK(OFFSET($DF42,0,0,1,FW$40-1))+1),OFFSET($FH42,0,MAX($FS$40:$IM$40)-FW$40,1,FW$40-1)),0)) -> 0.5146455199 | FX42: =-(-$DE42*(-ISBLANK($DE42)+1)*EQ42- IF(FX$40>1,SUMPRODUCT(OFFSET($DF42,0,0,1,FX$40-1)*(-ISBLANK(OFFSET($DF42,0,0,1,FX$40-1))+1),OFFSET($FH42,0,MAX($FS$40:$IM$40)-FX$40,1,FX$40-1)),0)) -> 0.4995088869 | FY42: =-(-$DE42*(-ISBLANK($DE42)+1)*ER42- IF(FY$40>1,SUMPRODUCT(OFFSET($DF42,0,0,1,FY$40-1)*(-ISBLANK(OFFSET($DF42,0,0,1,FY$40-1))+1),OFFSET($FH42,0,MAX($FS$40:$IM$40)-FY$40,1,FY$40-1)),0)) -> 0.4848174491 | FZ42: =-(-$DE42*(-ISBLANK($DE42)+1)*ES42- IF(FZ$40>1,SUMPRODUCT(OFFSET($DF42,0,0,1,FZ$40-1)*(-ISBLANK(OFFSET($DF42,0,0,1,FZ$40-1))+1),OFFSET($FH42,0,MAX($FS$40:$IM$40)-FZ$40,1,FZ$40-1)),0)) -> 0.4705581123 | GA42: =-(-$DE42*(-ISBLANK($DE42)+1)*ET42- IF(GA$40>1,SUMPRODUCT(OFFSET($DF42,0,0,1,GA$40-1)*(-ISBLANK(OFFSET($DF42,0,0,1,GA$40-1))+1),OFFSET($FH42,0,MAX($FS$40:$IM$40)-GA$40,1,GA$40-1)),0)) -> 0.4567181678 | GB42: =-(-$DE42*(-ISBLANK($DE42)+1)*EU42- IF(GB$40>1,SUMPRODUCT(OFFSET($DF42,0,0,1,GB$40-1)*(-ISBLANK(OFFSET($DF42,0,0,1,GB$40-1))+1),OFFSET($FH42,0,MAX($FS$40:$IM$40)-GB$40,1,GB$40-1)),0)) -> 0.4432852806
C43: Grant St SPS | E43: Sewerage | F43: Growth | G43: Pipelines/network | H43: Top 10 Major Projects | J43: Straight line | K43: 2022 | L43: 51 | M43: Declining Balance | N43: 51 | Q43: 1 | R43: 4.865 | S43: 5.32104338 | T43: 0 | U43: 0 | AB43: 0 | AC43: 0 | AD43: 0 | AE43: 0 | AF43: 0 | AM43: 0 | AN43: 0 | AO43: 0 | AP43: 0 | AQ43: 0 | AX43: 1 | AY43: 4.865 | AZ43: 5.32104338 | BA43: 0 | BB43: 0 | BC43: 0 | BD43: 0 | BE43: 0 | BF43: 0 | BG43: 0 | BI43: =IF($L43=0,0, IF($L43<=0.5,BT43, IF($J43="straight line", IF((LEFT(BI$39,4)*1)-INT($L43)<LEFT($BI$39,4)*1,0,((OFFSET(BT43,0,-INT($L43+0.5),1,1))/$L43)*(IF($L43-INT($L43)>0.5,$L43-0.5-INT($L43),IF($L43-INT($L43)<=0.5,$L43-0.5-INT($L43)+1,0)))) +BT43/$L43*0.5, IF($J43="Declining Balance",-$BI$38,0)))) -> 0 | BJ43: 0 | BK43: =IF($L43=0,0, IF($L43<=0.5,BV43, IF(AND($J43="straight line",$L43<1.51),(BU43-((BU43/$L43)*0.5))+BV43/$L43*0.5, IF($J43="straight line", IF((LEFT(BK$39,4)*1)-INT($L43)<LEFT($BI$39,4)*1,0,((OFFSET(BV43,0,-INT($L43+0.5),1,1))/$L43)*(IF($L43-INT($L43)>0.5,$L43-0.5-INT($L43),IF($L43-INT($L43)<=0.5,$L43-0.5-INT($L43)+1,0)))) +BV43/$L43*0.5 +SUM(OFFSET(BV43,0,MAX(-INT($L43+(0.5-(10^-12))),-BK$40)+1,1,MIN(INT($L43+(0.5-(10^-12))),BK$40)-1))*1/$L43, IF($J43="Declining Balance",-$BI$38,0))))) -> 0 | BL43: 0.109667092 | BM43: 0.2193341839 | BN43: 0.2193341839 | BO43: 0.2193341839 | BP43: 0.2193341839 | BQ43: 0.2193341839 | BR43: 0.2193341839 | BT43: =+IF($K43="Ongoing",AX43,IF(RIGHT($K43,2)=RIGHT(BT$39,2),SUM($AX43:AX43),0)+IF(RIGHT(BT$39,2)>RIGHT($K43,2),AX43,0)) -> 0 | BU43: =+IF($K43="Ongoing",AY43,IF(RIGHT($K43,2)=RIGHT(BU$39,2),SUM($AX43:AY43),0)+IF(RIGHT(BU$39,2)>RIGHT($K43,2),AY43,0)) -> 0 | BV43: =+IF($K43="Ongoing",AZ43,IF(RIGHT($K43,2)=RIGHT(BV$39,2),SUM($AX43:AZ43),0)+IF(RIGHT(BV$39,2)>RIGHT($K43,2),AZ43,0)) -> 0 | BW43: =+IF($K43="Ongoing",BA43,IF(RIGHT($K43,2)=RIGHT(BW$39,2),SUM($AX43:BA43),0)+IF(RIGHT(BW$39,2)>RIGHT($K43,2),BA43,0)) -> 11.18604338 | BX43: =+IF($K43="Ongoing",BB43,IF(RIGHT($K43,2)=RIGHT(BX$39,2),SUM($AX43:BB43),0)+IF(RIGHT(BX$39,2)>RIGHT($K43,2),BB43,0)) -> 0 | BY43: =+IF($K43="Ongoing",BC43,IF(RIGHT($K43,2)=RIGHT(BY$39,2),SUM($AX43:BC43),0)+IF(RIGHT(BY$39,2)>RIGHT($K43,2),BC43,0)) -> 0 | BZ43: =+IF($K43="Ongoing",BD43,IF(RIGHT($K43,2)=RIGHT(BZ$39,2),SUM($AX43:BD43),0)+IF(RIGHT(BZ$39,2)>RIGHT($K43,2),BD43,0)) -> 0 | CA43: =+IF($K43="Ongoing",BE43,IF(RIGHT($K43,2)=RIGHT(CA$39,2),SUM($AX43:BE43),0)+IF(RIGHT(CA$39,2)>RIGHT($K43,2),BE43,0)) -> 0 | CB43: =+IF($K43="Ongoing",BF43,IF(RIGHT($K43,2)=RIGHT(CB$39,2),SUM($AX43:BF43),0)+IF(RIGHT(CB$39,2)>RIGHT($K43,2),BF43,0)) -> 0 | CC43: =+IF($K43="Ongoing",BG43,IF(RIGHT($K43,2)=RIGHT(CC$39,2),SUM($AX43:BG43),0)+IF(RIGHT(CC$39,2)>RIGHT($K43,2),BG43,0)) -> 0 | CE43: =+Q43*KeyAssumptionsPriceControl_FO!X$15 -> 1.023 | CF43: =+R43*KeyAssumptionsPriceControl_FO!Y$15 -> 5.091363585 | CG43: =+S43*KeyAssumptionsPriceControl_FO!Z$15 -> 5.69670461 | CH43: =+T43*KeyAssumptionsPriceControl_FO!AA$15 -> 0 | CI43: =+U43*KeyAssumptionsPriceControl_FO!AB$15 -> 0 | CJ43: =+V43*KeyAssumptionsPriceControl_FO!AC$15 -> 0 | CK43: =+W43*KeyAssumptionsPriceControl_FO!AD$15 -> 0 | CL43: =+X43*KeyAssumptionsPriceControl_FO!AE$15 -> 0 | CM43: =+Y43*KeyAssumptionsPriceControl_FO!AF$15 -> 0 | CN43: =+Z43*KeyAssumptionsPriceControl_FO!AG$15 -> 0 | CP43: =IF($M43="straight line",IF($N43=0,0, IF($N43<=0.5,CE43, IF($J43="straight line", IF((LEFT(CP$39,4)*1)-INT($N43)<LEFT($CP$39,4)*1,0,((OFFSET(CE43,0,-INT($N43+0.5),1,1))/$N43)*(IF($N43-INT($N43)>0.5,$N43-0.5-INT($N43),IF($N43-INT($N43)<=0.5,$N43-0.5-INT($N43)+1,0)))) +CE43/$N43*0.5, IF($J43="Declining Balance",-$CP$38,0)))),IFERROR(FS43,0)) -> 0 | CQ43: 0 | CR43: 0 | CS43: 0.1736921793 | CT43: 0.3422757652 | CU43: 0.3322088309 | CV43: 0.3224379829 | CW43: 0.3129545128 | CX43: 0.3037499684 | CY43: 0.2948161458 | DC43: 1.5 | DD43: No | DE43: =+IF($K43="ongoing",CE43,IF(RIGHT($K43,2)=RIGHT(DE$39,2),SUM($CD43:CE43),0)+IF(RIGHT(DE$39,2)>RIGHT($K43,2),CE43,0)) -> 0 | DF43: =+IF($K43="ongoing",CF43,IF(RIGHT($K43,2)=RIGHT(DF$39,2),SUM($CD43:CF43),0)+IF(RIGHT(DF$39,2)>RIGHT($K43,2),CF43,0)) -> 0 | DG43: =+IF($K43="ongoing",CG43,IF(RIGHT($K43,2)=RIGHT(DG$39,2),SUM($CD43:CG43),0)+IF(RIGHT(DG$39,2)>RIGHT($K43,2),CG43,0)) -> 0 | DH43: =+IF($K43="ongoing",CH43,IF(RIGHT($K43,2)=RIGHT(DH$39,2),SUM($CD43:CH43),0)+IF(RIGHT(DH$39,2)>RIGHT($K43,2),CH43,0)) -> 11.8110682 | DI43: =+IF($K43="ongoing",CI43,IF(RIGHT($K43,2)=RIGHT(DI$39,2),SUM($CD43:CI43),0)+IF(RIGHT(DI$39,2)>RIGHT($K43,2),CI43,0)) -> 0 | DJ43: =+IF($K43="ongoing",CJ43,IF(RIGHT($K43,2)=RIGHT(DJ$39,2),SUM($CD43:CJ43),0)+IF(RIGHT(DJ$39,2)>RIGHT($K43,2),CJ43,0)) -> 0 | DK43: =+IF($K43="ongoing",CK43,IF(RIGHT($K43,2)=RIGHT(DK$39,2),SUM($CD43:CK43),0)+IF(RIGHT(DK$39,2)>RIGHT($K43,2),CK43,0)) -> 0 | DL43: =+IF($K43="ongoing",CL43,IF(RIGHT($K43,2)=RIGHT(DL$39,2),SUM($CD43:CL43),0)+IF(RIGHT(DL$39,2)>RIGHT($K43,2),CL43,0)) -> 0 | DM43: =+IF($K43="ongoing",CM43,IF(RIGHT($K43,2)=RIGHT(DM$39,2),SUM($CD43:CM43),0)+IF(RIGHT(DM$39,2)>RIGHT($K43,2),CM43,0)) -> 0 | DN43: =+IF($K43="ongoing",CN43,IF(RIGHT($K43,2)=RIGHT(DN$39,2),SUM($CD43:CN43),0)+IF(RIGHT(DN$39,2)>RIGHT($K43,2),CN43,0)) -> 0 | DP43: =+MIN(IF($N43<=$DC43,MIN($N43,1),$N43),IF(DP$40=1,0.5,DO43+1)) -> 0.5 | DQ43: =+MIN(IF($N43<=$DC43,MIN($N43,1),$N43),IF(DQ$40=1,0.5,DP43+1)) -> 1.5 | DR43: 2.5 | DS43: 3.5 | DT43: 4.5 | DU43: 5.5 | DV43: 6.5 | DW43: 7.5 | DX43: 8.5 | DY43: 9.5 | EA43: =+IF(EA$40=1,0,MIN(IF($N43<=$DC43,MIN($N43,1),$N43),IF(EA$40=2,0.5,DZ43+1))) -> 0 | EB43: 0.5 | EC43: 1.5 | ED43: 2.5 | EE43: 3.5 | EF43: 4.5 | EG43: 5.5 | EH43: 6.5 | EI43: 7.5 | EJ43: 8.5 | EL43: =+IF(DP43=DO43,0, IF(AND(EL$40>1,DP43=$N43),1-SUM($EK43:EK43), IF($N43<=1, IF($N43>0,1/$N43,0), IF(EL$40=1,0,VDB(1,0,$N43,INT(EL$40-1-1),MIN($N43,INT(EL$40-1-1)+1),$DC43,IF($DD43="No",1,0))/ IF(DO43>=INT($N43),$N43-INT($N43),1)))* IF(EL$40=1,0, IF(INT(DP43)=INT(DO43),DP43-DO43,INT(DP43)-DO43))+ IF($N43<=1, IF($N43>0,1/$N43,0),VDB(1,0,$N43,INT(EL$40-1),MIN($N43,INT(EL$40-1)+1),$DC43,IF($DD43="No",1,0))/ IF(DP43>INT($N43),$N43-INT($N43),1))* IF(EL$40=1,DP43, IF(INT(DP43)=INT(DO43),0,DP43-INT(DP43))))) -> 0.01470588235 | EM43: =+IF(DQ43=DP43,0, IF(AND(EM$40>1,DQ43=$N43),1-SUM($EK43:EL43), IF($N43<=1, IF($N43>0,1/$N43,0), IF(EM$40=1,0,VDB(1,0,$N43,INT(EM$40-1-1),MIN($N43,INT(EM$40-1-1)+1),$DC43,IF($DD43="No",1,0))/ IF(DP43>=INT($N43),$N43-INT($N43),1)))* IF(EM$40=1,0, IF(INT(DQ43)=INT(DP43),DQ43-DP43,INT(DQ43)-DP43))+ IF($N43<=1, IF($N43>0,1/$N43,0),VDB(1,0,$N43,INT(EM$40-1),MIN($N43,INT(EM$40-1)+1),$DC43,IF($DD43="No",1,0))/ IF(DQ43>INT($N43),$N43-INT($N43),1))* IF(EM$40=1,DQ43, IF(INT(DQ43)=INT(DP43),0,DQ43-INT(DQ43))))) -> 0.02897923875 | EN43: =+IF(DR43=DQ43,0, IF(AND(EN$40>1,DR43=$N43),1-SUM($EK43:EM43), IF($N43<=1, IF($N43>0,1/$N43,0), IF(EN$40=1,0,VDB(1,0,$N43,INT(EN$40-1-1),MIN($N43,INT(EN$40-1-1)+1),$DC43,IF($DD43="No",1,0))/ IF(DQ43>=INT($N43),$N43-INT($N43),1)))* IF(EN$40=1,0, IF(INT(DR43)=INT(DQ43),DR43-DQ43,INT(DR43)-DQ43))+ IF($N43<=1, IF($N43>0,1/$N43,0),VDB(1,0,$N43,INT(EN$40-1),MIN($N43,INT(EN$40-1)+1),$DC43,IF($DD43="No",1,0))/ IF(DR43>INT($N43),$N43-INT($N43),1))* IF(EN$40=1,DR43, IF(INT(DR43)=INT(DQ43),0,DR43-INT(DR43))))) -> 0.0281269082 | EO43: =+IF(DS43=DR43,0, IF(AND(EO$40>1,DS43=$N43),1-SUM($EK43:EN43), IF($N43<=1, IF($N43>0,1/$N43,0), IF(EO$40=1,0,VDB(1,0,$N43,INT(EO$40-1-1),MIN($N43,INT(EO$40-1-1)+1),$DC43,IF($DD43="No",1,0))/ IF(DR43>=INT($N43),$N43-INT($N43),1)))* IF(EO$40=1,0, IF(INT(DS43)=INT(DR43),DS43-DR43,INT(DS43)-DR43))+ IF($N43<=1, IF($N43>0,1/$N43,0),VDB(1,0,$N43,INT(EO$40-1),MIN($N43,INT(EO$40-1)+1),$DC43,IF($DD43="No",1,0))/ IF(DS43>INT($N43),$N43-INT($N43),1))* IF(EO$40=1,DS43, IF(INT(DS43)=INT(DR43),0,DS43-INT(DS43))))) -> 0.0272996462 | EP43: =+IF(DT43=DS43,0, IF(AND(EP$40>1,DT43=$N43),1-SUM($EK43:EO43), IF($N43<=1, IF($N43>0,1/$N43,0), IF(EP$40=1,0,VDB(1,0,$N43,INT(EP$40-1-1),MIN($N43,INT(EP$40-1-1)+1),$DC43,IF($DD43="No",1,0))/ IF(DS43>=INT($N43),$N43-INT($N43),1)))* IF(EP$40=1,0, IF(INT(DT43)=INT(DS43),DT43-DS43,INT(DT43)-DS43))+ IF($N43<=1, IF($N43>0,1/$N43,0),VDB(1,0,$N43,INT(EP$40-1),MIN($N43,INT(EP$40-1)+1),$DC43,IF($DD43="No",1,0))/ IF(DT43>INT($N43),$N43-INT($N43),1))* IF(EP$40=1,DT43, IF(INT(DT43)=INT(DS43),0,DT43-INT(DT43))))) -> 0.02649671543 | EQ43: =+IF(DU43=DT43,0, IF(AND(EQ$40>1,DU43=$N43),1-SUM($EK43:EP43), IF($N43<=1, IF($N43>0,1/$N43,0), IF(EQ$40=1,0,VDB(1,0,$N43,INT(EQ$40-1-1),MIN($N43,INT(EQ$40-1-1)+1),$DC43,IF($DD43="No",1,0))/ IF(DT43>=INT($N43),$N43-INT($N43),1)))* IF(EQ$40=1,0, IF(INT(DU43)=INT(DT43),DU43-DT43,INT(DU43)-DT43))+ IF($N43<=1, IF($N43>0,1/$N43,0),VDB(1,0,$N43,INT(EQ$40-1),MIN($N43,INT(EQ$40-1)+1),$DC43,IF($DD43="No",1,0))/ IF(DU43>INT($N43),$N43-INT($N43),1))* IF(EQ$40=1,DU43, IF(INT(DU43)=INT(DT43),0,DU43-INT(DU43))))) -> 0.02571740027 | ER43: =+IF(DV43=DU43,0, IF(AND(ER$40>1,DV43=$N43),1-SUM($EK43:EQ43), IF($N43<=1, IF($N43>0,1/$N43,0), IF(ER$40=1,0,VDB(1,0,$N43,INT(ER$40-1-1),MIN($N43,INT(ER$40-1-1)+1),$DC43,IF($DD43="No",1,0))/ IF(DU43>=INT($N43),$N43-INT($N43),1)))* IF(ER$40=1,0, IF(INT(DV43)=INT(DU43),DV43-DU43,INT(DV43)-DU43))+ IF($N43<=1, IF($N43>0,1/$N43,0),VDB(1,0,$N43,INT(ER$40-1),MIN($N43,INT(ER$40-1)+1),$DC43,IF($DD43="No",1,0))/ IF(DV43>INT($N43),$N43-INT($N43),1))* IF(ER$40=1,DV43, IF(INT(DV43)=INT(DU43),0,DV43-INT(DV43))))) -> 0.02496100614 | ES43: =+IF(DW43=DV43,0, IF(AND(ES$40>1,DW43=$N43),1-SUM($EK43:ER43), IF($N43<=1, IF($N43>0,1/$N43,0), IF(ES$40=1,0,VDB(1,0,$N43,INT(ES$40-1-1),MIN($N43,INT(ES$40-1-1)+1),$DC43,IF($DD43="No",1,0))/ IF(DV43>=INT($N43),$N43-INT($N43),1)))* IF(ES$40=1,0, IF(INT(DW43)=INT(DV43),DW43-DV43,INT(DW43)-DV43))+ IF($N43<=1, IF($N43>0,1/$N43,0),VDB(1,0,$N43,INT(ES$40-1),MIN($N43,INT(ES$40-1)+1),$DC43,IF($DD43="No",1,0))/ IF(DW43>INT($N43),$N43-INT($N43),1))* IF(ES$40=1,DW43, IF(INT(DW43)=INT(DV43),0,DW43-INT(DW43))))) -> 0.0242268589 | ET43: =+IF(DX43=DW43,0, IF(AND(ET$40>1,DX43=$N43),1-SUM($EK43:ES43), IF($N43<=1, IF($N43>0,1/$N43,0), IF(ET$40=1,0,VDB(1,0,$N43,INT(ET$40-1-1),MIN($N43,INT(ET$40-1-1)+1),$DC43,IF($DD43="No",1,0))/ IF(DW43>=INT($N43),$N43-INT($N43),1)))* IF(ET$40=1,0, IF(INT(DX43)=INT(DW43),DX43-DW43,INT(DX43)-DW43))+ IF($N43<=1, IF($N43>0,1/$N43,0),VDB(1,0,$N43,INT(ET$40-1),MIN($N43,INT(ET$40-1)+1),$DC43,IF($DD43="No",1,0))/ IF(DX43>INT($N43),$N43-INT($N43),1))* IF(ET$40=1,DX43, IF(INT(DX43)=INT(DW43),0,DX43-INT(DX43))))) -> 0.02351430423 | EU43: =+IF(DY43=DX43,0, IF(AND(EU$40>1,DY43=$N43),1-SUM($EK43:ET43), IF($N43<=1, IF($N43>0,1/$N43,0), IF(EU$40=1,0,VDB(1,0,$N43,INT(EU$40-1-1),MIN($N43,INT(EU$40-1-1)+1),$DC43,IF($DD43="No",1,0))/ IF(DX43>=INT($N43),$N43-INT($N43),1)))* IF(EU$40=1,0, IF(INT(DY43)=INT(DX43),DY43-DX43,INT(DY43)-DX43))+ IF($N43<=1, IF($N43>0,1/$N43,0),VDB(1,0,$N43,INT(EU$40-1),MIN($N43,INT(EU$40-1)+1),$DC43,IF($DD43="No",1,0))/ IF(DY43>INT($N43),$N43-INT($N43),1))* IF(EU$40=1,DY43, IF(INT(DY43)=INT(DX43),0,DY43-INT(DY43))))) -> 0.02282270704 | EW43: =+IF(OR(EA43=DZ43,EW$40=1),0, IF(AND(EW$40>1,EA43=$N43),1-SUM($EV43:EV43), IF($N43<=1, IF($N43>0,1/$N43,0), IF(EW$40=2,0,VDB(1,0,$N43,INT(EW$40-2-1),MIN($N43,INT(EW$40-2-1)+1),$DC43,IF($DD43="No",1,0))/ IF(DZ43>=INT($N43),$N43-INT($N43),1)))* IF(EW$40=2,0, IF(INT(EA43)=INT(DZ43),EA43-DZ43,INT(EA43)-DZ43))+ IF($N43<=1, IF($N43>0,1/$N43,0),VDB(1,0,$N43,INT(EW$40-2),MIN($N43,INT(EW$40-2)+1),$DC43,IF($DD43="No",1,0))/ IF(EA43>INT($N43),$N43-INT($N43),1))* IF(EW$40=2,EA43, IF(INT(EA43)=INT(DZ43),0,EA43-INT(EA43))))) -> 0 | EX43: =+IF(OR(EB43=EA43,EX$40=1),0, IF(AND(EX$40>1,EB43=$N43),1-SUM($EV43:EW43), IF($N43<=1, IF($N43>0,1/$N43,0), IF(EX$40=2,0,VDB(1,0,$N43,INT(EX$40-2-1),MIN($N43,INT(EX$40-2-1)+1),$DC43,IF($DD43="No",1,0))/ IF(EA43>=INT($N43),$N43-INT($N43),1)))* IF(EX$40=2,0, IF(INT(EB43)=INT(EA43),EB43-EA43,INT(EB43)-EA43))+ IF($N43<=1, IF($N43>0,1/$N43,0),VDB(1,0,$N43,INT(EX$40-2),MIN($N43,INT(EX$40-2)+1),$DC43,IF($DD43="No",1,0))/ IF(EB43>INT($N43),$N43-INT($N43),1))* IF(EX$40=2,EB43, IF(INT(EB43)=INT(EA43),0,EB43-INT(EB43))))) -> 0.01470588235 | EY43: =+IF(OR(EC43=EB43,EY$40=1),0, IF(AND(EY$40>1,EC43=$N43),1-SUM($EV43:EX43), IF($N43<=1, IF($N43>0,1/$N43,0), IF(EY$40=2,0,VDB(1,0,$N43,INT(EY$40-2-1),MIN($N43,INT(EY$40-2-1)+1),$DC43,IF($DD43="No",1,0))/ IF(EB43>=INT($N43),$N43-INT($N43),1)))* IF(EY$40=2,0, IF(INT(EC43)=INT(EB43),EC43-EB43,INT(EC43)-EB43))+ IF($N43<=1, IF($N43>0,1/$N43,0),VDB(1,0,$N43,INT(EY$40-2),MIN($N43,INT(EY$40-2)+1),$DC43,IF($DD43="No",1,0))/ IF(EC43>INT($N43),$N43-INT($N43),1))* IF(EY$40=2,EC43, IF(INT(EC43)=INT(EB43),0,EC43-INT(EC43))))) -> 0.02897923875 | EZ43: =+IF(OR(ED43=EC43,EZ$40=1),0, IF(AND(EZ$40>1,ED43=$N43),1-SUM($EV43:EY43), IF($N43<=1, IF($N43>0,1/$N43,0), IF(EZ$40=2,0,VDB(1,0,$N43,INT(EZ$40-2-1),MIN($N43,INT(EZ$40-2-1)+1),$DC43,IF($DD43="No",1,0))/ IF(EC43>=INT($N43),$N43-INT($N43),1)))* IF(EZ$40=2,0, IF(INT(ED43)=INT(EC43),ED43-EC43,INT(ED43)-EC43))+ IF($N43<=1, IF($N43>0,1/$N43,0),VDB(1,0,$N43,INT(EZ$40-2),MIN($N43,INT(EZ$40-2)+1),$DC43,IF($DD43="No",1,0))/ IF(ED43>INT($N43),$N43-INT($N43),1))* IF(EZ$40=2,ED43, IF(INT(ED43)=INT(EC43),0,ED43-INT(ED43))))) -> 0.0281269082 | FA43: =+IF(OR(EE43=ED43,FA$40=1),0, IF(AND(FA$40>1,EE43=$N43),1-SUM($EV43:EZ43), IF($N43<=1, IF($N43>0,1/$N43,0), IF(FA$40=2,0,VDB(1,0,$N43,INT(FA$40-2-1),MIN($N43,INT(FA$40-2-1)+1),$DC43,IF($DD43="No",1,0))/ IF(ED43>=INT($N43),$N43-INT($N43),1)))* IF(FA$40=2,0, IF(INT(EE43)=INT(ED43),EE43-ED43,INT(EE43)-ED43))+ IF($N43<=1, IF($N43>0,1/$N43,0),VDB(1,0,$N43,INT(FA$40-2),MIN($N43,INT(FA$40-2)+1),$DC43,IF($DD43="No",1,0))/ IF(EE43>INT($N43),$N43-INT($N43),1))* IF(FA$40=2,EE43, IF(INT(EE43)=INT(ED43),0,EE43-INT(EE43))))) -> 0.0272996462 | FB43: =+IF(OR(EF43=EE43,FB$40=1),0, IF(AND(FB$40>1,EF43=$N43),1-SUM($EV43:FA43), IF($N43<=1, IF($N43>0,1/$N43,0), IF(FB$40=2,0,VDB(1,0,$N43,INT(FB$40-2-1),MIN($N43,INT(FB$40-2-1)+1),$DC43,IF($DD43="No",1,0))/ IF(EE43>=INT($N43),$N43-INT($N43),1)))* IF(FB$40=2,0, IF(INT(EF43)=INT(EE43),EF43-EE43,INT(EF43)-EE43))+ IF($N43<=1, IF($N43>0,1/$N43,0),VDB(1,0,$N43,INT(FB$40-2),MIN($N43,INT(FB$40-2)+1),$DC43,IF($DD43="No",1,0))/ IF(EF43>INT($N43),$N43-INT($N43),1))* IF(FB$40=2,EF43, IF(INT(EF43)=INT(EE43),0,EF43-INT(EF43))))) -> 0.02649671543 | FC43: =+IF(OR(EG43=EF43,FC$40=1),0, IF(AND(FC$40>1,EG43=$N43),1-SUM($EV43:FB43), IF($N43<=1, IF($N43>0,1/$N43,0), IF(FC$40=2,0,VDB(1,0,$N43,INT(FC$40-2-1),MIN($N43,INT(FC$40-2-1)+1),$DC43,IF($DD43="No",1,0))/ IF(EF43>=INT($N43),$N43-INT($N43),1)))* IF(FC$40=2,0, IF(INT(EG43)=INT(EF43),EG43-EF43,INT(EG43)-EF43))+ IF($N43<=1, IF($N43>0,1/$N43,0),VDB(1,0,$N43,INT(FC$40-2),MIN($N43,INT(FC$40-2)+1),$DC43,IF($DD43="No",1,0))/ IF(EG43>INT($N43),$N43-INT($N43),1))* IF(FC$40=2,EG43, IF(INT(EG43)=INT(EF43),0,EG43-INT(EG43))))) -> 0.02571740027 | FD43: =+IF(OR(EH43=EG43,FD$40=1),0, IF(AND(FD$40>1,EH43=$N43),1-SUM($EV43:FC43), IF($N43<=1, IF($N43>0,1/$N43,0), IF(FD$40=2,0,VDB(1,0,$N43,INT(FD$40-2-1),MIN($N43,INT(FD$40-2-1)+1),$DC43,IF($DD43="No",1,0))/ IF(EG43>=INT($N43),$N43-INT($N43),1)))* IF(FD$40=2,0, IF(INT(EH43)=INT(EG43),EH43-EG43,INT(EH43)-EG43))+ IF($N43<=1, IF($N43>0,1/$N43,0),VDB(1,0,$N43,INT(FD$40-2),MIN($N43,INT(FD$40-2)+1),$DC43,IF($DD43="No",1,0))/ IF(EH43>INT($N43),$N43-INT($N43),1))* IF(FD$40=2,EH43, IF(INT(EH43)=INT(EG43),0,EH43-INT(EH43))))) -> 0.02496100614 | FE43: =+IF(OR(EI43=EH43,FE$40=1),0, IF(AND(FE$40>1,EI43=$N43),1-SUM($EV43:FD43), IF($N43<=1, IF($N43>0,1/$N43,0), IF(FE$40=2,0,VDB(1,0,$N43,INT(FE$40-2-1),MIN($N43,INT(FE$40-2-1)+1),$DC43,IF($DD43="No",1,0))/ IF(EH43>=INT($N43),$N43-INT($N43),1)))* IF(FE$40=2,0, IF(INT(EI43)=INT(EH43),EI43-EH43,INT(EI43)-EH43))+ IF($N43<=1, IF($N43>0,1/$N43,0),VDB(1,0,$N43,INT(FE$40-2),MIN($N43,INT(FE$40-2)+1),$DC43,IF($DD43="No",1,0))/ IF(EI43>INT($N43),$N43-INT($N43),1))* IF(FE$40=2,EI43, IF(INT(EI43)=INT(EH43),0,EI43-INT(EI43))))) -> 0.0242268589 | FF43: =+IF(OR(EJ43=EI43,FF$40=1),0, IF(AND(FF$40>1,EJ43=$N43),1-SUM($EV43:FE43), IF($N43<=1, IF($N43>0,1/$N43,0), IF(FF$40=2,0,VDB(1,0,$N43,INT(FF$40-2-1),MIN($N43,INT(FF$40-2-1)+1),$DC43,IF($DD43="No",1,0))/ IF(EI43>=INT($N43),$N43-INT($N43),1)))* IF(FF$40=2,0, IF(INT(EJ43)=INT(EI43),EJ43-EI43,INT(EJ43)-EI43))+ IF($N43<=1, IF($N43>0,1/$N43,0),VDB(1,0,$N43,INT(FF$40-2),MIN($N43,INT(FF$40-2)+1),$DC43,IF($DD43="No",1,0))/ IF(EJ43>INT($N43),$N43-INT($N43),1))* IF(FF$40=2,EJ43, IF(INT(EJ43)=INT(EI43),0,EJ43-INT(EJ43))))) -> 0.02351430423 | FH43: =+OFFSET($EW43,0,MAX($FH$40:$IM$40)-FH$40) -> 0.02351430423 | FI43: 0.0242268589 | FJ43: 0.02496100614 | FK43: 0.02571740027 | FL43: 0.02649671543 | FM43: 0.0272996462 | FN43: 0.0281269082 | FO43: 0.02897923875 | FP43: 0.01470588235 | FQ43: 0 | FS43: =-(-$DE43*(-ISBLANK($DE43)+1)*EL43- IF(FS$40>1,SUMPRODUCT(OFFSET($DF43,0,0,1,FS$40-1)*(-ISBLANK(OFFSET($DF43,0,0,1,FS$40-1))+1),OFFSET($FH43,0,MAX($FS$40:$IM$40)-FS$40,1,FS$40-1)),0)) -> 0 | FT43: 0 | FU43: 0 | FV43: 0.1736921793 | FW43: 0.3422757652 | FX43: 0.3322088309 | FY43: 0.3224379829 | FZ43: 0.3129545128 | GA43: 0.3037499684 | GB43: 0.2948161458
C44: Bacchus Marsh RWP - Melton RWP Interconnector | E44: Recycled Water | F44: Growth | G44: Treatment | H44: Top 10 Major Projects | J44: Straight line | K44: 2023 | L44: 51 | M44: Declining Balance | N44: 51 | Q44: 0.5 | R44: 5.51518 | S44: 6.17594 | T44: 0 | U44: 0 | AB44: 0 | AC44: 0 | AD44: 0 | AE44: 0 | AF44: 0 | AM44: 0 | AN44: 0 | AO44: 0 | AP44: 0 | AQ44: 0 | AX44: 0.5 | AY44: 5.51518 | AZ44: 6.17594 | BA44: 0 | BB44: 0 | BC44: 0 | BD44: 0 | BE44: 0 | BF44: 0 | BG44: 0 | BI44: 0 | BJ44: 0 | BK44: 0 | BL44: 0 | BM44: 0.1195207843 | BN44: 0.2390415686 | BO44: 0.2390415686 | BP44: 0.2390415686 | BQ44: 0.2390415686 | BR44: 0.2390415686 | BT44: =+IF($K44="Ongoing",AX44,IF(RIGHT($K44,2)=RIGHT(BT$39,2),SUM($AX44:AX44),0)+IF(RIGHT(BT$39,2)>RIGHT($K44,2),AX44,0)) -> 0 | BU44: =+IF($K44="Ongoing",AY44,IF(RIGHT($K44,2)=RIGHT(BU$39,2),SUM($AX44:AY44),0)+IF(RIGHT(BU$39,2)>RIGHT($K44,2),AY44,0)) -> 0 | BV44: =+IF($K44="Ongoing",AZ44,IF(RIGHT($K44,2)=RIGHT(BV$39,2),SUM($AX44:AZ44),0)+IF(RIGHT(BV$39,2)>RIGHT($K44,2),AZ44,0)) -> 0 | BW44: =+IF($K44="Ongoing",BA44,IF(RIGHT($K44,2)=RIGHT(BW$39,2),SUM($AX44:BA44),0)+IF(RIGHT(BW$39,2)>RIGHT($K44,2),BA44,0)) -> 0 | BX44: =+IF($K44="Ongoing",BB44,IF(RIGHT($K44,2)=RIGHT(BX$39,2),SUM($AX44:BB44),0)+IF(RIGHT(BX$39,2)>RIGHT($K44,2),BB44,0)) -> 12.19112 | BY44: =+IF($K44="Ongoing",BC44,IF(RIGHT($K44,2)=RIGHT(BY$39,2),SUM($AX44:BC44),0)+IF(RIGHT(BY$39,2)>RIGHT($K44,2),BC44,0)) -> 0 | BZ44: =+IF($K44="Ongoing",BD44,IF(RIGHT($K44,2)=RIGHT(BZ$39,2),SUM($AX44:BD44),0)+IF(RIGHT(BZ$39,2)>RIGHT($K44,2),BD44,0)) -> 0 | CA44: =+IF($K44="Ongoing",BE44,IF(RIGHT($K44,2)=RIGHT(CA$39,2),SUM($AX44:BE44),0)+IF(RIGHT(CA$39,2)>RIGHT($K44,2),BE44,0)) -> 0 | CB44: =+IF($K44="Ongoing",BF44,IF(RIGHT($K44,2)=RIGHT(CB$39,2),SUM($AX44:BF44),0)+IF(RIGHT(CB$39,2)>RIGHT($K44,2),BF44,0)) -> 0 | CC44: =+IF($K44="Ongoing",BG44,IF(RIGHT($K44,2)=RIGHT(CC$39,2),SUM($AX44:BG44),0)+IF(RIGHT(CC$39,2)>RIGHT($K44,2),BG44,0)) -> 0 | CE44: =+Q44*KeyAssumptionsPriceControl_FO!X$15 -> 0.5115 | CF44: =+R44*KeyAssumptionsPriceControl_FO!Y$15 -> 5.77179581 | CG44: =+S44*KeyAssumptionsPriceControl_FO!Z$15 -> 6.611956219 | CH44: =+T44*KeyAssumptionsPriceControl_FO!AA$15 -> 0 | CI44: =+U44*KeyAssumptionsPriceControl_FO!AB$15 -> 0 | CJ44: =+V44*KeyAssumptionsPriceControl_FO!AC$15 -> 0 | CK44: =+W44*KeyAssumptionsPriceControl_FO!AD$15 -> 0 | CL44: =+X44*KeyAssumptionsPriceControl_FO!AE$15 -> 0 | CM44: =+Y44*KeyAssumptionsPriceControl_FO!AF$15 -> 0 | CN44: =+Z44*KeyAssumptionsPriceControl_FO!AG$15 -> 0 | CP44: 0 | CQ44: 0 | CR44: 0 | CS44: 0 | CT44: 0.1896360593 | CU44: 0.3736945874 | CV44: 0.3627035701 | CW44: 0.352035818 | CX44: 0.3416818234 | CY44: 0.331632358 | DC44: 1.5 | DD44: No | DE44: =+IF($K44="ongoing",CE44,IF(RIGHT($K44,2)=RIGHT(DE$39,2),SUM($CD44:CE44),0)+IF(RIGHT(DE$39,2)>RIGHT($K44,2),CE44,0)) -> 0 | DF44: =+IF($K44="ongoing",CF44,IF(RIGHT($K44,2)=RIGHT(DF$39,2),SUM($CD44:CF44),0)+IF(RIGHT(DF$39,2)>RIGHT($K44,2),CF44,0)) -> 0 | DG44: =+IF($K44="ongoing",CG44,IF(RIGHT($K44,2)=RIGHT(DG$39,2),SUM($CD44:CG44),0)+IF(RIGHT(DG$39,2)>RIGHT($K44,2),CG44,0)) -> 0 | DH44: =+IF($K44="ongoing",CH44,IF(RIGHT($K44,2)=RIGHT(DH$39,2),SUM($CD44:CH44),0)+IF(RIGHT(DH$39,2)>RIGHT($K44,2),CH44,0)) -> 0 | DI44: =+IF($K44="ongoing",CI44,IF(RIGHT($K44,2)=RIGHT(DI$39,2),SUM($CD44:CI44),0)+IF(RIGHT(DI$39,2)>RIGHT($K44,2),CI44,0)) -> 12.89525203 | DJ44: =+IF($K44="ongoing",CJ44,IF(RIGHT($K44,2)=RIGHT(DJ$39,2),SUM($CD44:CJ44),0)+IF(RIGHT(DJ$39,2)>RIGHT($K44,2),CJ44,0)) -> 0 | DK44: =+IF($K44="ongoing",CK44,IF(RIGHT($K44,2)=RIGHT(DK$39,2),SUM($CD44:CK44),0)+IF(RIGHT(DK$39,2)>RIGHT($K44,2),CK44,0)) -> 0 | DL44: =+IF($K44="ongoing",CL44,IF(RIGHT($K44,2)=RIGHT(DL$39,2),SUM($CD44:CL44),0)+IF(RIGHT(DL$39,2)>RIGHT($K44,2),CL44,0)) -> 0 | DM44: =+IF($K44="ongoing",CM44,IF(RIGHT($K44,2)=RIGHT(DM$39,2),SUM($CD44:CM44),0)+IF(RIGHT(DM$39,2)>RIGHT($K44,2),CM44,0)) -> 0 | DN44: =+IF($K44="ongoing",CN44,IF(RIGHT($K44,2)=RIGHT(DN$39,2),SUM($CD44:CN44),0)+IF(RIGHT(DN$39,2)>RIGHT($K44,2),CN44,0)) -> 0 | DP44: 0.5 | DQ44: =+MIN(IF($N44<=$DC44,MIN($N44,1),$N44),IF(DQ$40=1,0.5,DP44+1)) -> 1.5 | DR44: 2.5 | DS44: 3.5 | DT44: 4.5 | DU44: 5.5 | DV44: 6.5 | DW44: 7.5 | DX44: 8.5 | DY44: 9.5 | EA44: =+IF(EA$40=1,0,MIN(IF($N44<=$DC44,MIN($N44,1),$N44),IF(EA$40=2,0.5,DZ44+1))) -> 0 | EB44: 0.5 | EC44: 1.5 | ED44: 2.5 | EE44: 3.5 | EF44: 4.5 | EG44: 5.5 | EH44: 6.5 | EI44: 7.5 | EJ44: 8.5 | EL44: =+IF(DP44=DO44,0, IF(AND(EL$40>1,DP44=$N44),1-SUM($EK44:EK44), IF($N44<=1, IF($N44>0,1/$N44,0), IF(EL$40=1,0,VDB(1,0,$N44,INT(EL$40-1-1),MIN($N44,INT(EL$40-1-1)+1),$DC44,IF($DD44="No",1,0))/ IF(DO44>=INT($N44),$N44-INT($N44),1)))* IF(EL$40=1,0, IF(INT(DP44)=INT(DO44),DP44-DO44,INT(DP44)-DO44))+ IF($N44<=1, IF($N44>0,1/$N44,0),VDB(1,0,$N44,INT(EL$40-1),MIN($N44,INT(EL$40-1)+1),$DC44,IF($DD44="No",1,0))/ IF(DP44>INT($N44),$N44-INT($N44),1))* IF(EL$40=1,DP44, IF(INT(DP44)=INT(DO44),0,DP44-INT(DP44))))) -> 0.01470588235 | EM44: =+IF(DQ44=DP44,0, IF(AND(EM$40>1,DQ44=$N44),1-SUM($EK44:EL44), IF($N44<=1, IF($N44>0,1/$N44,0), IF(EM$40=1,0,VDB(1,0,$N44,INT(EM$40-1-1),MIN($N44,INT(EM$40-1-1)+1),$DC44,IF($DD44="No",1,0))/ IF(DP44>=INT($N44),$N44-INT($N44),1)))* IF(EM$40=1,0, IF(INT(DQ44)=INT(DP44),DQ44-DP44,INT(DQ44)-DP44))+ IF($N44<=1, IF($N44>0,1/$N44,0),VDB(1,0,$N44,INT(EM$40-1),MIN($N44,INT(EM$40-1)+1),$DC44,IF($DD44="No",1,0))/ IF(DQ44>INT($N44),$N44-INT($N44),1))* IF(EM$40=1,DQ44, IF(INT(DQ44)=INT(DP44),0,DQ44-INT(DQ44))))) -> 0.02897923875 | EN44: =+IF(DR44=DQ44,0, IF(AND(EN$40>1,DR44=$N44),1-SUM($EK44:EM44), IF($N44<=1, IF($N44>0,1/$N44,0), IF(EN$40=1,0,VDB(1,0,$N44,INT(EN$40-1-1),MIN($N44,INT(EN$40-1-1)+1),$DC44,IF($DD44="No",1,0))/ IF(DQ44>=INT($N44),$N44-INT($N44),1)))* IF(EN$40=1,0, IF(INT(DR44)=INT(DQ44),DR44-DQ44,INT(DR44)-DQ44))+ IF($N44<=1, IF($N44>0,1/$N44,0),VDB(1,0,$N44,INT(EN$40-1),MIN($N44,INT(EN$40-1)+1),$DC44,IF($DD44="No",1,0))/ IF(DR44>INT($N44),$N44-INT($N44),1))* IF(EN$40=1,DR44, IF(INT(DR44)=INT(DQ44),0,DR44-INT(DR44))))) -> 0.0281269082 | EO44: =+IF(DS44=DR44,0, IF(AND(EO$40>1,DS44=$N44),1-SUM($EK44:EN44), IF($N44<=1, IF($N44>0,1/$N44,0), IF(EO$40=1,0,VDB(1,0,$N44,INT(EO$40-1-1),MIN($N44,INT(EO$40-1-1)+1),$DC44,IF($DD44="No",1,0))/ IF(DR44>=INT($N44),$N44-INT($N44),1)))* IF(EO$40=1,0, IF(INT(DS44)=INT(DR44),DS44-DR44,INT(DS44)-DR44))+ IF($N44<=1, IF($N44>0,1/$N44,0),VDB(1,0,$N44,INT(EO$40-1),MIN($N44,INT(EO$40-1)+1),$DC44,IF($DD44="No",1,0))/ IF(DS44>INT($N44),$N44-INT($N44),1))* IF(EO$40=1,DS44, IF(INT(DS44)=INT(DR44),0,DS44-INT(DS44))))) -> 0.0272996462 | EP44: =+IF(DT44=DS44,0, IF(AND(EP$40>1,DT44=$N44),1-SUM($EK44:EO44), IF($N44<=1, IF($N44>0,1/$N44,0), IF(EP$40=1,0,VDB(1,0,$N44,INT(EP$40-1-1),MIN($N44,INT(EP$40-1-1)+1),$DC44,IF($DD44="No",1,0))/ IF(DS44>=INT($N44),$N44-INT($N44),1)))* IF(EP$40=1,0, IF(INT(DT44)=INT(DS44),DT44-DS44,INT(DT44)-DS44))+ IF($N44<=1, IF($N44>0,1/$N44,0),VDB(1,0,$N44,INT(EP$40-1),MIN($N44,INT(EP$40-1)+1),$DC44,IF($DD44="No",1,0))/ IF(DT44>INT($N44),$N44-INT($N44),1))* IF(EP$40=1,DT44, IF(INT(DT44)=INT(DS44),0,DT44-INT(DT44))))) -> 0.02649671543 | EQ44: =+IF(DU44=DT44,0, IF(AND(EQ$40>1,DU44=$N44),1-SUM($EK44:EP44), IF($N44<=1, IF($N44>0,1/$N44,0), IF(EQ$40=1,0,VDB(1,0,$N44,INT(EQ$40-1-1),MIN($N44,INT(EQ$40-1-1)+1),$DC44,IF($DD44="No",1,0))/ IF(DT44>=INT($N44),$N44-INT($N44),1)))* IF(EQ$40=1,0, IF(INT(DU44)=INT(DT44),DU44-DT44,INT(DU44)-DT44))+ IF($N44<=1, IF($N44>0,1/$N44,0),VDB(1,0,$N44,INT(EQ$40-1),MIN($N44,INT(EQ$40-1)+1),$DC44,IF($DD44="No",1,0))/ IF(DU44>INT($N44),$N44-INT($N44),1))* IF(EQ$40=1,DU44, IF(INT(DU44)=INT(DT44),0,DU44-INT(DU44))))) -> 0.02571740027 | ER44: =+IF(DV44=DU44,0, IF(AND(ER$40>1,DV44=$N44),1-SUM($EK44:EQ44), IF($N44<=1, IF($N44>0,1/$N44,0), IF(ER$40=1,0,VDB(1,0,$N44,INT(ER$40-1-1),MIN($N44,INT(ER$40-1-1)+1),$DC44,IF($DD44="No",1,0))/ IF(DU44>=INT($N44),$N44-INT($N44),1)))* IF(ER$40=1,0, IF(INT(DV44)=INT(DU44),DV44-DU44,INT(DV44)-DU44))+ IF($N44<=1, IF($N44>0,1/$N44,0),VDB(1,0,$N44,INT(ER$40-1),MIN($N44,INT(ER$40-1)+1),$DC44,IF($DD44="No",1,0))/ IF(DV44>INT($N44),$N44-INT($N44),1))* IF(ER$40=1,DV44, IF(INT(DV44)=INT(DU44),0,DV44-INT(DV44))))) -> 0.02496100614 | ES44: =+IF(DW44=DV44,0, IF(AND(ES$40>1,DW44=$N44),1-SUM($EK44:ER44), IF($N44<=1, IF($N44>0,1/$N44,0), IF(ES$40=1,0,VDB(1,0,$N44,INT(ES$40-1-1),MIN($N44,INT(ES$40-1-1)+1),$DC44,IF($DD44="No",1,0))/ IF(DV44>=INT($N44),$N44-INT($N44),1)))* IF(ES$40=1,0, IF(INT(DW44)=INT(DV44),DW44-DV44,INT(DW44)-DV44))+ IF($N44<=1, IF($N44>0,1/$N44,0),VDB(1,0,$N44,INT(ES$40-1),MIN($N44,INT(ES$40-1)+1),$DC44,IF($DD44="No",1,0))/ IF(DW44>INT($N44),$N44-INT($N44),1))* IF(ES$40=1,DW44, IF(INT(DW44)=INT(DV44),0,DW44-INT(DW44))))) -> 0.0242268589 | ET44: =+IF(DX44=DW44,0, IF(AND(ET$40>1,DX44=$N44),1-SUM($EK44:ES44), IF($N44<=1, IF($N44>0,1/$N44,0), IF(ET$40=1,0,VDB(1,0,$N44,INT(ET$40-1-1),MIN($N44,INT(ET$40-1-1)+1),$DC44,IF($DD44="No",1,0))/ IF(DW44>=INT($N44),$N44-INT($N44),1)))* IF(ET$40=1,0, IF(INT(DX44)=INT(DW44),DX44-DW44,INT(DX44)-DW44))+ IF($N44<=1, IF($N44>0,1/$N44,0),VDB(1,0,$N44,INT(ET$40-1),MIN($N44,INT(ET$40-1)+1),$DC44,IF($DD44="No",1,0))/ IF(DX44>INT($N44),$N44-INT($N44),1))* IF(ET$40=1,DX44, IF(INT(DX44)=INT(DW44),0,DX44-INT(DX44))))) -> 0.02351430423 | EU44: =+IF(DY44=DX44,0, IF(AND(EU$40>1,DY44=$N44),1-SUM($EK44:ET44), IF($N44<=1, IF($N44>0,1/$N44,0), IF(EU$40=1,0,VDB(1,0,$N44,INT(EU$40-1-1),MIN($N44,INT(EU$40-1-1)+1),$DC44,IF($DD44="No",1,0))/ IF(DX44>=INT($N44),$N44-INT($N44),1)))* IF(EU$40=1,0, IF(INT(DY44)=INT(DX44),DY44-DX44,INT(DY44)-DX44))+ IF($N44<=1, IF($N44>0,1/$N44,0),VDB(1,0,$N44,INT(EU$40-1),MIN($N44,INT(EU$40-1)+1),$DC44,IF($DD44="No",1,0))/ IF(DY44>INT($N44),$N44-INT($N44),1))* IF(EU$40=1,DY44, IF(INT(DY44)=INT(DX44),0,DY44-INT(DY44))))) -> 0.02282270704 | EW44: =+IF(OR(EA44=DZ44,EW$40=1),0, IF(AND(EW$40>1,EA44=$N44),1-SUM($EV44:EV44), IF($N44<=1, IF($N44>0,1/$N44,0), IF(EW$40=2,0,VDB(1,0,$N44,INT(EW$40-2-1),MIN($N44,INT(EW$40-2-1)+1),$DC44,IF($DD44="No",1,0))/ IF(DZ44>=INT($N44),$N44-INT($N44),1)))* IF(EW$40=2,0, IF(INT(EA44)=INT(DZ44),EA44-DZ44,INT(EA44)-DZ44))+ IF($N44<=1, IF($N44>0,1/$N44,0),VDB(1,0,$N44,INT(EW$40-2),MIN($N44,INT(EW$40-2)+1),$DC44,IF($DD44="No",1,0))/ IF(EA44>INT($N44),$N44-INT($N44),1))* IF(EW$40=2,EA44, IF(INT(EA44)=INT(DZ44),0,EA44-INT(EA44))))) -> 0 | EX44: =+IF(OR(EB44=EA44,EX$40=1),0, IF(AND(EX$40>1,EB44=$N44),1-SUM($EV44:EW44), IF($N44<=1, IF($N44>0,1/$N44,0), IF(EX$40=2,0,VDB(1,0,$N44,INT(EX$40-2-1),MIN($N44,INT(EX$40-2-1)+1),$DC44,IF($DD44="No",1,0))/ IF(EA44>=INT($N44),$N44-INT($N44),1)))* IF(EX$40=2,0, IF(INT(EB44)=INT(EA44),EB44-EA44,INT(EB44)-EA44))+ IF($N44<=1, IF($N44>0,1/$N44,0),VDB(1,0,$N44,INT(EX$40-2),MIN($N44,INT(EX$40-2)+1),$DC44,IF($DD44="No",1,0))/ IF(EB44>INT($N44),$N44-INT($N44),1))* IF(EX$40=2,EB44, IF(INT(EB44)=INT(EA44),0,EB44-INT(EB44))))) -> 0.01470588235 | EY44: =+IF(OR(EC44=EB44,EY$40=1),0, IF(AND(EY$40>1,EC44=$N44),1-SUM($EV44:EX44), IF($N44<=1, IF($N44>0,1/$N44,0), IF(EY$40=2,0,VDB(1,0,$N44,INT(EY$40-2-1),MIN($N44,INT(EY$40-2-1)+1),$DC44,IF($DD44="No",1,0))/ IF(EB44>=INT($N44),$N44-INT($N44),1)))* IF(EY$40=2,0, IF(INT(EC44)=INT(EB44),EC44-EB44,INT(EC44)-EB44))+ IF($N44<=1, IF($N44>0,1/$N44,0),VDB(1,0,$N44,INT(EY$40-2),MIN($N44,INT(EY$40-2)+1),$DC44,IF($DD44="No",1,0))/ IF(EC44>INT($N44),$N44-INT($N44),1))* IF(EY$40=2,EC44, IF(INT(EC44)=INT(EB44),0,EC44-INT(EC44))))) -> 0.02897923875 | EZ44: =+IF(OR(ED44=EC44,EZ$40=1),0, IF(AND(EZ$40>1,ED44=$N44),1-SUM($EV44:EY44), IF($N44<=1, IF($N44>0,1/$N44,0), IF(EZ$40=2,0,VDB(1,0,$N44,INT(EZ$40-2-1),MIN($N44,INT(EZ$40-2-1)+1),$DC44,IF($DD44="No",1,0))/ IF(EC44>=INT($N44),$N44-INT($N44),1)))* IF(EZ$40=2,0, IF(INT(ED44)=INT(EC44),ED44-EC44,INT(ED44)-EC44))+ IF($N44<=1, IF($N44>0,1/$N44,0),VDB(1,0,$N44,INT(EZ$40-2),MIN($N44,INT(EZ$40-2)+1),$DC44,IF($DD44="No",1,0))/ IF(ED44>INT($N44),$N44-INT($N44),1))* IF(EZ$40=2,ED44, IF(INT(ED44)=INT(EC44),0,ED44-INT(ED44))))) -> 0.0281269082 | FA44: =+IF(OR(EE44=ED44,FA$40=1),0, IF(AND(FA$40>1,EE44=$N44),1-SUM($EV44:EZ44), IF($N44<=1, IF($N44>0,1/$N44,0), IF(FA$40=2,0,VDB(1,0,$N44,INT(FA$40-2-1),MIN($N44,INT(FA$40-2-1)+1),$DC44,IF($DD44="No",1,0))/ IF(ED44>=INT($N44),$N44-INT($N44),1)))* IF(FA$40=2,0, IF(INT(EE44)=INT(ED44),EE44-ED44,INT(EE44)-ED44))+ IF($N44<=1, IF($N44>0,1/$N44,0),VDB(1,0,$N44,INT(FA$40-2),MIN($N44,INT(FA$40-2)+1),$DC44,IF($DD44="No",1,0))/ IF(EE44>INT($N44),$N44-INT($N44),1))* IF(FA$40=2,EE44, IF(INT(EE44)=INT(ED44),0,EE44-INT(EE44))))) -> 0.0272996462 | FB44: =+IF(OR(EF44=EE44,FB$40=1),0, IF(AND(FB$40>1,EF44=$N44),1-SUM($EV44:FA44), IF($N44<=1, IF($N44>0,1/$N44,0), IF(FB$40=2,0,VDB(1,0,$N44,INT(FB$40-2-1),MIN($N44,INT(FB$40-2-1)+1),$DC44,IF($DD44="No",1,0))/ IF(EE44>=INT($N44),$N44-INT($N44),1)))* IF(FB$40=2,0, IF(INT(EF44)=INT(EE44),EF44-EE44,INT(EF44)-EE44))+ IF($N44<=1, IF($N44>0,1/$N44,0),VDB(1,0,$N44,INT(FB$40-2),MIN($N44,INT(FB$40-2)+1),$DC44,IF($DD44="No",1,0))/ IF(EF44>INT($N44),$N44-INT($N44),1))* IF(FB$40=2,EF44, IF(INT(EF44)=INT(EE44),0,EF44-INT(EF44))))) -> 0.02649671543 | FC44: =+IF(OR(EG44=EF44,FC$40=1),0, IF(AND(FC$40>1,EG44=$N44),1-SUM($EV44:FB44), IF($N44<=1, IF($N44>0,1/$N44,0), IF(FC$40=2,0,VDB(1,0,$N44,INT(FC$40-2-1),MIN($N44,INT(FC$40-2-1)+1),$DC44,IF($DD44="No",1,0))/ IF(EF44>=INT($N44),$N44-INT($N44),1)))* IF(FC$40=2,0, IF(INT(EG44)=INT(EF44),EG44-EF44,INT(EG44)-EF44))+ IF($N44<=1, IF($N44>0,1/$N44,0),VDB(1,0,$N44,INT(FC$40-2),MIN($N44,INT(FC$40-2)+1),$DC44,IF($DD44="No",1,0))/ IF(EG44>INT($N44),$N44-INT($N44),1))* IF(FC$40=2,EG44, IF(INT(EG44)=INT(EF44),0,EG44-INT(EG44))))) -> 0.02571740027 | FD44: =+IF(OR(EH44=EG44,FD$40=1),0, IF(AND(FD$40>1,EH44=$N44),1-SUM($EV44:FC44), IF($N44<=1, IF($N44>0,1/$N44,0), IF(FD$40=2,0,VDB(1,0,$N44,INT(FD$40-2-1),MIN($N44,INT(FD$40-2-1)+1),$DC44,IF($DD44="No",1,0))/ IF(EG44>=INT($N44),$N44-INT($N44),1)))* IF(FD$40=2,0, IF(INT(EH44)=INT(EG44),EH44-EG44,INT(EH44)-EG44))+ IF($N44<=1, IF($N44>0,1/$N44,0),VDB(1,0,$N44,INT(FD$40-2),MIN($N44,INT(FD$40-2)+1),$DC44,IF($DD44="No",1,0))/ IF(EH44>INT($N44),$N44-INT($N44),1))* IF(FD$40=2,EH44, IF(INT(EH44)=INT(EG44),0,EH44-INT(EH44))))) -> 0.02496100614 | FE44: =+IF(OR(EI44=EH44,FE$40=1),0, IF(AND(FE$40>1,EI44=$N44),1-SUM($EV44:FD44), IF($N44<=1, IF($N44>0,1/$N44,0), IF(FE$40=2,0,VDB(1,0,$N44,INT(FE$40-2-1),MIN($N44,INT(FE$40-2-1)+1),$DC44,IF($DD44="No",1,0))/ IF(EH44>=INT($N44),$N44-INT($N44),1)))* IF(FE$40=2,0, IF(INT(EI44)=INT(EH44),EI44-EH44,INT(EI44)-EH44))+ IF($N44<=1, IF($N44>0,1/$N44,0),VDB(1,0,$N44,INT(FE$40-2),MIN($N44,INT(FE$40-2)+1),$DC44,IF($DD44="No",1,0))/ IF(EI44>INT($N44),$N44-INT($N44),1))* IF(FE$40=2,EI44, IF(INT(EI44)=INT(EH44),0,EI44-INT(EI44))))) -> 0.0242268589 | FF44: =+IF(OR(EJ44=EI44,FF$40=1),0, IF(AND(FF$40>1,EJ44=$N44),1-SUM($EV44:FE44), IF($N44<=1, IF($N44>0,1/$N44,0), IF(FF$40=2,0,VDB(1,0,$N44,INT(FF$40-2-1),MIN($N44,INT(FF$40-2-1)+1),$DC44,IF($DD44="No",1,0))/ IF(EI44>=INT($N44),$N44-INT($N44),1)))* IF(FF$40=2,0, IF(INT(EJ44)=INT(EI44),EJ44-EI44,INT(EJ44)-EI44))+ IF($N44<=1, IF($N44>0,1/$N44,0),VDB(1,0,$N44,INT(FF$40-2),MIN($N44,INT(FF$40-2)+1),$DC44,IF($DD44="No",1,0))/ IF(EJ44>INT($N44),$N44-INT($N44),1))* IF(FF$40=2,EJ44, IF(INT(EJ44)=INT(EI44),0,EJ44-INT(EJ44))))) -> 0.02351430423 | FH44: 0.02351430423 | FI44: 0.0242268589 | FJ44: 0.02496100614 | FK44: 0.02571740027 | FL44: 0.02649671543 | FM44: 0.0272996462 | FN44: 0.0281269082 | FO44: 0.02897923875 | FP44: 0.01470588235 | FQ44: 0 | FS44: 0 | FT44: 0 | FU44: 0 | FV44: 0 | FW44: 0.1896360593 | FX44: 0.3736945874 | FY44: 0.3627035701 | FZ44: 0.352035818 | GA44: 0.3416818234 | GB44: 0.331632358
C45: Melton South Exford Rd SPS/RM/Sewer | E45: Sewerage | F45: Growth | G45: Pipelines/network | H45: Top 10 Major Projects | J45: Straight line | K45: 2021 | L45: 51 | M45: Declining Balance | N45: 51 | Q45: 1.559200009 | R45: 2.682641111 | S45: 2.050118221 | T45: 0 | U45: 0 | AB45: 0 | AC45: 0 | AD45: 0 | AE45: 0 | AF45: 0 | AM45: 0 | AN45: 0 | AO45: 0 | AP45: 0 | AQ45: 0 | AX45: 1.559200009 | AY45: 2.682641111 | AZ45: 2.050118221 | BA45: 0 | BB45: 0 | BC45: 0 | BD45: 0 | BE45: 0 | BF45: 0 | BG45: 0 | BI45: 0 | BJ45: 0 | BK45: 0.06168587589 | BL45: 0.1233717518 | BM45: 0.1233717518 | BN45: 0.1233717518 | BO45: 0.1233717518 | BP45: 0.1233717518 | BQ45: 0.1233717518 | BR45: 0.1233717518 | BT45: =+IF($K45="Ongoing",AX45,IF(RIGHT($K45,2)=RIGHT(BT$39,2),SUM($AX45:AX45),0)+IF(RIGHT(BT$39,2)>RIGHT($K45,2),AX45,0)) -> 0 | BU45: =+IF($K45="Ongoing",AY45,IF(RIGHT($K45,2)=RIGHT(BU$39,2),SUM($AX45:AY45),0)+IF(RIGHT(BU$39,2)>RIGHT($K45,2),AY45,0)) -> 0 | BV45: =+IF($K45="Ongoing",AZ45,IF(RIGHT($K45,2)=RIGHT(BV$39,2),SUM($AX45:AZ45),0)+IF(RIGHT(BV$39,2)>RIGHT($K45,2),AZ45,0)) -> 6.291959341 | BW45: =+IF($K45="Ongoing",BA45,IF(RIGHT($K45,2)=RIGHT(BW$39,2),SUM($AX45:BA45),0)+IF(RIGHT(BW$39,2)>RIGHT($K45,2),BA45,0)) -> 0 | BX45: =+IF($K45="Ongoing",BB45,IF(RIGHT($K45,2)=RIGHT(BX$39,2),SUM($AX45:BB45),0)+IF(RIGHT(BX$39,2)>RIGHT($K45,2),BB45,0)) -> 0 | BY45: =+IF($K45="Ongoing",BC45,IF(RIGHT($K45,2)=RIGHT(BY$39,2),SUM($AX45:BC45),0)+IF(RIGHT(BY$39,2)>RIGHT($K45,2),BC45,0)) -> 0 | BZ45: =+IF($K45="Ongoing",BD45,IF(RIGHT($K45,2)=RIGHT(BZ$39,2),SUM($AX45:BD45),0)+IF(RIGHT(BZ$39,2)>RIGHT($K45,2),BD45,0)) -> 0 | CA45: =+IF($K45="Ongoing",BE45,IF(RIGHT($K45,2)=RIGHT(CA$39,2),SUM($AX45:BE45),0)+IF(RIGHT(CA$39,2)>RIGHT($K45,2),BE45,0)) -> 0 | CB45: =+IF($K45="Ongoing",BF45,IF(RIGHT($K45,2)=RIGHT(CB$39,2),SUM($AX45:BF45),0)+IF(RIGHT(CB$39,2)>RIGHT($K45,2),BF45,0)) -> 0 | CC45: =+IF($K45="Ongoing",BG45,IF(RIGHT($K45,2)=RIGHT(CC$39,2),SUM($AX45:BG45),0)+IF(RIGHT(CC$39,2)>RIGHT($K45,2),BG45,0)) -> 0 | CE45: =+Q45*KeyAssumptionsPriceControl_FO!X$15 -> 1.595061609 | CF45: =+R45*KeyAssumptionsPriceControl_FO!Y$15 -> 2.80746172 | CG45: =+S45*KeyAssumptionsPriceControl_FO!Z$15 -> 2.19485486 | CH45: =+T45*KeyAssumptionsPriceControl_FO!AA$15 -> 0 | CI45: =+U45*KeyAssumptionsPriceControl_FO!AB$15 -> 0 | CJ45: =+V45*KeyAssumptionsPriceControl_FO!AC$15 -> 0 | CK45: =+W45*KeyAssumptionsPriceControl_FO!AD$15 -> 0 | CL45: =+X45*KeyAssumptionsPriceControl_FO!AE$15 -> 0 | CM45: =+Y45*KeyAssumptionsPriceControl_FO!AF$15 -> 0 | CN45: =+Z45*KeyAssumptionsPriceControl_FO!AG$15 -> 0 | CP45: 0 | CQ45: 0 | CR45: 0.09702026747 | CS45: 0.1911869977 | CT45: 0.1855638507 | CU45: 0.1801060904 | CV45: 0.1748088524 | CW45: 0.1696674156 | CX45: 0.1646771975 | CY45: 0.1598337505 | DC45: 1.5 | DD45: No | DE45: =+IF($K45="ongoing",CE45,IF(RIGHT($K45,2)=RIGHT(DE$39,2),SUM($CD45:CE45),0)+IF(RIGHT(DE$39,2)>RIGHT($K45,2),CE45,0)) -> 0 | DF45: =+IF($K45="ongoing",CF45,IF(RIGHT($K45,2)=RIGHT(DF$39,2),SUM($CD45:CF45),0)+IF(RIGHT(DF$39,2)>RIGHT($K45,2),CF45,0)) -> 0 | DG45: =+IF($K45="ongoing",CG45,IF(RIGHT($K45,2)=RIGHT(DG$39,2),SUM($CD45:CG45),0)+IF(RIGHT(DG$39,2)>RIGHT($K45,2),CG45,0)) -> 6.597378188 | DH45: =+IF($K45="ongoing",CH45,IF(RIGHT($K45,2)=RIGHT(DH$39,2),SUM($CD45:CH45),0)+IF(RIGHT(DH$39,2)>RIGHT($K45,2),CH45,0)) -> 0 | DI45: =+IF($K45="ongoing",CI45,IF(RIGHT($K45,2)=RIGHT(DI$39,2),SUM($CD45:CI45),0)+IF(RIGHT(DI$39,2)>RIGHT($K45,2),CI45,0)) -> 0 | DJ45: =+IF($K45="ongoing",CJ45,IF(RIGHT($K45,2)=RIGHT(DJ$39,2),SUM($CD45:CJ45),0)+IF(RIGHT(DJ$39,2)>RIGHT($K45,2),CJ45,0)) -> 0 | DK45: =+IF($K45="ongoing",CK45,IF(RIGHT($K45,2)=RIGHT(DK$39,2),SUM($CD45:CK45),0)+IF(RIGHT(DK$39,2)>RIGHT($K45,2),CK45,0)) -> 0 | DL45: =+IF($K45="ongoing",CL45,IF(RIGHT($K45,2)=RIGHT(DL$39,2),SUM($CD45:CL45),0)+IF(RIGHT(DL$39,2)>RIGHT($K45,2),CL45,0)) -> 0 | DM45: =+IF($K45="ongoing",CM45,IF(RIGHT($K45,2)=RIGHT(DM$39,2),SUM($CD45:CM45),0)+IF(RIGHT(DM$39,2)>RIGHT($K45,2),CM45,0)) -> 0 | DN45: =+IF($K45="ongoing",CN45,IF(RIGHT($K45,2)=RIGHT(DN$39,2),SUM($CD45:CN45),0)+IF(RIGHT(DN$39,2)>RIGHT($K45,2),CN45,0)) -> 0 | DP45: 0.5 | DQ45: =+MIN(IF($N45<=$DC45,MIN($N45,1),$N45),IF(DQ$40=1,0.5,DP45+1)) -> 1.5 | DR45: 2.5 | DS45: 3.5 | DT45: 4.5 | DU45: 5.5 | DV45: 6.5 | DW45: 7.5 | DX45: 8.5 | DY45: 9.5 | EA45: =+IF(EA$40=1,0,MIN(IF($N45<=$DC45,MIN($N45,1),$N45),IF(EA$40=2,0.5,DZ45+1))) -> 0 | EB45: 0.5 | EC45: 1.5 | ED45: 2.5 | EE45: 3.5 | EF45: 4.5 | EG45: 5.5 | EH45: 6.5 | EI45: 7.5 | EJ45: 8.5 | EL45: =+IF(DP45=DO45,0, IF(AND(EL$40>1,DP45=$N45),1-SUM($EK45:EK45), IF($N45<=1, IF($N45>0,1/$N45,0), IF(EL$40=1,0,VDB(1,0,$N45,INT(EL$40-1-1),MIN($N45,INT(EL$40-1-1)+1),$DC45,IF($DD45="No",1,0))/ IF(DO45>=INT($N45),$N45-INT($N45),1)))* IF(EL$40=1,0, IF(INT(DP45)=INT(DO45),DP45-DO45,INT(DP45)-DO45))+ IF($N45<=1, IF($N45>0,1/$N45,0),VDB(1,0,$N45,INT(EL$40-1),MIN($N45,INT(EL$40-1)+1),$DC45,IF($DD45="No",1,0))/ IF(DP45>INT($N45),$N45-INT($N45),1))* IF(EL$40=1,DP45, IF(INT(DP45)=INT(DO45),0,DP45-INT(DP45))))) -> 0.01470588235 | EM45: =+IF(DQ45=DP45,0, IF(AND(EM$40>1,DQ45=$N45),1-SUM($EK45:EL45), IF($N45<=1, IF($N45>0,1/$N45,0), IF(EM$40=1,0,VDB(1,0,$N45,INT(EM$40-1-1),MIN($N45,INT(EM$40-1-1)+1),$DC45,IF($DD45="No",1,0))/ IF(DP45>=INT($N45),$N45-INT($N45),1)))* IF(EM$40=1,0, IF(INT(DQ45)=INT(DP45),DQ45-DP45,INT(DQ45)-DP45))+ IF($N45<=1, IF($N45>0,1/$N45,0),VDB(1,0,$N45,INT(EM$40-1),MIN($N45,INT(EM$40-1)+1),$DC45,IF($DD45="No",1,0))/ IF(DQ45>INT($N45),$N45-INT($N45),1))* IF(EM$40=1,DQ45, IF(INT(DQ45)=INT(DP45),0,DQ45-INT(DQ45))))) -> 0.02897923875 | EN45: =+IF(DR45=DQ45,0, IF(AND(EN$40>1,DR45=$N45),1-SUM($EK45:EM45), IF($N45<=1, IF($N45>0,1/$N45,0), IF(EN$40=1,0,VDB(1,0,$N45,INT(EN$40-1-1),MIN($N45,INT(EN$40-1-1)+1),$DC45,IF($DD45="No",1,0))/ IF(DQ45>=INT($N45),$N45-INT($N45),1)))* IF(EN$40=1,0, IF(INT(DR45)=INT(DQ45),DR45-DQ45,INT(DR45)-DQ45))+ IF($N45<=1, IF($N45>0,1/$N45,0),VDB(1,0,$N45,INT(EN$40-1),MIN($N45,INT(EN$40-1)+1),$DC45,IF($DD45="No",1,0))/ IF(DR45>INT($N45),$N45-INT($N45),1))* IF(EN$40=1,DR45, IF(INT(DR45)=INT(DQ45),0,DR45-INT(DR45))))) -> 0.0281269082 | EO45: =+IF(DS45=DR45,0, IF(AND(EO$40>1,DS45=$N45),1-SUM($EK45:EN45), IF($N45<=1, IF($N45>0,1/$N45,0), IF(EO$40=1,0,VDB(1,0,$N45,INT(EO$40-1-1),MIN($N45,INT(EO$40-1-1)+1),$DC45,IF($DD45="No",1,0))/ IF(DR45>=INT($N45),$N45-INT($N45),1)))* IF(EO$40=1,0, IF(INT(DS45)=INT(DR45),DS45-DR45,INT(DS45)-DR45))+ IF($N45<=1, IF($N45>0,1/$N45,0),VDB(1,0,$N45,INT(EO$40-1),MIN($N45,INT(EO$40-1)+1),$DC45,IF($DD45="No",1,0))/ IF(DS45>INT($N45),$N45-INT($N45),1))* IF(EO$40=1,DS45, IF(INT(DS45)=INT(DR45),0,DS45-INT(DS45))))) -> 0.0272996462 | EP45: =+IF(DT45=DS45,0, IF(AND(EP$40>1,DT45=$N45),1-SUM($EK45:EO45), IF($N45<=1, IF($N45>0,1/$N45,0), IF(EP$40=1,0,VDB(1,0,$N45,INT(EP$40-1-1),MIN($N45,INT(EP$40-1-1)+1),$DC45,IF($DD45="No",1,0))/ IF(DS45>=INT($N45),$N45-INT($N45),1)))* IF(EP$40=1,0, IF(INT(DT45)=INT(DS45),DT45-DS45,INT(DT45)-DS45))+ IF($N45<=1, IF($N45>0,1/$N45,0),VDB(1,0,$N45,INT(EP$40-1),MIN($N45,INT(EP$40-1)+1),$DC45,IF($DD45="No",1,0))/ IF(DT45>INT($N45),$N45-INT($N45),1))* IF(EP$40=1,DT45, IF(INT(DT45)=INT(DS45),0,DT45-INT(DT45))))) -> 0.02649671543 | EQ45: =+IF(DU45=DT45,0, IF(AND(EQ$40>1,DU45=$N45),1-SUM($EK45:EP45), IF($N45<=1, IF($N45>0,1/$N45,0), IF(EQ$40=1,0,VDB(1,0,$N45,INT(EQ$40-1-1),MIN($N45,INT(EQ$40-1-1)+1),$DC45,IF($DD45="No",1,0))/ IF(DT45>=INT($N45),$N45-INT($N45),1)))* IF(EQ$40=1,0, IF(INT(DU45)=INT(DT45),DU45-DT45,INT(DU45)-DT45))+ IF($N45<=1, IF($N45>0,1/$N45,0),VDB(1,0,$N45,INT(EQ$40-1),MIN($N45,INT(EQ$40-1)+1),$DC45,IF($DD45="No",1,0))/ IF(DU45>INT($N45),$N45-INT($N45),1))* IF(EQ$40=1,DU45, IF(INT(DU45)=INT(DT45),0,DU45-INT(DU45))))) -> 0.02571740027 | ER45: =+IF(DV45=DU45,0, IF(AND(ER$40>1,DV45=$N45),1-SUM($EK45:EQ45), IF($N45<=1, IF($N45>0,1/$N45,0), IF(ER$40=1,0,VDB(1,0,$N45,INT(ER$40-1-1),MIN($N45,INT(ER$40-1-1)+1),$DC45,IF($DD45="No",1,0))/ IF(DU45>=INT($N45),$N45-INT($N45),1)))* IF(ER$40=1,0, IF(INT(DV45)=INT(DU45),DV45-DU45,INT(DV45)-DU45))+ IF($N45<=1, IF($N45>0,1/$N45,0),VDB(1,0,$N45,INT(ER$40-1),MIN($N45,INT(ER$40-1)+1),$DC45,IF($DD45="No",1,0))/ IF(DV45>INT($N45),$N45-INT($N45),1))* IF(ER$40=1,DV45, IF(INT(DV45)=INT(DU45),0,DV45-INT(DV45))))) -> 0.02496100614 | ES45: =+IF(DW45=DV45,0, IF(AND(ES$40>1,DW45=$N45),1-SUM($EK45:ER45), IF($N45<=1, IF($N45>0,1/$N45,0), IF(ES$40=1,0,VDB(1,0,$N45,INT(ES$40-1-1),MIN($N45,INT(ES$40-1-1)+1),$DC45,IF($DD45="No",1,0))/ IF(DV45>=INT($N45),$N45-INT($N45),1)))* IF(ES$40=1,0, IF(INT(DW45)=INT(DV45),DW45-DV45,INT(DW45)-DV45))+ IF($N45<=1, IF($N45>0,1/$N45,0),VDB(1,0,$N45,INT(ES$40-1),MIN($N45,INT(ES$40-1)+1),$DC45,IF($DD45="No",1,0))/ IF(DW45>INT($N45),$N45-INT($N45),1))* IF(ES$40=1,DW45, IF(INT(DW45)=INT(DV45),0,DW45-INT(DW45))))) -> 0.0242268589 | ET45: =+IF(DX45=DW45,0, IF(AND(ET$40>1,DX45=$N45),1-SUM($EK45:ES45), IF($N45<=1, IF($N45>0,1/$N45,0), IF(ET$40=1,0,VDB(1,0,$N45,INT(ET$40-1-1),MIN($N45,INT(ET$40-1-1)+1),$DC45,IF($DD45="No",1,0))/ IF(DW45>=INT($N45),$N45-INT($N45),1)))* IF(ET$40=1,0, IF(INT(DX45)=INT(DW45),DX45-DW45,INT(DX45)-DW45))+ IF($N45<=1, IF($N45>0,1/$N45,0),VDB(1,0,$N45,INT(ET$40-1),MIN($N45,INT(ET$40-1)+1),$DC45,IF($DD45="No",1,0))/ IF(DX45>INT($N45),$N45-INT($N45),1))* IF(ET$40=1,DX45, IF(INT(DX45)=INT(DW45),0,DX45-INT(DX45))))) -> 0.02351430423 | EU45: =+IF(DY45=DX45,0, IF(AND(EU$40>1,DY45=$N45),1-SUM($EK45:ET45), IF($N45<=1, IF($N45>0,1/$N45,0), IF(EU$40=1,0,VDB(1,0,$N45,INT(EU$40-1-1),MIN($N45,INT(EU$40-1-1)+1),$DC45,IF($DD45="No",1,0))/ IF(DX45>=INT($N45),$N45-INT($N45),1)))* IF(EU$40=1,0, IF(INT(DY45)=INT(DX45),DY45-DX45,INT(DY45)-DX45))+ IF($N45<=1, IF($N45>0,1/$N45,0),VDB(1,0,$N45,INT(EU$40-1),MIN($N45,INT(EU$40-1)+1),$DC45,IF($DD45="No",1,0))/ IF(DY45>INT($N45),$N45-INT($N45),1))* IF(EU$40=1,DY45, IF(INT(DY45)=INT(DX45),0,DY45-INT(DY45))))) -> 0.02282270704 | EW45: =+IF(OR(EA45=DZ45,EW$40=1),0, IF(AND(EW$40>1,EA45=$N45),1-SUM($EV45:EV45), IF($N45<=1, IF($N45>0,1/$N45,0), IF(EW$40=2,0,VDB(1,0,$N45,INT(EW$40-2-1),MIN($N45,INT(EW$40-2-1)+1),$DC45,IF($DD45="No",1,0))/ IF(DZ45>=INT($N45),$N45-INT($N45),1)))* IF(EW$40=2,0, IF(INT(EA45)=INT(DZ45),EA45-DZ45,INT(EA45)-DZ45))+ IF($N45<=1, IF($N45>0,1/$N45,0),VDB(1,0,$N45,INT(EW$40-2),MIN($N45,INT(EW$40-2)+1),$DC45,IF($DD45="No",1,0))/ IF(EA45>INT($N45),$N45-INT($N45),1))* IF(EW$40=2,EA45, IF(INT(EA45)=INT(DZ45),0,EA45-INT(EA45))))) -> 0 | EX45: =+IF(OR(EB45=EA45,EX$40=1),0, IF(AND(EX$40>1,EB45=$N45),1-SUM($EV45:EW45), IF($N45<=1, IF($N45>0,1/$N45,0), IF(EX$40=2,0,VDB(1,0,$N45,INT(EX$40-2-1),MIN($N45,INT(EX$40-2-1)+1),$DC45,IF($DD45="No",1,0))/ IF(EA45>=INT($N45),$N45-INT($N45),1)))* IF(EX$40=2,0, IF(INT(EB45)=INT(EA45),EB45-EA45,INT(EB45)-EA45))+ IF($N45<=1, IF($N45>0,1/$N45,0),VDB(1,0,$N45,INT(EX$40-2),MIN($N45,INT(EX$40-2)+1),$DC45,IF($DD45="No",1,0))/ IF(EB45>INT($N45),$N45-INT($N45),1))* IF(EX$40=2,EB45, IF(INT(EB45)=INT(EA45),0,EB45-INT(EB45))))) -> 0.01470588235 | EY45: =+IF(OR(EC45=EB45,EY$40=1),0, IF(AND(EY$40>1,EC45=$N45),1-SUM($EV45:EX45), IF($N45<=1, IF($N45>0,1/$N45,0), IF(EY$40=2,0,VDB(1,0,$N45,INT(EY$40-2-1),MIN($N45,INT(EY$40-2-1)+1),$DC45,IF($DD45="No",1,0))/ IF(EB45>=INT($N45),$N45-INT($N45),1)))* IF(EY$40=2,0, IF(INT(EC45)=INT(EB45),EC45-EB45,INT(EC45)-EB45))+ IF($N45<=1, IF($N45>0,1/$N45,0),VDB(1,0,$N45,INT(EY$40-2),MIN($N45,INT(EY$40-2)+1),$DC45,IF($DD45="No",1,0))/ IF(EC45>INT($N45),$N45-INT($N45),1))* IF(EY$40=2,EC45, IF(INT(EC45)=INT(EB45),0,EC45-INT(EC45))))) -> 0.02897923875 | EZ45: =+IF(OR(ED45=EC45,EZ$40=1),0, IF(AND(EZ$40>1,ED45=$N45),1-SUM($EV45:EY45), IF($N45<=1, IF($N45>0,1/$N45,0), IF(EZ$40=2,0,VDB(1,0,$N45,INT(EZ$40-2-1),MIN($N45,INT(EZ$40-2-1)+1),$DC45,IF($DD45="No",1,0))/ IF(EC45>=INT($N45),$N45-INT($N45),1)))* IF(EZ$40=2,0, IF(INT(ED45)=INT(EC45),ED45-EC45,INT(ED45)-EC45))+ IF($N45<=1, IF($N45>0,1/$N45,0),VDB(1,0,$N45,INT(EZ$40-2),MIN($N45,INT(EZ$40-2)+1),$DC45,IF($DD45="No",1,0))/ IF(ED45>INT($N45),$N45-INT($N45),1))* IF(EZ$40=2,ED45, IF(INT(ED45)=INT(EC45),0,ED45-INT(ED45))))) -> 0.0281269082 | FA45: =+IF(OR(EE45=ED45,FA$40=1),0, IF(AND(FA$40>1,EE45=$N45),1-SUM($EV45:EZ45), IF($N45<=1, IF($N45>0,1/$N45,0), IF(FA$40=2,0,VDB(1,0,$N45,INT(FA$40-2-1),MIN($N45,INT(FA$40-2-1)+1),$DC45,IF($DD45="No",1,0))/ IF(ED45>=INT($N45),$N45-INT($N45),1)))* IF(FA$40=2,0, IF(INT(EE45)=INT(ED45),EE45-ED45,INT(EE45)-ED45))+ IF($N45<=1, IF($N45>0,1/$N45,0),VDB(1,0,$N45,INT(FA$40-2),MIN($N45,INT(FA$40-2)+1),$DC45,IF($DD45="No",1,0))/ IF(EE45>INT($N45),$N45-INT($N45),1))* IF(FA$40=2,EE45, IF(INT(EE45)=INT(ED45),0,EE45-INT(EE45))))) -> 0.0272996462 | FB45: =+IF(OR(EF45=EE45,FB$40=1),0, IF(AND(FB$40>1,EF45=$N45),1-SUM($EV45:FA45), IF($N45<=1, IF($N45>0,1/$N45,0), IF(FB$40=2,0,VDB(1,0,$N45,INT(FB$40-2-1),MIN($N45,INT(FB$40-2-1)+1),$DC45,IF($DD45="No",1,0))/ IF(EE45>=INT($N45),$N45-INT($N45),1)))* IF(FB$40=2,0, IF(INT(EF45)=INT(EE45),EF45-EE45,INT(EF45)-EE45))+ IF($N45<=1, IF($N45>0,1/$N45,0),VDB(1,0,$N45,INT(FB$40-2),MIN($N45,INT(FB$40-2)+1),$DC45,IF($DD45="No",1,0))/ IF(EF45>INT($N45),$N45-INT($N45),1))* IF(FB$40=2,EF45, IF(INT(EF45)=INT(EE45),0,EF45-INT(EF45))))) -> 0.02649671543 | FC45: =+IF(OR(EG45=EF45,FC$40=1),0, IF(AND(FC$40>1,EG45=$N45),1-SUM($EV45:FB45), IF($N45<=1, IF($N45>0,1/$N45,0), IF(FC$40=2,0,VDB(1,0,$N45,INT(FC$40-2-1),MIN($N45,INT(FC$40-2-1)+1),$DC45,IF($DD45="No",1,0))/ IF(EF45>=INT($N45),$N45-INT($N45),1)))* IF(FC$40=2,0, IF(INT(EG45)=INT(EF45),EG45-EF45,INT(EG45)-EF45))+ IF($N45<=1, IF($N45>0,1/$N45,0),VDB(1,0,$N45,INT(FC$40-2),MIN($N45,INT(FC$40-2)+1),$DC45,IF($DD45="No",1,0))/ IF(EG45>INT($N45),$N45-INT($N45),1))* IF(FC$40=2,EG45, IF(INT(EG45)=INT(EF45),0,EG45-INT(EG45))))) -> 0.02571740027 | FD45: =+IF(OR(EH45=EG45,FD$40=1),0, IF(AND(FD$40>1,EH45=$N45),1-SUM($EV45:FC45), IF($N45<=1, IF($N45>0,1/$N45,0), IF(FD$40=2,0,VDB(1,0,$N45,INT(FD$40-2-1),MIN($N45,INT(FD$40-2-1)+1),$DC45,IF($DD45="No",1,0))/ IF(EG45>=INT($N45),$N45-INT($N45),1)))* IF(FD$40=2,0, IF(INT(EH45)=INT(EG45),EH45-EG45,INT(EH45)-EG45))+ IF($N45<=1, IF($N45>0,1/$N45,0),VDB(1,0,$N45,INT(FD$40-2),MIN($N45,INT(FD$40-2)+1),$DC45,IF($DD45="No",1,0))/ IF(EH45>INT($N45),$N45-INT($N45),1))* IF(FD$40=2,EH45, IF(INT(EH45)=INT(EG45),0,EH45-INT(EH45))))) -> 0.02496100614 | FE45: =+IF(OR(EI45=EH45,FE$40=1),0, IF(AND(FE$40>1,EI45=$N45),1-SUM($EV45:FD45), IF($N45<=1, IF($N45>0,1/$N45,0), IF(FE$40=2,0,VDB(1,0,$N45,INT(FE$40-2-1),MIN($N45,INT(FE$40-2-1)+1),$DC45,IF($DD45="No",1,0))/ IF(EH45>=INT($N45),$N45-INT($N45),1)))* IF(FE$40=2,0, IF(INT(EI45)=INT(EH45),EI45-EH45,INT(EI45)-EH45))+ IF($N45<=1, IF($N45>0,1/$N45,0),VDB(1,0,$N45,INT(FE$40-2),MIN($N45,INT(FE$40-2)+1),$DC45,IF($DD45="No",1,0))/ IF(EI45>INT($N45),$N45-INT($N45),1))* IF(FE$40=2,EI45, IF(INT(EI45)=INT(EH45),0,EI45-INT(EI45))))) -> 0.0242268589 | FF45: =+IF(OR(EJ45=EI45,FF$40=1),0, IF(AND(FF$40>1,EJ45=$N45),1-SUM($EV45:FE45), IF($N45<=1, IF($N45>0,1/$N45,0), IF(FF$40=2,0,VDB(1,0,$N45,INT(FF$40-2-1),MIN($N45,INT(FF$40-2-1)+1),$DC45,IF($DD45="No",1,0))/ IF(EI45>=INT($N45),$N45-INT($N45),1)))* IF(FF$40=2,0, IF(INT(EJ45)=INT(EI45),EJ45-EI45,INT(EJ45)-EI45))+ IF($N45<=1, IF($N45>0,1/$N45,0),VDB(1,0,$N45,INT(FF$40-2),MIN($N45,INT(FF$40-2)+1),$DC45,IF($DD45="No",1,0))/ IF(EJ45>INT($N45),$N45-INT($N45),1))* IF(FF$40=2,EJ45, IF(INT(EJ45)=INT(EI45),0,EJ45-INT(EJ45))))) -> 0.02351430423 | FH45: 0.02351430423 | FI45: 0.0242268589 | FJ45: 0.02496100614 | FK45: 0.02571740027 | FL45: 0.02649671543 | FM45: 0.0272996462 | FN45: 0.0281269082 | FO45: 0.02897923875 | FP45: 0.01470588235 | FQ45: 0 | FS45: 0 | FT45: 0 | FU45: 0.09702026747 | FV45: 0.1911869977 | FW45: 0.1855638507 | FX45: 0.1801060904 | FY45: 0.1748088524 | FZ45: 0.1696674156 | GA45: 0.1646771975 | GB45: 0.1598337505
C46: Sunbury RWP Upgrade | E46: Sewerage | F46: Growth | G46: Treatment | H46: Top 10 Major Projects | J46: Straight line | K46: 2023 | L46: 51 | M46: Declining Balance | N46: 51 | Q46: 3.225 | R46: 0.21285 | S46: 0.21285 | T46: 0.21285 | U46: 0.21285 | AB46: 0 | AC46: 0 | AD46: 0 | AE46: 0 | AF46: 0 | AM46: 0 | AN46: 0 | AO46: 0 | AP46: 0 | AQ46: 0 | AX46: 3.225 | AY46: 0.21285 | AZ46: 0.21285 | BA46: 0.21285 | BB46: 0.21285 | BC46: 0 | BD46: 0 | BE46: 0 | BF46: 0 | BG46: 0 | BI46: 0 | BJ46: 0 | BK46: 0 | BL46: 0 | BM46: 0.03996470588 | BN46: 0.07992941176 | BO46: 0.07992941176 | BP46: 0.07992941176 | BQ46: 0.07992941176 | BR46: 0.07992941176 | BT46: =+IF($K46="Ongoing",AX46,IF(RIGHT($K46,2)=RIGHT(BT$39,2),SUM($AX46:AX46),0)+IF(RIGHT(BT$39,2)>RIGHT($K46,2),AX46,0)) -> 0 | BU46: =+IF($K46="Ongoing",AY46,IF(RIGHT($K46,2)=RIGHT(BU$39,2),SUM($AX46:AY46),0)+IF(RIGHT(BU$39,2)>RIGHT($K46,2),AY46,0)) -> 0 | BV46: =+IF($K46="Ongoing",AZ46,IF(RIGHT($K46,2)=RIGHT(BV$39,2),SUM($AX46:AZ46),0)+IF(RIGHT(BV$39,2)>RIGHT($K46,2),AZ46,0)) -> 0 | BW46: =+IF($K46="Ongoing",BA46,IF(RIGHT($K46,2)=RIGHT(BW$39,2),SUM($AX46:BA46),0)+IF(RIGHT(BW$39,2)>RIGHT($K46,2),BA46,0)) -> 0 | BX46: =+IF($K46="Ongoing",BB46,IF(RIGHT($K46,2)=RIGHT(BX$39,2),SUM($AX46:BB46),0)+IF(RIGHT(BX$39,2)>RIGHT($K46,2),BB46,0)) -> 4.0764 | BY46: =+IF($K46="Ongoing",BC46,IF(RIGHT($K46,2)=RIGHT(BY$39,2),SUM($AX46:BC46),0)+IF(RIGHT(BY$39,2)>RIGHT($K46,2),BC46,0)) -> 0 | BZ46: =+IF($K46="Ongoing",BD46,IF(RIGHT($K46,2)=RIGHT(BZ$39,2),SUM($AX46:BD46),0)+IF(RIGHT(BZ$39,2)>RIGHT($K46,2),BD46,0)) -> 0 | CA46: =+IF($K46="Ongoing",BE46,IF(RIGHT($K46,2)=RIGHT(CA$39,2),SUM($AX46:BE46),0)+IF(RIGHT(CA$39,2)>RIGHT($K46,2),BE46,0)) -> 0 | CB46: =+IF($K46="Ongoing",BF46,IF(RIGHT($K46,2)=RIGHT(CB$39,2),SUM($AX46:BF46),0)+IF(RIGHT(CB$39,2)>RIGHT($K46,2),BF46,0)) -> 0 | CC46: =+IF($K46="Ongoing",BG46,IF(RIGHT($K46,2)=RIGHT(CC$39,2),SUM($AX46:BG46),0)+IF(RIGHT(CC$39,2)>RIGHT($K46,2),BG46,0)) -> 0 | CE46: =+Q46*KeyAssumptionsPriceControl_FO!X$15 -> 3.299175 | CF46: =+R46*KeyAssumptionsPriceControl_FO!Y$15 -> 0.2227536976 | CG46: =+S46*KeyAssumptionsPriceControl_FO!Z$15 -> 0.2278770327 | CH46: =+T46*KeyAssumptionsPriceControl_FO!AA$15 -> 0.2331182044 | CI46: =+U46*KeyAssumptionsPriceControl_FO!AB$15 -> 0.2384799232 | CJ46: =+V46*KeyAssumptionsPriceControl_FO!AC$15 -> 0 | CK46: =+W46*KeyAssumptionsPriceControl_FO!AD$15 -> 0 | CL46: =+X46*KeyAssumptionsPriceControl_FO!AE$15 -> 0 | CM46: =+Y46*KeyAssumptionsPriceControl_FO!AF$15 -> 0 | CN46: =+Z46*KeyAssumptionsPriceControl_FO!AG$15 -> 0 | CP46: 0 | CQ46: 0 | CR46: 0 | CS46: 0 | CT46: 0.0620794685 | CU46: 0.1223330703 | CV46: 0.1187350388 | CW46: 0.1152428318 | CX46: 0.1118533367 | CY46: 0.1085635327 | DC46: 1.5 | DD46: No | DE46: =+IF($K46="ongoing",CE46,IF(RIGHT($K46,2)=RIGHT(DE$39,2),SUM($CD46:CE46),0)+IF(RIGHT(DE$39,2)>RIGHT($K46,2),CE46,0)) -> 0 | DF46: =+IF($K46="ongoing",CF46,IF(RIGHT($K46,2)=RIGHT(DF$39,2),SUM($CD46:CF46),0)+IF(RIGHT(DF$39,2)>RIGHT($K46,2),CF46,0)) -> 0 | DG46: =+IF($K46="ongoing",CG46,IF(RIGHT($K46,2)=RIGHT(DG$39,2),SUM($CD46:CG46),0)+IF(RIGHT(DG$39,2)>RIGHT($K46,2),CG46,0)) -> 0 | DH46: =+IF($K46="ongoing",CH46,IF(RIGHT($K46,2)=RIGHT(DH$39,2),SUM($CD46:CH46),0)+IF(RIGHT(DH$39,2)>RIGHT($K46,2),CH46,0)) -> 0 | DI46: =+IF($K46="ongoing",CI46,IF(RIGHT($K46,2)=RIGHT(DI$39,2),SUM($CD46:CI46),0)+IF(RIGHT(DI$39,2)>RIGHT($K46,2),CI46,0)) -> 4.221403858 | DJ46: =+IF($K46="ongoing",CJ46,IF(RIGHT($K46,2)=RIGHT(DJ$39,2),SUM($CD46:CJ46),0)+IF(RIGHT(DJ$39,2)>RIGHT($K46,2),CJ46,0)) -> 0 | DK46: =+IF($K46="ongoing",CK46,IF(RIGHT($K46,2)=RIGHT(DK$39,2),SUM($CD46:CK46),0)+IF(RIGHT(DK$39,2)>RIGHT($K46,2),CK46,0)) -> 0 | DL46: =+IF($K46="ongoing",CL46,IF(RIGHT($K46,2)=RIGHT(DL$39,2),SUM($CD46:CL46),0)+IF(RIGHT(DL$39,2)>RIGHT($K46,2),CL46,0)) -> 0 | DM46: =+IF($K46="ongoing",CM46,IF(RIGHT($K46,2)=RIGHT(DM$39,2),SUM($CD46:CM46),0)+IF(RIGHT(DM$39,2)>RIGHT($K46,2),CM46,0)) -> 0 | DN46: =+IF($K46="ongoing",CN46,IF(RIGHT($K46,2)=RIGHT(DN$39,2),SUM($CD46:CN46),0)+IF(RIGHT(DN$39,2)>RIGHT($K46,2),CN46,0)) -> 0 | DP46: 0.5 | DQ46: =+MIN(IF($N46<=$DC46,MIN($N46,1),$N46),IF(DQ$40=1,0.5,DP46+1)) -> 1.5 | DR46: 2.5 | DS46: 3.5 | DT46: 4.5 | DU46: 5.5 | DV46: 6.5 | DW46: 7.5 | DX46: 8.5 | DY46: 9.5 | EA46: =+IF(EA$40=1,0,MIN(IF($N46<=$DC46,MIN($N46,1),$N46),IF(EA$40=2,0.5,DZ46+1))) -> 0 | EB46: 0.5 | EC46: 1.5 | ED46: 2.5 | EE46: 3.5 | EF46: 4.5 | EG46: 5.5 | EH46: 6.5 | EI46: 7.5 | EJ46: 8.5 | EL46: =+IF(DP46=DO46,0, IF(AND(EL$40>1,DP46=$N46),1-SUM($EK46:EK46), IF($N46<=1, IF($N46>0,1/$N46,0), IF(EL$40=1,0,VDB(1,0,$N46,INT(EL$40-1-1),MIN($N46,INT(EL$40-1-1)+1),$DC46,IF($DD46="No",1,0))/ IF(DO46>=INT($N46),$N46-INT($N46),1)))* IF(EL$40=1,0, IF(INT(DP46)=INT(DO46),DP46-DO46,INT(DP46)-DO46))+ IF($N46<=1, IF($N46>0,1/$N46,0),VDB(1,0,$N46,INT(EL$40-1),MIN($N46,INT(EL$40-1)+1),$DC46,IF($DD46="No",1,0))/ IF(DP46>INT($N46),$N46-INT($N46),1))* IF(EL$40=1,DP46, IF(INT(DP46)=INT(DO46),0,DP46-INT(DP46))))) -> 0.01470588235 | EM46: =+IF(DQ46=DP46,0, IF(AND(EM$40>1,DQ46=$N46),1-SUM($EK46:EL46), IF($N46<=1, IF($N46>0,1/$N46,0), IF(EM$40=1,0,VDB(1,0,$N46,INT(EM$40-1-1),MIN($N46,INT(EM$40-1-1)+1),$DC46,IF($DD46="No",1,0))/ IF(DP46>=INT($N46),$N46-INT($N46),1)))* IF(EM$40=1,0, IF(INT(DQ46)=INT(DP46),DQ46-DP46,INT(DQ46)-DP46))+ IF($N46<=1, IF($N46>0,1/$N46,0),VDB(1,0,$N46,INT(EM$40-1),MIN($N46,INT(EM$40-1)+1),$DC46,IF($DD46="No",1,0))/ IF(DQ46>INT($N46),$N46-INT($N46),1))* IF(EM$40=1,DQ46, IF(INT(DQ46)=INT(DP46),0,DQ46-INT(DQ46))))) -> 0.02897923875 | EN46: =+IF(DR46=DQ46,0, IF(AND(EN$40>1,DR46=$N46),1-SUM($EK46:EM46), IF($N46<=1, IF($N46>0,1/$N46,0), IF(EN$40=1,0,VDB(1,0,$N46,INT(EN$40-1-1),MIN($N46,INT(EN$40-1-1)+1),$DC46,IF($DD46="No",1,0))/ IF(DQ46>=INT($N46),$N46-INT($N46),1)))* IF(EN$40=1,0, IF(INT(DR46)=INT(DQ46),DR46-DQ46,INT(DR46)-DQ46))+ IF($N46<=1, IF($N46>0,1/$N46,0),VDB(1,0,$N46,INT(EN$40-1),MIN($N46,INT(EN$40-1)+1),$DC46,IF($DD46="No",1,0))/ IF(DR46>INT($N46),$N46-INT($N46),1))* IF(EN$40=1,DR46, IF(INT(DR46)=INT(DQ46),0,DR46-INT(DR46))))) -> 0.0281269082 | EO46: =+IF(DS46=DR46,0, IF(AND(EO$40>1,DS46=$N46),1-SUM($EK46:EN46), IF($N46<=1, IF($N46>0,1/$N46,0), IF(EO$40=1,0,VDB(1,0,$N46,INT(EO$40-1-1),MIN($N46,INT(EO$40-1-1)+1),$DC46,IF($DD46="No",1,0))/ IF(DR46>=INT($N46),$N46-INT($N46),1)))* IF(EO$40=1,0, IF(INT(DS46)=INT(DR46),DS46-DR46,INT(DS46)-DR46))+ IF($N46<=1, IF($N46>0,1/$N46,0),VDB(1,0,$N46,INT(EO$40-1),MIN($N46,INT(EO$40-1)+1),$DC46,IF($DD46="No",1,0))/ IF(DS46>INT($N46),$N46-INT($N46),1))* IF(EO$40=1,DS46, IF(INT(DS46)=INT(DR46),0,DS46-INT(DS46))))) -> 0.0272996462 | EP46: =+IF(DT46=DS46,0, IF(AND(EP$40>1,DT46=$N46),1-SUM($EK46:EO46), IF($N46<=1, IF($N46>0,1/$N46,0), IF(EP$40=1,0,VDB(1,0,$N46,INT(EP$40-1-1),MIN($N46,INT(EP$40-1-1)+1),$DC46,IF($DD46="No",1,0))/ IF(DS46>=INT($N46),$N46-INT($N46),1)))* IF(EP$40=1,0, IF(INT(DT46)=INT(DS46),DT46-DS46,INT(DT46)-DS46))+ IF($N46<=1, IF($N46>0,1/$N46,0),VDB(1,0,$N46,INT(EP$40-1),MIN($N46,INT(EP$40-1)+1),$DC46,IF($DD46="No",1,0))/ IF(DT46>INT($N46),$N46-INT($N46),1))* IF(EP$40=1,DT46, IF(INT(DT46)=INT(DS46),0,DT46-INT(DT46))))) -> 0.02649671543 | EQ46: =+IF(DU46=DT46,0, IF(AND(EQ$40>1,DU46=$N46),1-SUM($EK46:EP46), IF($N46<=1, IF($N46>0,1/$N46,0), IF(EQ$40=1,0,VDB(1,0,$N46,INT(EQ$40-1-1),MIN($N46,INT(EQ$40-1-1)+1),$DC46,IF($DD46="No",1,0))/ IF(DT46>=INT($N46),$N46-INT($N46),1)))* IF(EQ$40=1,0, IF(INT(DU46)=INT(DT46),DU46-DT46,INT(DU46)-DT46))+ IF($N46<=1, IF($N46>0,1/$N46,0),VDB(1,0,$N46,INT(EQ$40-1),MIN($N46,INT(EQ$40-1)+1),$DC46,IF($DD46="No",1,0))/ IF(DU46>INT($N46),$N46-INT($N46),1))* IF(EQ$40=1,DU46, IF(INT(DU46)=INT(DT46),0,DU46-INT(DU46))))) -> 0.02571740027 | ER46: =+IF(DV46=DU46,0, IF(AND(ER$40>1,DV46=$N46),1-SUM($EK46:EQ46), IF($N46<=1, IF($N46>0,1/$N46,0), IF(ER$40=1,0,VDB(1,0,$N46,INT(ER$40-1-1),MIN($N46,INT(ER$40-1-1)+1),$DC46,IF($DD46="No",1,0))/ IF(DU46>=INT($N46),$N46-INT($N46),1)))* IF(ER$40=1,0, IF(INT(DV46)=INT(DU46),DV46-DU46,INT(DV46)-DU46))+ IF($N46<=1, IF($N46>0,1/$N46,0),VDB(1,0,$N46,INT(ER$40-1),MIN($N46,INT(ER$40-1)+1),$DC46,IF($DD46="No",1,0))/ IF(DV46>INT($N46),$N46-INT($N46),1))* IF(ER$40=1,DV46, IF(INT(DV46)=INT(DU46),0,DV46-INT(DV46))))) -> 0.02496100614 | ES46: =+IF(DW46=DV46,0, IF(AND(ES$40>1,DW46=$N46),1-SUM($EK46:ER46), IF($N46<=1, IF($N46>0,1/$N46,0), IF(ES$40=1,0,VDB(1,0,$N46,INT(ES$40-1-1),MIN($N46,INT(ES$40-1-1)+1),$DC46,IF($DD46="No",1,0))/ IF(DV46>=INT($N46),$N46-INT($N46),1)))* IF(ES$40=1,0, IF(INT(DW46)=INT(DV46),DW46-DV46,INT(DW46)-DV46))+ IF($N46<=1, IF($N46>0,1/$N46,0),VDB(1,0,$N46,INT(ES$40-1),MIN($N46,INT(ES$40-1)+1),$DC46,IF($DD46="No",1,0))/ IF(DW46>INT($N46),$N46-INT($N46),1))* IF(ES$40=1,DW46, IF(INT(DW46)=INT(DV46),0,DW46-INT(DW46))))) -> 0.0242268589 | ET46: =+IF(DX46=DW46,0, IF(AND(ET$40>1,DX46=$N46),1-SUM($EK46:ES46), IF($N46<=1, IF($N46>0,1/$N46,0), IF(ET$40=1,0,VDB(1,0,$N46,INT(ET$40-1-1),MIN($N46,INT(ET$40-1-1)+1),$DC46,IF($DD46="No",1,0))/ IF(DW46>=INT($N46),$N46-INT($N46),1)))* IF(ET$40=1,0, IF(INT(DX46)=INT(DW46),DX46-DW46,INT(DX46)-DW46))+ IF($N46<=1, IF($N46>0,1/$N46,0),VDB(1,0,$N46,INT(ET$40-1),MIN($N46,INT(ET$40-1)+1),$DC46,IF($DD46="No",1,0))/ IF(DX46>INT($N46),$N46-INT($N46),1))* IF(ET$40=1,DX46, IF(INT(DX46)=INT(DW46),0,DX46-INT(DX46))))) -> 0.02351430423 | EU46: =+IF(DY46=DX46,0, IF(AND(EU$40>1,DY46=$N46),1-SUM($EK46:ET46), IF($N46<=1, IF($N46>0,1/$N46,0), IF(EU$40=1,0,VDB(1,0,$N46,INT(EU$40-1-1),MIN($N46,INT(EU$40-1-1)+1),$DC46,IF($DD46="No",1,0))/ IF(DX46>=INT($N46),$N46-INT($N46),1)))* IF(EU$40=1,0, IF(INT(DY46)=INT(DX46),DY46-DX46,INT(DY46)-DX46))+ IF($N46<=1, IF($N46>0,1/$N46,0),VDB(1,0,$N46,INT(EU$40-1),MIN($N46,INT(EU$40-1)+1),$DC46,IF($DD46="No",1,0))/ IF(DY46>INT($N46),$N46-INT($N46),1))* IF(EU$40=1,DY46, IF(INT(DY46)=INT(DX46),0,DY46-INT(DY46))))) -> 0.02282270704 | EW46: =+IF(OR(EA46=DZ46,EW$40=1),0, IF(AND(EW$40>1,EA46=$N46),1-SUM($EV46:EV46), IF($N46<=1, IF($N46>0,1/$N46,0), IF(EW$40=2,0,VDB(1,0,$N46,INT(EW$40-2-1),MIN($N46,INT(EW$40-2-1)+1),$DC46,IF($DD46="No",1,0))/ IF(DZ46>=INT($N46),$N46-INT($N46),1)))* IF(EW$40=2,0, IF(INT(EA46)=INT(DZ46),EA46-DZ46,INT(EA46)-DZ46))+ IF($N46<=1, IF($N46>0,1/$N46,0),VDB(1,0,$N46,INT(EW$40-2),MIN($N46,INT(EW$40-2)+1),$DC46,IF($DD46="No",1,0))/ IF(EA46>INT($N46),$N46-INT($N46),1))* IF(EW$40=2,EA46, IF(INT(EA46)=INT(DZ46),0,EA46-INT(EA46))))) -> 0 | EX46: =+IF(OR(EB46=EA46,EX$40=1),0, IF(AND(EX$40>1,EB46=$N46),1-SUM($EV46:EW46), IF($N46<=1, IF($N46>0,1/$N46,0), IF(EX$40=2,0,VDB(1,0,$N46,INT(EX$40-2-1),MIN($N46,INT(EX$40-2-1)+1),$DC46,IF($DD46="No",1,0))/ IF(EA46>=INT($N46),$N46-INT($N46),1)))* IF(EX$40=2,0, IF(INT(EB46)=INT(EA46),EB46-EA46,INT(EB46)-EA46))+ IF($N46<=1, IF($N46>0,1/$N46,0),VDB(1,0,$N46,INT(EX$40-2),MIN($N46,INT(EX$40-2)+1),$DC46,IF($DD46="No",1,0))/ IF(EB46>INT($N46),$N46-INT($N46),1))* IF(EX$40=2,EB46, IF(INT(EB46)=INT(EA46),0,EB46-INT(EB46))))) -> 0.01470588235 | EY46: =+IF(OR(EC46=EB46,EY$40=1),0, IF(AND(EY$40>1,EC46=$N46),1-SUM($EV46:EX46), IF($N46<=1, IF($N46>0,1/$N46,0), IF(EY$40=2,0,VDB(1,0,$N46,INT(EY$40-2-1),MIN($N46,INT(EY$40-2-1)+1),$DC46,IF($DD46="No",1,0))/ IF(EB46>=INT($N46),$N46-INT($N46),1)))* IF(EY$40=2,0, IF(INT(EC46)=INT(EB46),EC46-EB46,INT(EC46)-EB46))+ IF($N46<=1, IF($N46>0,1/$N46,0),VDB(1,0,$N46,INT(EY$40-2),MIN($N46,INT(EY$40-2)+1),$DC46,IF($DD46="No",1,0))/ IF(EC46>INT($N46),$N46-INT($N46),1))* IF(EY$40=2,EC46, IF(INT(EC46)=INT(EB46),0,EC46-INT(EC46))))) -> 0.02897923875 | EZ46: =+IF(OR(ED46=EC46,EZ$40=1),0, IF(AND(EZ$40>1,ED46=$N46),1-SUM($EV46:EY46), IF($N46<=1, IF($N46>0,1/$N46,0), IF(EZ$40=2,0,VDB(1,0,$N46,INT(EZ$40-2-1),MIN($N46,INT(EZ$40-2-1)+1),$DC46,IF($DD46="No",1,0))/ IF(EC46>=INT($N46),$N46-INT($N46),1)))* IF(EZ$40=2,0, IF(INT(ED46)=INT(EC46),ED46-EC46,INT(ED46)-EC46))+ IF($N46<=1, IF($N46>0,1/$N46,0),VDB(1,0,$N46,INT(EZ$40-2),MIN($N46,INT(EZ$40-2)+1),$DC46,IF($DD46="No",1,0))/ IF(ED46>INT($N46),$N46-INT($N46),1))* IF(EZ$40=2,ED46, IF(INT(ED46)=INT(EC46),0,ED46-INT(ED46))))) -> 0.0281269082 | FA46: =+IF(OR(EE46=ED46,FA$40=1),0, IF(AND(FA$40>1,EE46=$N46),1-SUM($EV46:EZ46), IF($N46<=1, IF($N46>0,1/$N46,0), IF(FA$40=2,0,VDB(1,0,$N46,INT(FA$40-2-1),MIN($N46,INT(FA$40-2-1)+1),$DC46,IF($DD46="No",1,0))/ IF(ED46>=INT($N46),$N46-INT($N46),1)))* IF(FA$40=2,0, IF(INT(EE46)=INT(ED46),EE46-ED46,INT(EE46)-ED46))+ IF($N46<=1, IF($N46>0,1/$N46,0),VDB(1,0,$N46,INT(FA$40-2),MIN($N46,INT(FA$40-2)+1),$DC46,IF($DD46="No",1,0))/ IF(EE46>INT($N46),$N46-INT($N46),1))* IF(FA$40=2,EE46, IF(INT(EE46)=INT(ED46),0,EE46-INT(EE46))))) -> 0.0272996462 | FB46: =+IF(OR(EF46=EE46,FB$40=1),0, IF(AND(FB$40>1,EF46=$N46),1-SUM($EV46:FA46), IF($N46<=1, IF($N46>0,1/$N46,0), IF(FB$40=2,0,VDB(1,0,$N46,INT(FB$40-2-1),MIN($N46,INT(FB$40-2-1)+1),$DC46,IF($DD46="No",1,0))/ IF(EE46>=INT($N46),$N46-INT($N46),1)))* IF(FB$40=2,0, IF(INT(EF46)=INT(EE46),EF46-EE46,INT(EF46)-EE46))+ IF($N46<=1, IF($N46>0,1/$N46,0),VDB(1,0,$N46,INT(FB$40-2),MIN($N46,INT(FB$40-2)+1),$DC46,IF($DD46="No",1,0))/ IF(EF46>INT($N46),$N46-INT($N46),1))* IF(FB$40=2,EF46, IF(INT(EF46)=INT(EE46),0,EF46-INT(EF46))))) -> 0.02649671543 | FC46: =+IF(OR(EG46=EF46,FC$40=1),0, IF(AND(FC$40>1,EG46=$N46),1-SUM($EV46:FB46), IF($N46<=1, IF($N46>0,1/$N46,0), IF(FC$40=2,0,VDB(1,0,$N46,INT(FC$40-2-1),MIN($N46,INT(FC$40-2-1)+1),$DC46,IF($DD46="No",1,0))/ IF(EF46>=INT($N46),$N46-INT($N46),1)))* IF(FC$40=2,0, IF(INT(EG46)=INT(EF46),EG46-EF46,INT(EG46)-EF46))+ IF($N46<=1, IF($N46>0,1/$N46,0),VDB(1,0,$N46,INT(FC$40-2),MIN($N46,INT(FC$40-2)+1),$DC46,IF($DD46="No",1,0))/ IF(EG46>INT($N46),$N46-INT($N46),1))* IF(FC$40=2,EG46, IF(INT(EG46)=INT(EF46),0,EG46-INT(EG46))))) -> 0.02571740027 | FD46: =+IF(OR(EH46=EG46,FD$40=1),0, IF(AND(FD$40>1,EH46=$N46),1-SUM($EV46:FC46), IF($N46<=1, IF($N46>0,1/$N46,0), IF(FD$40=2,0,VDB(1,0,$N46,INT(FD$40-2-1),MIN($N46,INT(FD$40-2-1)+1),$DC46,IF($DD46="No",1,0))/ IF(EG46>=INT($N46),$N46-INT($N46),1)))* IF(FD$40=2,0, IF(INT(EH46)=INT(EG46),EH46-EG46,INT(EH46)-EG46))+ IF($N46<=1, IF($N46>0,1/$N46,0),VDB(1,0,$N46,INT(FD$40-2),MIN($N46,INT(FD$40-2)+1),$DC46,IF($DD46="No",1,0))/ IF(EH46>INT($N46),$N46-INT($N46),1))* IF(FD$40=2,EH46, IF(INT(EH46)=INT(EG46),0,EH46-INT(EH46))))) -> 0.02496100614 | FE46: =+IF(OR(EI46=EH46,FE$40=1),0, IF(AND(FE$40>1,EI46=$N46),1-SUM($EV46:FD46), IF($N46<=1, IF($N46>0,1/$N46,0), IF(FE$40=2,0,VDB(1,0,$N46,INT(FE$40-2-1),MIN($N46,INT(FE$40-2-1)+1),$DC46,IF($DD46="No",1,0))/ IF(EH46>=INT($N46),$N46-INT($N46),1)))* IF(FE$40=2,0, IF(INT(EI46)=INT(EH46),EI46-EH46,INT(EI46)-EH46))+ IF($N46<=1, IF($N46>0,1/$N46,0),VDB(1,0,$N46,INT(FE$40-2),MIN($N46,INT(FE$40-2)+1),$DC46,IF($DD46="No",1,0))/ IF(EI46>INT($N46),$N46-INT($N46),1))* IF(FE$40=2,EI46, IF(INT(EI46)=INT(EH46),0,EI46-INT(EI46))))) -> 0.0242268589 | FF46: =+IF(OR(EJ46=EI46,FF$40=1),0, IF(AND(FF$40>1,EJ46=$N46),1-SUM($EV46:FE46), IF($N46<=1, IF($N46>0,1/$N46,0), IF(FF$40=2,0,VDB(1,0,$N46,INT(FF$40-2-1),MIN($N46,INT(FF$40-2-1)+1),$DC46,IF($DD46="No",1,0))/ IF(EI46>=INT($N46),$N46-INT($N46),1)))* IF(FF$40=2,0, IF(INT(EJ46)=INT(EI46),EJ46-EI46,INT(EJ46)-EI46))+ IF($N46<=1, IF($N46>0,1/$N46,0),VDB(1,0,$N46,INT(FF$40-2),MIN($N46,INT(FF$40-2)+1),$DC46,IF($DD46="No",1,0))/ IF(EJ46>INT($N46),$N46-INT($N46),1))* IF(FF$40=2,EJ46, IF(INT(EJ46)=INT(EI46),0,EJ46-INT(EJ46))))) -> 0.02351430423 | FH46: 0.02351430423 | FI46: 0.0242268589 | FJ46: 0.02496100614 | FK46: 0.02571740027 | FL46: 0.02649671543 | FM46: 0.0272996462 | FN46: 0.0281269082 | FO46: 0.02897923875 | FP46: 0.01470588235 | FQ46: 0 | FS46: 0 | FT46: 0 | FU46: 0 | FV46: 0 | FW46: 0.0620794685 | FX46: 0.1223330703 | FY46: 0.1187350388 | FZ46: 0.1152428318 | GA46: 0.1118533367 | GB46: 0.1085635327
C53: Greenhouse Gas Scheme | E53: Sewerage | F53: Improvements / Compliance | G53: Treatment | H53: Significant projects | I53: 0 | J53: Straight line | K53: 2022 | L53: 51 | M53: Declining Balance | N53: 51 | Q53: 1.734 | R53: 1.238968632 | S53: 0 | T53: 0.644789816 | U53: 0.11825 | AB53: 0 | AC53: 0 | AD53: 0 | AE53: 0 | AF53: 0 | AM53: 0 | AN53: 0 | AO53: 0 | AP53: 0 | AQ53: 0 | AX53: =+Q53-AB53-AM53 -> 1.734 | AY53: =+R53-AC53-AN53 -> 1.238968632 | AZ53: =+S53-AD53-AO53 -> 0 | BA53: =+T53-AE53-AP53 -> 0.644789816 | BB53: =+U53-AF53-AQ53 -> 0.11825 | BC53: =+V53-AG53-AR53 -> 0 | BD53: =+W53-AH53-AS53 -> 0 | BE53: =+X53-AI53-AT53 -> 0 | BF53: =+Y53-AJ53-AU53 -> 0 | BG53: =+Z53-AK53-AV53 -> 0 | BI53: =IF($L53=0,0, IF($L53<=0.5,BT53, IF($J53="straight line", IF((LEFT(BI$39,4)*1)-INT($L53)<LEFT($BI$39,4)*1,0,((OFFSET(BT53,0,-INT($L53+0.5),1,1))/$L53)*(IF($L53-INT($L53)>0.5,$L53-0.5-INT($L53),IF($L53-INT($L53)<=0.5,$L53-0.5-INT($L53)+1,0)))) +BT53/$L53*0.5, IF($J53="Declining Balance",-$BI$38,0)))) -> 0 | BJ53: =IF($L53=0,0, IF($L53<=0.5,BU53, IF(AND($J53="straight line",$L53<1.51),(BT53-((BT53/$L53)*0.5))+BU53/$L53*0.5, IF($J53="straight line", IF((LEFT(BJ$39,4)*1)-INT($L53)<LEFT($BI$39,4)*1,0,((OFFSET(BU53,0,-INT($L53+0.5),1,1))/$L53)*(IF($L53-INT($L53)>0.5,$L53-0.5-INT($L53),IF($L53-INT($L53)<=0.5,$L53-0.5-INT($L53)+1,0)))) +BU53/$L53*0.5 +SUM(OFFSET(BU53,0,MAX(-INT($L53+(0.5-(10^-12))),-BJ$40)+1,1,MIN(INT($L53+(0.5-(10^-12))),BJ$40)-1))*1/$L53, IF($J53="Declining Balance",-$BI$38,0))))) -> 0 | BK53: =IF($L53=0,0, IF($L53<=0.5,BV53, IF(AND($J53="straight line",$L53<1.51),(BU53-((BU53/$L53)*0.5))+BV53/$L53*0.5, IF($J53="straight line", IF((LEFT(BK$39,4)*1)-INT($L53)<LEFT($BI$39,4)*1,0,((OFFSET(BV53,0,-INT($L53+0.5),1,1))/$L53)*(IF($L53-INT($L53)>0.5,$L53-0.5-INT($L53),IF($L53-INT($L53)<=0.5,$L53-0.5-INT($L53)+1,0)))) +BV53/$L53*0.5 +SUM(OFFSET(BV53,0,MAX(-INT($L53+(0.5-(10^-12))),-BK$40)+1,1,MIN(INT($L53+(0.5-(10^-12))),BK$40)-1))*1/$L53, IF($J53="Declining Balance",-$BI$38,0))))) -> 0 | BL53: =IF($L53=0,0, IF($L53<=0.5,BW53, IF(AND($J53="straight line",$L53<1.51),(BV53-((BV53/$L53)*0.5))+BW53/$L53*0.5, IF($J53="straight line", IF((LEFT(BL$39,4)*1)-INT($L53)<LEFT($BI$39,4)*1,0,((OFFSET(BW53,0,-INT($L53+0.5),1,1))/$L53)*(IF($L53-INT($L53)>0.5,$L53-0.5-INT($L53),IF($L53-INT($L53)<=0.5,$L53-0.5-INT($L53)+1,0)))) +BW53/$L53*0.5 +SUM(OFFSET(BW53,0,MAX(-INT($L53+(0.5-(10^-12))),-BL$40)+1,1,MIN(INT($L53+(0.5-(10^-12))),BL$40)-1))*1/$L53, IF($J53="Declining Balance",-$BI$38,0))))) -> 0.03546822008 | BM53: =IF($L53=0,0, IF($L53<=0.5,BX53, IF(AND($J53="straight line",$L53<1.51),(BW53-((BW53/$L53)*0.5))+BX53/$L53*0.5, IF($J53="straight line", IF((LEFT(BM$39,4)*1)-INT($L53)<LEFT($BI$39,4)*1,0,((OFFSET(BX53,0,-INT($L53+0.5),1,1))/$L53)*(IF($L53-INT($L53)>0.5,$L53-0.5-INT($L53),IF($L53-INT($L53)<=0.5,$L53-0.5-INT($L53)+1,0)))) +BX53/$L53*0.5 +SUM(OFFSET(BX53,0,MAX(-INT($L53+(0.5-(10^-12))),-BM$40)+1,1,MIN(INT($L53+(0.5-(10^-12))),BM$40)-1))*1/$L53, IF($J53="Declining Balance",-$BI$38,0))))) -> 0.07209575388 | BN53: =IF($L53=0,0, IF($L53<=0.5,BY53, IF(AND($J53="straight line",$L53<1.51),(BX53-((BX53/$L53)*0.5))+BY53/$L53*0.5, IF($J53="straight line", IF((LEFT(BN$39,4)*1)-INT($L53)<LEFT($BI$39,4)*1,0,((OFFSET(BY53,0,-INT($L53+0.5),1,1))/$L53)*(IF($L53-INT($L53)>0.5,$L53-0.5-INT($L53),IF($L53-INT($L53)<=0.5,$L53-0.5-INT($L53)+1,0)))) +BY53/$L53*0.5 +SUM(OFFSET(BY53,0,MAX(-INT($L53+(0.5-(10^-12))),-BN$40)+1,1,MIN(INT($L53+(0.5-(10^-12))),BN$40)-1))*1/$L53, IF($J53="Declining Balance",-$BI$38,0))))) -> 0.07325506761 | BO53: =IF($L53=0,0, IF($L53<=0.5,BZ53, IF(AND($J53="straight line",$L53<1.51),(BY53-((BY53/$L53)*0.5))+BZ53/$L53*0.5, IF($J53="straight line", IF((LEFT(BO$39,4)*1)-INT($L53)<LEFT($BI$39,4)*1,0,((OFFSET(BZ53,0,-INT($L53+0.5),1,1))/$L53)*(IF($L53-INT($L53)>0.5,$L53-0.5-INT($L53),IF($L53-INT($L53)<=0.5,$L53-0.5-INT($L53)+1,0)))) +BZ53/$L53*0.5 +SUM(OFFSET(BZ53,0,MAX(-INT($L53+(0.5-(10^-12))),-BO$40)+1,1,MIN(INT($L53+(0.5-(10^-12))),BO$40)-1))*1/$L53, IF($J53="Declining Balance",-$BI$38,0))))) -> 0.07325506761 | BP53: =IF($L53=0,0, IF($L53<=0.5,CA53, IF(AND($J53="straight line",$L53<1.51),(BZ53-((BZ53/$L53)*0.5))+CA53/$L53*0.5, IF($J53="straight line", IF((LEFT(BP$39,4)*1)-INT($L53)<LEFT($BI$39,4)*1,0,((OFFSET(CA53,0,-INT($L53+0.5),1,1))/$L53)*(IF($L53-INT($L53)>0.5,$L53-0.5-INT($L53),IF($L53-INT($L53)<=0.5,$L53-0.5-INT($L53)+1,0)))) +CA53/$L53*0.5 +SUM(OFFSET(CA53,0,MAX(-INT($L53+(0.5-(10^-12))),-BP$40)+1,1,MIN(INT($L53+(0.5-(10^-12))),BP$40)-1))*1/$L53, IF($J53="Declining Balance",-$BI$38,0))))) -> 0.07325506761 | BQ53: =IF($L53=0,0, IF($L53<=0.5,CB53, IF(AND($J53="straight line",$L53<1.51),(CA53-((CA53/$L53)*0.5))+CB53/$L53*0.5, IF($J53="straight line", IF((LEFT(BQ$39,4)*1)-INT($L53)<LEFT($BI$39,4)*1,0,((OFFSET(CB53,0,-INT($L53+0.5),1,1))/$L53)*(IF($L53-INT($L53)>0.5,$L53-0.5-INT($L53),IF($L53-INT($L53)<=0.5,$L53-0.5-INT($L53)+1,0)))) +CB53/$L53*0.5 +SUM(OFFSET(CB53,0,MAX(-INT($L53+(0.5-(10^-12))),-BQ$40)+1,1,MIN(INT($L53+(0.5-(10^-12))),BQ$40)-1))*1/$L53, IF($J53="Declining Balance",-$BI$38,0))))) -> 0.07325506761 | BR53: =IF($L53=0,0, IF($L53<=0.5,CC53, IF(AND($J53="straight line",$L53<1.51),(CB53-((CB53/$L53)*0.5))+CC53/$L53*0.5, IF($J53="straight line", IF((LEFT(BR$39,4)*1)-INT($L53)<LEFT($BI$39,4)*1,0,((OFFSET(CC53,0,-INT($L53+0.5),1,1))/$L53)*(IF($L53-INT($L53)>0.5,$L53-0.5-INT($L53),IF($L53-INT($L53)<=0.5,$L53-0.5-INT($L53)+1,0)))) +CC53/$L53*0.5 +SUM(OFFSET(CC53,0,MAX(-INT($L53+(0.5-(10^-12))),-BR$40)+1,1,MIN(INT($L53+(0.5-(10^-12))),BR$40)-1))*1/$L53, IF($J53="Declining Balance",-$BI$38,0))))) -> 0.07325506761 | BT53: =+IF($K53="Ongoing",AX53,IF(RIGHT($K53,2)=RIGHT(BT$39,2),SUM($AX53:AX53),0)+IF(RIGHT(BT$39,2)>RIGHT($K53,2),AX53,0)) -> 0 | BU53: =+IF($K53="Ongoing",AY53,IF(RIGHT($K53,2)=RIGHT(BU$39,2),SUM($AX53:AY53),0)+IF(RIGHT(BU$39,2)>RIGHT($K53,2),AY53,0)) -> 0 | BV53: =+IF($K53="Ongoing",AZ53,IF(RIGHT($K53,2)=RIGHT(BV$39,2),SUM($AX53:AZ53),0)+IF(RIGHT(BV$39,2)>RIGHT($K53,2),AZ53,0)) -> 0 | BW53: =+IF($K53="Ongoing",BA53,IF(RIGHT($K53,2)=RIGHT(BW$39,2),SUM($AX53:BA53),0)+IF(RIGHT(BW$39,2)>RIGHT($K53,2),BA53,0)) -> 3.617758448 | BX53: =+IF($K53="Ongoing",BB53,IF(RIGHT($K53,2)=RIGHT(BX$39,2),SUM($AX53:BB53),0)+IF(RIGHT(BX$39,2)>RIGHT($K53,2),BB53,0)) -> 0.11825 | BY53: =+IF($K53="Ongoing",BC53,IF(RIGHT($K53,2)=RIGHT(BY$39,2),SUM($AX53:BC53),0)+IF(RIGHT(BY$39,2)>RIGHT($K53,2),BC53,0)) -> 0 | BZ53: =+IF($K53="Ongoing",BD53,IF(RIGHT($K53,2)=RIGHT(BZ$39,2),SUM($AX53:BD53),0)+IF(RIGHT(BZ$39,2)>RIGHT($K53,2),BD53,0)) -> 0 | CA53: =+IF($K53="Ongoing",BE53,IF(RIGHT($K53,2)=RIGHT(CA$39,2),SUM($AX53:BE53),0)+IF(RIGHT(CA$39,2)>RIGHT($K53,2),BE53,0)) -> 0 | CB53: =+IF($K53="Ongoing",BF53,IF(RIGHT($K53,2)=RIGHT(CB$39,2),SUM($AX53:BF53),0)+IF(RIGHT(CB$39,2)>RIGHT($K53,2),BF53,0)) -> 0 | CC53: =+IF($K53="Ongoing",BG53,IF(RIGHT($K53,2)=RIGHT(CC$39,2),SUM($AX53:BG53),0)+IF(RIGHT(CC$39,2)>RIGHT($K53,2),BG53,0)) -> 0 | CE53: =+Q53*KeyAssumptionsPriceControl_FO!X$15 -> 1.773882 | CF53: =+R53*KeyAssumptionsPriceControl_FO!Y$15 -> 1.296616603 | CG53: =+S53*KeyAssumptionsPriceControl_FO!Z$15 -> 0 | CH53: =+T53*KeyAssumptionsPriceControl_FO!AA$15 -> 0.706188603 | CI53: =+U53*KeyAssumptionsPriceControl_FO!AB$15 -> 0.1324888462 | CJ53: =+V53*KeyAssumptionsPriceControl_FO!AC$15 -> 0 | CK53: =+W53*KeyAssumptionsPriceControl_FO!AD$15 -> 0 | CL53: =+X53*KeyAssumptionsPriceControl_FO!AE$15 -> 0 | CM53: =+Y53*KeyAssumptionsPriceControl_FO!AF$15 -> 0 | CN53: =+Z53*KeyAssumptionsPriceControl_FO!AG$15 -> 0 | CP53: 0 | CQ53: 0 | CR53: 0 | CS53: 0.05553951774 | CT53: 0.1113938856 | CU53: 0.1100659603 | CV53: 0.1068287261 | CW53: 0.1036867048 | CX53: 0.1006370958 | CY53: 0.09767718124 | DC53: 1.5 | DD53: No | DE53: =+IF($K53="ongoing",CE53,IF(RIGHT($K53,2)=RIGHT(DE$39,2),SUM($CD53:CE53),0)+IF(RIGHT(DE$39,2)>RIGHT($K53,2),CE53,0)) -> 0 | DF53: =+IF($K53="ongoing",CF53,IF(RIGHT($K53,2)=RIGHT(DF$39,2),SUM($CD53:CF53),0)+IF(RIGHT(DF$39,2)>RIGHT($K53,2),CF53,0)) -> 0 | DG53: =+IF($K53="ongoing",CG53,IF(RIGHT($K53,2)=RIGHT(DG$39,2),SUM($CD53:CG53),0)+IF(RIGHT(DG$39,2)>RIGHT($K53,2),CG53,0)) -> 0 | DH53: =+IF($K53="ongoing",CH53,IF(RIGHT($K53,2)=RIGHT(DH$39,2),SUM($CD53:CH53),0)+IF(RIGHT(DH$39,2)>RIGHT($K53,2),CH53,0)) -> 3.776687206 | DI53: =+IF($K53="ongoing",CI53,IF(RIGHT($K53,2)=RIGHT(DI$39,2),SUM($CD53:CI53),0)+IF(RIGHT(DI$39,2)>RIGHT($K53,2),CI53,0)) -> 0.1324888462 | DJ53: =+IF($K53="ongoing",CJ53,IF(RIGHT($K53,2)=RIGHT(DJ$39,2),SUM($CD53:CJ53),0)+IF(RIGHT(DJ$39,2)>RIGHT($K53,2),CJ53,0)) -> 0 | DK53: =+IF($K53="ongoing",CK53,IF(RIGHT($K53,2)=RIGHT(DK$39,2),SUM($CD53:CK53),0)+IF(RIGHT(DK$39,2)>RIGHT($K53,2),CK53,0)) -> 0 | DL53: =+IF($K53="ongoing",CL53,IF(RIGHT($K53,2)=RIGHT(DL$39,2),SUM($CD53:CL53),0)+IF(RIGHT(DL$39,2)>RIGHT($K53,2),CL53,0)) -> 0 | DM53: =+IF($K53="ongoing",CM53,IF(RIGHT($K53,2)=RIGHT(DM$39,2),SUM($CD53:CM53),0)+IF(RIGHT(DM$39,2)>RIGHT($K53,2),CM53,0)) -> 0 | DN53: =+IF($K53="ongoing",CN53,IF(RIGHT($K53,2)=RIGHT(DN$39,2),SUM($CD53:CN53),0)+IF(RIGHT(DN$39,2)>RIGHT($K53,2),CN53,0)) -> 0 | DP53: 0.5 | DQ53: =+MIN(IF($N53<=$DC53,MIN($N53,1),$N53),IF(DQ$40=1,0.5,DP53+1)) -> 1.5 | DR53: 2.5 | DS53: 3.5 | DT53: 4.5 | DU53: 5.5 | DV53: 6.5 | DW53: 7.5 | DX53: 8.5 | DY53: 9.5 | EA53: =+IF(EA$40=1,0,MIN(IF($N53<=$DC53,MIN($N53,1),$N53),IF(EA$40=2,0.5,DZ53+1))) -> 0 | EB53: 0.5 | EC53: 1.5 | ED53: 2.5 | EE53: 3.5 | EF53: 4.5 | EG53: 5.5 | EH53: 6.5 | EI53: 7.5 | EJ53: 8.5 | EL53: =+IF(DP53=DO53,0, IF(AND(EL$40>1,DP53=$N53),1-SUM($EK53:EK53), IF($N53<=1, IF($N53>0,1/$N53,0), IF(EL$40=1,0,VDB(1,0,$N53,INT(EL$40-1-1),MIN($N53,INT(EL$40-1-1)+1),$DC53,IF($DD53="No",1,0))/ IF(DO53>=INT($N53),$N53-INT($N53),1)))* IF(EL$40=1,0, IF(INT(DP53)=INT(DO53),DP53-DO53,INT(DP53)-DO53))+ IF($N53<=1, IF($N53>0,1/$N53,0),VDB(1,0,$N53,INT(EL$40-1),MIN($N53,INT(EL$40-1)+1),$DC53,IF($DD53="No",1,0))/ IF(DP53>INT($N53),$N53-INT($N53),1))* IF(EL$40=1,DP53, IF(INT(DP53)=INT(DO53),0,DP53-INT(DP53))))) -> 0.01470588235 | EM53: =+IF(DQ53=DP53,0, IF(AND(EM$40>1,DQ53=$N53),1-SUM($EK53:EL53), IF($N53<=1, IF($N53>0,1/$N53,0), IF(EM$40=1,0,VDB(1,0,$N53,INT(EM$40-1-1),MIN($N53,INT(EM$40-1-1)+1),$DC53,IF($DD53="No",1,0))/ IF(DP53>=INT($N53),$N53-INT($N53),1)))* IF(EM$40=1,0, IF(INT(DQ53)=INT(DP53),DQ53-DP53,INT(DQ53)-DP53))+ IF($N53<=1, IF($N53>0,1/$N53,0),VDB(1,0,$N53,INT(EM$40-1),MIN($N53,INT(EM$40-1)+1),$DC53,IF($DD53="No",1,0))/ IF(DQ53>INT($N53),$N53-INT($N53),1))* IF(EM$40=1,DQ53, IF(INT(DQ53)=INT(DP53),0,DQ53-INT(DQ53))))) -> 0.02897923875 | EN53: =+IF(DR53=DQ53,0, IF(AND(EN$40>1,DR53=$N53),1-SUM($EK53:EM53), IF($N53<=1, IF($N53>0,1/$N53,0), IF(EN$40=1,0,VDB(1,0,$N53,INT(EN$40-1-1),MIN($N53,INT(EN$40-1-1)+1),$DC53,IF($DD53="No",1,0))/ IF(DQ53>=INT($N53),$N53-INT($N53),1)))* IF(EN$40=1,0, IF(INT(DR53)=INT(DQ53),DR53-DQ53,INT(DR53)-DQ53))+ IF($N53<=1, IF($N53>0,1/$N53,0),VDB(1,0,$N53,INT(EN$40-1),MIN($N53,INT(EN$40-1)+1),$DC53,IF($DD53="No",1,0))/ IF(DR53>INT($N53),$N53-INT($N53),1))* IF(EN$40=1,DR53, IF(INT(DR53)=INT(DQ53),0,DR53-INT(DR53))))) -> 0.0281269082 | EO53: =+IF(DS53=DR53,0, IF(AND(EO$40>1,DS53=$N53),1-SUM($EK53:EN53), IF($N53<=1, IF($N53>0,1/$N53,0), IF(EO$40=1,0,VDB(1,0,$N53,INT(EO$40-1-1),MIN($N53,INT(EO$40-1-1)+1),$DC53,IF($DD53="No",1,0))/ IF(DR53>=INT($N53),$N53-INT($N53),1)))* IF(EO$40=1,0, IF(INT(DS53)=INT(DR53),DS53-DR53,INT(DS53)-DR53))+ IF($N53<=1, IF($N53>0,1/$N53,0),VDB(1,0,$N53,INT(EO$40-1),MIN($N53,INT(EO$40-1)+1),$DC53,IF($DD53="No",1,0))/ IF(DS53>INT($N53),$N53-INT($N53),1))* IF(EO$40=1,DS53, IF(INT(DS53)=INT(DR53),0,DS53-INT(DS53))))) -> 0.0272996462 | EP53: =+IF(DT53=DS53,0, IF(AND(EP$40>1,DT53=$N53),1-SUM($EK53:EO53), IF($N53<=1, IF($N53>0,1/$N53,0), IF(EP$40=1,0,VDB(1,0,$N53,INT(EP$40-1-1),MIN($N53,INT(EP$40-1-1)+1),$DC53,IF($DD53="No",1,0))/ IF(DS53>=INT($N53),$N53-INT($N53),1)))* IF(EP$40=1,0, IF(INT(DT53)=INT(DS53),DT53-DS53,INT(DT53)-DS53))+ IF($N53<=1, IF($N53>0,1/$N53,0),VDB(1,0,$N53,INT(EP$40-1),MIN($N53,INT(EP$40-1)+1),$DC53,IF($DD53="No",1,0))/ IF(DT53>INT($N53),$N53-INT($N53),1))* IF(EP$40=1,DT53, IF(INT(DT53)=INT(DS53),0,DT53-INT(DT53))))) -> 0.02649671543 | EQ53: =+IF(DU53=DT53,0, IF(AND(EQ$40>1,DU53=$N53),1-SUM($EK53:EP53), IF($N53<=1, IF($N53>0,1/$N53,0), IF(EQ$40=1,0,VDB(1,0,$N53,INT(EQ$40-1-1),MIN($N53,INT(EQ$40-1-1)+1),$DC53,IF($DD53="No",1,0))/ IF(DT53>=INT($N53),$N53-INT($N53),1)))* IF(EQ$40=1,0, IF(INT(DU53)=INT(DT53),DU53-DT53,INT(DU53)-DT53))+ IF($N53<=1, IF($N53>0,1/$N53,0),VDB(1,0,$N53,INT(EQ$40-1),MIN($N53,INT(EQ$40-1)+1),$DC53,IF($DD53="No",1,0))/ IF(DU53>INT($N53),$N53-INT($N53),1))* IF(EQ$40=1,DU53, IF(INT(DU53)=INT(DT53),0,DU53-INT(DU53))))) -> 0.02571740027 | ER53: =+IF(DV53=DU53,0, IF(AND(ER$40>1,DV53=$N53),1-SUM($EK53:EQ53), IF($N53<=1, IF($N53>0,1/$N53,0), IF(ER$40=1,0,VDB(1,0,$N53,INT(ER$40-1-1),MIN($N53,INT(ER$40-1-1)+1),$DC53,IF($DD53="No",1,0))/ IF(DU53>=INT($N53),$N53-INT($N53),1)))* IF(ER$40=1,0, IF(INT(DV53)=INT(DU53),DV53-DU53,INT(DV53)-DU53))+ IF($N53<=1, IF($N53>0,1/$N53,0),VDB(1,0,$N53,INT(ER$40-1),MIN($N53,INT(ER$40-1)+1),$DC53,IF($DD53="No",1,0))/ IF(DV53>INT($N53),$N53-INT($N53),1))* IF(ER$40=1,DV53, IF(INT(DV53)=INT(DU53),0,DV53-INT(DV53))))) -> 0.02496100614 | ES53: =+IF(DW53=DV53,0, IF(AND(ES$40>1,DW53=$N53),1-SUM($EK53:ER53), IF($N53<=1, IF($N53>0,1/$N53,0), IF(ES$40=1,0,VDB(1,0,$N53,INT(ES$40-1-1),MIN($N53,INT(ES$40-1-1)+1),$DC53,IF($DD53="No",1,0))/ IF(DV53>=INT($N53),$N53-INT($N53),1)))* IF(ES$40=1,0, IF(INT(DW53)=INT(DV53),DW53-DV53,INT(DW53)-DV53))+ IF($N53<=1, IF($N53>0,1/$N53,0),VDB(1,0,$N53,INT(ES$40-1),MIN($N53,INT(ES$40-1)+1),$DC53,IF($DD53="No",1,0))/ IF(DW53>INT($N53),$N53-INT($N53),1))* IF(ES$40=1,DW53, IF(INT(DW53)=INT(DV53),0,DW53-INT(DW53))))) -> 0.0242268589 | ET53: =+IF(DX53=DW53,0, IF(AND(ET$40>1,DX53=$N53),1-SUM($EK53:ES53), IF($N53<=1, IF($N53>0,1/$N53,0), IF(ET$40=1,0,VDB(1,0,$N53,INT(ET$40-1-1),MIN($N53,INT(ET$40-1-1)+1),$DC53,IF($DD53="No",1,0))/ IF(DW53>=INT($N53),$N53-INT($N53),1)))* IF(ET$40=1,0, IF(INT(DX53)=INT(DW53),DX53-DW53,INT(DX53)-DW53))+ IF($N53<=1, IF($N53>0,1/$N53,0),VDB(1,0,$N53,INT(ET$40-1),MIN($N53,INT(ET$40-1)+1),$DC53,IF($DD53="No",1,0))/ IF(DX53>INT($N53),$N53-INT($N53),1))* IF(ET$40=1,DX53, IF(INT(DX53)=INT(DW53),0,DX53-INT(DX53))))) -> 0.02351430423 | EU53: =+IF(DY53=DX53,0, IF(AND(EU$40>1,DY53=$N53),1-SUM($EK53:ET53), IF($N53<=1, IF($N53>0,1/$N53,0), IF(EU$40=1,0,VDB(1,0,$N53,INT(EU$40-1-1),MIN($N53,INT(EU$40-1-1)+1),$DC53,IF($DD53="No",1,0))/ IF(DX53>=INT($N53),$N53-INT($N53),1)))* IF(EU$40=1,0, IF(INT(DY53)=INT(DX53),DY53-DX53,INT(DY53)-DX53))+ IF($N53<=1, IF($N53>0,1/$N53,0),VDB(1,0,$N53,INT(EU$40-1),MIN($N53,INT(EU$40-1)+1),$DC53,IF($DD53="No",1,0))/ IF(DY53>INT($N53),$N53-INT($N53),1))* IF(EU$40=1,DY53, IF(INT(DY53)=INT(DX53),0,DY53-INT(DY53))))) -> 0.02282270704 | EW53: =+IF(OR(EA53=DZ53,EW$40=1),0, IF(AND(EW$40>1,EA53=$N53),1-SUM($EV53:EV53), IF($N53<=1, IF($N53>0,1/$N53,0), IF(EW$40=2,0,VDB(1,0,$N53,INT(EW$40-2-1),MIN($N53,INT(EW$40-2-1)+1),$DC53,IF($DD53="No",1,0))/ IF(DZ53>=INT($N53),$N53-INT($N53),1)))* IF(EW$40=2,0, IF(INT(EA53)=INT(DZ53),EA53-DZ53,INT(EA53)-DZ53))+ IF($N53<=1, IF($N53>0,1/$N53,0),VDB(1,0,$N53,INT(EW$40-2),MIN($N53,INT(EW$40-2)+1),$DC53,IF($DD53="No",1,0))/ IF(EA53>INT($N53),$N53-INT($N53),1))* IF(EW$40=2,EA53, IF(INT(EA53)=INT(DZ53),0,EA53-INT(EA53))))) -> 0 | EX53: =+IF(OR(EB53=EA53,EX$40=1),0, IF(AND(EX$40>1,EB53=$N53),1-SUM($EV53:EW53), IF($N53<=1, IF($N53>0,1/$N53,0), IF(EX$40=2,0,VDB(1,0,$N53,INT(EX$40-2-1),MIN($N53,INT(EX$40-2-1)+1),$DC53,IF($DD53="No",1,0))/ IF(EA53>=INT($N53),$N53-INT($N53),1)))* IF(EX$40=2,0, IF(INT(EB53)=INT(EA53),EB53-EA53,INT(EB53)-EA53))+ IF($N53<=1, IF($N53>0,1/$N53,0),VDB(1,0,$N53,INT(EX$40-2),MIN($N53,INT(EX$40-2)+1),$DC53,IF($DD53="No",1,0))/ IF(EB53>INT($N53),$N53-INT($N53),1))* IF(EX$40=2,EB53, IF(INT(EB53)=INT(EA53),0,EB53-INT(EB53))))) -> 0.01470588235 | EY53: =+IF(OR(EC53=EB53,EY$40=1),0, IF(AND(EY$40>1,EC53=$N53),1-SUM($EV53:EX53), IF($N53<=1, IF($N53>0,1/$N53,0), IF(EY$40=2,0,VDB(1,0,$N53,INT(EY$40-2-1),MIN($N53,INT(EY$40-2-1)+1),$DC53,IF($DD53="No",1,0))/ IF(EB53>=INT($N53),$N53-INT($N53),1)))* IF(EY$40=2,0, IF(INT(EC53)=INT(EB53),EC53-EB53,INT(EC53)-EB53))+ IF($N53<=1, IF($N53>0,1/$N53,0),VDB(1,0,$N53,INT(EY$40-2),MIN($N53,INT(EY$40-2)+1),$DC53,IF($DD53="No",1,0))/ IF(EC53>INT($N53),$N53-INT($N53),1))* IF(EY$40=2,EC53, IF(INT(EC53)=INT(EB53),0,EC53-INT(EC53))))) -> 0.02897923875 | EZ53: =+IF(OR(ED53=EC53,EZ$40=1),0, IF(AND(EZ$40>1,ED53=$N53),1-SUM($EV53:EY53), IF($N53<=1, IF($N53>0,1/$N53,0), IF(EZ$40=2,0,VDB(1,0,$N53,INT(EZ$40-2-1),MIN($N53,INT(EZ$40-2-1)+1),$DC53,IF($DD53="No",1,0))/ IF(EC53>=INT($N53),$N53-INT($N53),1)))* IF(EZ$40=2,0, IF(INT(ED53)=INT(EC53),ED53-EC53,INT(ED53)-EC53))+ IF($N53<=1, IF($N53>0,1/$N53,0),VDB(1,0,$N53,INT(EZ$40-2),MIN($N53,INT(EZ$40-2)+1),$DC53,IF($DD53="No",1,0))/ IF(ED53>INT($N53),$N53-INT($N53),1))* IF(EZ$40=2,ED53, IF(INT(ED53)=INT(EC53),0,ED53-INT(ED53))))) -> 0.0281269082 | FA53: =+IF(OR(EE53=ED53,FA$40=1),0, IF(AND(FA$40>1,EE53=$N53),1-SUM($EV53:EZ53), IF($N53<=1, IF($N53>0,1/$N53,0), IF(FA$40=2,0,VDB(1,0,$N53,INT(FA$40-2-1),MIN($N53,INT(FA$40-2-1)+1),$DC53,IF($DD53="No",1,0))/ IF(ED53>=INT($N53),$N53-INT($N53),1)))* IF(FA$40=2,0, IF(INT(EE53)=INT(ED53),EE53-ED53,INT(EE53)-ED53))+ IF($N53<=1, IF($N53>0,1/$N53,0),VDB(1,0,$N53,INT(FA$40-2),MIN($N53,INT(FA$40-2)+1),$DC53,IF($DD53="No",1,0))/ IF(EE53>INT($N53),$N53-INT($N53),1))* IF(FA$40=2,EE53, IF(INT(EE53)=INT(ED53),0,EE53-INT(EE53))))) -> 0.0272996462 | FB53: =+IF(OR(EF53=EE53,FB$40=1),0, IF(AND(FB$40>1,EF53=$N53),1-SUM($EV53:FA53), IF($N53<=1, IF($N53>0,1/$N53,0), IF(FB$40=2,0,VDB(1,0,$N53,INT(FB$40-2-1),MIN($N53,INT(FB$40-2-1)+1),$DC53,IF($DD53="No",1,0))/ IF(EE53>=INT($N53),$N53-INT($N53),1)))* IF(FB$40=2,0, IF(INT(EF53)=INT(EE53),EF53-EE53,INT(EF53)-EE53))+ IF($N53<=1, IF($N53>0,1/$N53,0),VDB(1,0,$N53,INT(FB$40-2),MIN($N53,INT(FB$40-2)+1),$DC53,IF($DD53="No",1,0))/ IF(EF53>INT($N53),$N53-INT($N53),1))* IF(FB$40=2,EF53, IF(INT(EF53)=INT(EE53),0,EF53-INT(EF53))))) -> 0.02649671543 | FC53: =+IF(OR(EG53=EF53,FC$40=1),0, IF(AND(FC$40>1,EG53=$N53),1-SUM($EV53:FB53), IF($N53<=1, IF($N53>0,1/$N53,0), IF(FC$40=2,0,VDB(1,0,$N53,INT(FC$40-2-1),MIN($N53,INT(FC$40-2-1)+1),$DC53,IF($DD53="No",1,0))/ IF(EF53>=INT($N53),$N53-INT($N53),1)))* IF(FC$40=2,0, IF(INT(EG53)=INT(EF53),EG53-EF53,INT(EG53)-EF53))+ IF($N53<=1, IF($N53>0,1/$N53,0),VDB(1,0,$N53,INT(FC$40-2),MIN($N53,INT(FC$40-2)+1),$DC53,IF($DD53="No",1,0))/ IF(EG53>INT($N53),$N53-INT($N53),1))* IF(FC$40=2,EG53, IF(INT(EG53)=INT(EF53),0,EG53-INT(EG53))))) -> 0.02571740027 | FD53: =+IF(OR(EH53=EG53,FD$40=1),0, IF(AND(FD$40>1,EH53=$N53),1-SUM($EV53:FC53), IF($N53<=1, IF($N53>0,1/$N53,0), IF(FD$40=2,0,VDB(1,0,$N53,INT(FD$40-2-1),MIN($N53,INT(FD$40-2-1)+1),$DC53,IF($DD53="No",1,0))/ IF(EG53>=INT($N53),$N53-INT($N53),1)))* IF(FD$40=2,0, IF(INT(EH53)=INT(EG53),EH53-EG53,INT(EH53)-EG53))+ IF($N53<=1, IF($N53>0,1/$N53,0),VDB(1,0,$N53,INT(FD$40-2),MIN($N53,INT(FD$40-2)+1),$DC53,IF($DD53="No",1,0))/ IF(EH53>INT($N53),$N53-INT($N53),1))* IF(FD$40=2,EH53, IF(INT(EH53)=INT(EG53),0,EH53-INT(EH53))))) -> 0.02496100614 | FE53: =+IF(OR(EI53=EH53,FE$40=1),0, IF(AND(FE$40>1,EI53=$N53),1-SUM($EV53:FD53), IF($N53<=1, IF($N53>0,1/$N53,0), IF(FE$40=2,0,VDB(1,0,$N53,INT(FE$40-2-1),MIN($N53,INT(FE$40-2-1)+1),$DC53,IF($DD53="No",1,0))/ IF(EH53>=INT($N53),$N53-INT($N53),1)))* IF(FE$40=2,0, IF(INT(EI53)=INT(EH53),EI53-EH53,INT(EI53)-EH53))+ IF($N53<=1, IF($N53>0,1/$N53,0),VDB(1,0,$N53,INT(FE$40-2),MIN($N53,INT(FE$40-2)+1),$DC53,IF($DD53="No",1,0))/ IF(EI53>INT($N53),$N53-INT($N53),1))* IF(FE$40=2,EI53, IF(INT(EI53)=INT(EH53),0,EI53-INT(EI53))))) -> 0.0242268589 | FF53: =+IF(OR(EJ53=EI53,FF$40=1),0, IF(AND(FF$40>1,EJ53=$N53),1-SUM($EV53:FE53), IF($N53<=1, IF($N53>0,1/$N53,0), IF(FF$40=2,0,VDB(1,0,$N53,INT(FF$40-2-1),MIN($N53,INT(FF$40-2-1)+1),$DC53,IF($DD53="No",1,0))/ IF(EI53>=INT($N53),$N53-INT($N53),1)))* IF(FF$40=2,0, IF(INT(EJ53)=INT(EI53),EJ53-EI53,INT(EJ53)-EI53))+ IF($N53<=1, IF($N53>0,1/$N53,0),VDB(1,0,$N53,INT(FF$40-2),MIN($N53,INT(FF$40-2)+1),$DC53,IF($DD53="No",1,0))/ IF(EJ53>INT($N53),$N53-INT($N53),1))* IF(FF$40=2,EJ53, IF(INT(EJ53)=INT(EI53),0,EJ53-INT(EJ53))))) -> 0.02351430423 | FH53: 0.02351430423 | FI53: 0.0242268589 | FJ53: 0.02496100614 | FK53: 0.02571740027 | FL53: 0.02649671543 | FM53: 0.0272996462 | FN53: 0.0281269082 | FO53: 0.02897923875 | FP53: 0.01470588235 | FQ53: 0 | FS53: =-(-$DE53*(-ISBLANK($DE53)+1)*EL53- IF(FS$40>1,SUMPRODUCT(OFFSET($DF53,0,0,1,FS$40-1)*(-ISBLANK(OFFSET($DF53,0,0,1,FS$40-1))+1),OFFSET($FH53,0,MAX($FS$40:$IM$40)-FS$40,1,FS$40-1)),0)) -> 0 | FT53: =-(-$DE53*(-ISBLANK($DE53)+1)*EM53- IF(FT$40>1,SUMPRODUCT(OFFSET($DF53,0,0,1,FT$40-1)*(-ISBLANK(OFFSET($DF53,0,0,1,FT$40-1))+1),OFFSET($FH53,0,MAX($FS$40:$IM$40)-FT$40,1,FT$40-1)),0)) -> 0 | FU53: =-(-$DE53*(-ISBLANK($DE53)+1)*EN53- IF(FU$40>1,SUMPRODUCT(OFFSET($DF53,0,0,1,FU$40-1)*(-ISBLANK(OFFSET($DF53,0,0,1,FU$40-1))+1),OFFSET($FH53,0,MAX($FS$40:$IM$40)-FU$40,1,FU$40-1)),0)) -> 0 | FV53: =-(-$DE53*(-ISBLANK($DE53)+1)*EO53- IF(FV$40>1,SUMPRODUCT(OFFSET($DF53,0,0,1,FV$40-1)*(-ISBLANK(OFFSET($DF53,0,0,1,FV$40-1))+1),OFFSET($FH53,0,MAX($FS$40:$IM$40)-FV$40,1,FV$40-1)),0)) -> 0.05553951774 | FW53: =-(-$DE53*(-ISBLANK($DE53)+1)*EP53- IF(FW$40>1,SUMPRODUCT(OFFSET($DF53,0,0,1,FW$40-1)*(-ISBLANK(OFFSET($DF53,0,0,1,FW$40-1))+1),OFFSET($FH53,0,MAX($FS$40:$IM$40)-FW$40,1,FW$40-1)),0)) -> 0.1113938856 | FX53: =-(-$DE53*(-ISBLANK($DE53)+1)*EQ53- IF(FX$40>1,SUMPRODUCT(OFFSET($DF53,0,0,1,FX$40-1)*(-ISBLANK(OFFSET($DF53,0,0,1,FX$40-1))+1),OFFSET($FH53,0,MAX($FS$40:$IM$40)-FX$40,1,FX$40-1)),0)) -> 0.1100659603 | FY53: =-(-$DE53*(-ISBLANK($DE53)+1)*ER53- IF(FY$40>1,SUMPRODUCT(OFFSET($DF53,0,0,1,FY$40-1)*(-ISBLANK(OFFSET($DF53,0,0,1,FY$40-1))+1),OFFSET($FH53,0,MAX($FS$40:$IM$40)-FY$40,1,FY$40-1)),0)) -> 0.1068287261 | FZ53: =-(-$DE53*(-ISBLANK($DE53)+1)*ES53- IF(FZ$40>1,SUMPRODUCT(OFFSET($DF53,0,0,1,FZ$40-1)*(-ISBLANK(OFFSET($DF53,0,0,1,FZ$40-1))+1),OFFSET($FH53,0,MAX($FS$40:$IM$40)-FZ$40,1,FZ$40-1)),0)) -> 0.1036867048 | GA53: =-(-$DE53*(-ISBLANK($DE53)+1)*ET53- IF(GA$40>1,SUMPRODUCT(OFFSET($DF53,0,0,1,GA$40-1)*(-ISBLANK(OFFSET($DF53,0,0,1,GA$40-1))+1),OFFSET($FH53,0,MAX($FS$40:$IM$40)-GA$40,1,GA$40-1)),0)) -> 0.1006370958 | GB53: =-(-$DE53*(-ISBLANK($DE53)+1)*EU53- IF(GB$40>1,SUMPRODUCT(OFFSET($DF53,0,0,1,GB$40-1)*(-ISBLANK(OFFSET($DF53,0,0,1,GB$40-1))+1),OFFSET($FH53,0,MAX($FS$40:$IM$40)-GB$40,1,GB$40-1)),0)) -> 0.09767718124
C54: SSPS - Sewer Relining Program | E54: Sewerage | F54: Renewals | G54: Pipelines/network | H54: Significant projects | I54: 0 | J54: Straight line | K54: Ongoing | L54: 51 | M54: Declining Balance | N54: 51 | Q54: 1.385 | R54: 1.2 | S54: 1.5 | T54: 1.725 | U54: 1.3 | AB54: 0 | AC54: 0 | AD54: 0 | AE54: 0 | AF54: 0 | AM54: 0 | AN54: 0 | AO54: 0 | AP54: 0 | AQ54: 0 | AX54: 1.385 | AY54: 1.2 | AZ54: 1.5 | BA54: 1.725 | BB54: 1.3 | BC54: 0 | BD54: 0 | BE54: 0 | BF54: 0 | BG54: 0 | BI54: 0.01357843137 | BJ54: 0.03892156863 | BK54: 0.06539215686 | BL54: 0.09700980392 | BM54: 0.1266666667 | BN54: 0.1394117647 | BO54: 0.1394117647 | BP54: 0.1394117647 | BQ54: 0.1394117647 | BR54: 0.1394117647 | BT54: =+IF($K54="Ongoing",AX54,IF(RIGHT($K54,2)=RIGHT(BT$39,2),SUM($AX54:AX54),0)+IF(RIGHT(BT$39,2)>RIGHT($K54,2),AX54,0)) -> 1.385 | BU54: =+IF($K54="Ongoing",AY54,IF(RIGHT($K54,2)=RIGHT(BU$39,2),SUM($AX54:AY54),0)+IF(RIGHT(BU$39,2)>RIGHT($K54,2),AY54,0)) -> 1.2 | BV54: =+IF($K54="Ongoing",AZ54,IF(RIGHT($K54,2)=RIGHT(BV$39,2),SUM($AX54:AZ54),0)+IF(RIGHT(BV$39,2)>RIGHT($K54,2),AZ54,0)) -> 1.5 | BW54: =+IF($K54="Ongoing",BA54,IF(RIGHT($K54,2)=RIGHT(BW$39,2),SUM($AX54:BA54),0)+IF(RIGHT(BW$39,2)>RIGHT($K54,2),BA54,0)) -> 1.725 | BX54: =+IF($K54="Ongoing",BB54,IF(RIGHT($K54,2)=RIGHT(BX$39,2),SUM($AX54:BB54),0)+IF(RIGHT(BX$39,2)>RIGHT($K54,2),BB54,0)) -> 1.3 | BY54: =+IF($K54="Ongoing",BC54,IF(RIGHT($K54,2)=RIGHT(BY$39,2),SUM($AX54:BC54),0)+IF(RIGHT(BY$39,2)>RIGHT($K54,2),BC54,0)) -> 0 | BZ54: =+IF($K54="Ongoing",BD54,IF(RIGHT($K54,2)=RIGHT(BZ$39,2),SUM($AX54:BD54),0)+IF(RIGHT(BZ$39,2)>RIGHT($K54,2),BD54,0)) -> 0 | CA54: =+IF($K54="Ongoing",BE54,IF(RIGHT($K54,2)=RIGHT(CA$39,2),SUM($AX54:BE54),0)+IF(RIGHT(CA$39,2)>RIGHT($K54,2),BE54,0)) -> 0 | CB54: =+IF($K54="Ongoing",BF54,IF(RIGHT($K54,2)=RIGHT(CB$39,2),SUM($AX54:BF54),0)+IF(RIGHT(CB$39,2)>RIGHT($K54,2),BF54,0)) -> 0 | CC54: =+IF($K54="Ongoing",BG54,IF(RIGHT($K54,2)=RIGHT(CC$39,2),SUM($AX54:BG54),0)+IF(RIGHT(CC$39,2)>RIGHT($K54,2),BG54,0)) -> 0 | CE54: =+Q54*KeyAssumptionsPriceControl_FO!X$15 -> 1.416855 | CF54: =+R54*KeyAssumptionsPriceControl_FO!Y$15 -> 1.2558348 | CG54: =+S54*KeyAssumptionsPriceControl_FO!Z$15 -> 1.60589875 | CH54: =+T54*KeyAssumptionsPriceControl_FO!AA$15 -> 1.889259585 | CI54: =+U54*KeyAssumptionsPriceControl_FO!AB$15 -> 1.456536998 | CJ54: =+V54*KeyAssumptionsPriceControl_FO!AC$15 -> 0 | CK54: =+W54*KeyAssumptionsPriceControl_FO!AD$15 -> 0 | CL54: =+X54*KeyAssumptionsPriceControl_FO!AE$15 -> 0 | CM54: =+Y54*KeyAssumptionsPriceControl_FO!AF$15 -> 0 | CN54: =+Z54*KeyAssumptionsPriceControl_FO!AG$15 -> 0 | CP54: 0.02083610294 | CQ54: 0.05952753815 | CR54: 0.09986104512 | CS54: 0.1483233428 | CT54: 0.1931637825 | CU54: 0.2089021565 | CV54: 0.2027579755 | CW54: 0.1967945056 | CX54: 0.1910064319 | CY54: 0.1853885957 | DC54: 1.5 | DD54: No | DE54: =+IF($K54="ongoing",CE54,IF(RIGHT($K54,2)=RIGHT(DE$39,2),SUM($CD54:CE54),0)+IF(RIGHT(DE$39,2)>RIGHT($K54,2),CE54,0)) -> 1.416855 | DF54: =+IF($K54="ongoing",CF54,IF(RIGHT($K54,2)=RIGHT(DF$39,2),SUM($CD54:CF54),0)+IF(RIGHT(DF$39,2)>RIGHT($K54,2),CF54,0)) -> 1.2558348 | DG54: =+IF($K54="ongoing",CG54,IF(RIGHT($K54,2)=RIGHT(DG$39,2),SUM($CD54:CG54),0)+IF(RIGHT(DG$39,2)>RIGHT($K54,2),CG54,0)) -> 1.60589875 | DH54: =+IF($K54="ongoing",CH54,IF(RIGHT($K54,2)=RIGHT(DH$39,2),SUM($CD54:CH54),0)+IF(RIGHT(DH$39,2)>RIGHT($K54,2),CH54,0)) -> 1.889259585 | DI54: =+IF($K54="ongoing",CI54,IF(RIGHT($K54,2)=RIGHT(DI$39,2),SUM($CD54:CI54),0)+IF(RIGHT(DI$39,2)>RIGHT($K54,2),CI54,0)) -> 1.456536998 | DJ54: =+IF($K54="ongoing",CJ54,IF(RIGHT($K54,2)=RIGHT(DJ$39,2),SUM($CD54:CJ54),0)+IF(RIGHT(DJ$39,2)>RIGHT($K54,2),CJ54,0)) -> 0 | DK54: =+IF($K54="ongoing",CK54,IF(RIGHT($K54,2)=RIGHT(DK$39,2),SUM($CD54:CK54),0)+IF(RIGHT(DK$39,2)>RIGHT($K54,2),CK54,0)) -> 0 | DL54: =+IF($K54="ongoing",CL54,IF(RIGHT($K54,2)=RIGHT(DL$39,2),SUM($CD54:CL54),0)+IF(RIGHT(DL$39,2)>RIGHT($K54,2),CL54,0)) -> 0 | DM54: =+IF($K54="ongoing",CM54,IF(RIGHT($K54,2)=RIGHT(DM$39,2),SUM($CD54:CM54),0)+IF(RIGHT(DM$39,2)>RIGHT($K54,2),CM54,0)) -> 0 | DN54: =+IF($K54="ongoing",CN54,IF(RIGHT($K54,2)=RIGHT(DN$39,2),SUM($CD54:CN54),0)+IF(RIGHT(DN$39,2)>RIGHT($K54,2),CN54,0)) -> 0 | DP54: 0.5 | DQ54: =+MIN(IF($N54<=$DC54,MIN($N54,1),$N54),IF(DQ$40=1,0.5,DP54+1)) -> 1.5 | DR54: 2.5 | DS54: 3.5 | DT54: 4.5 | DU54: 5.5 | DV54: 6.5 | DW54: 7.5 | DX54: 8.5 | DY54: 9.5 | EA54: =+IF(EA$40=1,0,MIN(IF($N54<=$DC54,MIN($N54,1),$N54),IF(EA$40=2,0.5,DZ54+1))) -> 0 | EB54: 0.5 | EC54: 1.5 | ED54: 2.5 | EE54: 3.5 | EF54: 4.5 | EG54: 5.5 | EH54: 6.5 | EI54: 7.5 | EJ54: 8.5 | EL54: =+IF(DP54=DO54,0, IF(AND(EL$40>1,DP54=$N54),1-SUM($EK54:EK54), IF($N54<=1, IF($N54>0,1/$N54,0), IF(EL$40=1,0,VDB(1,0,$N54,INT(EL$40-1-1),MIN($N54,INT(EL$40-1-1)+1),$DC54,IF($DD54="No",1,0))/ IF(DO54>=INT($N54),$N54-INT($N54),1)))* IF(EL$40=1,0, IF(INT(DP54)=INT(DO54),DP54-DO54,INT(DP54)-DO54))+ IF($N54<=1, IF($N54>0,1/$N54,0),VDB(1,0,$N54,INT(EL$40-1),MIN($N54,INT(EL$40-1)+1),$DC54,IF($DD54="No",1,0))/ IF(DP54>INT($N54),$N54-INT($N54),1))* IF(EL$40=1,DP54, IF(INT(DP54)=INT(DO54),0,DP54-INT(DP54))))) -> 0.01470588235 | EM54: =+IF(DQ54=DP54,0, IF(AND(EM$40>1,DQ54=$N54),1-SUM($EK54:EL54), IF($N54<=1, IF($N54>0,1/$N54,0), IF(EM$40=1,0,VDB(1,0,$N54,INT(EM$40-1-1),MIN($N54,INT(EM$40-1-1)+1),$DC54,IF($DD54="No",1,0))/ IF(DP54>=INT($N54),$N54-INT($N54),1)))* IF(EM$40=1,0, IF(INT(DQ54)=INT(DP54),DQ54-DP54,INT(DQ54)-DP54))+ IF($N54<=1, IF($N54>0,1/$N54,0),VDB(1,0,$N54,INT(EM$40-1),MIN($N54,INT(EM$40-1)+1),$DC54,IF($DD54="No",1,0))/ IF(DQ54>INT($N54),$N54-INT($N54),1))* IF(EM$40=1,DQ54, IF(INT(DQ54)=INT(DP54),0,DQ54-INT(DQ54))))) -> 0.02897923875 | EN54: =+IF(DR54=DQ54,0, IF(AND(EN$40>1,DR54=$N54),1-SUM($EK54:EM54), IF($N54<=1, IF($N54>0,1/$N54,0), IF(EN$40=1,0,VDB(1,0,$N54,INT(EN$40-1-1),MIN($N54,INT(EN$40-1-1)+1),$DC54,IF($DD54="No",1,0))/ IF(DQ54>=INT($N54),$N54-INT($N54),1)))* IF(EN$40=1,0, IF(INT(DR54)=INT(DQ54),DR54-DQ54,INT(DR54)-DQ54))+ IF($N54<=1, IF($N54>0,1/$N54,0),VDB(1,0,$N54,INT(EN$40-1),MIN($N54,INT(EN$40-1)+1),$DC54,IF($DD54="No",1,0))/ IF(DR54>INT($N54),$N54-INT($N54),1))* IF(EN$40=1,DR54, IF(INT(DR54)=INT(DQ54),0,DR54-INT(DR54))))) -> 0.0281269082 | EO54: =+IF(DS54=DR54,0, IF(AND(EO$40>1,DS54=$N54),1-SUM($EK54:EN54), IF($N54<=1, IF($N54>0,1/$N54,0), IF(EO$40=1,0,VDB(1,0,$N54,INT(EO$40-1-1),MIN($N54,INT(EO$40-1-1)+1),$DC54,IF($DD54="No",1,0))/ IF(DR54>=INT($N54),$N54-INT($N54),1)))* IF(EO$40=1,0, IF(INT(DS54)=INT(DR54),DS54-DR54,INT(DS54)-DR54))+ IF($N54<=1, IF($N54>0,1/$N54,0),VDB(1,0,$N54,INT(EO$40-1),MIN($N54,INT(EO$40-1)+1),$DC54,IF($DD54="No",1,0))/ IF(DS54>INT($N54),$N54-INT($N54),1))* IF(EO$40=1,DS54, IF(INT(DS54)=INT(DR54),0,DS54-INT(DS54))))) -> 0.0272996462 | EP54: =+IF(DT54=DS54,0, IF(AND(EP$40>1,DT54=$N54),1-SUM($EK54:EO54), IF($N54<=1, IF($N54>0,1/$N54,0), IF(EP$40=1,0,VDB(1,0,$N54,INT(EP$40-1-1),MIN($N54,INT(EP$40-1-1)+1),$DC54,IF($DD54="No",1,0))/ IF(DS54>=INT($N54),$N54-INT($N54),1)))* IF(EP$40=1,0, IF(INT(DT54)=INT(DS54),DT54-DS54,INT(DT54)-DS54))+ IF($N54<=1, IF($N54>0,1/$N54,0),VDB(1,0,$N54,INT(EP$40-1),MIN($N54,INT(EP$40-1)+1),$DC54,IF($DD54="No",1,0))/ IF(DT54>INT($N54),$N54-INT($N54),1))* IF(EP$40=1,DT54, IF(INT(DT54)=INT(DS54),0,DT54-INT(DT54))))) -> 0.02649671543 | EQ54: =+IF(DU54=DT54,0, IF(AND(EQ$40>1,DU54=$N54),1-SUM($EK54:EP54), IF($N54<=1, IF($N54>0,1/$N54,0), IF(EQ$40=1,0,VDB(1,0,$N54,INT(EQ$40-1-1),MIN($N54,INT(EQ$40-1-1)+1),$DC54,IF($DD54="No",1,0))/ IF(DT54>=INT($N54),$N54-INT($N54),1)))* IF(EQ$40=1,0, IF(INT(DU54)=INT(DT54),DU54-DT54,INT(DU54)-DT54))+ IF($N54<=1, IF($N54>0,1/$N54,0),VDB(1,0,$N54,INT(EQ$40-1),MIN($N54,INT(EQ$40-1)+1),$DC54,IF($DD54="No",1,0))/ IF(DU54>INT($N54),$N54-INT($N54),1))* IF(EQ$40=1,DU54, IF(INT(DU54)=INT(DT54),0,DU54-INT(DU54))))) -> 0.02571740027 | ER54: =+IF(DV54=DU54,0, IF(AND(ER$40>1,DV54=$N54),1-SUM($EK54:EQ54), IF($N54<=1, IF($N54>0,1/$N54,0), IF(ER$40=1,0,VDB(1,0,$N54,INT(ER$40-1-1),MIN($N54,INT(ER$40-1-1)+1),$DC54,IF($DD54="No",1,0))/ IF(DU54>=INT($N54),$N54-INT($N54),1)))* IF(ER$40=1,0, IF(INT(DV54)=INT(DU54),DV54-DU54,INT(DV54)-DU54))+ IF($N54<=1, IF($N54>0,1/$N54,0),VDB(1,0,$N54,INT(ER$40-1),MIN($N54,INT(ER$40-1)+1),$DC54,IF($DD54="No",1,0))/ IF(DV54>INT($N54),$N54-INT($N54),1))* IF(ER$40=1,DV54, IF(INT(DV54)=INT(DU54),0,DV54-INT(DV54))))) -> 0.02496100614 | ES54: =+IF(DW54=DV54,0, IF(AND(ES$40>1,DW54=$N54),1-SUM($EK54:ER54), IF($N54<=1, IF($N54>0,1/$N54,0), IF(ES$40=1,0,VDB(1,0,$N54,INT(ES$40-1-1),MIN($N54,INT(ES$40-1-1)+1),$DC54,IF($DD54="No",1,0))/ IF(DV54>=INT($N54),$N54-INT($N54),1)))* IF(ES$40=1,0, IF(INT(DW54)=INT(DV54),DW54-DV54,INT(DW54)-DV54))+ IF($N54<=1, IF($N54>0,1/$N54,0),VDB(1,0,$N54,INT(ES$40-1),MIN($N54,INT(ES$40-1)+1),$DC54,IF($DD54="No",1,0))/ IF(DW54>INT($N54),$N54-INT($N54),1))* IF(ES$40=1,DW54, IF(INT(DW54)=INT(DV54),0,DW54-INT(DW54))))) -> 0.0242268589 | ET54: =+IF(DX54=DW54,0, IF(AND(ET$40>1,DX54=$N54),1-SUM($EK54:ES54), IF($N54<=1, IF($N54>0,1/$N54,0), IF(ET$40=1,0,VDB(1,0,$N54,INT(ET$40-1-1),MIN($N54,INT(ET$40-1-1)+1),$DC54,IF($DD54="No",1,0))/ IF(DW54>=INT($N54),$N54-INT($N54),1)))* IF(ET$40=1,0, IF(INT(DX54)=INT(DW54),DX54-DW54,INT(DX54)-DW54))+ IF($N54<=1, IF($N54>0,1/$N54,0),VDB(1,0,$N54,INT(ET$40-1),MIN($N54,INT(ET$40-1)+1),$DC54,IF($DD54="No",1,0))/ IF(DX54>INT($N54),$N54-INT($N54),1))* IF(ET$40=1,DX54, IF(INT(DX54)=INT(DW54),0,DX54-INT(DX54))))) -> 0.02351430423 | EU54: =+IF(DY54=DX54,0, IF(AND(EU$40>1,DY54=$N54),1-SUM($EK54:ET54), IF($N54<=1, IF($N54>0,1/$N54,0), IF(EU$40=1,0,VDB(1,0,$N54,INT(EU$40-1-1),MIN($N54,INT(EU$40-1-1)+1),$DC54,IF($DD54="No",1,0))/ IF(DX54>=INT($N54),$N54-INT($N54),1)))* IF(EU$40=1,0, IF(INT(DY54)=INT(DX54),DY54-DX54,INT(DY54)-DX54))+ IF($N54<=1, IF($N54>0,1/$N54,0),VDB(1,0,$N54,INT(EU$40-1),MIN($N54,INT(EU$40-1)+1),$DC54,IF($DD54="No",1,0))/ IF(DY54>INT($N54),$N54-INT($N54),1))* IF(EU$40=1,DY54, IF(INT(DY54)=INT(DX54),0,DY54-INT(DY54))))) -> 0.02282270704 | EW54: =+IF(OR(EA54=DZ54,EW$40=1),0, IF(AND(EW$40>1,EA54=$N54),1-SUM($EV54:EV54), IF($N54<=1, IF($N54>0,1/$N54,0), IF(EW$40=2,0,VDB(1,0,$N54,INT(EW$40-2-1),MIN($N54,INT(EW$40-2-1)+1),$DC54,IF($DD54="No",1,0))/ IF(DZ54>=INT($N54),$N54-INT($N54),1)))* IF(EW$40=2,0, IF(INT(EA54)=INT(DZ54),EA54-DZ54,INT(EA54)-DZ54))+ IF($N54<=1, IF($N54>0,1/$N54,0),VDB(1,0,$N54,INT(EW$40-2),MIN($N54,INT(EW$40-2)+1),$DC54,IF($DD54="No",1,0))/ IF(EA54>INT($N54),$N54-INT($N54),1))* IF(EW$40=2,EA54, IF(INT(EA54)=INT(DZ54),0,EA54-INT(EA54))))) -> 0 | EX54: =+IF(OR(EB54=EA54,EX$40=1),0, IF(AND(EX$40>1,EB54=$N54),1-SUM($EV54:EW54), IF($N54<=1, IF($N54>0,1/$N54,0), IF(EX$40=2,0,VDB(1,0,$N54,INT(EX$40-2-1),MIN($N54,INT(EX$40-2-1)+1),$DC54,IF($DD54="No",1,0))/ IF(EA54>=INT($N54),$N54-INT($N54),1)))* IF(EX$40=2,0, IF(INT(EB54)=INT(EA54),EB54-EA54,INT(EB54)-EA54))+ IF($N54<=1, IF($N54>0,1/$N54,0),VDB(1,0,$N54,INT(EX$40-2),MIN($N54,INT(EX$40-2)+1),$DC54,IF($DD54="No",1,0))/ IF(EB54>INT($N54),$N54-INT($N54),1))* IF(EX$40=2,EB54, IF(INT(EB54)=INT(EA54),0,EB54-INT(EB54))))) -> 0.01470588235 | EY54: =+IF(OR(EC54=EB54,EY$40=1),0, IF(AND(EY$40>1,EC54=$N54),1-SUM($EV54:EX54), IF($N54<=1, IF($N54>0,1/$N54,0), IF(EY$40=2,0,VDB(1,0,$N54,INT(EY$40-2-1),MIN($N54,INT(EY$40-2-1)+1),$DC54,IF($DD54="No",1,0))/ IF(EB54>=INT($N54),$N54-INT($N54),1)))* IF(EY$40=2,0, IF(INT(EC54)=INT(EB54),EC54-EB54,INT(EC54)-EB54))+ IF($N54<=1, IF($N54>0,1/$N54,0),VDB(1,0,$N54,INT(EY$40-2),MIN($N54,INT(EY$40-2)+1),$DC54,IF($DD54="No",1,0))/ IF(EC54>INT($N54),$N54-INT($N54),1))* IF(EY$40=2,EC54, IF(INT(EC54)=INT(EB54),0,EC54-INT(EC54))))) -> 0.02897923875 | EZ54: =+IF(OR(ED54=EC54,EZ$40=1),0, IF(AND(EZ$40>1,ED54=$N54),1-SUM($EV54:EY54), IF($N54<=1, IF($N54>0,1/$N54,0), IF(EZ$40=2,0,VDB(1,0,$N54,INT(EZ$40-2-1),MIN($N54,INT(EZ$40-2-1)+1),$DC54,IF($DD54="No",1,0))/ IF(EC54>=INT($N54),$N54-INT($N54),1)))* IF(EZ$40=2,0, IF(INT(ED54)=INT(EC54),ED54-EC54,INT(ED54)-EC54))+ IF($N54<=1, IF($N54>0,1/$N54,0),VDB(1,0,$N54,INT(EZ$40-2),MIN($N54,INT(EZ$40-2)+1),$DC54,IF($DD54="No",1,0))/ IF(ED54>INT($N54),$N54-INT($N54),1))* IF(EZ$40=2,ED54, IF(INT(ED54)=INT(EC54),0,ED54-INT(ED54))))) -> 0.0281269082 | FA54: =+IF(OR(EE54=ED54,FA$40=1),0, IF(AND(FA$40>1,EE54=$N54),1-SUM($EV54:EZ54), IF($N54<=1, IF($N54>0,1/$N54,0), IF(FA$40=2,0,VDB(1,0,$N54,INT(FA$40-2-1),MIN($N54,INT(FA$40-2-1)+1),$DC54,IF($DD54="No",1,0))/ IF(ED54>=INT($N54),$N54-INT($N54),1)))* IF(FA$40=2,0, IF(INT(EE54)=INT(ED54),EE54-ED54,INT(EE54)-ED54))+ IF($N54<=1, IF($N54>0,1/$N54,0),VDB(1,0,$N54,INT(FA$40-2),MIN($N54,INT(FA$40-2)+1),$DC54,IF($DD54="No",1,0))/ IF(EE54>INT($N54),$N54-INT($N54),1))* IF(FA$40=2,EE54, IF(INT(EE54)=INT(ED54),0,EE54-INT(EE54))))) -> 0.0272996462 | FB54: =+IF(OR(EF54=EE54,FB$40=1),0, IF(AND(FB$40>1,EF54=$N54),1-SUM($EV54:FA54), IF($N54<=1, IF($N54>0,1/$N54,0), IF(FB$40=2,0,VDB(1,0,$N54,INT(FB$40-2-1),MIN($N54,INT(FB$40-2-1)+1),$DC54,IF($DD54="No",1,0))/ IF(EE54>=INT($N54),$N54-INT($N54),1)))* IF(FB$40=2,0, IF(INT(EF54)=INT(EE54),EF54-EE54,INT(EF54)-EE54))+ IF($N54<=1, IF($N54>0,1/$N54,0),VDB(1,0,$N54,INT(FB$40-2),MIN($N54,INT(FB$40-2)+1),$DC54,IF($DD54="No",1,0))/ IF(EF54>INT($N54),$N54-INT($N54),1))* IF(FB$40=2,EF54, IF(INT(EF54)=INT(EE54),0,EF54-INT(EF54))))) -> 0.02649671543 | FC54: =+IF(OR(EG54=EF54,FC$40=1),0, IF(AND(FC$40>1,EG54=$N54),1-SUM($EV54:FB54), IF($N54<=1, IF($N54>0,1/$N54,0), IF(FC$40=2,0,VDB(1,0,$N54,INT(FC$40-2-1),MIN($N54,INT(FC$40-2-1)+1),$DC54,IF($DD54="No",1,0))/ IF(EF54>=INT($N54),$N54-INT($N54),1)))* IF(FC$40=2,0, IF(INT(EG54)=INT(EF54),EG54-EF54,INT(EG54)-EF54))+ IF($N54<=1, IF($N54>0,1/$N54,0),VDB(1,0,$N54,INT(FC$40-2),MIN($N54,INT(FC$40-2)+1),$DC54,IF($DD54="No",1,0))/ IF(EG54>INT($N54),$N54-INT($N54),1))* IF(FC$40=2,EG54, IF(INT(EG54)=INT(EF54),0,EG54-INT(EG54))))) -> 0.02571740027 | FD54: =+IF(OR(EH54=EG54,FD$40=1),0, IF(AND(FD$40>1,EH54=$N54),1-SUM($EV54:FC54), IF($N54<=1, IF($N54>0,1/$N54,0), IF(FD$40=2,0,VDB(1,0,$N54,INT(FD$40-2-1),MIN($N54,INT(FD$40-2-1)+1),$DC54,IF($DD54="No",1,0))/ IF(EG54>=INT($N54),$N54-INT($N54),1)))* IF(FD$40=2,0, IF(INT(EH54)=INT(EG54),EH54-EG54,INT(EH54)-EG54))+ IF($N54<=1, IF($N54>0,1/$N54,0),VDB(1,0,$N54,INT(FD$40-2),MIN($N54,INT(FD$40-2)+1),$DC54,IF($DD54="No",1,0))/ IF(EH54>INT($N54),$N54-INT($N54),1))* IF(FD$40=2,EH54, IF(INT(EH54)=INT(EG54),0,EH54-INT(EH54))))) -> 0.02496100614 | FE54: =+IF(OR(EI54=EH54,FE$40=1),0, IF(AND(FE$40>1,EI54=$N54),1-SUM($EV54:FD54), IF($N54<=1, IF($N54>0,1/$N54,0), IF(FE$40=2,0,VDB(1,0,$N54,INT(FE$40-2-1),MIN($N54,INT(FE$40-2-1)+1),$DC54,IF($DD54="No",1,0))/ IF(EH54>=INT($N54),$N54-INT($N54),1)))* IF(FE$40=2,0, IF(INT(EI54)=INT(EH54),EI54-EH54,INT(EI54)-EH54))+ IF($N54<=1, IF($N54>0,1/$N54,0),VDB(1,0,$N54,INT(FE$40-2),MIN($N54,INT(FE$40-2)+1),$DC54,IF($DD54="No",1,0))/ IF(EI54>INT($N54),$N54-INT($N54),1))* IF(FE$40=2,EI54, IF(INT(EI54)=INT(EH54),0,EI54-INT(EI54))))) -> 0.0242268589 | FF54: =+IF(OR(EJ54=EI54,FF$40=1),0, IF(AND(FF$40>1,EJ54=$N54),1-SUM($EV54:FE54), IF($N54<=1, IF($N54>0,1/$N54,0), IF(FF$40=2,0,VDB(1,0,$N54,INT(FF$40-2-1),MIN($N54,INT(FF$40-2-1)+1),$DC54,IF($DD54="No",1,0))/ IF(EI54>=INT($N54),$N54-INT($N54),1)))* IF(FF$40=2,0, IF(INT(EJ54)=INT(EI54),EJ54-EI54,INT(EJ54)-EI54))+ IF($N54<=1, IF($N54>0,1/$N54,0),VDB(1,0,$N54,INT(FF$40-2),MIN($N54,INT(FF$40-2)+1),$DC54,IF($DD54="No",1,0))/ IF(EJ54>INT($N54),$N54-INT($N54),1))* IF(FF$40=2,EJ54, IF(INT(EJ54)=INT(EI54),0,EJ54-INT(EJ54))))) -> 0.02351430423 | FH54: 0.02351430423 | FI54: 0.0242268589 | FJ54: 0.02496100614 | FK54: 0.02571740027 | FL54: 0.02649671543 | FM54: 0.0272996462 | FN54: 0.0281269082 | FO54: 0.02897923875 | FP54: 0.01470588235 | FQ54: 0 | FS54: 0.02083610294 | FT54: 0.05952753815 | FU54: 0.09986104512 | FV54: 0.1483233428 | FW54: 0.1931637825 | FX54: 0.2089021565 | FY54: 0.2027579755 | FZ54: 0.1967945056 | GA54: 0.1910064319 | GB54: 0.1853885957
C55: Aintree SPS | E55: Sewerage | F55: Growth | G55: Pipelines/network | H55: Significant projects | I55: 0 | J55: Straight line | K55: 2020 | L55: 30 | M55: Declining Balance | N55: 30 | Q55: 2.2 | R55: 0.1419 | S55: 0 | T55: 0 | U55: 0 | AB55: 0 | AC55: 0 | AD55: 0 | AE55: 0 | AF55: 0 | AM55: 0 | AN55: 0 | AO55: 0 | AP55: 0 | AQ55: 0 | AX55: 2.2 | AY55: 0.1419 | AZ55: 0 | BA55: 0 | BB55: 0 | BC55: 0 | BD55: 0 | BE55: 0 | BF55: 0 | BG55: 0 | BI55: 0 | BJ55: 0.03903166667 | BK55: 0.07806333333 | BL55: 0.07806333333 | BM55: 0.07806333333 | BN55: 0.07806333333 | BO55: 0.07806333333 | BP55: 0.07806333333 | BQ55: 0.07806333333 | BR55: 0.07806333333 | BT55: =+IF($K55="Ongoing",AX55,IF(RIGHT($K55,2)=RIGHT(BT$39,2),SUM($AX55:AX55),0)+IF(RIGHT(BT$39,2)>RIGHT($K55,2),AX55,0)) -> 0 | BU55: =+IF($K55="Ongoing",AY55,IF(RIGHT($K55,2)=RIGHT(BU$39,2),SUM($AX55:AY55),0)+IF(RIGHT(BU$39,2)>RIGHT($K55,2),AY55,0)) -> 2.3419 | BV55: =+IF($K55="Ongoing",AZ55,IF(RIGHT($K55,2)=RIGHT(BV$39,2),SUM($AX55:AZ55),0)+IF(RIGHT(BV$39,2)>RIGHT($K55,2),AZ55,0)) -> 0 | BW55: =+IF($K55="Ongoing",BA55,IF(RIGHT($K55,2)=RIGHT(BW$39,2),SUM($AX55:BA55),0)+IF(RIGHT(BW$39,2)>RIGHT($K55,2),BA55,0)) -> 0 | BX55: =+IF($K55="Ongoing",BB55,IF(RIGHT($K55,2)=RIGHT(BX$39,2),SUM($AX55:BB55),0)+IF(RIGHT(BX$39,2)>RIGHT($K55,2),BB55,0)) -> 0 | BY55: =+IF($K55="Ongoing",BC55,IF(RIGHT($K55,2)=RIGHT(BY$39,2),SUM($AX55:BC55),0)+IF(RIGHT(BY$39,2)>RIGHT($K55,2),BC55,0)) -> 0 | BZ55: =+IF($K55="Ongoing",BD55,IF(RIGHT($K55,2)=RIGHT(BZ$39,2),SUM($AX55:BD55),0)+IF(RIGHT(BZ$39,2)>RIGHT($K55,2),BD55,0)) -> 0 | CA55: =+IF($K55="Ongoing",BE55,IF(RIGHT($K55,2)=RIGHT(CA$39,2),SUM($AX55:BE55),0)+IF(RIGHT(CA$39,2)>RIGHT($K55,2),BE55,0)) -> 0 | CB55: =+IF($K55="Ongoing",BF55,IF(RIGHT($K55,2)=RIGHT(CB$39,2),SUM($AX55:BF55),0)+IF(RIGHT(CB$39,2)>RIGHT($K55,2),BF55,0)) -> 0 | CC55: =+IF($K55="Ongoing",BG55,IF(RIGHT($K55,2)=RIGHT(CC$39,2),SUM($AX55:BG55),0)+IF(RIGHT(CC$39,2)>RIGHT($K55,2),BG55,0)) -> 0 | CE55: =+Q55*KeyAssumptionsPriceControl_FO!X$15 -> 2.2506 | CF55: =+R55*KeyAssumptionsPriceControl_FO!Y$15 -> 0.1485024651 | CG55: =+S55*KeyAssumptionsPriceControl_FO!Z$15 -> 0 | CH55: =+T55*KeyAssumptionsPriceControl_FO!AA$15 -> 0 | CI55: =+U55*KeyAssumptionsPriceControl_FO!AB$15 -> 0 | CJ55: =+V55*KeyAssumptionsPriceControl_FO!AC$15 -> 0 | CK55: =+W55*KeyAssumptionsPriceControl_FO!AD$15 -> 0 | CL55: =+X55*KeyAssumptionsPriceControl_FO!AE$15 -> 0 | CM55: =+Y55*KeyAssumptionsPriceControl_FO!AF$15 -> 0 | CN55: =+Z55*KeyAssumptionsPriceControl_FO!AG$15 -> 0 | CP55: 0 | CQ55: 0.05997756163 | CR55: 0.1169562452 | CS55: 0.1111084329 | CT55: 0.1055530113 | CU55: 0.1002753607 | CV55: 0.09526159267 | CW55: 0.09049851304 | CX55: 0.08597358739 | CY55: 0.08167490802 | DC55: 1.5 | DD55: No | DE55: =+IF($K55="ongoing",CE55,IF(RIGHT($K55,2)=RIGHT(DE$39,2),SUM($CD55:CE55),0)+IF(RIGHT(DE$39,2)>RIGHT($K55,2),CE55,0)) -> 0 | DF55: =+IF($K55="ongoing",CF55,IF(RIGHT($K55,2)=RIGHT(DF$39,2),SUM($CD55:CF55),0)+IF(RIGHT(DF$39,2)>RIGHT($K55,2),CF55,0)) -> 2.399102465 | DG55: =+IF($K55="ongoing",CG55,IF(RIGHT($K55,2)=RIGHT(DG$39,2),SUM($CD55:CG55),0)+IF(RIGHT(DG$39,2)>RIGHT($K55,2),CG55,0)) -> 0 | DH55: =+IF($K55="ongoing",CH55,IF(RIGHT($K55,2)=RIGHT(DH$39,2),SUM($CD55:CH55),0)+IF(RIGHT(DH$39,2)>RIGHT($K55,2),CH55,0)) -> 0 | DI55: =+IF($K55="ongoing",CI55,IF(RIGHT($K55,2)=RIGHT(DI$39,2),SUM($CD55:CI55),0)+IF(RIGHT(DI$39,2)>RIGHT($K55,2),CI55,0)) -> 0 | DJ55: =+IF($K55="ongoing",CJ55,IF(RIGHT($K55,2)=RIGHT(DJ$39,2),SUM($CD55:CJ55),0)+IF(RIGHT(DJ$39,2)>RIGHT($K55,2),CJ55,0)) -> 0 | DK55: =+IF($K55="ongoing",CK55,IF(RIGHT($K55,2)=RIGHT(DK$39,2),SUM($CD55:CK55),0)+IF(RIGHT(DK$39,2)>RIGHT($K55,2),CK55,0)) -> 0 | DL55: =+IF($K55="ongoing",CL55,IF(RIGHT($K55,2)=RIGHT(DL$39,2),SUM($CD55:CL55),0)+IF(RIGHT(DL$39,2)>RIGHT($K55,2),CL55,0)) -> 0 | DM55: =+IF($K55="ongoing",CM55,IF(RIGHT($K55,2)=RIGHT(DM$39,2),SUM($CD55:CM55),0)+IF(RIGHT(DM$39,2)>RIGHT($K55,2),CM55,0)) -> 0 | DN55: =+IF($K55="ongoing",CN55,IF(RIGHT($K55,2)=RIGHT(DN$39,2),SUM($CD55:CN55),0)+IF(RIGHT(DN$39,2)>RIGHT($K55,2),CN55,0)) -> 0 | DP55: 0.5 | DQ55: =+MIN(IF($N55<=$DC55,MIN($N55,1),$N55),IF(DQ$40=1,0.5,DP55+1)) -> 1.5 | DR55: 2.5 | DS55: 3.5 | DT55: 4.5 | DU55: 5.5 | DV55: 6.5 | DW55: 7.5 | DX55: 8.5 | DY55: 9.5 | EA55: =+IF(EA$40=1,0,MIN(IF($N55<=$DC55,MIN($N55,1),$N55),IF(EA$40=2,0.5,DZ55+1))) -> 0 | EB55: 0.5 | EC55: 1.5 | ED55: 2.5 | EE55: 3.5 | EF55: 4.5 | EG55: 5.5 | EH55: 6.5 | EI55: 7.5 | EJ55: 8.5 | EL55: =+IF(DP55=DO55,0, IF(AND(EL$40>1,DP55=$N55),1-SUM($EK55:EK55), IF($N55<=1, IF($N55>0,1/$N55,0), IF(EL$40=1,0,VDB(1,0,$N55,INT(EL$40-1-1),MIN($N55,INT(EL$40-1-1)+1),$DC55,IF($DD55="No",1,0))/ IF(DO55>=INT($N55),$N55-INT($N55),1)))* IF(EL$40=1,0, IF(INT(DP55)=INT(DO55),DP55-DO55,INT(DP55)-DO55))+ IF($N55<=1, IF($N55>0,1/$N55,0),VDB(1,0,$N55,INT(EL$40-1),MIN($N55,INT(EL$40-1)+1),$DC55,IF($DD55="No",1,0))/ IF(DP55>INT($N55),$N55-INT($N55),1))* IF(EL$40=1,DP55, IF(INT(DP55)=INT(DO55),0,DP55-INT(DP55))))) -> 0.025 | EM55: =+IF(DQ55=DP55,0, IF(AND(EM$40>1,DQ55=$N55),1-SUM($EK55:EL55), IF($N55<=1, IF($N55>0,1/$N55,0), IF(EM$40=1,0,VDB(1,0,$N55,INT(EM$40-1-1),MIN($N55,INT(EM$40-1-1)+1),$DC55,IF($DD55="No",1,0))/ IF(DP55>=INT($N55),$N55-INT($N55),1)))* IF(EM$40=1,0, IF(INT(DQ55)=INT(DP55),DQ55-DP55,INT(DQ55)-DP55))+ IF($N55<=1, IF($N55>0,1/$N55,0),VDB(1,0,$N55,INT(EM$40-1),MIN($N55,INT(EM$40-1)+1),$DC55,IF($DD55="No",1,0))/ IF(DQ55>INT($N55),$N55-INT($N55),1))* IF(EM$40=1,DQ55, IF(INT(DQ55)=INT(DP55),0,DQ55-INT(DQ55))))) -> 0.04875 | EN55: =+IF(DR55=DQ55,0, IF(AND(EN$40>1,DR55=$N55),1-SUM($EK55:EM55), IF($N55<=1, IF($N55>0,1/$N55,0), IF(EN$40=1,0,VDB(1,0,$N55,INT(EN$40-1-1),MIN($N55,INT(EN$40-1-1)+1),$DC55,IF($DD55="No",1,0))/ IF(DQ55>=INT($N55),$N55-INT($N55),1)))* IF(EN$40=1,0, IF(INT(DR55)=INT(DQ55),DR55-DQ55,INT(DR55)-DQ55))+ IF($N55<=1, IF($N55>0,1/$N55,0),VDB(1,0,$N55,INT(EN$40-1),MIN($N55,INT(EN$40-1)+1),$DC55,IF($DD55="No",1,0))/ IF(DR55>INT($N55),$N55-INT($N55),1))* IF(EN$40=1,DR55, IF(INT(DR55)=INT(DQ55),0,DR55-INT(DR55))))) -> 0.0463125 | EO55: =+IF(DS55=DR55,0, IF(AND(EO$40>1,DS55=$N55),1-SUM($EK55:EN55), IF($N55<=1, IF($N55>0,1/$N55,0), IF(EO$40=1,0,VDB(1,0,$N55,INT(EO$40-1-1),MIN($N55,INT(EO$40-1-1)+1),$DC55,IF($DD55="No",1,0))/ IF(DR55>=INT($N55),$N55-INT($N55),1)))* IF(EO$40=1,0, IF(INT(DS55)=INT(DR55),DS55-DR55,INT(DS55)-DR55))+ IF($N55<=1, IF($N55>0,1/$N55,0),VDB(1,0,$N55,INT(EO$40-1),MIN($N55,INT(EO$40-1)+1),$DC55,IF($DD55="No",1,0))/ IF(DS55>INT($N55),$N55-INT($N55),1))* IF(EO$40=1,DS55, IF(INT(DS55)=INT(DR55),0,DS55-INT(DS55))))) -> 0.043996875 | EP55: =+IF(DT55=DS55,0, IF(AND(EP$40>1,DT55=$N55),1-SUM($EK55:EO55), IF($N55<=1, IF($N55>0,1/$N55,0), IF(EP$40=1,0,VDB(1,0,$N55,INT(EP$40-1-1),MIN($N55,INT(EP$40-1-1)+1),$DC55,IF($DD55="No",1,0))/ IF(DS55>=INT($N55),$N55-INT($N55),1)))* IF(EP$40=1,0, IF(INT(DT55)=INT(DS55),DT55-DS55,INT(DT55)-DS55))+ IF($N55<=1, IF($N55>0,1/$N55,0),VDB(1,0,$N55,INT(EP$40-1),MIN($N55,INT(EP$40-1)+1),$DC55,IF($DD55="No",1,0))/ IF(DT55>INT($N55),$N55-INT($N55),1))* IF(EP$40=1,DT55, IF(INT(DT55)=INT(DS55),0,DT55-INT(DT55))))) -> 0.04179703125 | EQ55: =+IF(DU55=DT55,0, IF(AND(EQ$40>1,DU55=$N55),1-SUM($EK55:EP55), IF($N55<=1, IF($N55>0,1/$N55,0), IF(EQ$40=1,0,VDB(1,0,$N55,INT(EQ$40-1-1),MIN($N55,INT(EQ$40-1-1)+1),$DC55,IF($DD55="No",1,0))/ IF(DT55>=INT($N55),$N55-INT($N55),1)))* IF(EQ$40=1,0, IF(INT(DU55)=INT(DT55),DU55-DT55,INT(DU55)-DT55))+ IF($N55<=1, IF($N55>0,1/$N55,0),VDB(1,0,$N55,INT(EQ$40-1),MIN($N55,INT(EQ$40-1)+1),$DC55,IF($DD55="No",1,0))/ IF(DU55>INT($N55),$N55-INT($N55),1))* IF(EQ$40=1,DU55, IF(INT(DU55)=INT(DT55),0,DU55-INT(DU55))))) -> 0.03970717969 | ER55: =+IF(DV55=DU55,0, IF(AND(ER$40>1,DV55=$N55),1-SUM($EK55:EQ55), IF($N55<=1, IF($N55>0,1/$N55,0), IF(ER$40=1,0,VDB(1,0,$N55,INT(ER$40-1-1),MIN($N55,INT(ER$40-1-1)+1),$DC55,IF($DD55="No",1,0))/ IF(DU55>=INT($N55),$N55-INT($N55),1)))* IF(ER$40=1,0, IF(INT(DV55)=INT(DU55),DV55-DU55,INT(DV55)-DU55))+ IF($N55<=1, IF($N55>0,1/$N55,0),VDB(1,0,$N55,INT(ER$40-1),MIN($N55,INT(ER$40-1)+1),$DC55,IF($DD55="No",1,0))/ IF(DV55>INT($N55),$N55-INT($N55),1))* IF(ER$40=1,DV55, IF(INT(DV55)=INT(DU55),0,DV55-INT(DV55))))) -> 0.0377218207 | ES55: =+IF(DW55=DV55,0, IF(AND(ES$40>1,DW55=$N55),1-SUM($EK55:ER55), IF($N55<=1, IF($N55>0,1/$N55,0), IF(ES$40=1,0,VDB(1,0,$N55,INT(ES$40-1-1),MIN($N55,INT(ES$40-1-1)+1),$DC55,IF($DD55="No",1,0))/ IF(DV55>=INT($N55),$N55-INT($N55),1)))* IF(ES$40=1,0, IF(INT(DW55)=INT(DV55),DW55-DV55,INT(DW55)-DV55))+ IF($N55<=1, IF($N55>0,1/$N55,0),VDB(1,0,$N55,INT(ES$40-1),MIN($N55,INT(ES$40-1)+1),$DC55,IF($DD55="No",1,0))/ IF(DW55>INT($N55),$N55-INT($N55),1))* IF(ES$40=1,DW55, IF(INT(DW55)=INT(DV55),0,DW55-INT(DW55))))) -> 0.03583572967 | ET55: =+IF(DX55=DW55,0, IF(AND(ET$40>1,DX55=$N55),1-SUM($EK55:ES55), IF($N55<=1, IF($N55>0,1/$N55,0), IF(ET$40=1,0,VDB(1,0,$N55,INT(ET$40-1-1),MIN($N55,INT(ET$40-1-1)+1),$DC55,IF($DD55="No",1,0))/ IF(DW55>=INT($N55),$N55-INT($N55),1)))* IF(ET$40=1,0, IF(INT(DX55)=INT(DW55),DX55-DW55,INT(DX55)-DW55))+ IF($N55<=1, IF($N55>0,1/$N55,0),VDB(1,0,$N55,INT(ET$40-1),MIN($N55,INT(ET$40-1)+1),$DC55,IF($DD55="No",1,0))/ IF(DX55>INT($N55),$N55-INT($N55),1))* IF(ET$40=1,DX55, IF(INT(DX55)=INT(DW55),0,DX55-INT(DX55))))) -> 0.03404394318 | EU55: =+IF(DY55=DX55,0, IF(AND(EU$40>1,DY55=$N55),1-SUM($EK55:ET55), IF($N55<=1, IF($N55>0,1/$N55,0), IF(EU$40=1,0,VDB(1,0,$N55,INT(EU$40-1-1),MIN($N55,INT(EU$40-1-1)+1),$DC55,IF($DD55="No",1,0))/ IF(DX55>=INT($N55),$N55-INT($N55),1)))* IF(EU$40=1,0, IF(INT(DY55)=INT(DX55),DY55-DX55,INT(DY55)-DX55))+ IF($N55<=1, IF($N55>0,1/$N55,0),VDB(1,0,$N55,INT(EU$40-1),MIN($N55,INT(EU$40-1)+1),$DC55,IF($DD55="No",1,0))/ IF(DY55>INT($N55),$N55-INT($N55),1))* IF(EU$40=1,DY55, IF(INT(DY55)=INT(DX55),0,DY55-INT(DY55))))) -> 0.03234174603 | EW55: =+IF(OR(EA55=DZ55,EW$40=1),0, IF(AND(EW$40>1,EA55=$N55),1-SUM($EV55:EV55), IF($N55<=1, IF($N55>0,1/$N55,0), IF(EW$40=2,0,VDB(1,0,$N55,INT(EW$40-2-1),MIN($N55,INT(EW$40-2-1)+1),$DC55,IF($DD55="No",1,0))/ IF(DZ55>=INT($N55),$N55-INT($N55),1)))* IF(EW$40=2,0, IF(INT(EA55)=INT(DZ55),EA55-DZ55,INT(EA55)-DZ55))+ IF($N55<=1, IF($N55>0,1/$N55,0),VDB(1,0,$N55,INT(EW$40-2),MIN($N55,INT(EW$40-2)+1),$DC55,IF($DD55="No",1,0))/ IF(EA55>INT($N55),$N55-INT($N55),1))* IF(EW$40=2,EA55, IF(INT(EA55)=INT(DZ55),0,EA55-INT(EA55))))) -> 0 | EX55: =+IF(OR(EB55=EA55,EX$40=1),0, IF(AND(EX$40>1,EB55=$N55),1-SUM($EV55:EW55), IF($N55<=1, IF($N55>0,1/$N55,0), IF(EX$40=2,0,VDB(1,0,$N55,INT(EX$40-2-1),MIN($N55,INT(EX$40-2-1)+1),$DC55,IF($DD55="No",1,0))/ IF(EA55>=INT($N55),$N55-INT($N55),1)))* IF(EX$40=2,0, IF(INT(EB55)=INT(EA55),EB55-EA55,INT(EB55)-EA55))+ IF($N55<=1, IF($N55>0,1/$N55,0),VDB(1,0,$N55,INT(EX$40-2),MIN($N55,INT(EX$40-2)+1),$DC55,IF($DD55="No",1,0))/ IF(EB55>INT($N55),$N55-INT($N55),1))* IF(EX$40=2,EB55, IF(INT(EB55)=INT(EA55),0,EB55-INT(EB55))))) -> 0.025 | EY55: =+IF(OR(EC55=EB55,EY$40=1),0, IF(AND(EY$40>1,EC55=$N55),1-SUM($EV55:EX55), IF($N55<=1, IF($N55>0,1/$N55,0), IF(EY$40=2,0,VDB(1,0,$N55,INT(EY$40-2-1),MIN($N55,INT(EY$40-2-1)+1),$DC55,IF($DD55="No",1,0))/ IF(EB55>=INT($N55),$N55-INT($N55),1)))* IF(EY$40=2,0, IF(INT(EC55)=INT(EB55),EC55-EB55,INT(EC55)-EB55))+ IF($N55<=1, IF($N55>0,1/$N55,0),VDB(1,0,$N55,INT(EY$40-2),MIN($N55,INT(EY$40-2)+1),$DC55,IF($DD55="No",1,0))/ IF(EC55>INT($N55),$N55-INT($N55),1))* IF(EY$40=2,EC55, IF(INT(EC55)=INT(EB55),0,EC55-INT(EC55))))) -> 0.04875 | EZ55: =+IF(OR(ED55=EC55,EZ$40=1),0, IF(AND(EZ$40>1,ED55=$N55),1-SUM($EV55:EY55), IF($N55<=1, IF($N55>0,1/$N55,0), IF(EZ$40=2,0,VDB(1,0,$N55,INT(EZ$40-2-1),MIN($N55,INT(EZ$40-2-1)+1),$DC55,IF($DD55="No",1,0))/ IF(EC55>=INT($N55),$N55-INT($N55),1)))* IF(EZ$40=2,0, IF(INT(ED55)=INT(EC55),ED55-EC55,INT(ED55)-EC55))+ IF($N55<=1, IF($N55>0,1/$N55,0),VDB(1,0,$N55,INT(EZ$40-2),MIN($N55,INT(EZ$40-2)+1),$DC55,IF($DD55="No",1,0))/ IF(ED55>INT($N55),$N55-INT($N55),1))* IF(EZ$40=2,ED55, IF(INT(ED55)=INT(EC55),0,ED55-INT(ED55))))) -> 0.0463125 | FA55: =+IF(OR(EE55=ED55,FA$40=1),0, IF(AND(FA$40>1,EE55=$N55),1-SUM($EV55:EZ55), IF($N55<=1, IF($N55>0,1/$N55,0), IF(FA$40=2,0,VDB(1,0,$N55,INT(FA$40-2-1),MIN($N55,INT(FA$40-2-1)+1),$DC55,IF($DD55="No",1,0))/ IF(ED55>=INT($N55),$N55-INT($N55),1)))* IF(FA$40=2,0, IF(INT(EE55)=INT(ED55),EE55-ED55,INT(EE55)-ED55))+ IF($N55<=1, IF($N55>0,1/$N55,0),VDB(1,0,$N55,INT(FA$40-2),MIN($N55,INT(FA$40-2)+1),$DC55,IF($DD55="No",1,0))/ IF(EE55>INT($N55),$N55-INT($N55),1))* IF(FA$40=2,EE55, IF(INT(EE55)=INT(ED55),0,EE55-INT(EE55))))) -> 0.043996875 | FB55: =+IF(OR(EF55=EE55,FB$40=1),0, IF(AND(FB$40>1,EF55=$N55),1-SUM($EV55:FA55), IF($N55<=1, IF($N55>0,1/$N55,0), IF(FB$40=2,0,VDB(1,0,$N55,INT(FB$40-2-1),MIN($N55,INT(FB$40-2-1)+1),$DC55,IF($DD55="No",1,0))/ IF(EE55>=INT($N55),$N55-INT($N55),1)))* IF(FB$40=2,0, IF(INT(EF55)=INT(EE55),EF55-EE55,INT(EF55)-EE55))+ IF($N55<=1, IF($N55>0,1/$N55,0),VDB(1,0,$N55,INT(FB$40-2),MIN($N55,INT(FB$40-2)+1),$DC55,IF($DD55="No",1,0))/ IF(EF55>INT($N55),$N55-INT($N55),1))* IF(FB$40=2,EF55, IF(INT(EF55)=INT(EE55),0,EF55-INT(EF55))))) -> 0.04179703125 | FC55: =+IF(OR(EG55=EF55,FC$40=1),0, IF(AND(FC$40>1,EG55=$N55),1-SUM($EV55:FB55), IF($N55<=1, IF($N55>0,1/$N55,0), IF(FC$40=2,0,VDB(1,0,$N55,INT(FC$40-2-1),MIN($N55,INT(FC$40-2-1)+1),$DC55,IF($DD55="No",1,0))/ IF(EF55>=INT($N55),$N55-INT($N55),1)))* IF(FC$40=2,0, IF(INT(EG55)=INT(EF55),EG55-EF55,INT(EG55)-EF55))+ IF($N55<=1, IF($N55>0,1/$N55,0),VDB(1,0,$N55,INT(FC$40-2),MIN($N55,INT(FC$40-2)+1),$DC55,IF($DD55="No",1,0))/ IF(EG55>INT($N55),$N55-INT($N55),1))* IF(FC$40=2,EG55, IF(INT(EG55)=INT(EF55),0,EG55-INT(EG55))))) -> 0.03970717969 | FD55: =+IF(OR(EH55=EG55,FD$40=1),0, IF(AND(FD$40>1,EH55=$N55),1-SUM($EV55:FC55), IF($N55<=1, IF($N55>0,1/$N55,0), IF(FD$40=2,0,VDB(1,0,$N55,INT(FD$40-2-1),MIN($N55,INT(FD$40-2-1)+1),$DC55,IF($DD55="No",1,0))/ IF(EG55>=INT($N55),$N55-INT($N55),1)))* IF(FD$40=2,0, IF(INT(EH55)=INT(EG55),EH55-EG55,INT(EH55)-EG55))+ IF($N55<=1, IF($N55>0,1/$N55,0),VDB(1,0,$N55,INT(FD$40-2),MIN($N55,INT(FD$40-2)+1),$DC55,IF($DD55="No",1,0))/ IF(EH55>INT($N55),$N55-INT($N55),1))* IF(FD$40=2,EH55, IF(INT(EH55)=INT(EG55),0,EH55-INT(EH55))))) -> 0.0377218207 | FE55: =+IF(OR(EI55=EH55,FE$40=1),0, IF(AND(FE$40>1,EI55=$N55),1-SUM($EV55:FD55), IF($N55<=1, IF($N55>0,1/$N55,0), IF(FE$40=2,0,VDB(1,0,$N55,INT(FE$40-2-1),MIN($N55,INT(FE$40-2-1)+1),$DC55,IF($DD55="No",1,0))/ IF(EH55>=INT($N55),$N55-INT($N55),1)))* IF(FE$40=2,0, IF(INT(EI55)=INT(EH55),EI55-EH55,INT(EI55)-EH55))+ IF($N55<=1, IF($N55>0,1/$N55,0),VDB(1,0,$N55,INT(FE$40-2),MIN($N55,INT(FE$40-2)+1),$DC55,IF($DD55="No",1,0))/ IF(EI55>INT($N55),$N55-INT($N55),1))* IF(FE$40=2,EI55, IF(INT(EI55)=INT(EH55),0,EI55-INT(EI55))))) -> 0.03583572967 | FF55: =+IF(OR(EJ55=EI55,FF$40=1),0, IF(AND(FF$40>1,EJ55=$N55),1-SUM($EV55:FE55), IF($N55<=1, IF($N55>0,1/$N55,0), IF(FF$40=2,0,VDB(1,0,$N55,INT(FF$40-2-1),MIN($N55,INT(FF$40-2-1)+1),$DC55,IF($DD55="No",1,0))/ IF(EI55>=INT($N55),$N55-INT($N55),1)))* IF(FF$40=2,0, IF(INT(EJ55)=INT(EI55),EJ55-EI55,INT(EJ55)-EI55))+ IF($N55<=1, IF($N55>0,1/$N55,0),VDB(1,0,$N55,INT(FF$40-2),MIN($N55,INT(FF$40-2)+1),$DC55,IF($DD55="No",1,0))/ IF(EJ55>INT($N55),$N55-INT($N55),1))* IF(FF$40=2,EJ55, IF(INT(EJ55)=INT(EI55),0,EJ55-INT(EJ55))))) -> 0.03404394318 | FH55: 0.03404394318 | FI55: 0.03583572967 | FJ55: 0.0377218207 | FK55: 0.03970717969 | FL55: 0.04179703125 | FM55: 0.043996875 | FN55: 0.0463125 | FO55: 0.04875 | FP55: 0.025 | FQ55: 0 | FS55: 0 | FT55: 0.05997756163 | FU55: 0.1169562452 | FV55: 0.1111084329 | FW55: 0.1055530113 | FX55: 0.1002753607 | FY55: 0.09526159267 | FZ55: 0.09049851304 | GA55: 0.08597358739 | GB55: 0.08167490802
C56: Melton Transfer Upgrades | E56: Water | F56: Growth | G56: Headworks | H56: Significant projects | I56: 0 | J56: Straight line | K56: 2023 | L56: 51 | M56: Declining Balance | N56: 51 | Q56: 0.2579999983 | R56: 0.9895290571 | S56: 0.2204669884 | T56: 5.99621154 | U56: 0.106743802 | AB56: 0 | AC56: 0 | AD56: 0 | AE56: 0 | AF56: 0 | AM56: 0 | AN56: 0 | AO56: 0 | AP56: 0 | AQ56: 0 | AX56: 0.2579999983 | AY56: 0.9895290571 | AZ56: 0.2204669884 | BA56: 5.99621154 | BB56: 0.106743802 | BC56: 0 | BD56: 0 | BE56: 0 | BF56: 0 | BG56: 0 | BI56: 0 | BJ56: 0 | BK56: 0 | BL56: 0 | BM56: 0.07422501359 | BN56: 0.1484500272 | BO56: 0.1484500272 | BP56: 0.1484500272 | BQ56: 0.1484500272 | BR56: 0.1484500272 | BT56: =+IF($K56="Ongoing",AX56,IF(RIGHT($K56,2)=RIGHT(BT$39,2),SUM($AX56:AX56),0)+IF(RIGHT(BT$39,2)>RIGHT($K56,2),AX56,0)) -> 0 | BU56: =+IF($K56="Ongoing",AY56,IF(RIGHT($K56,2)=RIGHT(BU$39,2),SUM($AX56:AY56),0)+IF(RIGHT(BU$39,2)>RIGHT($K56,2),AY56,0)) -> 0 | BV56: =+IF($K56="Ongoing",AZ56,IF(RIGHT($K56,2)=RIGHT(BV$39,2),SUM($AX56:AZ56),0)+IF(RIGHT(BV$39,2)>RIGHT($K56,2),AZ56,0)) -> 0 | BW56: =+IF($K56="Ongoing",BA56,IF(RIGHT($K56,2)=RIGHT(BW$39,2),SUM($AX56:BA56),0)+IF(RIGHT(BW$39,2)>RIGHT($K56,2),BA56,0)) -> 0 | BX56: =+IF($K56="Ongoing",BB56,IF(RIGHT($K56,2)=RIGHT(BX$39,2),SUM($AX56:BB56),0)+IF(RIGHT(BX$39,2)>RIGHT($K56,2),BB56,0)) -> 7.570951386 | BY56: =+IF($K56="Ongoing",BC56,IF(RIGHT($K56,2)=RIGHT(BY$39,2),SUM($AX56:BC56),0)+IF(RIGHT(BY$39,2)>RIGHT($K56,2),BC56,0)) -> 0 | BZ56: =+IF($K56="Ongoing",BD56,IF(RIGHT($K56,2)=RIGHT(BZ$39,2),SUM($AX56:BD56),0)+IF(RIGHT(BZ$39,2)>RIGHT($K56,2),BD56,0)) -> 0 | CA56: =+IF($K56="Ongoing",BE56,IF(RIGHT($K56,2)=RIGHT(CA$39,2),SUM($AX56:BE56),0)+IF(RIGHT(CA$39,2)>RIGHT($K56,2),BE56,0)) -> 0 | CB56: =+IF($K56="Ongoing",BF56,IF(RIGHT($K56,2)=RIGHT(CB$39,2),SUM($AX56:BF56),0)+IF(RIGHT(CB$39,2)>RIGHT($K56,2),BF56,0)) -> 0 | CC56: =+IF($K56="Ongoing",BG56,IF(RIGHT($K56,2)=RIGHT(CC$39,2),SUM($AX56:BG56),0)+IF(RIGHT(CC$39,2)>RIGHT($K56,2),BG56,0)) -> 0 | CE56: =+Q56*KeyAssumptionsPriceControl_FO!X$15 -> 0.2639339983 | CF56: =+R56*KeyAssumptionsPriceControl_FO!Y$15 -> 1.035570855 | CG56: =+S56*KeyAssumptionsPriceControl_FO!Z$15 -> 0.2360317741 | CH56: =+T56*KeyAssumptionsPriceControl_FO!AA$15 -> 6.567188479 | CI56: =+U56*KeyAssumptionsPriceControl_FO!AB$15 -> 0.1195971515 | CJ56: =+V56*KeyAssumptionsPriceControl_FO!AC$15 -> 0 | CK56: =+W56*KeyAssumptionsPriceControl_FO!AD$15 -> 0 | CL56: =+X56*KeyAssumptionsPriceControl_FO!AE$15 -> 0 | CM56: =+Y56*KeyAssumptionsPriceControl_FO!AF$15 -> 0 | CN56: =+Z56*KeyAssumptionsPriceControl_FO!AG$15 -> 0 | CP56: 0 | CQ56: 0 | CR56: 0 | CS56: 0 | CT56: 0.1209165038 | CU56: 0.2382766398 | CV56: 0.2312685033 | CW56: 0.2244664885 | CX56: 0.217864533 | CY56: 0.2114567526 | DC56: 1.5 | DD56: No | DE56: =+IF($K56="ongoing",CE56,IF(RIGHT($K56,2)=RIGHT(DE$39,2),SUM($CD56:CE56),0)+IF(RIGHT(DE$39,2)>RIGHT($K56,2),CE56,0)) -> 0 | DF56: =+IF($K56="ongoing",CF56,IF(RIGHT($K56,2)=RIGHT(DF$39,2),SUM($CD56:CF56),0)+IF(RIGHT(DF$39,2)>RIGHT($K56,2),CF56,0)) -> 0 | DG56: =+IF($K56="ongoing",CG56,IF(RIGHT($K56,2)=RIGHT(DG$39,2),SUM($CD56:CG56),0)+IF(RIGHT(DG$39,2)>RIGHT($K56,2),CG56,0)) -> 0 | DH56: =+IF($K56="ongoing",CH56,IF(RIGHT($K56,2)=RIGHT(DH$39,2),SUM($CD56:CH56),0)+IF(RIGHT(DH$39,2)>RIGHT($K56,2),CH56,0)) -> 0 | DI56: =+IF($K56="ongoing",CI56,IF(RIGHT($K56,2)=RIGHT(DI$39,2),SUM($CD56:CI56),0)+IF(RIGHT(DI$39,2)>RIGHT($K56,2),CI56,0)) -> 8.222322257 | DJ56: =+IF($K56="ongoing",CJ56,IF(RIGHT($K56,2)=RIGHT(DJ$39,2),SUM($CD56:CJ56),0)+IF(RIGHT(DJ$39,2)>RIGHT($K56,2),CJ56,0)) -> 0 | DK56: =+IF($K56="ongoing",CK56,IF(RIGHT($K56,2)=RIGHT(DK$39,2),SUM($CD56:CK56),0)+IF(RIGHT(DK$39,2)>RIGHT($K56,2),CK56,0)) -> 0 | DL56: =+IF($K56="ongoing",CL56,IF(RIGHT($K56,2)=RIGHT(DL$39,2),SUM($CD56:CL56),0)+IF(RIGHT(DL$39,2)>RIGHT($K56,2),CL56,0)) -> 0 | DM56: =+IF($K56="ongoing",CM56,IF(RIGHT($K56,2)=RIGHT(DM$39,2),SUM($CD56:CM56),0)+IF(RIGHT(DM$39,2)>RIGHT($K56,2),CM56,0)) -> 0 | DN56: =+IF($K56="ongoing",CN56,IF(RIGHT($K56,2)=RIGHT(DN$39,2),SUM($CD56:CN56),0)+IF(RIGHT(DN$39,2)>RIGHT($K56,2),CN56,0)) -> 0 | DP56: 0.5 | DQ56: =+MIN(IF($N56<=$DC56,MIN($N56,1),$N56),IF(DQ$40=1,0.5,DP56+1)) -> 1.5 | DR56: 2.5 | DS56: 3.5 | DT56: 4.5 | DU56: 5.5 | DV56: 6.5 | DW56: 7.5 | DX56: 8.5 | DY56: 9.5 | EA56: =+IF(EA$40=1,0,MIN(IF($N56<=$DC56,MIN($N56,1),$N56),IF(EA$40=2,0.5,DZ56+1))) -> 0 | EB56: 0.5 | EC56: 1.5 | ED56: 2.5 | EE56: 3.5 | EF56: 4.5 | EG56: 5.5 | EH56: 6.5 | EI56: 7.5 | EJ56: 8.5 | EL56: =+IF(DP56=DO56,0, IF(AND(EL$40>1,DP56=$N56),1-SUM($EK56:EK56), IF($N56<=1, IF($N56>0,1/$N56,0), IF(EL$40=1,0,VDB(1,0,$N56,INT(EL$40-1-1),MIN($N56,INT(EL$40-1-1)+1),$DC56,IF($DD56="No",1,0))/ IF(DO56>=INT($N56),$N56-INT($N56),1)))* IF(EL$40=1,0, IF(INT(DP56)=INT(DO56),DP56-DO56,INT(DP56)-DO56))+ IF($N56<=1, IF($N56>0,1/$N56,0),VDB(1,0,$N56,INT(EL$40-1),MIN($N56,INT(EL$40-1)+1),$DC56,IF($DD56="No",1,0))/ IF(DP56>INT($N56),$N56-INT($N56),1))* IF(EL$40=1,DP56, IF(INT(DP56)=INT(DO56),0,DP56-INT(DP56))))) -> 0.01470588235 | EM56: =+IF(DQ56=DP56,0, IF(AND(EM$40>1,DQ56=$N56),1-SUM($EK56:EL56), IF($N56<=1, IF($N56>0,1/$N56,0), IF(EM$40=1,0,VDB(1,0,$N56,INT(EM$40-1-1),MIN($N56,INT(EM$40-1-1)+1),$DC56,IF($DD56="No",1,0))/ IF(DP56>=INT($N56),$N56-INT($N56),1)))* IF(EM$40=1,0, IF(INT(DQ56)=INT(DP56),DQ56-DP56,INT(DQ56)-DP56))+ IF($N56<=1, IF($N56>0,1/$N56,0),VDB(1,0,$N56,INT(EM$40-1),MIN($N56,INT(EM$40-1)+1),$DC56,IF($DD56="No",1,0))/ IF(DQ56>INT($N56),$N56-INT($N56),1))* IF(EM$40=1,DQ56, IF(INT(DQ56)=INT(DP56),0,DQ56-INT(DQ56))))) -> 0.02897923875 | EN56: =+IF(DR56=DQ56,0, IF(AND(EN$40>1,DR56=$N56),1-SUM($EK56:EM56), IF($N56<=1, IF($N56>0,1/$N56,0), IF(EN$40=1,0,VDB(1,0,$N56,INT(EN$40-1-1),MIN($N56,INT(EN$40-1-1)+1),$DC56,IF($DD56="No",1,0))/ IF(DQ56>=INT($N56),$N56-INT($N56),1)))* IF(EN$40=1,0, IF(INT(DR56)=INT(DQ56),DR56-DQ56,INT(DR56)-DQ56))+ IF($N56<=1, IF($N56>0,1/$N56,0),VDB(1,0,$N56,INT(EN$40-1),MIN($N56,INT(EN$40-1)+1),$DC56,IF($DD56="No",1,0))/ IF(DR56>INT($N56),$N56-INT($N56),1))* IF(EN$40=1,DR56, IF(INT(DR56)=INT(DQ56),0,DR56-INT(DR56))))) -> 0.0281269082 | EO56: =+IF(DS56=DR56,0, IF(AND(EO$40>1,DS56=$N56),1-SUM($EK56:EN56), IF($N56<=1, IF($N56>0,1/$N56,0), IF(EO$40=1,0,VDB(1,0,$N56,INT(EO$40-1-1),MIN($N56,INT(EO$40-1-1)+1),$DC56,IF($DD56="No",1,0))/ IF(DR56>=INT($N56),$N56-INT($N56),1)))* IF(EO$40=1,0, IF(INT(DS56)=INT(DR56),DS56-DR56,INT(DS56)-DR56))+ IF($N56<=1, IF($N56>0,1/$N56,0),VDB(1,0,$N56,INT(EO$40-1),MIN($N56,INT(EO$40-1)+1),$DC56,IF($DD56="No",1,0))/ IF(DS56>INT($N56),$N56-INT($N56),1))* IF(EO$40=1,DS56, IF(INT(DS56)=INT(DR56),0,DS56-INT(DS56))))) -> 0.0272996462 | EP56: =+IF(DT56=DS56,0, IF(AND(EP$40>1,DT56=$N56),1-SUM($EK56:EO56), IF($N56<=1, IF($N56>0,1/$N56,0), IF(EP$40=1,0,VDB(1,0,$N56,INT(EP$40-1-1),MIN($N56,INT(EP$40-1-1)+1),$DC56,IF($DD56="No",1,0))/ IF(DS56>=INT($N56),$N56-INT($N56),1)))* IF(EP$40=1,0, IF(INT(DT56)=INT(DS56),DT56-DS56,INT(DT56)-DS56))+ IF($N56<=1, IF($N56>0,1/$N56,0),VDB(1,0,$N56,INT(EP$40-1),MIN($N56,INT(EP$40-1)+1),$DC56,IF($DD56="No",1,0))/ IF(DT56>INT($N56),$N56-INT($N56),1))* IF(EP$40=1,DT56, IF(INT(DT56)=INT(DS56),0,DT56-INT(DT56))))) -> 0.02649671543 | EQ56: =+IF(DU56=DT56,0, IF(AND(EQ$40>1,DU56=$N56),1-SUM($EK56:EP56), IF($N56<=1, IF($N56>0,1/$N56,0), IF(EQ$40=1,0,VDB(1,0,$N56,INT(EQ$40-1-1),MIN($N56,INT(EQ$40-1-1)+1),$DC56,IF($DD56="No",1,0))/ IF(DT56>=INT($N56),$N56-INT($N56),1)))* IF(EQ$40=1,0, IF(INT(DU56)=INT(DT56),DU56-DT56,INT(DU56)-DT56))+ IF($N56<=1, IF($N56>0,1/$N56,0),VDB(1,0,$N56,INT(EQ$40-1),MIN($N56,INT(EQ$40-1)+1),$DC56,IF($DD56="No",1,0))/ IF(DU56>INT($N56),$N56-INT($N56),1))* IF(EQ$40=1,DU56, IF(INT(DU56)=INT(DT56),0,DU56-INT(DU56))))) -> 0.02571740027 | ER56: =+IF(DV56=DU56,0, IF(AND(ER$40>1,DV56=$N56),1-SUM($EK56:EQ56), IF($N56<=1, IF($N56>0,1/$N56,0), IF(ER$40=1,0,VDB(1,0,$N56,INT(ER$40-1-1),MIN($N56,INT(ER$40-1-1)+1),$DC56,IF($DD56="No",1,0))/ IF(DU56>=INT($N56),$N56-INT($N56),1)))* IF(ER$40=1,0, IF(INT(DV56)=INT(DU56),DV56-DU56,INT(DV56)-DU56))+ IF($N56<=1, IF($N56>0,1/$N56,0),VDB(1,0,$N56,INT(ER$40-1),MIN($N56,INT(ER$40-1)+1),$DC56,IF($DD56="No",1,0))/ IF(DV56>INT($N56),$N56-INT($N56),1))* IF(ER$40=1,DV56, IF(INT(DV56)=INT(DU56),0,DV56-INT(DV56))))) -> 0.02496100614 | ES56: =+IF(DW56=DV56,0, IF(AND(ES$40>1,DW56=$N56),1-SUM($EK56:ER56), IF($N56<=1, IF($N56>0,1/$N56,0), IF(ES$40=1,0,VDB(1,0,$N56,INT(ES$40-1-1),MIN($N56,INT(ES$40-1-1)+1),$DC56,IF($DD56="No",1,0))/ IF(DV56>=INT($N56),$N56-INT($N56),1)))* IF(ES$40=1,0, IF(INT(DW56)=INT(DV56),DW56-DV56,INT(DW56)-DV56))+ IF($N56<=1, IF($N56>0,1/$N56,0),VDB(1,0,$N56,INT(ES$40-1),MIN($N56,INT(ES$40-1)+1),$DC56,IF($DD56="No",1,0))/ IF(DW56>INT($N56),$N56-INT($N56),1))* IF(ES$40=1,DW56, IF(INT(DW56)=INT(DV56),0,DW56-INT(DW56))))) -> 0.0242268589 | ET56: =+IF(DX56=DW56,0, IF(AND(ET$40>1,DX56=$N56),1-SUM($EK56:ES56), IF($N56<=1, IF($N56>0,1/$N56,0), IF(ET$40=1,0,VDB(1,0,$N56,INT(ET$40-1-1),MIN($N56,INT(ET$40-1-1)+1),$DC56,IF($DD56="No",1,0))/ IF(DW56>=INT($N56),$N56-INT($N56),1)))* IF(ET$40=1,0, IF(INT(DX56)=INT(DW56),DX56-DW56,INT(DX56)-DW56))+ IF($N56<=1, IF($N56>0,1/$N56,0),VDB(1,0,$N56,INT(ET$40-1),MIN($N56,INT(ET$40-1)+1),$DC56,IF($DD56="No",1,0))/ IF(DX56>INT($N56),$N56-INT($N56),1))* IF(ET$40=1,DX56, IF(INT(DX56)=INT(DW56),0,DX56-INT(DX56))))) -> 0.02351430423 | EU56: =+IF(DY56=DX56,0, IF(AND(EU$40>1,DY56=$N56),1-SUM($EK56:ET56), IF($N56<=1, IF($N56>0,1/$N56,0), IF(EU$40=1,0,VDB(1,0,$N56,INT(EU$40-1-1),MIN($N56,INT(EU$40-1-1)+1),$DC56,IF($DD56="No",1,0))/ IF(DX56>=INT($N56),$N56-INT($N56),1)))* IF(EU$40=1,0, IF(INT(DY56)=INT(DX56),DY56-DX56,INT(DY56)-DX56))+ IF($N56<=1, IF($N56>0,1/$N56,0),VDB(1,0,$N56,INT(EU$40-1),MIN($N56,INT(EU$40-1)+1),$DC56,IF($DD56="No",1,0))/ IF(DY56>INT($N56),$N56-INT($N56),1))* IF(EU$40=1,DY56, IF(INT(DY56)=INT(DX56),0,DY56-INT(DY56))))) -> 0.02282270704 | EW56: =+IF(OR(EA56=DZ56,EW$40=1),0, IF(AND(EW$40>1,EA56=$N56),1-SUM($EV56:EV56), IF($N56<=1, IF($N56>0,1/$N56,0), IF(EW$40=2,0,VDB(1,0,$N56,INT(EW$40-2-1),MIN($N56,INT(EW$40-2-1)+1),$DC56,IF($DD56="No",1,0))/ IF(DZ56>=INT($N56),$N56-INT($N56),1)))* IF(EW$40=2,0, IF(INT(EA56)=INT(DZ56),EA56-DZ56,INT(EA56)-DZ56))+ IF($N56<=1, IF($N56>0,1/$N56,0),VDB(1,0,$N56,INT(EW$40-2),MIN($N56,INT(EW$40-2)+1),$DC56,IF($DD56="No",1,0))/ IF(EA56>INT($N56),$N56-INT($N56),1))* IF(EW$40=2,EA56, IF(INT(EA56)=INT(DZ56),0,EA56-INT(EA56))))) -> 0 | EX56: =+IF(OR(EB56=EA56,EX$40=1),0, IF(AND(EX$40>1,EB56=$N56),1-SUM($EV56:EW56), IF($N56<=1, IF($N56>0,1/$N56,0), IF(EX$40=2,0,VDB(1,0,$N56,INT(EX$40-2-1),MIN($N56,INT(EX$40-2-1)+1),$DC56,IF($DD56="No",1,0))/ IF(EA56>=INT($N56),$N56-INT($N56),1)))* IF(EX$40=2,0, IF(INT(EB56)=INT(EA56),EB56-EA56,INT(EB56)-EA56))+ IF($N56<=1, IF($N56>0,1/$N56,0),VDB(1,0,$N56,INT(EX$40-2),MIN($N56,INT(EX$40-2)+1),$DC56,IF($DD56="No",1,0))/ IF(EB56>INT($N56),$N56-INT($N56),1))* IF(EX$40=2,EB56, IF(INT(EB56)=INT(EA56),0,EB56-INT(EB56))))) -> 0.01470588235 | EY56: =+IF(OR(EC56=EB56,EY$40=1),0, IF(AND(EY$40>1,EC56=$N56),1-SUM($EV56:EX56), IF($N56<=1, IF($N56>0,1/$N56,0), IF(EY$40=2,0,VDB(1,0,$N56,INT(EY$40-2-1),MIN($N56,INT(EY$40-2-1)+1),$DC56,IF($DD56="No",1,0))/ IF(EB56>=INT($N56),$N56-INT($N56),1)))* IF(EY$40=2,0, IF(INT(EC56)=INT(EB56),EC56-EB56,INT(EC56)-EB56))+ IF($N56<=1, IF($N56>0,1/$N56,0),VDB(1,0,$N56,INT(EY$40-2),MIN($N56,INT(EY$40-2)+1),$DC56,IF($DD56="No",1,0))/ IF(EC56>INT($N56),$N56-INT($N56),1))* IF(EY$40=2,EC56, IF(INT(EC56)=INT(EB56),0,EC56-INT(EC56))))) -> 0.02897923875 | EZ56: =+IF(OR(ED56=EC56,EZ$40=1),0, IF(AND(EZ$40>1,ED56=$N56),1-SUM($EV56:EY56), IF($N56<=1, IF($N56>0,1/$N56,0), IF(EZ$40=2,0,VDB(1,0,$N56,INT(EZ$40-2-1),MIN($N56,INT(EZ$40-2-1)+1),$DC56,IF($DD56="No",1,0))/ IF(EC56>=INT($N56),$N56-INT($N56),1)))* IF(EZ$40=2,0, IF(INT(ED56)=INT(EC56),ED56-EC56,INT(ED56)-EC56))+ IF($N56<=1, IF($N56>0,1/$N56,0),VDB(1,0,$N56,INT(EZ$40-2),MIN($N56,INT(EZ$40-2)+1),$DC56,IF($DD56="No",1,0))/ IF(ED56>INT($N56),$N56-INT($N56),1))* IF(EZ$40=2,ED56, IF(INT(ED56)=INT(EC56),0,ED56-INT(ED56))))) -> 0.0281269082 | FA56: =+IF(OR(EE56=ED56,FA$40=1),0, IF(AND(FA$40>1,EE56=$N56),1-SUM($EV56:EZ56), IF($N56<=1, IF($N56>0,1/$N56,0), IF(FA$40=2,0,VDB(1,0,$N56,INT(FA$40-2-1),MIN($N56,INT(FA$40-2-1)+1),$DC56,IF($DD56="No",1,0))/ IF(ED56>=INT($N56),$N56-INT($N56),1)))* IF(FA$40=2,0, IF(INT(EE56)=INT(ED56),EE56-ED56,INT(EE56)-ED56))+ IF($N56<=1, IF($N56>0,1/$N56,0),VDB(1,0,$N56,INT(FA$40-2),MIN($N56,INT(FA$40-2)+1),$DC56,IF($DD56="No",1,0))/ IF(EE56>INT($N56),$N56-INT($N56),1))* IF(FA$40=2,EE56, IF(INT(EE56)=INT(ED56),0,EE56-INT(EE56))))) -> 0.0272996462 | FB56: =+IF(OR(EF56=EE56,FB$40=1),0, IF(AND(FB$40>1,EF56=$N56),1-SUM($EV56:FA56), IF($N56<=1, IF($N56>0,1/$N56,0), IF(FB$40=2,0,VDB(1,0,$N56,INT(FB$40-2-1),MIN($N56,INT(FB$40-2-1)+1),$DC56,IF($DD56="No",1,0))/ IF(EE56>=INT($N56),$N56-INT($N56),1)))* IF(FB$40=2,0, IF(INT(EF56)=INT(EE56),EF56-EE56,INT(EF56)-EE56))+ IF($N56<=1, IF($N56>0,1/$N56,0),VDB(1,0,$N56,INT(FB$40-2),MIN($N56,INT(FB$40-2)+1),$DC56,IF($DD56="No",1,0))/ IF(EF56>INT($N56),$N56-INT($N56),1))* IF(FB$40=2,EF56, IF(INT(EF56)=INT(EE56),0,EF56-INT(EF56))))) -> 0.02649671543 | FC56: =+IF(OR(EG56=EF56,FC$40=1),0, IF(AND(FC$40>1,EG56=$N56),1-SUM($EV56:FB56), IF($N56<=1, IF($N56>0,1/$N56,0), IF(FC$40=2,0,VDB(1,0,$N56,INT(FC$40-2-1),MIN($N56,INT(FC$40-2-1)+1),$DC56,IF($DD56="No",1,0))/ IF(EF56>=INT($N56),$N56-INT($N56),1)))* IF(FC$40=2,0, IF(INT(EG56)=INT(EF56),EG56-EF56,INT(EG56)-EF56))+ IF($N56<=1, IF($N56>0,1/$N56,0),VDB(1,0,$N56,INT(FC$40-2),MIN($N56,INT(FC$40-2)+1),$DC56,IF($DD56="No",1,0))/ IF(EG56>INT($N56),$N56-INT($N56),1))* IF(FC$40=2,EG56, IF(INT(EG56)=INT(EF56),0,EG56-INT(EG56))))) -> 0.02571740027 | FD56: =+IF(OR(EH56=EG56,FD$40=1),0, IF(AND(FD$40>1,EH56=$N56),1-SUM($EV56:FC56), IF($N56<=1, IF($N56>0,1/$N56,0), IF(FD$40=2,0,VDB(1,0,$N56,INT(FD$40-2-1),MIN($N56,INT(FD$40-2-1)+1),$DC56,IF($DD56="No",1,0))/ IF(EG56>=INT($N56),$N56-INT($N56),1)))* IF(FD$40=2,0, IF(INT(EH56)=INT(EG56),EH56-EG56,INT(EH56)-EG56))+ IF($N56<=1, IF($N56>0,1/$N56,0),VDB(1,0,$N56,INT(FD$40-2),MIN($N56,INT(FD$40-2)+1),$DC56,IF($DD56="No",1,0))/ IF(EH56>INT($N56),$N56-INT($N56),1))* IF(FD$40=2,EH56, IF(INT(EH56)=INT(EG56),0,EH56-INT(EH56))))) -> 0.02496100614 | FE56: =+IF(OR(EI56=EH56,FE$40=1),0, IF(AND(FE$40>1,EI56=$N56),1-SUM($EV56:FD56), IF($N56<=1, IF($N56>0,1/$N56,0), IF(FE$40=2,0,VDB(1,0,$N56,INT(FE$40-2-1),MIN($N56,INT(FE$40-2-1)+1),$DC56,IF($DD56="No",1,0))/ IF(EH56>=INT($N56),$N56-INT($N56),1)))* IF(FE$40=2,0, IF(INT(EI56)=INT(EH56),EI56-EH56,INT(EI56)-EH56))+ IF($N56<=1, IF($N56>0,1/$N56,0),VDB(1,0,$N56,INT(FE$40-2),MIN($N56,INT(FE$40-2)+1),$DC56,IF($DD56="No",1,0))/ IF(EI56>INT($N56),$N56-INT($N56),1))* IF(FE$40=2,EI56, IF(INT(EI56)=INT(EH56),0,EI56-INT(EI56))))) -> 0.0242268589 | FF56: =+IF(OR(EJ56=EI56,FF$40=1),0, IF(AND(FF$40>1,EJ56=$N56),1-SUM($EV56:FE56), IF($N56<=1, IF($N56>0,1/$N56,0), IF(FF$40=2,0,VDB(1,0,$N56,INT(FF$40-2-1),MIN($N56,INT(FF$40-2-1)+1),$DC56,IF($DD56="No",1,0))/ IF(EI56>=INT($N56),$N56-INT($N56),1)))* IF(FF$40=2,0, IF(INT(EJ56)=INT(EI56),EJ56-EI56,INT(EJ56)-EI56))+ IF($N56<=1, IF($N56>0,1/$N56,0),VDB(1,0,$N56,INT(FF$40-2),MIN($N56,INT(FF$40-2)+1),$DC56,IF($DD56="No",1,0))/ IF(EJ56>INT($N56),$N56-INT($N56),1))* IF(FF$40=2,EJ56, IF(INT(EJ56)=INT(EI56),0,EJ56-INT(EJ56))))) -> 0.02351430423 | FH56: 0.02351430423 | FI56: 0.0242268589 | FJ56: 0.02496100614 | FK56: 0.02571740027 | FL56: 0.02649671543 | FM56: 0.0272996462 | FN56: 0.0281269082 | FO56: 0.02897923875 | FP56: 0.01470588235 | FQ56: 0 | FS56: 0 | FT56: 0 | FU56: 0 | FV56: 0 | FW56: 0.1209165038 | FX56: 0.2382766398 | FY56: 0.2312685033 | FZ56: 0.2244664885 | GA56: 0.217864533 | GB56: 0.2114567526
C57: WIN | E57: Recycled Water | F57: Growth | G57: Treatment | H57: Significant projects | I57: 0 | J57: Straight line | K57: Ongoing | L57: 5 | M57: Declining Balance | N57: 5 | Q57: 0.5 | R57: 0.473 | S57: 0 | T57: 0 | U57: 0 | AB57: 0 | AC57: 0 | AD57: 0 | AE57: 0 | AF57: 0 | AM57: 0 | AN57: 0 | AO57: 0 | AP57: 0 | AQ57: 0 | AX57: 0.5 | AY57: 0.473 | AZ57: 0 | BA57: 0 | BB57: 0 | BC57: 0 | BD57: 0 | BE57: 0 | BF57: 0 | BG57: 0 | BI57: 0.05 | BJ57: 0.1473 | BK57: 0.1946 | BL57: 0.1946 | BM57: 0.1946 | BN57: 0.1446 | BO57: 0.0473 | BP57: 0 | BQ57: 0 | BR57: 0 | BT57: =+IF($K57="Ongoing",AX57,IF(RIGHT($K57,2)=RIGHT(BT$39,2),SUM($AX57:AX57),0)+IF(RIGHT(BT$39,2)>RIGHT($K57,2),AX57,0)) -> 0.5 | BU57: =+IF($K57="Ongoing",AY57,IF(RIGHT($K57,2)=RIGHT(BU$39,2),SUM($AX57:AY57),0)+IF(RIGHT(BU$39,2)>RIGHT($K57,2),AY57,0)) -> 0.473 | BV57: =+IF($K57="Ongoing",AZ57,IF(RIGHT($K57,2)=RIGHT(BV$39,2),SUM($AX57:AZ57),0)+IF(RIGHT(BV$39,2)>RIGHT($K57,2),AZ57,0)) -> 0 | BW57: =+IF($K57="Ongoing",BA57,IF(RIGHT($K57,2)=RIGHT(BW$39,2),SUM($AX57:BA57),0)+IF(RIGHT(BW$39,2)>RIGHT($K57,2),BA57,0)) -> 0 | BX57: =+IF($K57="Ongoing",BB57,IF(RIGHT($K57,2)=RIGHT(BX$39,2),SUM($AX57:BB57),0)+IF(RIGHT(BX$39,2)>RIGHT($K57,2),BB57,0)) -> 0 | BY57: =+IF($K57="Ongoing",BC57,IF(RIGHT($K57,2)=RIGHT(BY$39,2),SUM($AX57:BC57),0)+IF(RIGHT(BY$39,2)>RIGHT($K57,2),BC57,0)) -> 0 | BZ57: =+IF($K57="Ongoing",BD57,IF(RIGHT($K57,2)=RIGHT(BZ$39,2),SUM($AX57:BD57),0)+IF(RIGHT(BZ$39,2)>RIGHT($K57,2),BD57,0)) -> 0 | CA57: =+IF($K57="Ongoing",BE57,IF(RIGHT($K57,2)=RIGHT(CA$39,2),SUM($AX57:BE57),0)+IF(RIGHT(CA$39,2)>RIGHT($K57,2),BE57,0)) -> 0 | CB57: =+IF($K57="Ongoing",BF57,IF(RIGHT($K57,2)=RIGHT(CB$39,2),SUM($AX57:BF57),0)+IF(RIGHT(CB$39,2)>RIGHT($K57,2),BF57,0)) -> 0 | CC57: =+IF($K57="Ongoing",BG57,IF(RIGHT($K57,2)=RIGHT(CC$39,2),SUM($AX57:BG57),0)+IF(RIGHT(CC$39,2)>RIGHT($K57,2),BG57,0)) -> 0 | CE57: =+Q57*KeyAssumptionsPriceControl_FO!X$15 -> 0.5115 | CF57: =+R57*KeyAssumptionsPriceControl_FO!Y$15 -> 0.495008217 | CG57: =+S57*KeyAssumptionsPriceControl_FO!Z$15 -> 0 | CH57: =+T57*KeyAssumptionsPriceControl_FO!AA$15 -> 0 | CI57: =+U57*KeyAssumptionsPriceControl_FO!AB$15 -> 0 | CJ57: =+V57*KeyAssumptionsPriceControl_FO!AC$15 -> 0 | CK57: =+W57*KeyAssumptionsPriceControl_FO!AD$15 -> 0 | CL57: =+X57*KeyAssumptionsPriceControl_FO!AE$15 -> 0 | CM57: =+Y57*KeyAssumptionsPriceControl_FO!AF$15 -> 0 | CN57: =+Z57*KeyAssumptionsPriceControl_FO!AG$15 -> 0 | CP57: 0.076725 | CQ57: 0.2046837325 | CR57: 0.2175298453 | CS57: 0.1522708917 | CT57: 0.1065896242 | CU57: 0.1476853712 | CV57: 0.101023752 | CW57: 0 | CX57: 0 | CY57: 0 | DC57: 1.5 | DD57: No | DE57: =+IF($K57="ongoing",CE57,IF(RIGHT($K57,2)=RIGHT(DE$39,2),SUM($CD57:CE57),0)+IF(RIGHT(DE$39,2)>RIGHT($K57,2),CE57,0)) -> 0.5115 | DF57: =+IF($K57="ongoing",CF57,IF(RIGHT($K57,2)=RIGHT(DF$39,2),SUM($CD57:CF57),0)+IF(RIGHT(DF$39,2)>RIGHT($K57,2),CF57,0)) -> 0.495008217 | DG57: =+IF($K57="ongoing",CG57,IF(RIGHT($K57,2)=RIGHT(DG$39,2),SUM($CD57:CG57),0)+IF(RIGHT(DG$39,2)>RIGHT($K57,2),CG57,0)) -> 0 | DH57: =+IF($K57="ongoing",CH57,IF(RIGHT($K57,2)=RIGHT(DH$39,2),SUM($CD57:CH57),0)+IF(RIGHT(DH$39,2)>RIGHT($K57,2),CH57,0)) -> 0 | DI57: =+IF($K57="ongoing",CI57,IF(RIGHT($K57,2)=RIGHT(DI$39,2),SUM($CD57:CI57),0)+IF(RIGHT(DI$39,2)>RIGHT($K57,2),CI57,0)) -> 0 | DJ57: =+IF($K57="ongoing",CJ57,IF(RIGHT($K57,2)=RIGHT(DJ$39,2),SUM($CD57:CJ57),0)+IF(RIGHT(DJ$39,2)>RIGHT($K57,2),CJ57,0)) -> 0 | DK57: =+IF($K57="ongoing",CK57,IF(RIGHT($K57,2)=RIGHT(DK$39,2),SUM($CD57:CK57),0)+IF(RIGHT(DK$39,2)>RIGHT($K57,2),CK57,0)) -> 0 | DL57: =+IF($K57="ongoing",CL57,IF(RIGHT($K57,2)=RIGHT(DL$39,2),SUM($CD57:CL57),0)+IF(RIGHT(DL$39,2)>RIGHT($K57,2),CL57,0)) -> 0 | DM57: =+IF($K57="ongoing",CM57,IF(RIGHT($K57,2)=RIGHT(DM$39,2),SUM($CD57:CM57),0)+IF(RIGHT(DM$39,2)>RIGHT($K57,2),CM57,0)) -> 0 | DN57: =+IF($K57="ongoing",CN57,IF(RIGHT($K57,2)=RIGHT(DN$39,2),SUM($CD57:CN57),0)+IF(RIGHT(DN$39,2)>RIGHT($K57,2),CN57,0)) -> 0 | DP57: 0.5 | DQ57: =+MIN(IF($N57<=$DC57,MIN($N57,1),$N57),IF(DQ$40=1,0.5,DP57+1)) -> 1.5 | DR57: 2.5 | DS57: 3.5 | DT57: 4.5 | DU57: 5 | DV57: 5 | DW57: 5 | DX57: 5 | DY57: 5 | EA57: =+IF(EA$40=1,0,MIN(IF($N57<=$DC57,MIN($N57,1),$N57),IF(EA$40=2,0.5,DZ57+1))) -> 0 | EB57: 0.5 | EC57: 1.5 | ED57: 2.5 | EE57: 3.5 | EF57: 4.5 | EG57: 5 | EH57: 5 | EI57: 5 | EJ57: 5 | EL57: =+IF(DP57=DO57,0, IF(AND(EL$40>1,DP57=$N57),1-SUM($EK57:EK57), IF($N57<=1, IF($N57>0,1/$N57,0), IF(EL$40=1,0,VDB(1,0,$N57,INT(EL$40-1-1),MIN($N57,INT(EL$40-1-1)+1),$DC57,IF($DD57="No",1,0))/ IF(DO57>=INT($N57),$N57-INT($N57),1)))* IF(EL$40=1,0, IF(INT(DP57)=INT(DO57),DP57-DO57,INT(DP57)-DO57))+ IF($N57<=1, IF($N57>0,1/$N57,0),VDB(1,0,$N57,INT(EL$40-1),MIN($N57,INT(EL$40-1)+1),$DC57,IF($DD57="No",1,0))/ IF(DP57>INT($N57),$N57-INT($N57),1))* IF(EL$40=1,DP57, IF(INT(DP57)=INT(DO57),0,DP57-INT(DP57))))) -> 0.15 | EM57: =+IF(DQ57=DP57,0, IF(AND(EM$40>1,DQ57=$N57),1-SUM($EK57:EL57), IF($N57<=1, IF($N57>0,1/$N57,0), IF(EM$40=1,0,VDB(1,0,$N57,INT(EM$40-1-1),MIN($N57,INT(EM$40-1-1)+1),$DC57,IF($DD57="No",1,0))/ IF(DP57>=INT($N57),$N57-INT($N57),1)))* IF(EM$40=1,0, IF(INT(DQ57)=INT(DP57),DQ57-DP57,INT(DQ57)-DP57))+ IF($N57<=1, IF($N57>0,1/$N57,0),VDB(1,0,$N57,INT(EM$40-1),MIN($N57,INT(EM$40-1)+1),$DC57,IF($DD57="No",1,0))/ IF(DQ57>INT($N57),$N57-INT($N57),1))* IF(EM$40=1,DQ57, IF(INT(DQ57)=INT(DP57),0,DQ57-INT(DQ57))))) -> 0.255 | EN57: =+IF(DR57=DQ57,0, IF(AND(EN$40>1,DR57=$N57),1-SUM($EK57:EM57), IF($N57<=1, IF($N57>0,1/$N57,0), IF(EN$40=1,0,VDB(1,0,$N57,INT(EN$40-1-1),MIN($N57,INT(EN$40-1-1)+1),$DC57,IF($DD57="No",1,0))/ IF(DQ57>=INT($N57),$N57-INT($N57),1)))* IF(EN$40=1,0, IF(INT(DR57)=INT(DQ57),DR57-DQ57,INT(DR57)-DQ57))+ IF($N57<=1, IF($N57>0,1/$N57,0),VDB(1,0,$N57,INT(EN$40-1),MIN($N57,INT(EN$40-1)+1),$DC57,IF($DD57="No",1,0))/ IF(DR57>INT($N57),$N57-INT($N57),1))* IF(EN$40=1,DR57, IF(INT(DR57)=INT(DQ57),0,DR57-INT(DR57))))) -> 0.1785 | EO57: =+IF(DS57=DR57,0, IF(AND(EO$40>1,DS57=$N57),1-SUM($EK57:EN57), IF($N57<=1, IF($N57>0,1/$N57,0), IF(EO$40=1,0,VDB(1,0,$N57,INT(EO$40-1-1),MIN($N57,INT(EO$40-1-1)+1),$DC57,IF($DD57="No",1,0))/ IF(DR57>=INT($N57),$N57-INT($N57),1)))* IF(EO$40=1,0, IF(INT(DS57)=INT(DR57),DS57-DR57,INT(DS57)-DR57))+ IF($N57<=1, IF($N57>0,1/$N57,0),VDB(1,0,$N57,INT(EO$40-1),MIN($N57,INT(EO$40-1)+1),$DC57,IF($DD57="No",1,0))/ IF(DS57>INT($N57),$N57-INT($N57),1))* IF(EO$40=1,DS57, IF(INT(DS57)=INT(DR57),0,DS57-INT(DS57))))) -> 0.12495 | EP57: =+IF(DT57=DS57,0, IF(AND(EP$40>1,DT57=$N57),1-SUM($EK57:EO57), IF($N57<=1, IF($N57>0,1/$N57,0), IF(EP$40=1,0,VDB(1,0,$N57,INT(EP$40-1-1),MIN($N57,INT(EP$40-1-1)+1),$DC57,IF($DD57="No",1,0))/ IF(DS57>=INT($N57),$N57-INT($N57),1)))* IF(EP$40=1,0, IF(INT(DT57)=INT(DS57),DT57-DS57,INT(DT57)-DS57))+ IF($N57<=1, IF($N57>0,1/$N57,0),VDB(1,0,$N57,INT(EP$40-1),MIN($N57,INT(EP$40-1)+1),$DC57,IF($DD57="No",1,0))/ IF(DT57>INT($N57),$N57-INT($N57),1))* IF(EP$40=1,DT57, IF(INT(DT57)=INT(DS57),0,DT57-INT(DT57))))) -> 0.087465 | EQ57: =+IF(DU57=DT57,0, IF(AND(EQ$40>1,DU57=$N57),1-SUM($EK57:EP57), IF($N57<=1, IF($N57>0,1/$N57,0), IF(EQ$40=1,0,VDB(1,0,$N57,INT(EQ$40-1-1),MIN($N57,INT(EQ$40-1-1)+1),$DC57,IF($DD57="No",1,0))/ IF(DT57>=INT($N57),$N57-INT($N57),1)))* IF(EQ$40=1,0, IF(INT(DU57)=INT(DT57),DU57-DT57,INT(DU57)-DT57))+ IF($N57<=1, IF($N57>0,1/$N57,0),VDB(1,0,$N57,INT(EQ$40-1),MIN($N57,INT(EQ$40-1)+1),$DC57,IF($DD57="No",1,0))/ IF(DU57>INT($N57),$N57-INT($N57),1))* IF(EQ$40=1,DU57, IF(INT(DU57)=INT(DT57),0,DU57-INT(DU57))))) -> 0.204085 | ER57: =+IF(DV57=DU57,0, IF(AND(ER$40>1,DV57=$N57),1-SUM($EK57:EQ57), IF($N57<=1, IF($N57>0,1/$N57,0), IF(ER$40=1,0,VDB(1,0,$N57,INT(ER$40-1-1),MIN($N57,INT(ER$40-1-1)+1),$DC57,IF($DD57="No",1,0))/ IF(DU57>=INT($N57),$N57-INT($N57),1)))* IF(ER$40=1,0, IF(INT(DV57)=INT(DU57),DV57-DU57,INT(DV57)-DU57))+ IF($N57<=1, IF($N57>0,1/$N57,0),VDB(1,0,$N57,INT(ER$40-1),MIN($N57,INT(ER$40-1)+1),$DC57,IF($DD57="No",1,0))/ IF(DV57>INT($N57),$N57-INT($N57),1))* IF(ER$40=1,DV57, IF(INT(DV57)=INT(DU57),0,DV57-INT(DV57))))) -> 0 | ES57: =+IF(DW57=DV57,0, IF(AND(ES$40>1,DW57=$N57),1-SUM($EK57:ER57), IF($N57<=1, IF($N57>0,1/$N57,0), IF(ES$40=1,0,VDB(1,0,$N57,INT(ES$40-1-1),MIN($N57,INT(ES$40-1-1)+1),$DC57,IF($DD57="No",1,0))/ IF(DV57>=INT($N57),$N57-INT($N57),1)))* IF(ES$40=1,0, IF(INT(DW57)=INT(DV57),DW57-DV57,INT(DW57)-DV57))+ IF($N57<=1, IF($N57>0,1/$N57,0),VDB(1,0,$N57,INT(ES$40-1),MIN($N57,INT(ES$40-1)+1),$DC57,IF($DD57="No",1,0))/ IF(DW57>INT($N57),$N57-INT($N57),1))* IF(ES$40=1,DW57, IF(INT(DW57)=INT(DV57),0,DW57-INT(DW57))))) -> 0 | ET57: =+IF(DX57=DW57,0, IF(AND(ET$40>1,DX57=$N57),1-SUM($EK57:ES57), IF($N57<=1, IF($N57>0,1/$N57,0), IF(ET$40=1,0,VDB(1,0,$N57,INT(ET$40-1-1),MIN($N57,INT(ET$40-1-1)+1),$DC57,IF($DD57="No",1,0))/ IF(DW57>=INT($N57),$N57-INT($N57),1)))* IF(ET$40=1,0, IF(INT(DX57)=INT(DW57),DX57-DW57,INT(DX57)-DW57))+ IF($N57<=1, IF($N57>0,1/$N57,0),VDB(1,0,$N57,INT(ET$40-1),MIN($N57,INT(ET$40-1)+1),$DC57,IF($DD57="No",1,0))/ IF(DX57>INT($N57),$N57-INT($N57),1))* IF(ET$40=1,DX57, IF(INT(DX57)=INT(DW57),0,DX57-INT(DX57))))) -> 0 | EU57: =+IF(DY57=DX57,0, IF(AND(EU$40>1,DY57=$N57),1-SUM($EK57:ET57), IF($N57<=1, IF($N57>0,1/$N57,0), IF(EU$40=1,0,VDB(1,0,$N57,INT(EU$40-1-1),MIN($N57,INT(EU$40-1-1)+1),$DC57,IF($DD57="No",1,0))/ IF(DX57>=INT($N57),$N57-INT($N57),1)))* IF(EU$40=1,0, IF(INT(DY57)=INT(DX57),DY57-DX57,INT(DY57)-DX57))+ IF($N57<=1, IF($N57>0,1/$N57,0),VDB(1,0,$N57,INT(EU$40-1),MIN($N57,INT(EU$40-1)+1),$DC57,IF($DD57="No",1,0))/ IF(DY57>INT($N57),$N57-INT($N57),1))* IF(EU$40=1,DY57, IF(INT(DY57)=INT(DX57),0,DY57-INT(DY57))))) -> 0 | EW57: =+IF(OR(EA57=DZ57,EW$40=1),0, IF(AND(EW$40>1,EA57=$N57),1-SUM($EV57:EV57), IF($N57<=1, IF($N57>0,1/$N57,0), IF(EW$40=2,0,VDB(1,0,$N57,INT(EW$40-2-1),MIN($N57,INT(EW$40-2-1)+1),$DC57,IF($DD57="No",1,0))/ IF(DZ57>=INT($N57),$N57-INT($N57),1)))* IF(EW$40=2,0, IF(INT(EA57)=INT(DZ57),EA57-DZ57,INT(EA57)-DZ57))+ IF($N57<=1, IF($N57>0,1/$N57,0),VDB(1,0,$N57,INT(EW$40-2),MIN($N57,INT(EW$40-2)+1),$DC57,IF($DD57="No",1,0))/ IF(EA57>INT($N57),$N57-INT($N57),1))* IF(EW$40=2,EA57, IF(INT(EA57)=INT(DZ57),0,EA57-INT(EA57))))) -> 0 | EX57: =+IF(OR(EB57=EA57,EX$40=1),0, IF(AND(EX$40>1,EB57=$N57),1-SUM($EV57:EW57), IF($N57<=1, IF($N57>0,1/$N57,0), IF(EX$40=2,0,VDB(1,0,$N57,INT(EX$40-2-1),MIN($N57,INT(EX$40-2-1)+1),$DC57,IF($DD57="No",1,0))/ IF(EA57>=INT($N57),$N57-INT($N57),1)))* IF(EX$40=2,0, IF(INT(EB57)=INT(EA57),EB57-EA57,INT(EB57)-EA57))+ IF($N57<=1, IF($N57>0,1/$N57,0),VDB(1,0,$N57,INT(EX$40-2),MIN($N57,INT(EX$40-2)+1),$DC57,IF($DD57="No",1,0))/ IF(EB57>INT($N57),$N57-INT($N57),1))* IF(EX$40=2,EB57, IF(INT(EB57)=INT(EA57),0,EB57-INT(EB57))))) -> 0.15 | EY57: =+IF(OR(EC57=EB57,EY$40=1),0, IF(AND(EY$40>1,EC57=$N57),1-SUM($EV57:EX57), IF($N57<=1, IF($N57>0,1/$N57,0), IF(EY$40=2,0,VDB(1,0,$N57,INT(EY$40-2-1),MIN($N57,INT(EY$40-2-1)+1),$DC57,IF($DD57="No",1,0))/ IF(EB57>=INT($N57),$N57-INT($N57),1)))* IF(EY$40=2,0, IF(INT(EC57)=INT(EB57),EC57-EB57,INT(EC57)-EB57))+ IF($N57<=1, IF($N57>0,1/$N57,0),VDB(1,0,$N57,INT(EY$40-2),MIN($N57,INT(EY$40-2)+1),$DC57,IF($DD57="No",1,0))/ IF(EC57>INT($N57),$N57-INT($N57),1))* IF(EY$40=2,EC57, IF(INT(EC57)=INT(EB57),0,EC57-INT(EC57))))) -> 0.255 | EZ57: =+IF(OR(ED57=EC57,EZ$40=1),0, IF(AND(EZ$40>1,ED57=$N57),1-SUM($EV57:EY57), IF($N57<=1, IF($N57>0,1/$N57,0), IF(EZ$40=2,0,VDB(1,0,$N57,INT(EZ$40-2-1),MIN($N57,INT(EZ$40-2-1)+1),$DC57,IF($DD57="No",1,0))/ IF(EC57>=INT($N57),$N57-INT($N57),1)))* IF(EZ$40=2,0, IF(INT(ED57)=INT(EC57),ED57-EC57,INT(ED57)-EC57))+ IF($N57<=1, IF($N57>0,1/$N57,0),VDB(1,0,$N57,INT(EZ$40-2),MIN($N57,INT(EZ$40-2)+1),$DC57,IF($DD57="No",1,0))/ IF(ED57>INT($N57),$N57-INT($N57),1))* IF(EZ$40=2,ED57, IF(INT(ED57)=INT(EC57),0,ED57-INT(ED57))))) -> 0.1785 | FA57: =+IF(OR(EE57=ED57,FA$40=1),0, IF(AND(FA$40>1,EE57=$N57),1-SUM($EV57:EZ57), IF($N57<=1, IF($N57>0,1/$N57,0), IF(FA$40=2,0,VDB(1,0,$N57,INT(FA$40-2-1),MIN($N57,INT(FA$40-2-1)+1),$DC57,IF($DD57="No",1,0))/ IF(ED57>=INT($N57),$N57-INT($N57),1)))* IF(FA$40=2,0, IF(INT(EE57)=INT(ED57),EE57-ED57,INT(EE57)-ED57))+ IF($N57<=1, IF($N57>0,1/$N57,0),VDB(1,0,$N57,INT(FA$40-2),MIN($N57,INT(FA$40-2)+1),$DC57,IF($DD57="No",1,0))/ IF(EE57>INT($N57),$N57-INT($N57),1))* IF(FA$40=2,EE57, IF(INT(EE57)=INT(ED57),0,EE57-INT(EE57))))) -> 0.12495 | FB57: =+IF(OR(EF57=EE57,FB$40=1),0, IF(AND(FB$40>1,EF57=$N57),1-SUM($EV57:FA57), IF($N57<=1, IF($N57>0,1/$N57,0), IF(FB$40=2,0,VDB(1,0,$N57,INT(FB$40-2-1),MIN($N57,INT(FB$40-2-1)+1),$DC57,IF($DD57="No",1,0))/ IF(EE57>=INT($N57),$N57-INT($N57),1)))* IF(FB$40=2,0, IF(INT(EF57)=INT(EE57),EF57-EE57,INT(EF57)-EE57))+ IF($N57<=1, IF($N57>0,1/$N57,0),VDB(1,0,$N57,INT(FB$40-2),MIN($N57,INT(FB$40-2)+1),$DC57,IF($DD57="No",1,0))/ IF(EF57>INT($N57),$N57-INT($N57),1))* IF(FB$40=2,EF57, IF(INT(EF57)=INT(EE57),0,EF57-INT(EF57))))) -> 0.087465 | FC57: =+IF(OR(EG57=EF57,FC$40=1),0, IF(AND(FC$40>1,EG57=$N57),1-SUM($EV57:FB57), IF($N57<=1, IF($N57>0,1/$N57,0), IF(FC$40=2,0,VDB(1,0,$N57,INT(FC$40-2-1),MIN($N57,INT(FC$40-2-1)+1),$DC57,IF($DD57="No",1,0))/ IF(EF57>=INT($N57),$N57-INT($N57),1)))* IF(FC$40=2,0, IF(INT(EG57)=INT(EF57),EG57-EF57,INT(EG57)-EF57))+ IF($N57<=1, IF($N57>0,1/$N57,0),VDB(1,0,$N57,INT(FC$40-2),MIN($N57,INT(FC$40-2)+1),$DC57,IF($DD57="No",1,0))/ IF(EG57>INT($N57),$N57-INT($N57),1))* IF(FC$40=2,EG57, IF(INT(EG57)=INT(EF57),0,EG57-INT(EG57))))) -> 0.204085 | FD57: =+IF(OR(EH57=EG57,FD$40=1),0, IF(AND(FD$40>1,EH57=$N57),1-SUM($EV57:FC57), IF($N57<=1, IF($N57>0,1/$N57,0), IF(FD$40=2,0,VDB(1,0,$N57,INT(FD$40-2-1),MIN($N57,INT(FD$40-2-1)+1),$DC57,IF($DD57="No",1,0))/ IF(EG57>=INT($N57),$N57-INT($N57),1)))* IF(FD$40=2,0, IF(INT(EH57)=INT(EG57),EH57-EG57,INT(EH57)-EG57))+ IF($N57<=1, IF($N57>0,1/$N57,0),VDB(1,0,$N57,INT(FD$40-2),MIN($N57,INT(FD$40-2)+1),$DC57,IF($DD57="No",1,0))/ IF(EH57>INT($N57),$N57-INT($N57),1))* IF(FD$40=2,EH57, IF(INT(EH57)=INT(EG57),0,EH57-INT(EH57))))) -> 0 | FE57: =+IF(OR(EI57=EH57,FE$40=1),0, IF(AND(FE$40>1,EI57=$N57),1-SUM($EV57:FD57), IF($N57<=1, IF($N57>0,1/$N57,0), IF(FE$40=2,0,VDB(1,0,$N57,INT(FE$40-2-1),MIN($N57,INT(FE$40-2-1)+1),$DC57,IF($DD57="No",1,0))/ IF(EH57>=INT($N57),$N57-INT($N57),1)))* IF(FE$40=2,0, IF(INT(EI57)=INT(EH57),EI57-EH57,INT(EI57)-EH57))+ IF($N57<=1, IF($N57>0,1/$N57,0),VDB(1,0,$N57,INT(FE$40-2),MIN($N57,INT(FE$40-2)+1),$DC57,IF($DD57="No",1,0))/ IF(EI57>INT($N57),$N57-INT($N57),1))* IF(FE$40=2,EI57, IF(INT(EI57)=INT(EH57),0,EI57-INT(EI57))))) -> 0 | FF57: =+IF(OR(EJ57=EI57,FF$40=1),0, IF(AND(FF$40>1,EJ57=$N57),1-SUM($EV57:FE57), IF($N57<=1, IF($N57>0,1/$N57,0), IF(FF$40=2,0,VDB(1,0,$N57,INT(FF$40-2-1),MIN($N57,INT(FF$40-2-1)+1),$DC57,IF($DD57="No",1,0))/ IF(EI57>=INT($N57),$N57-INT($N57),1)))* IF(FF$40=2,0, IF(INT(EJ57)=INT(EI57),EJ57-EI57,INT(EJ57)-EI57))+ IF($N57<=1, IF($N57>0,1/$N57,0),VDB(1,0,$N57,INT(FF$40-2),MIN($N57,INT(FF$40-2)+1),$DC57,IF($DD57="No",1,0))/ IF(EJ57>INT($N57),$N57-INT($N57),1))* IF(FF$40=2,EJ57, IF(INT(EJ57)=INT(EI57),0,EJ57-INT(EJ57))))) -> 0 | FH57: 0 | FI57: 0 | FJ57: 0 | FK57: 0.204085 | FL57: 0.087465 | FM57: 0.12495 | FN57: 0.1785 | FO57: 0.255 | FP57: 0.15 | FQ57: 0 | FS57: 0.076725 | FT57: 0.2046837325 | FU57: 0.2175298453 | FV57: 0.1522708917 | FW57: 0.1065896242 | FX57: 0.1476853712 | FY57: 0.101023752 | FZ57: 0 | GA57: 0 | GB57: 0
C58: Sunbury Transfer Upgrades | E58: Water | F58: Improvements / Compliance | G58: Headworks | H58: Significant projects | I58: 0 | J58: Straight line | K58: 2019 | L58: 51 | M58: Declining Balance | N58: 51 | Q58: 0.02747999939 | R58: 0.3957643022 | S58: 6.882144671 | T58: 7.216141679 | U58: 2.78049572 | AB58: 0 | AC58: 0 | AD58: 0 | AE58: 0 | AF58: 0 | AM58: 0 | AN58: 0 | AO58: 0 | AP58: 0 | AQ58: 0 | AX58: 0.02747999939 | AY58: 0.3957643022 | AZ58: 6.882144671 | BA58: 7.216141679 | BB58: 2.78049572 | BC58: 0 | BD58: 0 | BE58: 0 | BF58: 0 | BG58: 0 | BI58: 0.0002694117587 | BJ58: 0.004418865695 | BK58: 0.07577091446 | BL58: 0.2139894081 | BM58: 0.3119956571 | BN58: 0.3392554191 | BO58: 0.3392554191 | BP58: 0.3392554191 | BQ58: 0.3392554191 | BR58: 0.3392554191 | BT58: =+IF($K58="Ongoing",AX58,IF(RIGHT($K58,2)=RIGHT(BT$39,2),SUM($AX58:AX58),0)+IF(RIGHT(BT$39,2)>RIGHT($K58,2),AX58,0)) -> 0.02747999939 | BU58: =+IF($K58="Ongoing",AY58,IF(RIGHT($K58,2)=RIGHT(BU$39,2),SUM($AX58:AY58),0)+IF(RIGHT(BU$39,2)>RIGHT($K58,2),AY58,0)) -> 0.3957643022 | BV58: =+IF($K58="Ongoing",AZ58,IF(RIGHT($K58,2)=RIGHT(BV$39,2),SUM($AX58:AZ58),0)+IF(RIGHT(BV$39,2)>RIGHT($K58,2),AZ58,0)) -> 6.882144671 | BW58: =+IF($K58="Ongoing",BA58,IF(RIGHT($K58,2)=RIGHT(BW$39,2),SUM($AX58:BA58),0)+IF(RIGHT(BW$39,2)>RIGHT($K58,2),BA58,0)) -> 7.216141679 | BX58: =+IF($K58="Ongoing",BB58,IF(RIGHT($K58,2)=RIGHT(BX$39,2),SUM($AX58:BB58),0)+IF(RIGHT(BX$39,2)>RIGHT($K58,2),BB58,0)) -> 2.78049572 | BY58: =+IF($K58="Ongoing",BC58,IF(RIGHT($K58,2)=RIGHT(BY$39,2),SUM($AX58:BC58),0)+IF(RIGHT(BY$39,2)>RIGHT($K58,2),BC58,0)) -> 0 | BZ58: =+IF($K58="Ongoing",BD58,IF(RIGHT($K58,2)=RIGHT(BZ$39,2),SUM($AX58:BD58),0)+IF(RIGHT(BZ$39,2)>RIGHT($K58,2),BD58,0)) -> 0 | CA58: =+IF($K58="Ongoing",BE58,IF(RIGHT($K58,2)=RIGHT(CA$39,2),SUM($AX58:BE58),0)+IF(RIGHT(CA$39,2)>RIGHT($K58,2),BE58,0)) -> 0 | CB58: =+IF($K58="Ongoing",BF58,IF(RIGHT($K58,2)=RIGHT(CB$39,2),SUM($AX58:BF58),0)+IF(RIGHT(CB$39,2)>RIGHT($K58,2),BF58,0)) -> 0 | CC58: =+IF($K58="Ongoing",BG58,IF(RIGHT($K58,2)=RIGHT(CC$39,2),SUM($AX58:BG58),0)+IF(RIGHT(CC$39,2)>RIGHT($K58,2),BG58,0)) -> 0 | CE58: =+Q58*KeyAssumptionsPriceControl_FO!X$15 -> 0.02811203937 | CF58: =+R58*KeyAssumptionsPriceControl_FO!Y$15 -> 0.4141788194 | CG58: =+S58*KeyAssumptionsPriceControl_FO!Z$15 -> 7.368018352 | CH58: =+T58*KeyAssumptionsPriceControl_FO!AA$15 -> 7.903283961 | CI58: =+U58*KeyAssumptionsPriceControl_FO!AB$15 -> 3.115303761 | CJ58: =+V58*KeyAssumptionsPriceControl_FO!AC$15 -> 0 | CK58: =+W58*KeyAssumptionsPriceControl_FO!AD$15 -> 0 | CL58: =+X58*KeyAssumptionsPriceControl_FO!AE$15 -> 0 | CM58: =+Y58*KeyAssumptionsPriceControl_FO!AF$15 -> 0 | CN58: =+Z58*KeyAssumptionsPriceControl_FO!AG$15 -> 0 | CP58: 0.0004134123437 | CQ58: 0.006905530492 | CR58: 0.1211465027 | CS58: 0.3421613455 | CT58: 0.4941358312 | CU58: 0.525415715 | CV58: 0.5099623117 | CW58: 0.4949634201 | CX58: 0.4804056725 | CY58: 0.4662760939 | DC58: 1.5 | DD58: No | DE58: =+IF($K58="ongoing",CE58,IF(RIGHT($K58,2)=RIGHT(DE$39,2),SUM($CD58:CE58),0)+IF(RIGHT(DE$39,2)>RIGHT($K58,2),CE58,0)) -> 0.02811203937 | DF58: =+IF($K58="ongoing",CF58,IF(RIGHT($K58,2)=RIGHT(DF$39,2),SUM($CD58:CF58),0)+IF(RIGHT(DF$39,2)>RIGHT($K58,2),CF58,0)) -> 0.4141788194 | DG58: =+IF($K58="ongoing",CG58,IF(RIGHT($K58,2)=RIGHT(DG$39,2),SUM($CD58:CG58),0)+IF(RIGHT(DG$39,2)>RIGHT($K58,2),CG58,0)) -> 7.368018352 | DH58: =+IF($K58="ongoing",CH58,IF(RIGHT($K58,2)=RIGHT(DH$39,2),SUM($CD58:CH58),0)+IF(RIGHT(DH$39,2)>RIGHT($K58,2),CH58,0)) -> 7.903283961 | DI58: =+IF($K58="ongoing",CI58,IF(RIGHT($K58,2)=RIGHT(DI$39,2),SUM($CD58:CI58),0)+IF(RIGHT(DI$39,2)>RIGHT($K58,2),CI58,0)) -> 3.115303761 | DJ58: =+IF($K58="ongoing",CJ58,IF(RIGHT($K58,2)=RIGHT(DJ$39,2),SUM($CD58:CJ58),0)+IF(RIGHT(DJ$39,2)>RIGHT($K58,2),CJ58,0)) -> 0 | DK58: =+IF($K58="ongoing",CK58,IF(RIGHT($K58,2)=RIGHT(DK$39,2),SUM($CD58:CK58),0)+IF(RIGHT(DK$39,2)>RIGHT($K58,2),CK58,0)) -> 0 | DL58: =+IF($K58="ongoing",CL58,IF(RIGHT($K58,2)=RIGHT(DL$39,2),SUM($CD58:CL58),0)+IF(RIGHT(DL$39,2)>RIGHT($K58,2),CL58,0)) -> 0 | DM58: =+IF($K58="ongoing",CM58,IF(RIGHT($K58,2)=RIGHT(DM$39,2),SUM($CD58:CM58),0)+IF(RIGHT(DM$39,2)>RIGHT($K58,2),CM58,0)) -> 0 | DN58: =+IF($K58="ongoing",CN58,IF(RIGHT($K58,2)=RIGHT(DN$39,2),SUM($CD58:CN58),0)+IF(RIGHT(DN$39,2)>RIGHT($K58,2),CN58,0)) -> 0 | DP58: 0.5 | DQ58: =+MIN(IF($N58<=$DC58,MIN($N58,1),$N58),IF(DQ$40=1,0.5,DP58+1)) -> 1.5 | DR58: 2.5 | DS58: 3.5 | DT58: 4.5 | DU58: 5.5 | DV58: 6.5 | DW58: 7.5 | DX58: 8.5 | DY58: 9.5 | EA58: =+IF(EA$40=1,0,MIN(IF($N58<=$DC58,MIN($N58,1),$N58),IF(EA$40=2,0.5,DZ58+1))) -> 0 | EB58: 0.5 | EC58: 1.5 | ED58: 2.5 | EE58: 3.5 | EF58: 4.5 | EG58: 5.5 | EH58: 6.5 | EI58: 7.5 | EJ58: 8.5 | EL58: =+IF(DP58=DO58,0, IF(AND(EL$40>1,DP58=$N58),1-SUM($EK58:EK58), IF($N58<=1, IF($N58>0,1/$N58,0), IF(EL$40=1,0,VDB(1,0,$N58,INT(EL$40-1-1),MIN($N58,INT(EL$40-1-1)+1),$DC58,IF($DD58="No",1,0))/ IF(DO58>=INT($N58),$N58-INT($N58),1)))* IF(EL$40=1,0, IF(INT(DP58)=INT(DO58),DP58-DO58,INT(DP58)-DO58))+ IF($N58<=1, IF($N58>0,1/$N58,0),VDB(1,0,$N58,INT(EL$40-1),MIN($N58,INT(EL$40-1)+1),$DC58,IF($DD58="No",1,0))/ IF(DP58>INT($N58),$N58-INT($N58),1))* IF(EL$40=1,DP58, IF(INT(DP58)=INT(DO58),0,DP58-INT(DP58))))) -> 0.01470588235 | EM58: =+IF(DQ58=DP58,0, IF(AND(EM$40>1,DQ58=$N58),1-SUM($EK58:EL58), IF($N58<=1, IF($N58>0,1/$N58,0), IF(EM$40=1,0,VDB(1,0,$N58,INT(EM$40-1-1),MIN($N58,INT(EM$40-1-1)+1),$DC58,IF($DD58="No",1,0))/ IF(DP58>=INT($N58),$N58-INT($N58),1)))* IF(EM$40=1,0, IF(INT(DQ58)=INT(DP58),DQ58-DP58,INT(DQ58)-DP58))+ IF($N58<=1, IF($N58>0,1/$N58,0),VDB(1,0,$N58,INT(EM$40-1),MIN($N58,INT(EM$40-1)+1),$DC58,IF($DD58="No",1,0))/ IF(DQ58>INT($N58),$N58-INT($N58),1))* IF(EM$40=1,DQ58, IF(INT(DQ58)=INT(DP58),0,DQ58-INT(DQ58))))) -> 0.02897923875 | EN58: =+IF(DR58=DQ58,0, IF(AND(EN$40>1,DR58=$N58),1-SUM($EK58:EM58), IF($N58<=1, IF($N58>0,1/$N58,0), IF(EN$40=1,0,VDB(1,0,$N58,INT(EN$40-1-1),MIN($N58,INT(EN$40-1-1)+1),$DC58,IF($DD58="No",1,0))/ IF(DQ58>=INT($N58),$N58-INT($N58),1)))* IF(EN$40=1,0, IF(INT(DR58)=INT(DQ58),DR58-DQ58,INT(DR58)-DQ58))+ IF($N58<=1, IF($N58>0,1/$N58,0),VDB(1,0,$N58,INT(EN$40-1),MIN($N58,INT(EN$40-1)+1),$DC58,IF($DD58="No",1,0))/ IF(DR58>INT($N58),$N58-INT($N58),1))* IF(EN$40=1,DR58, IF(INT(DR58)=INT(DQ58),0,DR58-INT(DR58))))) -> 0.0281269082 | EO58: =+IF(DS58=DR58,0, IF(AND(EO$40>1,DS58=$N58),1-SUM($EK58:EN58), IF($N58<=1, IF($N58>0,1/$N58,0), IF(EO$40=1,0,VDB(1,0,$N58,INT(EO$40-1-1),MIN($N58,INT(EO$40-1-1)+1),$DC58,IF($DD58="No",1,0))/ IF(DR58>=INT($N58),$N58-INT($N58),1)))* IF(EO$40=1,0, IF(INT(DS58)=INT(DR58),DS58-DR58,INT(DS58)-DR58))+ IF($N58<=1, IF($N58>0,1/$N58,0),VDB(1,0,$N58,INT(EO$40-1),MIN($N58,INT(EO$40-1)+1),$DC58,IF($DD58="No",1,0))/ IF(DS58>INT($N58),$N58-INT($N58),1))* IF(EO$40=1,DS58, IF(INT(DS58)=INT(DR58),0,DS58-INT(DS58))))) -> 0.0272996462 | EP58: =+IF(DT58=DS58,0, IF(AND(EP$40>1,DT58=$N58),1-SUM($EK58:EO58), IF($N58<=1, IF($N58>0,1/$N58,0), IF(EP$40=1,0,VDB(1,0,$N58,INT(EP$40-1-1),MIN($N58,INT(EP$40-1-1)+1),$DC58,IF($DD58="No",1,0))/ IF(DS58>=INT($N58),$N58-INT($N58),1)))* IF(EP$40=1,0, IF(INT(DT58)=INT(DS58),DT58-DS58,INT(DT58)-DS58))+ IF($N58<=1, IF($N58>0,1/$N58,0),VDB(1,0,$N58,INT(EP$40-1),MIN($N58,INT(EP$40-1)+1),$DC58,IF($DD58="No",1,0))/ IF(DT58>INT($N58),$N58-INT($N58),1))* IF(EP$40=1,DT58, IF(INT(DT58)=INT(DS58),0,DT58-INT(DT58))))) -> 0.02649671543 | EQ58: =+IF(DU58=DT58,0, IF(AND(EQ$40>1,DU58=$N58),1-SUM($EK58:EP58), IF($N58<=1, IF($N58>0,1/$N58,0), IF(EQ$40=1,0,VDB(1,0,$N58,INT(EQ$40-1-1),MIN($N58,INT(EQ$40-1-1)+1),$DC58,IF($DD58="No",1,0))/ IF(DT58>=INT($N58),$N58-INT($N58),1)))* IF(EQ$40=1,0, IF(INT(DU58)=INT(DT58),DU58-DT58,INT(DU58)-DT58))+ IF($N58<=1, IF($N58>0,1/$N58,0),VDB(1,0,$N58,INT(EQ$40-1),MIN($N58,INT(EQ$40-1)+1),$DC58,IF($DD58="No",1,0))/ IF(DU58>INT($N58),$N58-INT($N58),1))* IF(EQ$40=1,DU58, IF(INT(DU58)=INT(DT58),0,DU58-INT(DU58))))) -> 0.02571740027 | ER58: =+IF(DV58=DU58,0, IF(AND(ER$40>1,DV58=$N58),1-SUM($EK58:EQ58), IF($N58<=1, IF($N58>0,1/$N58,0), IF(ER$40=1,0,VDB(1,0,$N58,INT(ER$40-1-1),MIN($N58,INT(ER$40-1-1)+1),$DC58,IF($DD58="No",1,0))/ IF(DU58>=INT($N58),$N58-INT($N58),1)))* IF(ER$40=1,0, IF(INT(DV58)=INT(DU58),DV58-DU58,INT(DV58)-DU58))+ IF($N58<=1, IF($N58>0,1/$N58,0),VDB(1,0,$N58,INT(ER$40-1),MIN($N58,INT(ER$40-1)+1),$DC58,IF($DD58="No",1,0))/ IF(DV58>INT($N58),$N58-INT($N58),1))* IF(ER$40=1,DV58, IF(INT(DV58)=INT(DU58),0,DV58-INT(DV58))))) -> 0.02496100614 | ES58: =+IF(DW58=DV58,0, IF(AND(ES$40>1,DW58=$N58),1-SUM($EK58:ER58), IF($N58<=1, IF($N58>0,1/$N58,0), IF(ES$40=1,0,VDB(1,0,$N58,INT(ES$40-1-1),MIN($N58,INT(ES$40-1-1)+1),$DC58,IF($DD58="No",1,0))/ IF(DV58>=INT($N58),$N58-INT($N58),1)))* IF(ES$40=1,0, IF(INT(DW58)=INT(DV58),DW58-DV58,INT(DW58)-DV58))+ IF($N58<=1, IF($N58>0,1/$N58,0),VDB(1,0,$N58,INT(ES$40-1),MIN($N58,INT(ES$40-1)+1),$DC58,IF($DD58="No",1,0))/ IF(DW58>INT($N58),$N58-INT($N58),1))* IF(ES$40=1,DW58, IF(INT(DW58)=INT(DV58),0,DW58-INT(DW58))))) -> 0.0242268589 | ET58: =+IF(DX58=DW58,0, IF(AND(ET$40>1,DX58=$N58),1-SUM($EK58:ES58), IF($N58<=1, IF($N58>0,1/$N58,0), IF(ET$40=1,0,VDB(1,0,$N58,INT(ET$40-1-1),MIN($N58,INT(ET$40-1-1)+1),$DC58,IF($DD58="No",1,0))/ IF(DW58>=INT($N58),$N58-INT($N58),1)))* IF(ET$40=1,0, IF(INT(DX58)=INT(DW58),DX58-DW58,INT(DX58)-DW58))+ IF($N58<=1, IF($N58>0,1/$N58,0),VDB(1,0,$N58,INT(ET$40-1),MIN($N58,INT(ET$40-1)+1),$DC58,IF($DD58="No",1,0))/ IF(DX58>INT($N58),$N58-INT($N58),1))* IF(ET$40=1,DX58, IF(INT(DX58)=INT(DW58),0,DX58-INT(DX58))))) -> 0.02351430423 | EU58: =+IF(DY58=DX58,0, IF(AND(EU$40>1,DY58=$N58),1-SUM($EK58:ET58), IF($N58<=1, IF($N58>0,1/$N58,0), IF(EU$40=1,0,VDB(1,0,$N58,INT(EU$40-1-1),MIN($N58,INT(EU$40-1-1)+1),$DC58,IF($DD58="No",1,0))/ IF(DX58>=INT($N58),$N58-INT($N58),1)))* IF(EU$40=1,0, IF(INT(DY58)=INT(DX58),DY58-DX58,INT(DY58)-DX58))+ IF($N58<=1, IF($N58>0,1/$N58,0),VDB(1,0,$N58,INT(EU$40-1),MIN($N58,INT(EU$40-1)+1),$DC58,IF($DD58="No",1,0))/ IF(DY58>INT($N58),$N58-INT($N58),1))* IF(EU$40=1,DY58, IF(INT(DY58)=INT(DX58),0,DY58-INT(DY58))))) -> 0.02282270704 | EW58: =+IF(OR(EA58=DZ58,EW$40=1),0, IF(AND(EW$40>1,EA58=$N58),1-SUM($EV58:EV58), IF($N58<=1, IF($N58>0,1/$N58,0), IF(EW$40=2,0,VDB(1,0,$N58,INT(EW$40-2-1),MIN($N58,INT(EW$40-2-1)+1),$DC58,IF($DD58="No",1,0))/ IF(DZ58>=INT($N58),$N58-INT($N58),1)))* IF(EW$40=2,0, IF(INT(EA58)=INT(DZ58),EA58-DZ58,INT(EA58)-DZ58))+ IF($N58<=1, IF($N58>0,1/$N58,0),VDB(1,0,$N58,INT(EW$40-2),MIN($N58,INT(EW$40-2)+1),$DC58,IF($DD58="No",1,0))/ IF(EA58>INT($N58),$N58-INT($N58),1))* IF(EW$40=2,EA58, IF(INT(EA58)=INT(DZ58),0,EA58-INT(EA58))))) -> 0 | EX58: =+IF(OR(EB58=EA58,EX$40=1),0, IF(AND(EX$40>1,EB58=$N58),1-SUM($EV58:EW58), IF($N58<=1, IF($N58>0,1/$N58,0), IF(EX$40=2,0,VDB(1,0,$N58,INT(EX$40-2-1),MIN($N58,INT(EX$40-2-1)+1),$DC58,IF($DD58="No",1,0))/ IF(EA58>=INT($N58),$N58-INT($N58),1)))* IF(EX$40=2,0, IF(INT(EB58)=INT(EA58),EB58-EA58,INT(EB58)-EA58))+ IF($N58<=1, IF($N58>0,1/$N58,0),VDB(1,0,$N58,INT(EX$40-2),MIN($N58,INT(EX$40-2)+1),$DC58,IF($DD58="No",1,0))/ IF(EB58>INT($N58),$N58-INT($N58),1))* IF(EX$40=2,EB58, IF(INT(EB58)=INT(EA58),0,EB58-INT(EB58))))) -> 0.01470588235 | EY58: =+IF(OR(EC58=EB58,EY$40=1),0, IF(AND(EY$40>1,EC58=$N58),1-SUM($EV58:EX58), IF($N58<=1, IF($N58>0,1/$N58,0), IF(EY$40=2,0,VDB(1,0,$N58,INT(EY$40-2-1),MIN($N58,INT(EY$40-2-1)+1),$DC58,IF($DD58="No",1,0))/ IF(EB58>=INT($N58),$N58-INT($N58),1)))* IF(EY$40=2,0, IF(INT(EC58)=INT(EB58),EC58-EB58,INT(EC58)-EB58))+ IF($N58<=1, IF($N58>0,1/$N58,0),VDB(1,0,$N58,INT(EY$40-2),MIN($N58,INT(EY$40-2)+1),$DC58,IF($DD58="No",1,0))/ IF(EC58>INT($N58),$N58-INT($N58),1))* IF(EY$40=2,EC58, IF(INT(EC58)=INT(EB58),0,EC58-INT(EC58))))) -> 0.02897923875 | EZ58: =+IF(OR(ED58=EC58,EZ$40=1),0, IF(AND(EZ$40>1,ED58=$N58),1-SUM($EV58:EY58), IF($N58<=1, IF($N58>0,1/$N58,0), IF(EZ$40=2,0,VDB(1,0,$N58,INT(EZ$40-2-1),MIN($N58,INT(EZ$40-2-1)+1),$DC58,IF($DD58="No",1,0))/ IF(EC58>=INT($N58),$N58-INT($N58),1)))* IF(EZ$40=2,0, IF(INT(ED58)=INT(EC58),ED58-EC58,INT(ED58)-EC58))+ IF($N58<=1, IF($N58>0,1/$N58,0),VDB(1,0,$N58,INT(EZ$40-2),MIN($N58,INT(EZ$40-2)+1),$DC58,IF($DD58="No",1,0))/ IF(ED58>INT($N58),$N58-INT($N58),1))* IF(EZ$40=2,ED58, IF(INT(ED58)=INT(EC58),0,ED58-INT(ED58))))) -> 0.0281269082 | FA58: =+IF(OR(EE58=ED58,FA$40=1),0, IF(AND(FA$40>1,EE58=$N58),1-SUM($EV58:EZ58), IF($N58<=1, IF($N58>0,1/$N58,0), IF(FA$40=2,0,VDB(1,0,$N58,INT(FA$40-2-1),MIN($N58,INT(FA$40-2-1)+1),$DC58,IF($DD58="No",1,0))/ IF(ED58>=INT($N58),$N58-INT($N58),1)))* IF(FA$40=2,0, IF(INT(EE58)=INT(ED58),EE58-ED58,INT(EE58)-ED58))+ IF($N58<=1, IF($N58>0,1/$N58,0),VDB(1,0,$N58,INT(FA$40-2),MIN($N58,INT(FA$40-2)+1),$DC58,IF($DD58="No",1,0))/ IF(EE58>INT($N58),$N58-INT($N58),1))* IF(FA$40=2,EE58, IF(INT(EE58)=INT(ED58),0,EE58-INT(EE58))))) -> 0.0272996462 | FB58: =+IF(OR(EF58=EE58,FB$40=1),0, IF(AND(FB$40>1,EF58=$N58),1-SUM($EV58:FA58), IF($N58<=1, IF($N58>0,1/$N58,0), IF(FB$40=2,0,VDB(1,0,$N58,INT(FB$40-2-1),MIN($N58,INT(FB$40-2-1)+1),$DC58,IF($DD58="No",1,0))/ IF(EE58>=INT($N58),$N58-INT($N58),1)))* IF(FB$40=2,0, IF(INT(EF58)=INT(EE58),EF58-EE58,INT(EF58)-EE58))+ IF($N58<=1, IF($N58>0,1/$N58,0),VDB(1,0,$N58,INT(FB$40-2),MIN($N58,INT(FB$40-2)+1),$DC58,IF($DD58="No",1,0))/ IF(EF58>INT($N58),$N58-INT($N58),1))* IF(FB$40=2,EF58, IF(INT(EF58)=INT(EE58),0,EF58-INT(EF58))))) -> 0.02649671543 | FC58: =+IF(OR(EG58=EF58,FC$40=1),0, IF(AND(FC$40>1,EG58=$N58),1-SUM($EV58:FB58), IF($N58<=1, IF($N58>0,1/$N58,0), IF(FC$40=2,0,VDB(1,0,$N58,INT(FC$40-2-1),MIN($N58,INT(FC$40-2-1)+1),$DC58,IF($DD58="No",1,0))/ IF(EF58>=INT($N58),$N58-INT($N58),1)))* IF(FC$40=2,0, IF(INT(EG58)=INT(EF58),EG58-EF58,INT(EG58)-EF58))+ IF($N58<=1, IF($N58>0,1/$N58,0),VDB(1,0,$N58,INT(FC$40-2),MIN($N58,INT(FC$40-2)+1),$DC58,IF($DD58="No",1,0))/ IF(EG58>INT($N58),$N58-INT($N58),1))* IF(FC$40=2,EG58, IF(INT(EG58)=INT(EF58),0,EG58-INT(EG58))))) -> 0.02571740027 | FD58: =+IF(OR(EH58=EG58,FD$40=1),0, IF(AND(FD$40>1,EH58=$N58),1-SUM($EV58:FC58), IF($N58<=1, IF($N58>0,1/$N58,0), IF(FD$40=2,0,VDB(1,0,$N58,INT(FD$40-2-1),MIN($N58,INT(FD$40-2-1)+1),$DC58,IF($DD58="No",1,0))/ IF(EG58>=INT($N58),$N58-INT($N58),1)))* IF(FD$40=2,0, IF(INT(EH58)=INT(EG58),EH58-EG58,INT(EH58)-EG58))+ IF($N58<=1, IF($N58>0,1/$N58,0),VDB(1,0,$N58,INT(FD$40-2),MIN($N58,INT(FD$40-2)+1),$DC58,IF($DD58="No",1,0))/ IF(EH58>INT($N58),$N58-INT($N58),1))* IF(FD$40=2,EH58, IF(INT(EH58)=INT(EG58),0,EH58-INT(EH58))))) -> 0.02496100614 | FE58: =+IF(OR(EI58=EH58,FE$40=1),0, IF(AND(FE$40>1,EI58=$N58),1-SUM($EV58:FD58), IF($N58<=1, IF($N58>0,1/$N58,0), IF(FE$40=2,0,VDB(1,0,$N58,INT(FE$40-2-1),MIN($N58,INT(FE$40-2-1)+1),$DC58,IF($DD58="No",1,0))/ IF(EH58>=INT($N58),$N58-INT($N58),1)))* IF(FE$40=2,0, IF(INT(EI58)=INT(EH58),EI58-EH58,INT(EI58)-EH58))+ IF($N58<=1, IF($N58>0,1/$N58,0),VDB(1,0,$N58,INT(FE$40-2),MIN($N58,INT(FE$40-2)+1),$DC58,IF($DD58="No",1,0))/ IF(EI58>INT($N58),$N58-INT($N58),1))* IF(FE$40=2,EI58, IF(INT(EI58)=INT(EH58),0,EI58-INT(EI58))))) -> 0.0242268589 | FF58: =+IF(OR(EJ58=EI58,FF$40=1),0, IF(AND(FF$40>1,EJ58=$N58),1-SUM($EV58:FE58), IF($N58<=1, IF($N58>0,1/$N58,0), IF(FF$40=2,0,VDB(1,0,$N58,INT(FF$40-2-1),MIN($N58,INT(FF$40-2-1)+1),$DC58,IF($DD58="No",1,0))/ IF(EI58>=INT($N58),$N58-INT($N58),1)))* IF(FF$40=2,0, IF(INT(EJ58)=INT(EI58),EJ58-EI58,INT(EJ58)-EI58))+ IF($N58<=1, IF($N58>0,1/$N58,0),VDB(1,0,$N58,INT(FF$40-2),MIN($N58,INT(FF$40-2)+1),$DC58,IF($DD58="No",1,0))/ IF(EJ58>INT($N58),$N58-INT($N58),1))* IF(FF$40=2,EJ58, IF(INT(EJ58)=INT(EI58),0,EJ58-INT(EJ58))))) -> 0.02351430423 | FH58: 0.02351430423 | FI58: 0.0242268589 | FJ58: 0.02496100614 | FK58: 0.02571740027 | FL58: 0.02649671543 | FM58: 0.0272996462 | FN58: 0.0281269082 | FO58: 0.02897923875 | FP58: 0.01470588235 | FQ58: 0 | FS58: 0.0004134123437 | FT58: 0.006905530492 | FU58: 0.1211465027 | FV58: 0.3421613455 | FW58: 0.4941358312 | FX58: 0.525415715 | FY58: 0.5099623117 | FZ58: 0.4949634201 | GA58: 0.4804056725 | GB58: 0.4662760939
C64: Water infrastructure - Growth | E64: Water | F64: Growth | G64: Headworks | H64: Capital Programs / Allocation | I64: 0 | J64: Straight line | K64: Ongoing | L64: 51 | M64: Declining Balance | N64: 51 | Q64: 0.8273375003 | R64: 0.9361201591 | S64: 1.751946111 | T64: 4.868803487 | U64: 5.236488396 | AB64: 0 | AC64: 0 | AD64: 0 | AE64: 0 | AF64: 0 | AM64: 0 | AN64: 0 | AO64: 0 | AP64: 0 | AQ64: 0 | AX64: 0.8273375003 | AY64: 0.9361201591 | AZ64: 1.751946111 | BA64: 4.868803487 | BB64: 5.236488396 | BC64: 0 | BD64: 0 | BE64: 0 | BF64: 0 | BG64: 0 | BI64: 0.008111151964 | BJ64: 0.02539995255 | BK64: 0.05175354343 | BL64: 0.1166628532 | BM64: 0.2157343423 | BN64: 0.2670724638 | BO64: 0.2670724638 | BP64: 0.2670724638 | BQ64: 0.2670724638 | BR64: 0.2670724638 | BT64: =+IF($K64="Ongoing",AX64,IF(RIGHT($K64,2)=RIGHT(BT$39,2),SUM($AX64:AX64),0)+IF(RIGHT(BT$39,2)>RIGHT($K64,2),AX64,0)) -> 0.8273375003 | BU64: =+IF($K64="Ongoing",AY64,IF(RIGHT($K64,2)=RIGHT(BU$39,2),SUM($AX64:AY64),0)+IF(RIGHT(BU$39,2)>RIGHT($K64,2),AY64,0)) -> 0.9361201591 | BV64: =+IF($K64="Ongoing",AZ64,IF(RIGHT($K64,2)=RIGHT(BV$39,2),SUM($AX64:AZ64),0)+IF(RIGHT(BV$39,2)>RIGHT($K64,2),AZ64,0)) -> 1.751946111 | BW64: =+IF($K64="Ongoing",BA64,IF(RIGHT($K64,2)=RIGHT(BW$39,2),SUM($AX64:BA64),0)+IF(RIGHT(BW$39,2)>RIGHT($K64,2),BA64,0)) -> 4.868803487 | BX64: =+IF($K64="Ongoing",BB64,IF(RIGHT($K64,2)=RIGHT(BX$39,2),SUM($AX64:BB64),0)+IF(RIGHT(BX$39,2)>RIGHT($K64,2),BB64,0)) -> 5.236488396 | BY64: =+IF($K64="Ongoing",BC64,IF(RIGHT($K64,2)=RIGHT(BY$39,2),SUM($AX64:BC64),0)+IF(RIGHT(BY$39,2)>RIGHT($K64,2),BC64,0)) -> 0 | BZ64: =+IF($K64="Ongoing",BD64,IF(RIGHT($K64,2)=RIGHT(BZ$39,2),SUM($AX64:BD64),0)+IF(RIGHT(BZ$39,2)>RIGHT($K64,2),BD64,0)) -> 0 | CA64: =+IF($K64="Ongoing",BE64,IF(RIGHT($K64,2)=RIGHT(CA$39,2),SUM($AX64:BE64),0)+IF(RIGHT(CA$39,2)>RIGHT($K64,2),BE64,0)) -> 0 | CB64: =+IF($K64="Ongoing",BF64,IF(RIGHT($K64,2)=RIGHT(CB$39,2),SUM($AX64:BF64),0)+IF(RIGHT(CB$39,2)>RIGHT($K64,2),BF64,0)) -> 0 | CC64: =+IF($K64="Ongoing",BG64,IF(RIGHT($K64,2)=RIGHT(CC$39,2),SUM($AX64:BG64),0)+IF(RIGHT(CC$39,2)>RIGHT($K64,2),BG64,0)) -> 0 | CE64: =+Q64*KeyAssumptionsPriceControl_FO!X$15 -> 0.8463662628 | CF64: =+R64*KeyAssumptionsPriceControl_FO!Y$15 -> 0.9796768939 | CG64: =+S64*KeyAssumptionsPriceControl_FO!Z$15 -> 1.875632048 | CH64: =+T64*KeyAssumptionsPriceControl_FO!AA$15 -> 5.332425308 | CI64: =+U64*KeyAssumptionsPriceControl_FO!AB$15 -> 5.867030069 | CJ64: =+V64*KeyAssumptionsPriceControl_FO!AC$15 -> 0 | CK64: =+W64*KeyAssumptionsPriceControl_FO!AD$15 -> 0 | CL64: =+X64*KeyAssumptionsPriceControl_FO!AE$15 -> 0 | CM64: =+Y64*KeyAssumptionsPriceControl_FO!AF$15 -> 0 | CN64: =+Z64*KeyAssumptionsPriceControl_FO!AG$15 -> 0 | CP64: 0.01244656269 | CQ64: 0.03893406315 | CR64: 0.07977878102 | CS64: 0.1834331897 | CT64: 0.3427359691 | CU64: 0.4189353534 | CV64: 0.4066137253 | CW64: 0.3946544981 | CX64: 0.3830470129 | CY64: 0.3717809243 | DC64: 1.5 | DD64: No | DE64: =+IF($K64="ongoing",CE64,IF(RIGHT($K64,2)=RIGHT(DE$39,2),SUM($CD64:CE64),0)+IF(RIGHT(DE$39,2)>RIGHT($K64,2),CE64,0)) -> 0.8463662628 | DF64: =+IF($K64="ongoing",CF64,IF(RIGHT($K64,2)=RIGHT(DF$39,2),SUM($CD64:CF64),0)+IF(RIGHT(DF$39,2)>RIGHT($K64,2),CF64,0)) -> 0.9796768939 | DG64: =+IF($K64="ongoing",CG64,IF(RIGHT($K64,2)=RIGHT(DG$39,2),SUM($CD64:CG64),0)+IF(RIGHT(DG$39,2)>RIGHT($K64,2),CG64,0)) -> 1.875632048 | DH64: =+IF($K64="ongoing",CH64,IF(RIGHT($K64,2)=RIGHT(DH$39,2),SUM($CD64:CH64),0)+IF(RIGHT(DH$39,2)>RIGHT($K64,2),CH64,0)) -> 5.332425308 | DI64: =+IF($K64="ongoing",CI64,IF(RIGHT($K64,2)=RIGHT(DI$39,2),SUM($CD64:CI64),0)+IF(RIGHT(DI$39,2)>RIGHT($K64,2),CI64,0)) -> 5.867030069 | DJ64: =+IF($K64="ongoing",CJ64,IF(RIGHT($K64,2)=RIGHT(DJ$39,2),SUM($CD64:CJ64),0)+IF(RIGHT(DJ$39,2)>RIGHT($K64,2),CJ64,0)) -> 0 | DK64: =+IF($K64="ongoing",CK64,IF(RIGHT($K64,2)=RIGHT(DK$39,2),SUM($CD64:CK64),0)+IF(RIGHT(DK$39,2)>RIGHT($K64,2),CK64,0)) -> 0 | DL64: =+IF($K64="ongoing",CL64,IF(RIGHT($K64,2)=RIGHT(DL$39,2),SUM($CD64:CL64),0)+IF(RIGHT(DL$39,2)>RIGHT($K64,2),CL64,0)) -> 0 | DM64: =+IF($K64="ongoing",CM64,IF(RIGHT($K64,2)=RIGHT(DM$39,2),SUM($CD64:CM64),0)+IF(RIGHT(DM$39,2)>RIGHT($K64,2),CM64,0)) -> 0 | DN64: =+IF($K64="ongoing",CN64,IF(RIGHT($K64,2)=RIGHT(DN$39,2),SUM($CD64:CN64),0)+IF(RIGHT(DN$39,2)>RIGHT($K64,2),CN64,0)) -> 0 | DP64: 0.5 | DQ64: =+MIN(IF($N64<=$DC64,MIN($N64,1),$N64),IF(DQ$40=1,0.5,DP64+1)) -> 1.5 | DR64: 2.5 | DS64: 3.5 | DT64: 4.5 | DU64: 5.5 | DV64: 6.5 | DW64: 7.5 | DX64: 8.5 | DY64: 9.5 | EA64: =+IF(EA$40=1,0,MIN(IF($N64<=$DC64,MIN($N64,1),$N64),IF(EA$40=2,0.5,DZ64+1))) -> 0 | EB64: 0.5 | EC64: 1.5 | ED64: 2.5 | EE64: 3.5 | EF64: 4.5 | EG64: 5.5 | EH64: 6.5 | EI64: 7.5 | EJ64: 8.5 | EL64: =+IF(DP64=DO64,0, IF(AND(EL$40>1,DP64=$N64),1-SUM($EK64:EK64), IF($N64<=1, IF($N64>0,1/$N64,0), IF(EL$40=1,0,VDB(1,0,$N64,INT(EL$40-1-1),MIN($N64,INT(EL$40-1-1)+1),$DC64,IF($DD64="No",1,0))/ IF(DO64>=INT($N64),$N64-INT($N64),1)))* IF(EL$40=1,0, IF(INT(DP64)=INT(DO64),DP64-DO64,INT(DP64)-DO64))+ IF($N64<=1, IF($N64>0,1/$N64,0),VDB(1,0,$N64,INT(EL$40-1),MIN($N64,INT(EL$40-1)+1),$DC64,IF($DD64="No",1,0))/ IF(DP64>INT($N64),$N64-INT($N64),1))* IF(EL$40=1,DP64, IF(INT(DP64)=INT(DO64),0,DP64-INT(DP64))))) -> 0.01470588235 | EM64: =+IF(DQ64=DP64,0, IF(AND(EM$40>1,DQ64=$N64),1-SUM($EK64:EL64), IF($N64<=1, IF($N64>0,1/$N64,0), IF(EM$40=1,0,VDB(1,0,$N64,INT(EM$40-1-1),MIN($N64,INT(EM$40-1-1)+1),$DC64,IF($DD64="No",1,0))/ IF(DP64>=INT($N64),$N64-INT($N64),1)))* IF(EM$40=1,0, IF(INT(DQ64)=INT(DP64),DQ64-DP64,INT(DQ64)-DP64))+ IF($N64<=1, IF($N64>0,1/$N64,0),VDB(1,0,$N64,INT(EM$40-1),MIN($N64,INT(EM$40-1)+1),$DC64,IF($DD64="No",1,0))/ IF(DQ64>INT($N64),$N64-INT($N64),1))* IF(EM$40=1,DQ64, IF(INT(DQ64)=INT(DP64),0,DQ64-INT(DQ64))))) -> 0.02897923875 | EN64: =+IF(DR64=DQ64,0, IF(AND(EN$40>1,DR64=$N64),1-SUM($EK64:EM64), IF($N64<=1, IF($N64>0,1/$N64,0), IF(EN$40=1,0,VDB(1,0,$N64,INT(EN$40-1-1),MIN($N64,INT(EN$40-1-1)+1),$DC64,IF($DD64="No",1,0))/ IF(DQ64>=INT($N64),$N64-INT($N64),1)))* IF(EN$40=1,0, IF(INT(DR64)=INT(DQ64),DR64-DQ64,INT(DR64)-DQ64))+ IF($N64<=1, IF($N64>0,1/$N64,0),VDB(1,0,$N64,INT(EN$40-1),MIN($N64,INT(EN$40-1)+1),$DC64,IF($DD64="No",1,0))/ IF(DR64>INT($N64),$N64-INT($N64),1))* IF(EN$40=1,DR64, IF(INT(DR64)=INT(DQ64),0,DR64-INT(DR64))))) -> 0.0281269082 | EO64: =+IF(DS64=DR64,0, IF(AND(EO$40>1,DS64=$N64),1-SUM($EK64:EN64), IF($N64<=1, IF($N64>0,1/$N64,0), IF(EO$40=1,0,VDB(1,0,$N64,INT(EO$40-1-1),MIN($N64,INT(EO$40-1-1)+1),$DC64,IF($DD64="No",1,0))/ IF(DR64>=INT($N64),$N64-INT($N64),1)))* IF(EO$40=1,0, IF(INT(DS64)=INT(DR64),DS64-DR64,INT(DS64)-DR64))+ IF($N64<=1, IF($N64>0,1/$N64,0),VDB(1,0,$N64,INT(EO$40-1),MIN($N64,INT(EO$40-1)+1),$DC64,IF($DD64="No",1,0))/ IF(DS64>INT($N64),$N64-INT($N64),1))* IF(EO$40=1,DS64, IF(INT(DS64)=INT(DR64),0,DS64-INT(DS64))))) -> 0.0272996462 | EP64: =+IF(DT64=DS64,0, IF(AND(EP$40>1,DT64=$N64),1-SUM($EK64:EO64), IF($N64<=1, IF($N64>0,1/$N64,0), IF(EP$40=1,0,VDB(1,0,$N64,INT(EP$40-1-1),MIN($N64,INT(EP$40-1-1)+1),$DC64,IF($DD64="No",1,0))/ IF(DS64>=INT($N64),$N64-INT($N64),1)))* IF(EP$40=1,0, IF(INT(DT64)=INT(DS64),DT64-DS64,INT(DT64)-DS64))+ IF($N64<=1, IF($N64>0,1/$N64,0),VDB(1,0,$N64,INT(EP$40-1),MIN($N64,INT(EP$40-1)+1),$DC64,IF($DD64="No",1,0))/ IF(DT64>INT($N64),$N64-INT($N64),1))* IF(EP$40=1,DT64, IF(INT(DT64)=INT(DS64),0,DT64-INT(DT64))))) -> 0.02649671543 | EQ64: =+IF(DU64=DT64,0, IF(AND(EQ$40>1,DU64=$N64),1-SUM($EK64:EP64), IF($N64<=1, IF($N64>0,1/$N64,0), IF(EQ$40=1,0,VDB(1,0,$N64,INT(EQ$40-1-1),MIN($N64,INT(EQ$40-1-1)+1),$DC64,IF($DD64="No",1,0))/ IF(DT64>=INT($N64),$N64-INT($N64),1)))* IF(EQ$40=1,0, IF(INT(DU64)=INT(DT64),DU64-DT64,INT(DU64)-DT64))+ IF($N64<=1, IF($N64>0,1/$N64,0),VDB(1,0,$N64,INT(EQ$40-1),MIN($N64,INT(EQ$40-1)+1),$DC64,IF($DD64="No",1,0))/ IF(DU64>INT($N64),$N64-INT($N64),1))* IF(EQ$40=1,DU64, IF(INT(DU64)=INT(DT64),0,DU64-INT(DU64))))) -> 0.02571740027 | ER64: =+IF(DV64=DU64,0, IF(AND(ER$40>1,DV64=$N64),1-SUM($EK64:EQ64), IF($N64<=1, IF($N64>0,1/$N64,0), IF(ER$40=1,0,VDB(1,0,$N64,INT(ER$40-1-1),MIN($N64,INT(ER$40-1-1)+1),$DC64,IF($DD64="No",1,0))/ IF(DU64>=INT($N64),$N64-INT($N64),1)))* IF(ER$40=1,0, IF(INT(DV64)=INT(DU64),DV64-DU64,INT(DV64)-DU64))+ IF($N64<=1, IF($N64>0,1/$N64,0),VDB(1,0,$N64,INT(ER$40-1),MIN($N64,INT(ER$40-1)+1),$DC64,IF($DD64="No",1,0))/ IF(DV64>INT($N64),$N64-INT($N64),1))* IF(ER$40=1,DV64, IF(INT(DV64)=INT(DU64),0,DV64-INT(DV64))))) -> 0.02496100614 | ES64: =+IF(DW64=DV64,0, IF(AND(ES$40>1,DW64=$N64),1-SUM($EK64:ER64), IF($N64<=1, IF($N64>0,1/$N64,0), IF(ES$40=1,0,VDB(1,0,$N64,INT(ES$40-1-1),MIN($N64,INT(ES$40-1-1)+1),$DC64,IF($DD64="No",1,0))/ IF(DV64>=INT($N64),$N64-INT($N64),1)))* IF(ES$40=1,0, IF(INT(DW64)=INT(DV64),DW64-DV64,INT(DW64)-DV64))+ IF($N64<=1, IF($N64>0,1/$N64,0),VDB(1,0,$N64,INT(ES$40-1),MIN($N64,INT(ES$40-1)+1),$DC64,IF($DD64="No",1,0))/ IF(DW64>INT($N64),$N64-INT($N64),1))* IF(ES$40=1,DW64, IF(INT(DW64)=INT(DV64),0,DW64-INT(DW64))))) -> 0.0242268589 | ET64: =+IF(DX64=DW64,0, IF(AND(ET$40>1,DX64=$N64),1-SUM($EK64:ES64), IF($N64<=1, IF($N64>0,1/$N64,0), IF(ET$40=1,0,VDB(1,0,$N64,INT(ET$40-1-1),MIN($N64,INT(ET$40-1-1)+1),$DC64,IF($DD64="No",1,0))/ IF(DW64>=INT($N64),$N64-INT($N64),1)))* IF(ET$40=1,0, IF(INT(DX64)=INT(DW64),DX64-DW64,INT(DX64)-DW64))+ IF($N64<=1, IF($N64>0,1/$N64,0),VDB(1,0,$N64,INT(ET$40-1),MIN($N64,INT(ET$40-1)+1),$DC64,IF($DD64="No",1,0))/ IF(DX64>INT($N64),$N64-INT($N64),1))* IF(ET$40=1,DX64, IF(INT(DX64)=INT(DW64),0,DX64-INT(DX64))))) -> 0.02351430423 | EU64: =+IF(DY64=DX64,0, IF(AND(EU$40>1,DY64=$N64),1-SUM($EK64:ET64), IF($N64<=1, IF($N64>0,1/$N64,0), IF(EU$40=1,0,VDB(1,0,$N64,INT(EU$40-1-1),MIN($N64,INT(EU$40-1-1)+1),$DC64,IF($DD64="No",1,0))/ IF(DX64>=INT($N64),$N64-INT($N64),1)))* IF(EU$40=1,0, IF(INT(DY64)=INT(DX64),DY64-DX64,INT(DY64)-DX64))+ IF($N64<=1, IF($N64>0,1/$N64,0),VDB(1,0,$N64,INT(EU$40-1),MIN($N64,INT(EU$40-1)+1),$DC64,IF($DD64="No",1,0))/ IF(DY64>INT($N64),$N64-INT($N64),1))* IF(EU$40=1,DY64, IF(INT(DY64)=INT(DX64),0,DY64-INT(DY64))))) -> 0.02282270704 | EW64: =+IF(OR(EA64=DZ64,EW$40=1),0, IF(AND(EW$40>1,EA64=$N64),1-SUM($EV64:EV64), IF($N64<=1, IF($N64>0,1/$N64,0), IF(EW$40=2,0,VDB(1,0,$N64,INT(EW$40-2-1),MIN($N64,INT(EW$40-2-1)+1),$DC64,IF($DD64="No",1,0))/ IF(DZ64>=INT($N64),$N64-INT($N64),1)))* IF(EW$40=2,0, IF(INT(EA64)=INT(DZ64),EA64-DZ64,INT(EA64)-DZ64))+ IF($N64<=1, IF($N64>0,1/$N64,0),VDB(1,0,$N64,INT(EW$40-2),MIN($N64,INT(EW$40-2)+1),$DC64,IF($DD64="No",1,0))/ IF(EA64>INT($N64),$N64-INT($N64),1))* IF(EW$40=2,EA64, IF(INT(EA64)=INT(DZ64),0,EA64-INT(EA64))))) -> 0 | EX64: =+IF(OR(EB64=EA64,EX$40=1),0, IF(AND(EX$40>1,EB64=$N64),1-SUM($EV64:EW64), IF($N64<=1, IF($N64>0,1/$N64,0), IF(EX$40=2,0,VDB(1,0,$N64,INT(EX$40-2-1),MIN($N64,INT(EX$40-2-1)+1),$DC64,IF($DD64="No",1,0))/ IF(EA64>=INT($N64),$N64-INT($N64),1)))* IF(EX$40=2,0, IF(INT(EB64)=INT(EA64),EB64-EA64,INT(EB64)-EA64))+ IF($N64<=1, IF($N64>0,1/$N64,0),VDB(1,0,$N64,INT(EX$40-2),MIN($N64,INT(EX$40-2)+1),$DC64,IF($DD64="No",1,0))/ IF(EB64>INT($N64),$N64-INT($N64),1))* IF(EX$40=2,EB64, IF(INT(EB64)=INT(EA64),0,EB64-INT(EB64))))) -> 0.01470588235 | EY64: =+IF(OR(EC64=EB64,EY$40=1),0, IF(AND(EY$40>1,EC64=$N64),1-SUM($EV64:EX64), IF($N64<=1, IF($N64>0,1/$N64,0), IF(EY$40=2,0,VDB(1,0,$N64,INT(EY$40-2-1),MIN($N64,INT(EY$40-2-1)+1),$DC64,IF($DD64="No",1,0))/ IF(EB64>=INT($N64),$N64-INT($N64),1)))* IF(EY$40=2,0, IF(INT(EC64)=INT(EB64),EC64-EB64,INT(EC64)-EB64))+ IF($N64<=1, IF($N64>0,1/$N64,0),VDB(1,0,$N64,INT(EY$40-2),MIN($N64,INT(EY$40-2)+1),$DC64,IF($DD64="No",1,0))/ IF(EC64>INT($N64),$N64-INT($N64),1))* IF(EY$40=2,EC64, IF(INT(EC64)=INT(EB64),0,EC64-INT(EC64))))) -> 0.02897923875 | EZ64: =+IF(OR(ED64=EC64,EZ$40=1),0, IF(AND(EZ$40>1,ED64=$N64),1-SUM($EV64:EY64), IF($N64<=1, IF($N64>0,1/$N64,0), IF(EZ$40=2,0,VDB(1,0,$N64,INT(EZ$40-2-1),MIN($N64,INT(EZ$40-2-1)+1),$DC64,IF($DD64="No",1,0))/ IF(EC64>=INT($N64),$N64-INT($N64),1)))* IF(EZ$40=2,0, IF(INT(ED64)=INT(EC64),ED64-EC64,INT(ED64)-EC64))+ IF($N64<=1, IF($N64>0,1/$N64,0),VDB(1,0,$N64,INT(EZ$40-2),MIN($N64,INT(EZ$40-2)+1),$DC64,IF($DD64="No",1,0))/ IF(ED64>INT($N64),$N64-INT($N64),1))* IF(EZ$40=2,ED64, IF(INT(ED64)=INT(EC64),0,ED64-INT(ED64))))) -> 0.0281269082 | FA64: =+IF(OR(EE64=ED64,FA$40=1),0, IF(AND(FA$40>1,EE64=$N64),1-SUM($EV64:EZ64), IF($N64<=1, IF($N64>0,1/$N64,0), IF(FA$40=2,0,VDB(1,0,$N64,INT(FA$40-2-1),MIN($N64,INT(FA$40-2-1)+1),$DC64,IF($DD64="No",1,0))/ IF(ED64>=INT($N64),$N64-INT($N64),1)))* IF(FA$40=2,0, IF(INT(EE64)=INT(ED64),EE64-ED64,INT(EE64)-ED64))+ IF($N64<=1, IF($N64>0,1/$N64,0),VDB(1,0,$N64,INT(FA$40-2),MIN($N64,INT(FA$40-2)+1),$DC64,IF($DD64="No",1,0))/ IF(EE64>INT($N64),$N64-INT($N64),1))* IF(FA$40=2,EE64, IF(INT(EE64)=INT(ED64),0,EE64-INT(EE64))))) -> 0.0272996462 | FB64: =+IF(OR(EF64=EE64,FB$40=1),0, IF(AND(FB$40>1,EF64=$N64),1-SUM($EV64:FA64), IF($N64<=1, IF($N64>0,1/$N64,0), IF(FB$40=2,0,VDB(1,0,$N64,INT(FB$40-2-1),MIN($N64,INT(FB$40-2-1)+1),$DC64,IF($DD64="No",1,0))/ IF(EE64>=INT($N64),$N64-INT($N64),1)))* IF(FB$40=2,0, IF(INT(EF64)=INT(EE64),EF64-EE64,INT(EF64)-EE64))+ IF($N64<=1, IF($N64>0,1/$N64,0),VDB(1,0,$N64,INT(FB$40-2),MIN($N64,INT(FB$40-2)+1),$DC64,IF($DD64="No",1,0))/ IF(EF64>INT($N64),$N64-INT($N64),1))* IF(FB$40=2,EF64, IF(INT(EF64)=INT(EE64),0,EF64-INT(EF64))))) -> 0.02649671543 | FC64: =+IF(OR(EG64=EF64,FC$40=1),0, IF(AND(FC$40>1,EG64=$N64),1-SUM($EV64:FB64), IF($N64<=1, IF($N64>0,1/$N64,0), IF(FC$40=2,0,VDB(1,0,$N64,INT(FC$40-2-1),MIN($N64,INT(FC$40-2-1)+1),$DC64,IF($DD64="No",1,0))/ IF(EF64>=INT($N64),$N64-INT($N64),1)))* IF(FC$40=2,0, IF(INT(EG64)=INT(EF64),EG64-EF64,INT(EG64)-EF64))+ IF($N64<=1, IF($N64>0,1/$N64,0),VDB(1,0,$N64,INT(FC$40-2),MIN($N64,INT(FC$40-2)+1),$DC64,IF($DD64="No",1,0))/ IF(EG64>INT($N64),$N64-INT($N64),1))* IF(FC$40=2,EG64, IF(INT(EG64)=INT(EF64),0,EG64-INT(EG64))))) -> 0.02571740027 | FD64: =+IF(OR(EH64=EG64,FD$40=1),0, IF(AND(FD$40>1,EH64=$N64),1-SUM($EV64:FC64), IF($N64<=1, IF($N64>0,1/$N64,0), IF(FD$40=2,0,VDB(1,0,$N64,INT(FD$40-2-1),MIN($N64,INT(FD$40-2-1)+1),$DC64,IF($DD64="No",1,0))/ IF(EG64>=INT($N64),$N64-INT($N64),1)))* IF(FD$40=2,0, IF(INT(EH64)=INT(EG64),EH64-EG64,INT(EH64)-EG64))+ IF($N64<=1, IF($N64>0,1/$N64,0),VDB(1,0,$N64,INT(FD$40-2),MIN($N64,INT(FD$40-2)+1),$DC64,IF($DD64="No",1,0))/ IF(EH64>INT($N64),$N64-INT($N64),1))* IF(FD$40=2,EH64, IF(INT(EH64)=INT(EG64),0,EH64-INT(EH64))))) -> 0.02496100614 | FE64: =+IF(OR(EI64=EH64,FE$40=1),0, IF(AND(FE$40>1,EI64=$N64),1-SUM($EV64:FD64), IF($N64<=1, IF($N64>0,1/$N64,0), IF(FE$40=2,0,VDB(1,0,$N64,INT(FE$40-2-1),MIN($N64,INT(FE$40-2-1)+1),$DC64,IF($DD64="No",1,0))/ IF(EH64>=INT($N64),$N64-INT($N64),1)))* IF(FE$40=2,0, IF(INT(EI64)=INT(EH64),EI64-EH64,INT(EI64)-EH64))+ IF($N64<=1, IF($N64>0,1/$N64,0),VDB(1,0,$N64,INT(FE$40-2),MIN($N64,INT(FE$40-2)+1),$DC64,IF($DD64="No",1,0))/ IF(EI64>INT($N64),$N64-INT($N64),1))* IF(FE$40=2,EI64, IF(INT(EI64)=INT(EH64),0,EI64-INT(EI64))))) -> 0.0242268589 | FF64: =+IF(OR(EJ64=EI64,FF$40=1),0, IF(AND(FF$40>1,EJ64=$N64),1-SUM($EV64:FE64), IF($N64<=1, IF($N64>0,1/$N64,0), IF(FF$40=2,0,VDB(1,0,$N64,INT(FF$40-2-1),MIN($N64,INT(FF$40-2-1)+1),$DC64,IF($DD64="No",1,0))/ IF(EI64>=INT($N64),$N64-INT($N64),1)))* IF(FF$40=2,0, IF(INT(EJ64)=INT(EI64),EJ64-EI64,INT(EJ64)-EI64))+ IF($N64<=1, IF($N64>0,1/$N64,0),VDB(1,0,$N64,INT(FF$40-2),MIN($N64,INT(FF$40-2)+1),$DC64,IF($DD64="No",1,0))/ IF(EJ64>INT($N64),$N64-INT($N64),1))* IF(FF$40=2,EJ64, IF(INT(EJ64)=INT(EI64),0,EJ64-INT(EJ64))))) -> 0.02351430423 | FH64: =+OFFSET($EW64,0,MAX($FH$40:$IM$40)-FH$40) -> 0.02351430423 | FI64: 0.0242268589 | FJ64: 0.02496100614 | FK64: 0.02571740027 | FL64: 0.02649671543 | FM64: 0.0272996462 | FN64: 0.0281269082 | FO64: 0.02897923875 | FP64: 0.01470588235 | FQ64: 0 | FS64: 0.01244656269 | FT64: 0.03893406315 | FU64: 0.07977878102 | FV64: 0.1834331897 | FW64: 0.3427359691 | FX64: 0.4189353534 | FY64: 0.4066137253 | FZ64: 0.3946544981 | GA64: 0.3830470129 | GB64: 0.3717809243
